Workbook

Sheet START
B3: Animal health
B4: management tool
A5: press continue to start
B12: This cost-benefit module has been developed as part of the EU 7th Framework project IMPRO
B15: Contact information:
B16: e-mail: | C16: felix.vansoest@wur.nl
B17: website: | C17: www.wageningenur.nl/bec
C18: http://www.impro-dairy.eu/index.php/en/
B26: No rights can be derived from the contents of this calculation tool

Sheet TEXT 1
B3: The aim of this tool is to give insights in the costs associated with a disease, which we call failure costs and the costs that are associated with implementing new management measures, which we call preventive costs and their interaction. To do so three distinct parts have to be completed
B8: In the first part of the questionnaire we try to assess the current failure costs due to four different diseases given your specific farm situation. Our calculation tool will be more precise if more exact information is administered.
B13: In the second part of this support tool we try to assess which preventive measures may be applicable in your specific farming situation and the associated preventive costs of each of the four different diseases.
B18: The aim of the third and final part is to explore what part of the previous presented failure cost may be prevented by applying new management measures to the farming routine
B23: On the following two pages information regarding herd characteristics and health characteristics and base price levels are asked to estimate the costs of disease

Sheet FC 1
A1: Input data from first farm visit
A2: Please complete all fields, if some values are 0 please indicate a zero do not leave fields blank, The box below can be specified if desired but is not obligatory. Blue fields do not need to be completed.
A4: Farm Identification number | B4: .
D6: Unit
A7: How many dairy cows have been present on your farm last year? | C7: 100
A8: What was the amount of milk produced by these cows in the same period? | C8: 831000 | D8: kg milk / year
A9: Based on the given inpput the average production per cow per year was | C9: =C8/C7 -> 8310 | D9: kg milk / dairy cow / year
A11: How many cases of clinical mastitis have been present on your farm last year? | C11: 30 | D11: # cows / year
M12: =C11/C7*100 -> 30 | N12: %
A14: How many cows have had, on average last year, a SCC above the following thresholds | K14: percentage of dairy cows with SCC < 50 | M14: =((C7-C15)*0.5)/C7*100 -> 15 | N14: %
B15: >100.000 cells/ml | C15: 70 | D15: # cows / year | K15: percentage of dairy cows with SCC 50-100 | M15: =((C7-C15)*0.5)/C7*100 -> 15 | N15: %
B16: >200.000 cells/ml | C16: 50 | D16: # cows / year | K16: percentage of dairy cows with SCC 100-200 | M16: =(C15-C16)/C7*100 -> 20 | N16: %
B17: >300.000 cells/ml | C17: 30 | D17: # cows / year | K17: percentage of dairy cows with SCC 200-300 | M17: =(C16-C17)/C7*100 -> 20 | N17: %
A19: Based on these values we expect your average yearly BMSCC was: | C19: ='Convert SCC to BMSCC'!G12 -> 360.5592105 | D19: x 1,000 cells/ml
K20: percentage of dairy cows with SCC 300-400 | M20: =(C17*0.7)/C7*100 -> 21 | N20: %
A22: How many cases of severe lameness have been present on your farm last year? | C22: 15 | D22: # cows / year | K22: percentage of dairy cows with SCC >400 | M22: =(C17*0.3)/C7*100 -> 9 | N22: %
A23: How many cases of moderate lameness have been present on your farm last year? | C23: 25 | D23: # cows / year
M24: =C22/C7*100 -> 15 | N24: % Severe lameness
A25: How many cows have shown signs of subclinical ketosis? Or alternatively how many cows have had a fat/ protein ratio >1.5 the first 100 days in milk? | M25: =C23/C7*100 -> 25 | N25: % Moderate lameness
M26: =100-M25-M24 -> 60 | N26: % No lameness
C27: 25 | D27: # cows / year
M28: =C27/C7*100 -> 25 | N28: %
A31: Only specify this part when you have specific information on the number of cows treated with(out) antibiotics or alternative therapy for mastitis or lameness. If no more is available please leave blank
A34: The number of dairy cows with clinical mastitis on this farm was | E34: =(M12/100)*C7 -> 30 | F34: # cows / year
A35: Out of these dairy cows we assume the following distribution of treatment (note that more treatments than cases is possible), please specify (input) if more information is available
E37: input | G37: when input is not specified we assume
A38: 1.) Treated cases of clinical mastitis with antibiotics | E38: 5 | G38: =ASSUMPTIONS!E85 -> 24 | H38: # treatments / year
A39: 2.) Treated cases of clinical mastitis without antibiotics | G39: =ASSUMPTIONS!E86 -> 6 | H39: # treatments / year
A40: 3.) Treated cases of clinical mastitis with alternative treatments | G40: =ASSUMPTIONS!E87 -> 0 | H40: # treatments / year
A41: 4.) untreated cases of clinical mastitis | G41: =ASSUMPTIONS!E88 -> 0 | H41: # treatments / year
A44: The number of dairy cows with clinical lameness on this farm was | E44: =((M24+M25)/100)*C7 -> 40 | F44: # cows / year
A45: Out of these dairy cows we assume the following distribution of treatment (note that more treatments than cases is possible), please specify (input) if more information is available
E47: input | G47: If not specified we assume:
A48: 1.) Treated cases of clinical lameness with antibiotics | G48: =ASSUMPTIONS!E89 -> 32 | H48: # treatments / year
A49: 2.) Treated cases of clinical lameness without antibiotics | G49: =ASSUMPTIONS!E90 -> 8 | H49: # treatments / year
A50: 3.) Treated cases of clinical lameness with alternative treatments | G50: =ASSUMPTIONS!E91 -> 0 | H50: # treatments / year
A51: 4.) untreated cases of clinical lameness | G51: =ASSUMPTIONS!E92 -> 0 | H51: # treatments / year
A53: footnote: under Swedish circumstances option 3 will by default always be 0

Sheet FC 2
A1: Input data from questionnaire
A2: Please complete the following questions leave blank if you do not know the correct value for your farm, Please note that percentages need to be filled in as a number without the %. If the answer to Q1 would be 30% you just enter 30.
A5: Question | C5: Input | D5: Unit | G5: Unit
A6: How many of your dairy cows have been treated by a veterinarian for Ketosis on your farm last year? | C6: 2 | D6: # cows / year | F6: =C6/ASSUMPTIONS!$F$6*100 -> 2 | G6: %
A7: How many of your dairy cows have been showing signs of early metritis? Diagnosis before 21d after calving | C7: 25 | D7: # cows / year | F7: =C7/ASSUMPTIONS!$F$6*100 -> 25 | G7: %
A8: How many of your dairy cows have been showing signs of late metritis? Diagnosis after 21d after calving | C8: 15 | D8: # cows / year | F8: =C8/ASSUMPTIONS!$F$6*100 -> 15 | G8: %
F9: Country specific reference values (organic farms)
F10: NL | G10: DE | H10: ES | I10: FR | J10: SE
A11: What was the average received milk price/ costs last year? | C11: 0.45 | D11: € / kg milk | F11: 0.45 | G11: 0.41 | H11: 0.4 | I11: 0.41 | J11: 3.6
A12: What was the average feed price/costs (including concentrates and roughage) last year? | C12: 0.2 | D12: € / kg milk | F12: 0.2 | G12: 0.1 | H12: 0.14 | I12: 0.11 | J12: 1.3
A13: How do you value your labour? | C13: 20 | D13: € / hour | F13: 20 | G13: 20 | H13: 20 | I13: 20 | J13: 210
A14: What was the average replacement value of a dairy cow last year? | C14: 1300 | D14: € / dairy cow | F14: 1300 | G14: 1300 | H14: 1500 | I14: 1400 | J14: 10700
A15: What were the average costs of destruction of a dairy cow (incl. euthanasia, on-farm pick-up and destruction)? | C15: 100 | D15: € / dairy cow | F15: 100 | G15: 170 | H15: 170 | I15: 170 | J15: 11519
A16: What was the average received slaughter price for a dairy cow last year? | C16: 750 | D16: € / dairy cow | F16: 750 | G16: 555 | H16: 555 | I16: 555 | J16: 4959
A17: What percentage of your total number of dairy cows has been replaced last year by a heifer? | C17: 30 | D17: %
A19: What was the amount of penalties to be paid last year as a consequence of an elevated SCC?* | C19: 0 | D19: € / year
A20: What was the amount of bonus received last year as a consequence of a low SCC?* | C20: 0 | D20: € / year
A21: * leave blank when no penalties or bonuses are paid or received
A23: How many dairy cows have been culled from your farm for one of the following diseases last year, please specify per disease? | B23: Mastitis | C23: 2 | D23: # cows / year | F23: =C23/ASSUMPTIONS!$F$6*100 -> 2 | G23: %
B24: Lameness | C24: 1 | D24: # cows / year | F24: =C24/ASSUMPTIONS!$F$6*100 -> 1 | G24: %
B25: Ketosis | C25: 0 | D25: # cows / year | F25: =C25/ASSUMPTIONS!$F$6*100 -> 0 | G25: %
B26: (Endo)Metritis | C26: 0 | D26: # cows / year | F26: =C26/ASSUMPTIONS!$F$6*100 -> 0 | G26: %
A28: How many dairy cows have died on your farm for due to one of the following diseases last year, please specify per disease? | B28: Mastitis | C28: 1 | D28: # cows / year | F28: =C28/ASSUMPTIONS!$F$6*100 -> 1 | G28: %
B29: Lameness | C29: 2 | D29: # cows / year | F29: =C29/ASSUMPTIONS!$F$6*100 -> 2 | G29: %
B30: Ketosis | C30: 0 | D30: # cows / year | F30: =C30/ASSUMPTIONS!$F$6*100 -> 0 | G30: %
B31: (Endo)Metritis | C31: 0 | D31: # cows / year | F31: =C31/ASSUMPTIONS!$F$6*100 -> 0 | G31: %

Sheet CS FC
A1: Overview losses of udder health
E2: Totals
A3: Milk production losses | B3: Clinical cases | D3: ='Losses Udder health'!D82 -> 3116.25
B4: Subclinical cases | D4: ='Losses Udder health'!D83 -> 4897.70625
E5: ='Losses Udder health'!E84 -> 8013.95625
A6: Costs of discarded milk (due to antibiotic treatment) | D6: ='Losses Udder health'!D85 -> 531.295082
E7: =SUM(D6) -> 531.295082
A8: Costs of treatment (only clinical cases are treated) | B8: Veterinarian | D8: ='Losses Udder health'!D87 -> 33
B9: Medication | D9: ='Losses Udder health'!D88 -> 110
B10: Homeopathic treatment | D10: ='Losses Udder health'!D89 -> 0
B11: Labour | D11: ='Losses Udder health'!D90 -> 450
E12: =SUM(D8:D11) -> 593
A13: Costs of culling and destruction | D13: ='Losses Udder health'!D92 -> 2500
E14: =D13 -> 2500
A16: Estimated total costs of udder health | D16: =E5+E7+E12+E14 -> 11638.25133 | E16: /year
A17: Mean costs per cow | D17: ='Losses Udder health'!D100 -> 116.3825133 | E17: /cow / year
A18: Mean costs per clinical case | D18: ='Losses Udder health'!D101 -> 387.9417111 | E18: / case / year
A21: Overview losses of lameness
E22: Totals
A23: Milk production losses
D24: ='Losses Lameness'!D80 -> 4051.125
E25: =SUM(D23:D24) -> 4051.125
A26: Costs of discarded milk (due to antibiotic treatment) | D26: ='Losses Lameness'!D82 -> 3967.003279
E27: =SUM(D26) -> 3967.003279
A28: Costs of treatment (only clinical cases are treated) | B28: Veterinarian | D28: ='Losses Lameness'!D84 -> 60
B29: Medication | D29: ='Losses Lameness'!D85 -> 120
B30: Homeopathic treatment | D30: ='Losses Lameness'!D86 -> 0
B31: Labour | D31: ='Losses Lameness'!D87 -> 100
E32: =SUM(D28:D31) -> 280
A33: Costs of culling and destruction | D33: ='Losses Lameness'!D89 -> 3350
E34: =D33 -> 3350
A36: Estimated total costs of claw health | D36: =E25+E27+E32+E34 -> 11648.12828 | E36: /year
A37: Mean costs per cow | D37: ='Losses Lameness'!D93 -> 116.4812828 | E37: /cow / year
A38: Mean costs per clinical case | D38: ='Losses Lameness'!D94 -> 776.5418852 | E38: / case / year
A41: Overview losses of Ketosis
E42: Totals
A43: Milk production losses | B43: Clinical cases | D43: ='Losses ketose'!D68 -> 0
B44: Subclinical cases | D44: ='Losses ketose'!D69 -> 4674.375
E45: =D43+D44 -> 4674.375
A46: Costs of discarded milk (due to antibiotic treatment) | D46: ='Losses ketose'!D71 -> 0
E47: =SUM(D46) -> 0
A48: Costs of treatment (only clinical cases are treated) | B48: Veterinarian | D48: ='Losses ketose'!D73 -> 50
B49: Medication | D49: ='Losses ketose'!D74 -> 50
B50: Homeopathic treatment | D50: ='Losses ketose'!D75 -> 25
B51: Labour | D51: ='Losses ketose'!D76 -> 46.66666667
E52: =SUM(D48:D51) -> 171.6666667
A53: Costs of culling and destruction | D53: ='Losses ketose'!D78 -> 0
E54: =D53 -> 0
A56: Estimated total costs of ketosis | D56: =SUM(E45,E47,E52,E54) -> 4846.041667 | E56: /year
A57: Mean costs per cow | D57: ='Losses ketose'!D82 -> 48.46041667 | E57: /cow / year
A58: Mean costs per clinical case | D58: ='Losses ketose'!D83 -> 193.8416667 | E58: / case / year
A61: Overview losses of (Endo)metritis
E62: Totals
A63: Milk production losses | B63: Metritis | D63: ='Losses (Endo)Metritis'!D98 -> 252.312375
B64: Endometritis | D64: ='Losses (Endo)Metritis'!D99 -> 0
E65: =D63+D64 -> 252.312375
A66: Costs of discarded milk (due to antibiotic treatment) | D66: ='Losses (Endo)Metritis'!D101 -> 2213.729508
E67: =SUM(D66) -> 2213.729508
A68: Costs of treatment (only clinical cases are treated) | B68: Veterinarian | D68: ='Losses (Endo)Metritis'!D103 -> 25
B69: Medication | D69: ='Losses (Endo)Metritis'!D104 -> 250
B70: Homeopathic treatment | D70: ='Losses (Endo)Metritis'!D105 -> 312.5
B71: Labour | D71: ='Losses (Endo)Metritis'!D106 -> 325
E72: =SUM(D68:D71) -> 912.5
A73: Costs of culling and destruction | D73: ='Losses (Endo)Metritis'!D108 -> 0
E74: =D73 -> 0
A76: Estimated total costs of (endo)metritis | D76: =SUM(E65,E67,E72,E74) -> 3378.541883 | E76: /year
A77: Mean costs per cow | D77: ='Losses (Endo)Metritis'!D112 -> 33.78541883 | E77: /cow / year
A78: Mean costs per clinical case | D78: ='Losses (Endo)Metritis'!D113 -> 84.46354708 | E78: / case / year
B80: I do not treat cases of metritis with antibiotics

Sheet TEXT 2
B2: In the second part of this support tool we try to assess which preventive measures may be applicable in your specific farming situation and the associated preventive costs of each of the four different diseases.
B8: Each of the following pages contains potential management measures which could be applied on a farm to prevent a specific disease from occuring. Each page is dedicated to one of the four diseases. Please indicate which management measures you should like to apply on your farm. You can either explore all diseases "do all" or only focus on one specific disease.

Sheet PC 1
A1: Mastitis management
A2: Select the measures that you will implement on your farm to improve mastitis status
A3: Milking procedures
B4: Part of new mastitis management
C5: Milkers' gloves are worn during very milking
C6: All cows are prestripped
C7: For all cows, a seperate cloth is used to clean the udder before attaching the cluster
C8: All cows are treated with a good teat disinfectant after milking (PMTD)
C9: All cows with an elevated SCC (>250,000 cells/mL) are milked last
C10: All cows with clinical signs are milked last
C11: Teat cup liners are replaced according to the manufacterer's norm
C12: After milking a cow with clinical signs, the cluster is rinsed with hotwater before another cow is milked
C13: After milking a cow with subclinical mastitis, the cluster is rinsed with hot water before another cow is milked
C14: Dirty udders are washed with water and dried before attaching the cluster
C15: After milking, cows are kept standing for at least 30 minutes
A16: Housing
B17: Part of new mastitis management
A18: 18 | C18: Decrease the number of cows to prevent overcrowding
A19: 19 | C19: Clean all cubicles twice every day and make sure enough and clean bedding material is present
A20: 20 | C20: Manually clean the yards twice a day
A21: Dry period
B22: Part of new mastitis management
A23: 33 | C23: All cows are dried off with an appropriate antibiotic
A24: Others
B25: Part of new mastitis management
A26: 38 | C26: A treatment protocol is set up together with a veterinarian and every month the therapies are evaluated together
A27: 39 | C27: Add appropriate minerals to the feed of dry cows
A28: 40 | C28: Optimize the feed according to farm-specific needs
A30: I am missing a management measures which I want to apply on my farm
A31: 53
A32: 54
A33: 55
A35: Did you define any missing management measures? If yes, then please press the blue arrow below. If no, then please continue by pressing the red arrow
A44: Continue to Claw health management
A50: I only want to focus on mastitis

Sheet PC 1 Custom
B2: You have defined alternative udder health management measure(s)
B4: To estimate the costs of this measure we ask you to complete five questions for each management measure
A6: 1 | B6: =IF('PC 1'!C31>1,'PC 1'!C31,"") -> 
A8: 1.1 | B8: How much labour do you expect to use to fully complete this measure once | L8: minutes to fully complete measure once
A11: 1.2 | B11: How often a year would you apply this measure? (e.g. once a week would be 52 times a year, e.g. twice a day would be 730 times a year)
L12: times a year
A14: 1.3 | B14: If there are any short-term investments (e.g. medication, disinfectants) assoctated with the measure think about what these could be and how much would they cost for a whole year?
L16: short term investments (€)
A18: 1.4 | B18: If there are any long-term investments (e.g. new milking parlor, new calving pen) associated with the measures think about what these could be and how much they would totally cost and what the depreciation period would be (e.g. buildings usually 15-20 yrs, machinery usually 10-15 years)
L21: total investment (€)
K23: 10 | L23: depreciation period (yrs.)
A25: 1.5 | B25: Are there any costs not accounted for in the previous questions (other than labour, short investments (consumables) and long term investments), if so please indicate the expected costs
L27: other costs
A29: 2 | B29: =IF('PC 1'!C32>1,'PC 1'!C32,"") -> 
A31: 2.1 | B31: How much labour do you expect to use to fully complete this measure once | L31: minutes to fully complete measure once
A34: 2.2 | B34: How often a year would you apply this measure? (e.g. once a week would be 52 times a year, e.g. twice a day would be 730 times a year)
L35: times a year
A37: 2.3 | B37: If there are any short-term investments (e.g. medication, disinfectants) assoctated with the measure think about what these could be and how much would they cost for a whole year?
L39: short term investments (€)
A41: 2.4 | B41: If there are any long-term investments (e.g. new milking parlor, new calving pen) associated with the measures think about what these could be and how much they would totally cost and what the depreciation period would be (e.g. buildings usually 15-20 yrs, machinery usually 10-15 years)
L44: total investment (€)
K46: 10 | L46: depreciation period (yrs.)
A48: 2.5 | B48: Are there any costs not accounted for in the previous questions (other than labour, short investments (consumables) and long term investments), if so please indicate the expected costs
L50: other costs
A52: 3 | B52: =IF('PC 1'!C55>1,'PC 1'!C55,"") -> 
A54: 3.1 | B54: How much labour do you expect to use to fully complete this measure once | L54: minutes to fully complete measure once
A57: 3.2 | B57: How often a year would you apply this measure? (e.g. once a week would be 52 times a year, e.g. twice a day would be 730 times a year)
L58: times a year
A60: 3.3 | B60: If there are any short-term investments (e.g. medication, disinfectants) assoctated with the measure think about what these could be and how much would they cost for a whole year?
L62: short term investments (€)
A64: 3.4 | B64: If there are any long-term investments (e.g. new milking parlor, new calving pen) associated with the measures think about what these could be and how much they would totally cost and what the depreciation period would be (e.g. buildings usually 15-20 yrs, machinery usually 10-15 years)
L67: total investment (€)
K69: 10 | L69: depreciation period (yrs.)
A71: 3.5 | B71: Are there any costs not accounted for in the previous questions (other than labour, short investments (consumables) and long term investments), if so please indicate the expected costs
L73: other costs
B77: To continue the questionnaire press the red arrow, to go back to the udder health management measures press the blue arrow

Sheet PC 2
A1: Lameness management
A2: Select the measures that you will implement on your farm to improve lameness status
A3: Farm system
B4: Part of new lameness management
A5: 5 | C5: Decrease the number of cows to prevent overcrowding
A7: Housing system
B8: Part of new lameness management
A9: 10 | C9: Groove concrete floors (vs. smooth concrete floor)
A10: 13 | C10: Manually clean the yards twice a day
A11: 14 | C11: Improve foot bath management
A12: 15 | C12: Improve foot trim management
A13: 16 | C13: Improve feeding ration
A14: 17 | C14: Increase frequency of checking the cows
A16: Cubicle dimension and design
B17: Part of new lameness management
A18: 19 | C18: Clean cubicles appropriately / Clean all cubicles twice every day and make sure enough and clean bedding material is present
A19: 20 | C19: Manually scrape floors (vs. automatic scraper) /Manually clean the yards twice a day
A21: Cubicle bedding
B22: Part of new lameness management
A23: 22 | C23: Use of curbs in cubicles to keep bedding inside
A25: I am missing a management measures which I want to apply on my farm
A26: 53
A27: 54
A28: 55
A31: Did you define any missing management measures? If yes, then please press the blue arrow below. If no, then please continue by pressing the red arrow
A40: Continue to Ketosis management
A48: I only want to focus on lameness

Sheet PC 2 Custom
B2: You have defined alternative lameness management measure(s)
B4: To estimate the costs of this measure we ask you to complete five questions for each management measure
A6: 1 | B6: =IF('PC 2'!C26>1,'PC 2'!C26,"") -> 
A8: 1.1 | B8: How much labour do you expect to use to fully complete this measure once | L8: minutes to fully complete measure once
A11: 1.2 | B11: How often a year would you apply this measure? (e.g. once a week would be 52 times a year, e.g. twice a day would be 730 times a year)
L12: times a year
A14: 1.3 | B14: If there are any short-term investments (e.g. medication, disinfectants) assoctated with the measure think about what these could be and how much would they cost for a whole year?
L16: short term investments (€)
A18: 1.4 | B18: If there are any long-term investments (e.g. new milking parlor, new calving pen) associated with the measures think about what these could be and how much they would totally cost and what the depreciation period would be (e.g. buildings usually 15-20 yrs, machinery usually 10-15 years)
L21: total investment (€)
K23: 10 | L23: depreciation period (yrs.)
A25: 1.5 | B25: Are there any costs not accounted for in the previous questions (other than labour, short investments (consumables) and long term investments), if so please indicate the expected costs
L27: other costs
A29: 2 | B29: =IF('PC 2'!C27>1,'PC 2'!C27,"") -> 
A31: 2.1 | B31: How much labour do you expect to use to fully complete this measure once | L31: minutes to fully complete measure once
A34: 2.2 | B34: How often a year would you apply this measure? (e.g. once a week would be 52 times a year, e.g. twice a day would be 730 times a year)
L35: times a year
A37: 2.3 | B37: If there are any short-term investments (e.g. medication, disinfectants) assoctated with the measure think about what these could be and how much would they cost for a whole year?
L39: short term investments (€)
A41: 2.4 | B41: If there are any long-term investments (e.g. new milking parlor, new calving pen) associated with the measures think about what these could be and how much they would totally cost and what the depreciation period would be (e.g. buildings usually 15-20 yrs, machinery usually 10-15 years)
L44: total investment (€)
K46: 10 | L46: depreciation period (yrs.)
A48: 2.5 | B48: Are there any costs not accounted for in the previous questions (other than labour, short investments (consumables) and long term investments), if so please indicate the expected costs
L50: other costs
A52: 3 | B52: =IF('PC 2'!C28>1,'PC 2'!C28,"") -> 
A54: 3.1 | B54: How much labour do you expect to use to fully complete this measure once | L54: minutes to fully complete measure once
A57: 3.2 | B57: How often a year would you apply this measure? (e.g. once a week would be 52 times a year, e.g. twice a day would be 730 times a year)
L58: times a year
A60: 3.3 | B60: If there are any short-term investments (e.g. medication, disinfectants) assoctated with the measure think about what these could be and how much would they cost for a whole year?
L62: short term investments (€)
A64: 3.4 | B64: If there are any long-term investments (e.g. new milking parlor, new calving pen) associated with the measures think about what these could be and how much they would totally cost and what the depreciation period would be (e.g. buildings usually 15-20 yrs, machinery usually 10-15 years)
L67: total investment (€)
K69: 10 | L69: depreciation period (yrs.)
A71: 3.5 | B71: Are there any costs not accounted for in the previous questions (other than labour, short investments (consumables) and long term investments), if so please indicate the expected costs
L73: other costs
B77: To continue the questionnaire press the red arrow, to go back to the udder health management measures press the blue arrow

Sheet PC 3
A1: Ketosis management
A2: Select the measures that you will implement on your farm to improve ketosis status
A3: Housing
B4: Part of new Ketosis management
A5: 1 | C5: Make sure all cows have acces to feed at the same time / Decrease the number of cows to prevent overcrowding
A6: 2 | C6: Clean heifer feeding platform daily
A7: 4 | C7: Keep cows in (≥ 2) seperate groups during dry period (use of far-off and close-up group)
A9: Feeding
B10: Part of new Ketosis management
A11: 7 | C11: Improve nutritional management / Request independent feed advisor to screen farm feed management twice a year
A12: 20
A13: Feed additives
B14: Part of new Ketosis management
A15: 21 | C15: Kexxstone/ Monensin bolus during dry-period
A16: 22
A17: Cow specific measurements
B18: Part of new Ketosis management
A19: 23 | C19: Control bloof NEFA values for all dairy cows (treshold ≥ 0.30 mEq/L)
A20: 24 | C20: Control blood NEFA values for all dairy cows with disturbed FPR (fat protein ration) within the first 100 days of lactation
A21: 25 | C21: Use of keto-strip to measure ketone bodies
A22: 26 | C22: Precalving BCS check and registration
A23: 27
A24: I am missing a management measures which I want to apply on my farm
A25: 53
A26: 54
A27: 55
A30: Did you define any missing management measures? If yes, then please press the blue arrow below. If no, then please continue by pressing the red arrow
A39: Continue to (Endo)metritis management
A46: I only want to focus on ketosis

Sheet PC 3 Custom
B2: You have defined alternative ketosis management measure(s)
B4: To estimate the costs of this measure we ask you to complete five questions for each management measure
A6: 1 | B6: =IF('PC 3'!C25>1,'PC 3'!C25,"") -> 
A8: 1.1 | B8: How much labour do you expect to use to fully complete this measure once | L8: minutes to fully complete measure once
A11: 1.2 | B11: How often a year would you apply this measure? (e.g. once a week would be 52 times a year, e.g. twice a day would be 730 times a year)
L12: times a year
A14: 1.3 | B14: If there are any short-term investments (e.g. medication, disinfectants) assoctated with the measure think about what these could be and how much would they cost for a whole year?
L16: short term investments (€)
A18: 1.4 | B18: If there are any long-term investments (e.g. new milking parlor, new calving pen) associated with the measures think about what these could be and how much they would totally cost and what the depreciation period would be (e.g. buildings usually 15-20 yrs, machinery usually 10-15 years)
L21: total investment (€)
K23: 10 | L23: depreciation period (yrs.)
A25: 1.5 | B25: Are there any costs not accounted for in the previous questions (other than labour, short investments (consumables) and long term investments), if so please indicate the expected costs
K27: 25 | L27: other costs
A29: 2 | B29: =IF('PC 3'!C26>1,'PC 3'!C26,"") -> 
A31: 2.1 | B31: How much labour do you expect to use to fully complete this measure once | L31: minutes to fully complete measure once
A34: 2.2 | B34: How often a year would you apply this measure? (e.g. once a week would be 52 times a year, e.g. twice a day would be 730 times a year)
L35: times a year
A37: 2.3 | B37: If there are any short-term investments (e.g. medication, disinfectants) assoctated with the measure think about what these could be and how much would they cost for a whole year?
L39: short term investments (€)
A41: 2.4 | B41: If there are any long-term investments (e.g. new milking parlor, new calving pen) associated with the measures think about what these could be and how much they would totally cost and what the depreciation period would be (e.g. buildings usually 15-20 yrs, machinery usually 10-15 years)
L44: total investment (€)
K46: 10 | L46: depreciation period (yrs.)
A48: 2.5 | B48: Are there any costs not accounted for in the previous questions (other than labour, short investments (consumables) and long term investments), if so please indicate the expected costs
K50: 25 | L50: other costs
A52: 3 | B52: =IF('PC 3'!C27>1,'PC 3'!C27,"") -> 
A54: 3.1 | B54: How much labour do you expect to use to fully complete this measure once | L54: minutes to fully complete measure once
A57: 3.2 | B57: How often a year would you apply this measure? (e.g. once a week would be 52 times a year, e.g. twice a day would be 730 times a year)
L58: times a year
A60: 3.3 | B60: If there are any short-term investments (e.g. medication, disinfectants) assoctated with the measure think about what these could be and how much would they cost for a whole year?
L62: short term investments (€)
A64: 3.4 | B64: If there are any long-term investments (e.g. new milking parlor, new calving pen) associated with the measures think about what these could be and how much they would totally cost and what the depreciation period would be (e.g. buildings usually 15-20 yrs, machinery usually 10-15 years)
L67: total investment (€)
K69: 10 | L69: depreciation period (yrs.)
A71: 3.5 | B71: Are there any costs not accounted for in the previous questions (other than labour, short investments (consumables) and long term investments), if so please indicate the expected costs
K73: 25 | L73: other costs
B77: To continue the questionnaire press the red arrow, to go back to the udder health management measures press the blue arrow

Sheet PC 4
A1: (Endo)metritis management
A2: Select the measures that you will implement on your farm to improve (endo)metritis status
A3: Housing
A4: Currently applied | B4: Part of new Metritis management
A5: 2 | C5: Provide clean and new straw bedding in the calving pen before every calving
A6: 3 | C6: Keep cows in (≥ 2) seperate groups during dry period (use of far-off and close-up group)
A7: 4 | C7: Minimize the number of new introduction in new dry cow pen, thorough planning on when dry cows should be moved
A8: 6
A9: Feeding
A10: Currently applied | B10: Part of new Metritis management
A11: 8 | C11: Prevent reduced feeding time and DMI both post-calving and pre-calving (during transition period) / push feed manually two times per day (next to normal feeding)
A12: 14 | C12: Supply appropriate minerals and trace elements in the right balance
A13: 20
A14: Others
A15: Currently applied | B15: Part of new Metritis management
A16: 22 | C16: Control BCS during the dry period / Precalving BCS check and registration
A17: 27 | C17: Control fresh cows multiple times per day for at leats ten days
A18: 29 | C18: Always use gloves and use lube to ensure proper hygiene while checking the calve puerperal
A19: 31 | C19: Maintain high hygiene state during calving, wash hands and maintain all meterials clean and rinse with warm water and discontamination soap
A20: 32 | C20: After milking, cows are kept standing for at least 30 minutes
A21: 27
A22: I am missing a management measures which I want to apply on my farm
A23: 53
A24: 54
A25: 55
A27: Did you define any missing management measures? If yes, then please press the blue arrow below. If no, then please continue by pressing the red arrow
A36: Continue to the next section
A44: I only want to focus on metritis

Sheet PC 4 Custom
B2: You have defined alternative metritits management measure(s)
B4: To estimate the costs of this measure we ask you to complete five questions for each management measure
A6: 1 | B6: =IF('PC 4'!C23>1,'PC 4'!C23,"") -> 
A8: 1.1 | B8: How much labour do you expect to use to fully complete this measure once | L8: minutes to fully complete measure once
A11: 1.2 | B11: How often a year would you apply this measure? (e.g. once a week would be 52 times a year, e.g. twice a day would be 730 times a year)
L12: times a year
A14: 1.3 | B14: If there are any short-term investments (e.g. medication, disinfectants) assoctated with the measure think about what these could be and how much would they cost for a whole year?
L16: short term investments (€)
A18: 1.4 | B18: If there are any long-term investments (e.g. new milking parlor, new calving pen) associated with the measures think about what these could be and how much they would totally cost and what the depreciation period would be (e.g. buildings usually 15-20 yrs, machinery usually 10-15 years)
L21: total investment (€)
K23: 10 | L23: depreciation period (yrs.)
A25: 1.5 | B25: Are there any costs not accounted for in the previous questions (other than labour, short investments (consumables) and long term investments), if so please indicate the expected costs
L27: other costs
A29: 2 | B29: =IF('PC 4'!C24>1,'PC 4'!C24,"") -> 
A31: 2.1 | B31: How much labour do you expect to use to fully complete this measure once | L31: minutes to fully complete measure once
A34: 2.2 | B34: How often a year would you apply this measure? (e.g. once a week would be 52 times a year, e.g. twice a day would be 730 times a year)
L35: times a year
A37: 2.3 | B37: If there are any short-term investments (e.g. medication, disinfectants) assoctated with the measure think about what these could be and how much would they cost for a whole year?
L39: short term investments (€)
A41: 2.4 | B41: If there are any long-term investments (e.g. new milking parlor, new calving pen) associated with the measures think about what these could be and how much they would totally cost and what the depreciation period would be (e.g. buildings usually 15-20 yrs, machinery usually 10-15 years)
L44: total investment (€)
K46: 10 | L46: depreciation period (yrs.)
A48: 2.5 | B48: Are there any costs not accounted for in the previous questions (other than labour, short investments (consumables) and long term investments), if so please indicate the expected costs
L50: other costs
A52: 3 | B52: =IF('PC 4'!C25>1,'PC 4'!C25,"") -> 
A54: 3.1 | B54: How much labour do you expect to use to fully complete this measure once | L54: minutes to fully complete measure once
A57: 3.2 | B57: How often a year would you apply this measure? (e.g. once a week would be 52 times a year, e.g. twice a day would be 730 times a year)
L58: times a year
A60: 3.3 | B60: If there are any short-term investments (e.g. medication, disinfectants) assoctated with the measure think about what these could be and how much would they cost for a whole year?
L62: short term investments (€)
A64: 3.4 | B64: If there are any long-term investments (e.g. new milking parlor, new calving pen) associated with the measures think about what these could be and how much they would totally cost and what the depreciation period would be (e.g. buildings usually 15-20 yrs, machinery usually 10-15 years)
L67: total investment (€)
K69: 10 | L69: depreciation period (yrs.)
A71: 3.5 | B71: Are there any costs not accounted for in the previous questions (other than labour, short investments (consumables) and long term investments), if so please indicate the expected costs
L73: other costs
B77: To continue the questionnaire press the red arrow, to go back to the udder health management measures press the blue arrow

Sheet LOM (hidden)
A1: List of selected Measures
B2: Mastitis management | D2: Lameness management | F2: Ketosis management | H2: (Endo)metritis management
A3: 1 | B3: =IF('MM Mastitis - costs'!F11,'MM Mastitis - costs'!B3,1) -> 1 | C3: 1 | D3: =IF('MM Lameness - costs'!F12,'MM Lameness - costs'!B3,1) -> Decrease the number of cows to prevent overcrowding | E3: 1 | F3: =IF('MM Ketosis - costs'!F15,'MM Ketosis - costs'!B3,1) -> 1 | G3: 1 | H3: =IF('MM Metritis - costs'!F14,'MM Metritis - costs'!B3,1) -> Provide clean and new straw bedding in the calving pen before every calving
A4: 2 | B4: =IF('MM Mastitis - costs'!F28,'MM Mastitis - costs'!B22,1) -> 1 | C4: 2 | D4: =IF('MM Lameness - costs'!R12,'MM Lameness - costs'!N3,1) -> Groove concrete floors (vs. smooth concrete floor) | E4: 2 | F4: =IF('MM Ketosis - costs'!F45,'MM Ketosis - costs'!B36,1) -> 1 | G4: 2 | H4: =IF('MM Metritis - costs'!F66,'MM Metritis - costs'!B56,1) -> 1
A5: 3 | B5: =IF('MM Mastitis - costs'!F48,'MM Mastitis - costs'!B40,1) -> 1 | C5: 3 | D5: =IF('MM Lameness - costs'!R34,'MM Lameness - costs'!N25,1) -> 1 | E5: 3 | F5: =IF('MM Ketosis - costs'!F75,'MM Ketosis - costs'!B63,1) -> 1 | G5: 3 | H5: =IF('MM Metritis - costs'!F89,'MM Metritis - costs'!B77,1) -> 1
A6: 4 | B6: =IF('MM Mastitis - costs'!F70,'MM Mastitis - costs'!B62,1) -> 1 | C6: 4 | D6: =IF('MM Lameness - costs'!R62,'MM Lameness - costs'!N48,1) -> 1 | E6: 4 | F6: =IF('MM Ketosis - costs'!R15,'MM Ketosis - costs'!N3,1) -> 1 | G6: 4 | H6: =IF('MM Metritis - costs'!R14,'MM Metritis - costs'!N3,1) -> Prevent reduced feeding time and DMI both post-calving and pre-calving (during transition period) / push feed manually two times per day (next to normal feeding)
A7: 5 | B7: =IF('MM Mastitis - costs'!F93,'MM Mastitis - costs'!B84,1) -> 1 | C7: 5 | D7: =IF('MM Lameness - costs'!R99,'MM Lameness - costs'!N90,1) -> 1 | E7: 5 | F7: =IF('MM Ketosis - costs'!AD15,'MM Ketosis - costs'!Z3,1) -> 1 | G7: 5 | H7: =IF('MM Metritis - costs'!AD14,'MM Metritis - costs'!Z3,1) -> Control BCS during the dry period / Precalving BCS check and registration
A8: 6 | B8: =IF('MM Mastitis - costs'!F121,'MM Mastitis - costs'!B112,1) -> 1 | C8: 6 | D8: =IF('MM Lameness - costs'!R120,'MM Lameness - costs'!N111,1) -> 1 | E8: 6 | F8: =IF('MM Ketosis - costs'!AP39,'MM Ketosis - costs'!AL26,1) -> 1 | G8: 6 | H8: =IF('MM Metritis - costs'!AD53,'MM Metritis - costs'!Z42,1) -> 1
A9: 7 | B9: =IF('MM Mastitis - costs'!F146,'MM Mastitis - costs'!B138,1) -> 1 | C9: 7 | D9: =IF('MM Lameness - costs'!R146,'MM Lameness - costs'!N136,1) -> 1 | E9: 7 | F9: =IF('MM Ketosis - costs'!AP60,'MM Ketosis - costs'!AL50,1) -> 1 | G9: 7 | H9: =IF('MM Metritis - costs'!AD78,'MM Metritis - costs'!Z69,1) -> 1
A10: 8 | B10: =IF('MM Mastitis - costs'!F176,'MM Mastitis - costs'!B164,1) -> 1 | C10: 8 | D10: =IF('MM Lameness - costs'!AD13,'MM Lameness - costs'!Z3,1) -> Clean cubicles appropriately / Clean all cubicles twice every day and make sure enough and clean bedding material is present | E10: 8 | F10: =IF('MM Ketosis - costs'!AP85,'MM Ketosis - costs'!AL75,1) -> 1 | G10: 8 | H10: =IF('MM Metritis - costs'!AD104,'MM Metritis - costs'!Z95,1) -> 1
A11: 9 | B11: =IF('MM Mastitis - costs'!F213,'MM Mastitis - costs'!B201,1) -> 1 | C11: 9 | D11: =IF('MM Ketosis - costs'!AP85,'MM Ketosis - costs'!AL75,1) -> 1 | E11: 9 | F11: =IF('MM Ketosis - costs'!AP15,'MM Ketosis - costs'!AL3,1) -> 1 | G11: 9 | H11: =IF('MM Metritis - costs'!AD132,'MM Metritis - costs'!Z122,1) -> 1
A12: 10 | B12: =IF('MM Mastitis - costs'!F247,'MM Mastitis - costs'!B238,1) -> 1 | C12: 10 | D12: =IF('MM Lameness - costs'!AP13,'MM Lameness - costs'!AL3,1) -> 1 | E12: 10 (c) | F12: =IF('MM Ketosis - costs'!BB13,'MM Ketosis - costs'!AX3,1) -> 1 | G12: 10 | H12: =IF('MM Metritis - costs'!R39,'MM Metritis - costs'!N29,1) -> 1
A13: 11 | B13: =IF('MM Mastitis - costs'!F277,'MM Mastitis - costs'!B268,1) -> 1 | C13: 11 (c) | D13: =IF('MM Lameness - costs'!BB13,'MM Lameness - costs'!AX3,1) -> 1 | E13: 11 (c) | F13: =IF('MM Ketosis - costs'!BB35,'MM Ketosis - costs'!AX25,1) -> 1 | G13: 11 (c) | H13: =IF('MM Metritis - costs'!AP13,'MM Metritis - costs'!AL3,1) -> 1
A14: 12 | B14: =IF('MM Mastitis - costs'!R11,'MM Mastitis - costs'!N3,1) -> 1 | C14: 12 (c) | D14: =IF('MM Lameness - costs'!BB35,'MM Lameness - costs'!AX25,1) -> 1 | E14: 12 (c) | F14: =IF('MM Ketosis - costs'!BB57,'MM Ketosis - costs'!AX47,1) -> 1 | G14: 12 (c) | H14: =IF('MM Metritis - costs'!AP35,'MM Metritis - costs'!AL25,1) -> 1
A15: 13 | B15: =IF('MM Mastitis - costs'!R39,'MM Mastitis - costs'!N29,1) -> 1 | C15: 13 (c) | D15: =IF('MM Lameness - costs'!BB57,'MM Lameness - costs'!AX47,1) -> 1 | G15: 13 (c) | H15: =IF('MM Metritis - costs'!AP57,'MM Metritis - costs'!AL47,1) -> 1
A16: 14 | B16: =IF('MM Mastitis - costs'!R65,'MM Mastitis - costs'!N56,1) -> 1 | D16: 1
A17: 15 | B17: =IF('MM Mastitis - costs'!AD11,'MM Mastitis - costs'!Z3,1) -> 1
A18: 16 | B18: =IF('MM Mastitis - costs'!AP13,'MM Mastitis - costs'!AL3,1) -> 1
A19: 17 | B19: =IF('MM Mastitis - costs'!AP35,'MM Mastitis - costs'!AL26,1) -> 1
A20: 18 | B20: =IF('MM Mastitis - costs'!AP64,'MM Mastitis - costs'!AL55,1) -> 1
A21: 19 (c) | B21: =IF('MM Mastitis - costs'!BB13,'MM Mastitis - costs'!AX3,1) -> 1
A22: 20 (c) | B22: =IF('MM Mastitis - costs'!BB35,'MM Mastitis - costs'!AX25,1) -> 1
A23: 21 (c) | B23: =IF('MM Mastitis - costs'!BB57,'MM Mastitis - costs'!AX47,1) -> 1
A25: 1 | B25: =IF(B3>1,B3,IF(B4>1,B4,IF(B5>1,B5,IF(B6>1,B6,IF(B7>1,B7,IF(B8>1,B8,IF(B9>1,B9,IF(B10>1,B10,IF(B11>1,B11,IF(B12>1,B12,IF(B13>1,B13,IF(B14>1,B14,IF(B15>1,B15,IF(B16>1,B16,IF(B17>1,B17,IF(B18>1,B18,IF(B19>1,B19,IF(B20>1,B20,IF(B21>1,B21,IF(B22>1,B22,IF(B23>1,B23,""))))))))))))))))))))) ->  | C25: 1 | D25: =IF(D3>1,D3,IF(D4>1,D4,IF(D5>1,D5,IF(D6>1,D6,IF(D7>1,D7,IF(D8>1,D8,IF(D9>1,D9,IF(D10>1,D10,IF(D11>1,D11,IF(D12>1,D12,IF(D13>1,D13,IF(D14>1,D14,IF(D15>1,D15,IF(D16>1,D16,IF(D17>1,D17,IF(D18>1,D18,IF(D19>1,D19,IF(D20>1,D20,IF(D21>1,D21,IF(D22>1,D22,IF(D23>1,D23,""))))))))))))))))))))) -> Decrease the number of cows to prevent overcrowding | E25: 1 | F25: =IF(F3>1,F3,IF(F4>1,F4,IF(F5>1,F5,IF(F6>1,F6,IF(F7>1,F7,IF(F8>1,F8,IF(F9>1,F9,IF(F10>1,F10,IF(F11>1,F11,IF(F12>1,F12,IF(F13>1,F13,IF(F14>1,F14,IF(F15>1,F15,IF(F16>1,F16,IF(F17>1,F17,IF(F18>1,F18,IF(F19>1,F19,IF(F20>1,F20,IF(F21>1,F21,IF(F22>1,F22,IF(F23>1,F23,""))))))))))))))))))))) ->  | G25: 1 | H25: =IF(H3>1,H3,IF(H4>1,H4,IF(H5>1,H5,IF(H6>1,H6,IF(H7>1,H7,IF(H8>1,H8,IF(H9>1,H9,IF(H10>1,H10,IF(H11>1,H11,IF(H12>1,H12,IF(H13>1,H13,IF(H14>1,H14,IF(H15>1,H15,IF(H16>1,H16,IF(H17>1,H17,IF(H18>1,H18,IF(H19>1,H19,IF(H20>1,H20,IF(H21>1,H21,IF(H22>1,H22,IF(H23>1,H23,""))))))))))))))))))))) -> Provide clean and new straw bedding in the calving pen before every calving
A26: 2 | B26: =IF(B25=B3,IF(B4>1,B4,IF(B5>1,B5,IF(B6>1,B6,IF(B7>1,B7,IF(B8>1,B8,IF(B9>1,B9,IF(B10>1,B10,IF(B11>1,B11,IF(B12>1,B12,IF(B13>1,B13,IF(B14>1,B14,IF(B15>1,B15,IF(B16>1,B16,IF(B17>1,B17,IF(B18>1,B18,IF(B19>1,B19,IF(B20>1,B20,IF(B21>1,B21,IF(B22>1,B22,IF(B23>1,B23,"")))))))))))))))))))),IF(B25=B4,IF(B5>1,B5,IF(B6>1,B6,IF(B7>1,B7,IF(B8>1,B8,IF(B9>1,B9,IF(B10>1,B10,IF(B11>1,B11,IF(B12>1,B12,IF(B13>1,B13,IF(B14>1,B14,IF(B15>1,B15,IF(B16>1,B16,IF(B17>1,B17,IF(B18>1,B18,IF(B19>1,B19,IF(B20>1,B20,IF(B21>1,B21,IF(B22>1,B22,IF(B23>1,B23,""))))))))))))))))))),IF(B25=B5,IF(B6>1,B6,IF(B7>1,B7,IF(B8>1,B8,IF(B9>1,B9,IF(B10>1,B10,IF(B11>1,B11,IF(B12>1,B12,IF(B13>1,B13,IF(B14>1,B14,IF(B15>1,B15,IF(B16>1,B16,IF(B17>1,B17,IF(B18>1,B18,IF(B19>1,B19,IF(B20>1,B20,IF(B21>1,B21,IF(B22>1,B22,IF(B23>1,B23,"")))))))))))))))))),IF(B25=B6,IF(B7>1,B7,IF(B8>1,B8,IF(B9>1,B9,IF(B10>1,B10,IF(B11>1,B11,IF(B12>1,B12,IF(B13>1,B13,IF(B14>1,B14,IF(B15>1,B15,IF(B16>1,B16,IF(B17>1,B17,IF(B18>1,B18,IF(B19>1,B19,IF(B20>1,B20,IF(B21>1,B21,IF(B22>1,B22,IF(B23>1,B23,""))))))))))))))))),IF(B25=B7,IF(B8>1,B8,IF(B9>1,B9,IF(B10>1,B10,IF(B11>1,B11,IF(B12>1,B12,IF(B13>1,B13,IF(B14>1,B14,IF(B15>1,B15,IF(B16>1,B16,IF(B17>1,B17,IF(B18>1,B18,IF(B19>1,B19,IF(B20>1,B20,IF(B21>1,B21,IF(B22>1,B22,IF(B23>1,B23,"")))))))))))))))),IF(B25=B8,IF(B9>1,B9,IF(B10>1,B10,IF(B11>1,B11,IF(B12>1,B12,IF(B13>1,B13,IF(B14>1,B14,IF(B15>1,B15,IF(B16>1,B16,IF(B17>1,B17,IF(B18>1,B18,IF(B19>1,B19,IF(B20>1,B20,IF(B21>1,B21,IF(B22>1,B22,IF(B23>1,B23,""))))))))))))))),IF(B25=B9,IF(B10>1,B10,IF(B11>1,B11,IF(B12>1,B12,IF(B13>1,B13,IF(B14>1,B14,IF(B15>1,B15,IF(B16>1,B16,IF(B17>1,B17,IF(B18>1,B18,IF(B19>1,B19,IF(B20>1,B20,IF(B21>1,B21,IF(B22>1,B22,IF(B23>1,B23,"")))))))))))))),IF(B25=B10,IF(B11>1,B11,IF(B12>1,B12,IF(B13>1,B13,IF(B14>1,B14,IF(B15>1,B15,IF(B16>1,B16,IF(B17>1,B17,IF(B18>1,B18,IF(B19>1,B19,IF(B20>1,B20,IF(B21>1,B21,IF(B22>1,B22,IF(B23>1,B23,""))))))))))))),IF(B25=B11,IF(B12>1,B12,IF(B13>1,B13,IF(B14>1,B14,IF(B15>1,B15,IF(B16>1,B16,IF(B17>1,B17,IF(B18>1,B18,IF(B19>1,B19,IF(B20>1,B20,IF(B21>1,B21,IF(B22>1,B22,IF(B23>1,B23,"")))))))))))),IF(B25=B12,IF(B13>1,B13,IF(B14>1,B14,IF(B15>1,B15,IF(B16>1,B16,IF(B17>1,B17,IF(B18>1,B18,IF(B19>1,B19,IF(B20>1,B20,IF(B21>1,B21,IF(B22>1,B22,IF(B23>1,B23,""))))))))))),IF(B25=B13,IF(B14>1,B14,IF(B15>1,B15,IF(B16>1,B16,IF(B17>1,B17,IF(B18>1,B18,IF(B19>1,B19,IF(B20>1,B20,IF(B21>1,B21,IF(B22>1,B22,IF(B23>1,B23,"")))))))))),IF(B25=B14,IF(B15>1,B15,IF(B16>1,B16,IF(B17>1,B17,IF(B18>1,B18,IF(B19>1,B19,IF(B20>1,B20,IF(B21>1,B21,IF(B22>1,B22,IF(B23>1,B23,""))))))))),IF(B25=B15,IF(B16>1,B16,IF(B17>1,B17,IF(B18>1,B18,IF(B19>1,B19,IF(B20>1,B20,IF(B21>1,B21,IF(B22>1,B22,IF(B23>1,B23,"")))))))),IF(B25=B16,IF(B17>1,B17,IF(B18>1,B18,IF(B19>1,B19,IF(B20>1,B20,IF(B21>1,B21,IF(B22>1,B22,IF(B23>1,B23,""))))))),IF(B25=B17,IF(B18>1,B18,IF(B19>1,B19,IF(B20>1,B20,IF(B21>1,B21,IF(B22>1,B22,IF(B23>1,B23,"")))))),IF(B25=B18,IF(B19>1,B19,IF(B20>1,B20,IF(B21>1,B21,IF(B22>1,B22,IF(B23>1,B23,""))))),IF(B25=B19,IF(B20>1,B20,IF(B21>1,B21,IF(B22>1,B22,IF(B23>1,B23,"")))),IF(B25=B20,IF(B21>1,B21,IF(B22>1,B22,IF(B23>1,B23,""))),IF(B25=B21,IF(B22>1,B22,IF(B23>1,B23,"")),IF(B25=B22,IF(B23>1,B23,""),"")))))))))))))))))))) ->  | C26: 2 | D26: =IF(D25=D3,IF(D4>1,D4,IF(D5>1,D5,IF(D6>1,D6,IF(D7>1,D7,IF(D8>1,D8,IF(D9>1,D9,IF(D10>1,D10,IF(D11>1,D11,IF(D12>1,D12,IF(D13>1,D13,IF(D14>1,D14,IF(D15>1,D15,IF(D16>1,D16,IF(D17>1,D17,IF(D18>1,D18,IF(D19>1,D19,IF(D20>1,D20,IF(D21>1,D21,IF(D22>1,D22,IF(D23>1,D23,"")))))))))))))))))))),IF(D25=D4,IF(D5>1,D5,IF(D6>1,D6,IF(D7>1,D7,IF(D8>1,D8,IF(D9>1,D9,IF(D10>1,D10,IF(D11>1,D11,IF(D12>1,D12,IF(D13>1,D13,IF(D14>1,D14,IF(D15>1,D15,IF(D16>1,D16,IF(D17>1,D17,IF(D18>1,D18,IF(D19>1,D19,IF(D20>1,D20,IF(D21>1,D21,IF(D22>1,D22,IF(D23>1,D23,""))))))))))))))))))),IF(D25=D5,IF(D6>1,D6,IF(D7>1,D7,IF(D8>1,D8,IF(D9>1,D9,IF(D10>1,D10,IF(D11>1,D11,IF(D12>1,D12,IF(D13>1,D13,IF(D14>1,D14,IF(D15>1,D15,IF(D16>1,D16,IF(D17>1,D17,IF(D18>1,D18,IF(D19>1,D19,IF(D20>1,D20,IF(D21>1,D21,IF(D22>1,D22,IF(D23>1,D23,"")))))))))))))))))),IF(D25=D6,IF(D7>1,D7,IF(D8>1,D8,IF(D9>1,D9,IF(D10>1,D10,IF(D11>1,D11,IF(D12>1,D12,IF(D13>1,D13,IF(D14>1,D14,IF(D15>1,D15,IF(D16>1,D16,IF(D17>1,D17,IF(D18>1,D18,IF(D19>1,D19,IF(D20>1,D20,IF(D21>1,D21,IF(D22>1,D22,IF(D23>1,D23,""))))))))))))))))),IF(D25=D7,IF(D8>1,D8,IF(D9>1,D9,IF(D10>1,D10,IF(D11>1,D11,IF(D12>1,D12,IF(D13>1,D13,IF(D14>1,D14,IF(D15>1,D15,IF(D16>1,D16,IF(D17>1,D17,IF(D18>1,D18,IF(D19>1,D19,IF(D20>1,D20,IF(D21>1,D21,IF(D22>1,D22,IF(D23>1,D23,"")))))))))))))))),IF(D25=D8,IF(D9>1,D9,IF(D10>1,D10,IF(D11>1,D11,IF(D12>1,D12,IF(D13>1,D13,IF(D14>1,D14,IF(D15>1,D15,IF(D16>1,D16,IF(D17>1,D17,IF(D18>1,D18,IF(D19>1,D19,IF(D20>1,D20,IF(D21>1,D21,IF(D22>1,D22,IF(D23>1,D23,""))))))))))))))),IF(D25=D9,IF(D10>1,D10,IF(D11>1,D11,IF(D12>1,D12,IF(D13>1,D13,IF(D14>1,D14,IF(D15>1,D15,IF(D16>1,D16,IF(D17>1,D17,IF(D18>1,D18,IF(D19>1,D19,IF(D20>1,D20,IF(D21>1,D21,IF(D22>1,D22,IF(D23>1,D23,"")))))))))))))),IF(D25=D10,IF(D11>1,D11,IF(D12>1,D12,IF(D13>1,D13,IF(D14>1,D14,IF(D15>1,D15,IF(D16>1,D16,IF(D17>1,D17,IF(D18>1,D18,IF(D19>1,D19,IF(D20>1,D20,IF(D21>1,D21,IF(D22>1,D22,IF(D23>1,D23,""))))))))))))),IF(D25=D11,IF(D12>1,D12,IF(D13>1,D13,IF(D14>1,D14,IF(D15>1,D15,IF(D16>1,D16,IF(D17>1,D17,IF(D18>1,D18,IF(D19>1,D19,IF(D20>1,D20,IF(D21>1,D21,IF(D22>1,D22,IF(D23>1,D23,"")))))))))))),IF(D25=D12,IF(D13>1,D13,IF(D14>1,D14,IF(D15>1,D15,IF(D16>1,D16,IF(D17>1,D17,IF(D18>1,D18,IF(D19>1,D19,IF(D20>1,D20,IF(D21>1,D21,IF(D22>1,D22,IF(D23>1,D23,""))))))))))),IF(D25=D13,IF(D14>1,D14,IF(D15>1,D15,IF(D16>1,D16,IF(D17>1,D17,IF(D18>1,D18,IF(D19>1,D19,IF(D20>1,D20,IF(D21>1,D21,IF(D22>1,D22,IF(D23>1,D23,"")))))))))),IF(D25=D14,IF(D15>1,D15,IF(D16>1,D16,IF(D17>1,D17,IF(D18>1,D18,IF(D19>1,D19,IF(D20>1,D20,IF(D21>1,D21,IF(D22>1,D22,IF(D23>1,D23,""))))))))),IF(D25=D15,IF(D16>1,D16,IF(D17>1,D17,IF(D18>1,D18,IF(D19>1,D19,IF(D20>1,D20,IF(D21>1,D21,IF(D22>1,D22,IF(D23>1,D23,"")))))))),IF(D25=D16,IF(D17>1,D17,IF(D18>1,D18,IF(D19>1,D19,IF(D20>1,D20,IF(D21>1,D21,IF(D22>1,D22,IF(D23>1,D23,""))))))),IF(D25=D17,IF(D18>1,D18,IF(D19>1,D19,IF(D20>1,D20,IF(D21>1,D21,IF(D22>1,D22,IF(D23>1,D23,"")))))),IF(D25=D18,IF(D19>1,D19,IF(D20>1,D20,IF(D21>1,D21,IF(D22>1,D22,IF(D23>1,D23,""))))),IF(D25=D19,IF(D20>1,D20,IF(D21>1,D21,IF(D22>1,D22,IF(D23>1,D23,"")))),IF(D25=D20,IF(D21>1,D21,IF(D22>1,D22,IF(D23>1,D23,""))),IF(D25=D21,IF(D22>1,D22,IF(D23>1,D23,"")),IF(D25=D22,IF(D23>1,D23,""),"")))))))))))))))))))) -> Groove concrete floors (vs. smooth concrete floor) | E26: 2 | F26: =IF(F25=F3,IF(F4>1,F4,IF(F5>1,F5,IF(F6>1,F6,IF(F7>1,F7,IF(F8>1,F8,IF(F9>1,F9,IF(F10>1,F10,IF(F11>1,F11,IF(F12>1,F12,IF(F13>1,F13,IF(F14>1,F14,IF(F15>1,F15,IF(F16>1,F16,IF(F17>1,F17,IF(F18>1,F18,IF(F19>1,F19,IF(F20>1,F20,IF(F21>1,F21,IF(F22>1,F22,IF(F23>1,F23,"")))))))))))))))))))),IF(F25=F4,IF(F5>1,F5,IF(F6>1,F6,IF(F7>1,F7,IF(F8>1,F8,IF(F9>1,F9,IF(F10>1,F10,IF(F11>1,F11,IF(F12>1,F12,IF(F13>1,F13,IF(F14>1,F14,IF(F15>1,F15,IF(F16>1,F16,IF(F17>1,F17,IF(F18>1,F18,IF(F19>1,F19,IF(F20>1,F20,IF(F21>1,F21,IF(F22>1,F22,IF(F23>1,F23,""))))))))))))))))))),IF(F25=F5,IF(F6>1,F6,IF(F7>1,F7,IF(F8>1,F8,IF(F9>1,F9,IF(F10>1,F10,IF(F11>1,F11,IF(F12>1,F12,IF(F13>1,F13,IF(F14>1,F14,IF(F15>1,F15,IF(F16>1,F16,IF(F17>1,F17,IF(F18>1,F18,IF(F19>1,F19,IF(F20>1,F20,IF(F21>1,F21,IF(F22>1,F22,IF(F23>1,F23,"")))))))))))))))))),IF(F25=F6,IF(F7>1,F7,IF(F8>1,F8,IF(F9>1,F9,IF(F10>1,F10,IF(F11>1,F11,IF(F12>1,F12,IF(F13>1,F13,IF(F14>1,F14,IF(F15>1,F15,IF(F16>1,F16,IF(F17>1,F17,IF(F18>1,F18,IF(F19>1,F19,IF(F20>1,F20,IF(F21>1,F21,IF(F22>1,F22,IF(F23>1,F23,""))))))))))))))))),IF(F25=F7,IF(F8>1,F8,IF(F9>1,F9,IF(F10>1,F10,IF(F11>1,F11,IF(F12>1,F12,IF(F13>1,F13,IF(F14>1,F14,IF(F15>1,F15,IF(F16>1,F16,IF(F17>1,F17,IF(F18>1,F18,IF(F19>1,F19,IF(F20>1,F20,IF(F21>1,F21,IF(F22>1,F22,IF(F23>1,F23,"")))))))))))))))),IF(F25=F8,IF(F9>1,F9,IF(F10>1,F10,IF(F11>1,F11,IF(F12>1,F12,IF(F13>1,F13,IF(F14>1,F14,IF(F15>1,F15,IF(F16>1,F16,IF(F17>1,F17,IF(F18>1,F18,IF(F19>1,F19,IF(F20>1,F20,IF(F21>1,F21,IF(F22>1,F22,IF(F23>1,F23,""))))))))))))))),IF(F25=F9,IF(F10>1,F10,IF(F11>1,F11,IF(F12>1,F12,IF(F13>1,F13,IF(F14>1,F14,IF(F15>1,F15,IF(F16>1,F16,IF(F17>1,F17,IF(F18>1,F18,IF(F19>1,F19,IF(F20>1,F20,IF(F21>1,F21,IF(F22>1,F22,IF(F23>1,F23,"")))))))))))))),IF(F25=F10,IF(F11>1,F11,IF(F12>1,F12,IF(F13>1,F13,IF(F14>1,F14,IF(F15>1,F15,IF(F16>1,F16,IF(F17>1,F17,IF(F18>1,F18,IF(F19>1,F19,IF(F20>1,F20,IF(F21>1,F21,IF(F22>1,F22,IF(F23>1,F23,""))))))))))))),IF(F25=F11,IF(F12>1,F12,IF(F13>1,F13,IF(F14>1,F14,IF(F15>1,F15,IF(F16>1,F16,IF(F17>1,F17,IF(F18>1,F18,IF(F19>1,F19,IF(F20>1,F20,IF(F21>1,F21,IF(F22>1,F22,IF(F23>1,F23,"")))))))))))),IF(F25=F12,IF(F13>1,F13,IF(F14>1,F14,IF(F15>1,F15,IF(F16>1,F16,IF(F17>1,F17,IF(F18>1,F18,IF(F19>1,F19,IF(F20>1,F20,IF(F21>1,F21,IF(F22>1,F22,IF(F23>1,F23,""))))))))))),IF(F25=F13,IF(F14>1,F14,IF(F15>1,F15,IF(F16>1,F16,IF(F17>1,F17,IF(F18>1,F18,IF(F19>1,F19,IF(F20>1,F20,IF(F21>1,F21,IF(F22>1,F22,IF(F23>1,F23,"")))))))))),IF(F25=F14,IF(F15>1,F15,IF(F16>1,F16,IF(F17>1,F17,IF(F18>1,F18,IF(F19>1,F19,IF(F20>1,F20,IF(F21>1,F21,IF(F22>1,F22,IF(F23>1,F23,""))))))))),IF(F25=F15,IF(F16>1,F16,IF(F17>1,F17,IF(F18>1,F18,IF(F19>1,F19,IF(F20>1,F20,IF(F21>1,F21,IF(F22>1,F22,IF(F23>1,F23,"")))))))),IF(F25=F16,IF(F17>1,F17,IF(F18>1,F18,IF(F19>1,F19,IF(F20>1,F20,IF(F21>1,F21,IF(F22>1,F22,IF(F23>1,F23,""))))))),IF(F25=F17,IF(F18>1,F18,IF(F19>1,F19,IF(F20>1,F20,IF(F21>1,F21,IF(F22>1,F22,IF(F23>1,F23,"")))))),IF(F25=F18,IF(F19>1,F19,IF(F20>1,F20,IF(F21>1,F21,IF(F22>1,F22,IF(F23>1,F23,""))))),IF(F25=F19,IF(F20>1,F20,IF(F21>1,F21,IF(F22>1,F22,IF(F23>1,F23,"")))),IF(F25=F20,IF(F21>1,F21,IF(F22>1,F22,IF(F23>1,F23,""))),IF(F25=F21,IF(F22>1,F22,IF(F23>1,F23,"")),IF(F25=F22,IF(F23>1,F23,""),"")))))))))))))))))))) ->  | G26: 2 | H26: =IF(H25=H3,IF(H4>1,H4,IF(H5>1,H5,IF(H6>1,H6,IF(H7>1,H7,IF(H8>1,H8,IF(H9>1,H9,IF(H10>1,H10,IF(H11>1,H11,IF(H12>1,H12,IF(H13>1,H13,IF(H14>1,H14,IF(H15>1,H15,IF(H16>1,H16,IF(H17>1,H17,IF(H18>1,H18,IF(H19>1,H19,IF(H20>1,H20,IF(H21>1,H21,IF(H22>1,H22,IF(H23>1,H23,"")))))))))))))))))))),IF(H25=H4,IF(H5>1,H5,IF(H6>1,H6,IF(H7>1,H7,IF(H8>1,H8,IF(H9>1,H9,IF(H10>1,H10,IF(H11>1,H11,IF(H12>1,H12,IF(H13>1,H13,IF(H14>1,H14,IF(H15>1,H15,IF(H16>1,H16,IF(H17>1,H17,IF(H18>1,H18,IF(H19>1,H19,IF(H20>1,H20,IF(H21>1,H21,IF(H22>1,H22,IF(H23>1,H23,""))))))))))))))))))),IF(H25=H5,IF(H6>1,H6,IF(H7>1,H7,IF(H8>1,H8,IF(H9>1,H9,IF(H10>1,H10,IF(H11>1,H11,IF(H12>1,H12,IF(H13>1,H13,IF(H14>1,H14,IF(H15>1,H15,IF(H16>1,H16,IF(H17>1,H17,IF(H18>1,H18,IF(H19>1,H19,IF(H20>1,H20,IF(H21>1,H21,IF(H22>1,H22,IF(H23>1,H23,"")))))))))))))))))),IF(H25=H6,IF(H7>1,H7,IF(H8>1,H8,IF(H9>1,H9,IF(H10>1,H10,IF(H11>1,H11,IF(H12>1,H12,IF(H13>1,H13,IF(H14>1,H14,IF(H15>1,H15,IF(H16>1,H16,IF(H17>1,H17,IF(H18>1,H18,IF(H19>1,H19,IF(H20>1,H20,IF(H21>1,H21,IF(H22>1,H22,IF(H23>1,H23,""))))))))))))))))),IF(H25=H7,IF(H8>1,H8,IF(H9>1,H9,IF(H10>1,H10,IF(H11>1,H11,IF(H12>1,H12,IF(H13>1,H13,IF(H14>1,H14,IF(H15>1,H15,IF(H16>1,H16,IF(H17>1,H17,IF(H18>1,H18,IF(H19>1,H19,IF(H20>1,H20,IF(H21>1,H21,IF(H22>1,H22,IF(H23>1,H23,"")))))))))))))))),IF(H25=H8,IF(H9>1,H9,IF(H10>1,H10,IF(H11>1,H11,IF(H12>1,H12,IF(H13>1,H13,IF(H14>1,H14,IF(H15>1,H15,IF(H16>1,H16,IF(H17>1,H17,IF(H18>1,H18,IF(H19>1,H19,IF(H20>1,H20,IF(H21>1,H21,IF(H22>1,H22,IF(H23>1,H23,""))))))))))))))),IF(H25=H9,IF(H10>1,H10,IF(H11>1,H11,IF(H12>1,H12,IF(H13>1,H13,IF(H14>1,H14,IF(H15>1,H15,IF(H16>1,H16,IF(H17>1,H17,IF(H18>1,H18,IF(H19>1,H19,IF(H20>1,H20,IF(H21>1,H21,IF(H22>1,H22,IF(H23>1,H23,"")))))))))))))),IF(H25=H10,IF(H11>1,H11,IF(H12>1,H12,IF(H13>1,H13,IF(H14>1,H14,IF(H15>1,H15,IF(H16>1,H16,IF(H17>1,H17,IF(H18>1,H18,IF(H19>1,H19,IF(H20>1,H20,IF(H21>1,H21,IF(H22>1,H22,IF(H23>1,H23,""))))))))))))),IF(H25=H11,IF(H12>1,H12,IF(H13>1,H13,IF(H14>1,H14,IF(H15>1,H15,IF(H16>1,H16,IF(H17>1,H17,IF(H18>1,H18,IF(H19>1,H19,IF(H20>1,H20,IF(H21>1,H21,IF(H22>1,H22,IF(H23>1,H23,"")))))))))))),IF(H25=H12,IF(H13>1,H13,IF(H14>1,H14,IF(H15>1,H15,IF(H16>1,H16,IF(H17>1,H17,IF(H18>1,H18,IF(H19>1,H19,IF(H20>1,H20,IF(H21>1,H21,IF(H22>1,H22,IF(H23>1,H23,""))))))))))),IF(H25=H13,IF(H14>1,H14,IF(H15>1,H15,IF(H16>1,H16,IF(H17>1,H17,IF(H18>1,H18,IF(H19>1,H19,IF(H20>1,H20,IF(H21>1,H21,IF(H22>1,H22,IF(H23>1,H23,"")))))))))),IF(H25=H14,IF(H15>1,H15,IF(H16>1,H16,IF(H17>1,H17,IF(H18>1,H18,IF(H19>1,H19,IF(H20>1,H20,IF(H21>1,H21,IF(H22>1,H22,IF(H23>1,H23,""))))))))),IF(H25=H15,IF(H16>1,H16,IF(H17>1,H17,IF(H18>1,H18,IF(H19>1,H19,IF(H20>1,H20,IF(H21>1,H21,IF(H22>1,H22,IF(H23>1,H23,"")))))))),IF(H25=H16,IF(H17>1,H17,IF(H18>1,H18,IF(H19>1,H19,IF(H20>1,H20,IF(H21>1,H21,IF(H22>1,H22,IF(H23>1,H23,""))))))),IF(H25=H17,IF(H18>1,H18,IF(H19>1,H19,IF(H20>1,H20,IF(H21>1,H21,IF(H22>1,H22,IF(H23>1,H23,"")))))),IF(H25=H18,IF(H19>1,H19,IF(H20>1,H20,IF(H21>1,H21,IF(H22>1,H22,IF(H23>1,H23,""))))),IF(H25=H19,IF(H20>1,H20,IF(H21>1,H21,IF(H22>1,H22,IF(H23>1,H23,"")))),IF(H25=H20,IF(H21>1,H21,IF(H22>1,H22,IF(H23>1,H23,""))),IF(H25=H21,IF(H22>1,H22,IF(H23>1,H23,"")),IF(H25=H22,IF(H23>1,H23,""),"")))))))))))))))))))) -> Prevent reduced feeding time and DMI both post-calving and pre-calving (during transition period) / push feed manually two times per day (next to normal feeding)
A27: 3 | B27: =IF(B26=B3,IF(B4>1,B4,IF(B5>1,B5,IF(B6>1,B6,IF(B7>1,B7,IF(B8>1,B8,IF(B9>1,B9,IF(B10>1,B10,IF(B11>1,B11,IF(B13>1,B12,IF(B13>1,B13,IF(B14>1,B14,IF(B15>1,B15,IF(B16>1,B16,IF(B18>1,B17,IF(B18>1,B18,IF(B19>1,B19,IF(B20>1,B20,IF(B21>1,B21,IF(B22>1,B22,IF(B23>1,B23,"")))))))))))))))))))),IF(B26=B4,IF(B5>1,B5,IF(B6>1,B6,IF(B7>1,B7,IF(B8>1,B8,IF(B9>1,B9,IF(B10>1,B10,IF(B11>1,B11,IF(B12>1,B12,IF(B13>1,B13,IF(B14>1,B14,IF(B15>1,B15,IF(B16>1,B16,IF(B17>1,B17,IF(B18>1,B18,IF(B19>1,B19,IF(B20>1,B20,IF(B21>1,B21,IF(B22>1,B22,IF(B23>1,B23,""))))))))))))))))))),IF(B26=B5,IF(B6>1,B6,IF(B7>1,B7,IF(B8>1,B8,IF(B9>1,B9,IF(B10>1,B10,IF(B11>1,B11,IF(B12>1,B12,IF(B13>1,B13,IF(B14>1,B14,IF(B15>1,B15,IF(B16>1,B16,IF(B17>1,B17,IF(B18>1,B18,IF(B19>1,B19,IF(B20>1,B20,IF(B21>1,B21,IF(B22>1,B22,IF(B23>1,B23,"")))))))))))))))))),IF(B26=B6,IF(B7>1,B7,IF(B8>1,B8,IF(B9>1,B9,IF(B10>1,B10,IF(B11>1,B11,IF(B12>1,B12,IF(B13>1,B13,IF(B14>1,B14,IF(B15>1,B15,IF(B16>1,B16,IF(B17>1,B17,IF(B18>1,B18,IF(B19>1,B19,IF(B20>1,B20,IF(B21>1,B21,IF(B22>1,B22,IF(B23>1,B23,""))))))))))))))))),IF(B26=B7,IF(B8>1,B8,IF(B9>1,B9,IF(B10>1,B10,IF(B11>1,B11,IF(B12>1,B12,IF(B13>1,B13,IF(B14>1,B14,IF(B15>1,B15,IF(B16>1,B16,IF(B17>1,B17,IF(B18>1,B18,IF(B19>1,B19,IF(B20>1,B20,IF(B21>1,B21,IF(B22>1,B22,IF(B23>1,B23,"")))))))))))))))),IF(B26=B8,IF(B9>1,B9,IF(B10>1,B10,IF(B11>1,B11,IF(B12>1,B12,IF(B13>1,B13,IF(B14>1,B14,IF(B15>1,B15,IF(B16>1,B16,IF(B17>1,B17,IF(B18>1,B18,IF(B19>1,B19,IF(B20>1,B20,IF(B21>1,B21,IF(B22>1,B22,IF(B23>1,B23,""))))))))))))))),IF(B26=B9,IF(B10>1,B10,IF(B11>1,B11,IF(B12>1,B12,IF(B13>1,B13,IF(B14>1,B14,IF(B15>1,B15,IF(B16>1,B16,IF(B17>1,B17,IF(B18>1,B18,IF(B19>1,B19,IF(B20>1,B20,IF(B21>1,B21,IF(B22>1,B22,IF(B23>1,B23,"")))))))))))))),IF(B26=B10,IF(B11>1,B11,IF(B12>1,B12,IF(B13>1,B13,IF(B14>1,B14,IF(B15>1,B15,IF(B16>1,B16,IF(B17>1,B17,IF(B18>1,B18,IF(B19>1,B19,IF(B20>1,B20,IF(B21>1,B21,IF(B22>1,B22,IF(B23>1,B23,""))))))))))))),IF(B26=B11,IF(B12>1,B12,IF(B13>1,B13,IF(B14>1,B14,IF(B15>1,B15,IF(B16>1,B16,IF(B17>1,B17,IF(B18>1,B18,IF(B19>1,B19,IF(B20>1,B20,IF(B21>1,B21,IF(B22>1,B22,IF(B23>1,B23,"")))))))))))),IF(B26=B12,IF(B13>1,B13,IF(B14>1,B14,IF(B15>1,B15,IF(B16>1,B16,IF(B17>1,B17,IF(B18>1,B18,IF(B19>1,B19,IF(B20>1,B20,IF(B21>1,B21,IF(B22>1,B22,IF(B23>1,B23,""))))))))))),IF(B26=B13,IF(B14>1,B14,IF(B15>1,B15,IF(B16>1,B16,IF(B17>1,B17,IF(B18>1,B18,IF(B19>1,B19,IF(B20>1,B20,IF(B21>1,B21,IF(B22>1,B22,IF(B23>1,B23,"")))))))))),IF(B26=B14,IF(B15>1,B15,IF(B16>1,B16,IF(B17>1,B17,IF(B18>1,B18,IF(B19>1,B19,IF(B20>1,B20,IF(B21>1,B21,IF(B22>1,B22,IF(B23>1,B23,""))))))))),IF(B26=B15,IF(B16>1,B16,IF(B17>1,B17,IF(B18>1,B18,IF(B19>1,B19,IF(B20>1,B20,IF(B21>1,B21,IF(B22>1,B22,IF(B23>1,B23,"")))))))),IF(B26=B16,IF(B17>1,B17,IF(B18>1,B18,IF(B19>1,B19,IF(B20>1,B20,IF(B22>1,B21,IF(B22>1,B22,IF(B23>1,B23,""))))))),IF(B26=B17,IF(B18>1,B18,IF(B19>1,B19,IF(B20>1,B20,IF(B21>1,B21,IF(B22>1,B22,IF(B23>1,B23,"")))))),IF(B26=B18,IF(B19>1,B19,IF(B20>1,B20,IF(B21>1,B21,IF(B22>1,B22,IF(B23>1,B23,""))))),IF(B26=B19,IF(B20>1,B20,IF(B21>1,B21,IF(B22>1,B22,IF(B23>1,B23,"")))),IF(B26=B20,IF(B21>1,B21,IF(B22>1,B22,IF(B23>1,B23,""))),IF(B26=B21,IF(B22>1,B22,IF(B23>1,B23,"")),IF(B26=B22,IF(B23>1,B23,""),"")))))))))))))))))))) ->  | C27: 3 | D27: =IF(D26=D3,IF(D4>1,D4,IF(D5>1,D5,IF(D6>1,D6,IF(D7>1,D7,IF(D8>1,D8,IF(D9>1,D9,IF(D10>1,D10,IF(D11>1,D11,IF(D13>1,D12,IF(D13>1,D13,IF(D14>1,D14,IF(D15>1,D15,IF(D16>1,D16,IF(D18>1,D17,IF(D18>1,D18,IF(D19>1,D19,IF(D20>1,D20,IF(D21>1,D21,IF(D22>1,D22,IF(D23>1,D23,"")))))))))))))))))))),IF(D26=D4,IF(D5>1,D5,IF(D6>1,D6,IF(D7>1,D7,IF(D8>1,D8,IF(D9>1,D9,IF(D10>1,D10,IF(D11>1,D11,IF(D12>1,D12,IF(D13>1,D13,IF(D14>1,D14,IF(D15>1,D15,IF(D16>1,D16,IF(D17>1,D17,IF(D18>1,D18,IF(D19>1,D19,IF(D20>1,D20,IF(D21>1,D21,IF(D22>1,D22,IF(D23>1,D23,""))))))))))))))))))),IF(D26=D5,IF(D6>1,D6,IF(D7>1,D7,IF(D8>1,D8,IF(D9>1,D9,IF(D10>1,D10,IF(D11>1,D11,IF(D12>1,D12,IF(D13>1,D13,IF(D14>1,D14,IF(D15>1,D15,IF(D16>1,D16,IF(D17>1,D17,IF(D18>1,D18,IF(D19>1,D19,IF(D20>1,D20,IF(D21>1,D21,IF(D22>1,D22,IF(D23>1,D23,"")))))))))))))))))),IF(D26=D6,IF(D7>1,D7,IF(D8>1,D8,IF(D9>1,D9,IF(D10>1,D10,IF(D11>1,D11,IF(D12>1,D12,IF(D13>1,D13,IF(D14>1,D14,IF(D15>1,D15,IF(D16>1,D16,IF(D17>1,D17,IF(D18>1,D18,IF(D19>1,D19,IF(D20>1,D20,IF(D21>1,D21,IF(D22>1,D22,IF(D23>1,D23,""))))))))))))))))),IF(D26=D7,IF(D8>1,D8,IF(D9>1,D9,IF(D10>1,D10,IF(D11>1,D11,IF(D12>1,D12,IF(D13>1,D13,IF(D14>1,D14,IF(D15>1,D15,IF(D16>1,D16,IF(D17>1,D17,IF(D18>1,D18,IF(D19>1,D19,IF(D20>1,D20,IF(D21>1,D21,IF(D22>1,D22,IF(D23>1,D23,"")))))))))))))))),IF(D26=D8,IF(D9>1,D9,IF(D10>1,D10,IF(D11>1,D11,IF(D12>1,D12,IF(D13>1,D13,IF(D14>1,D14,IF(D15>1,D15,IF(D16>1,D16,IF(D17>1,D17,IF(D18>1,D18,IF(D19>1,D19,IF(D20>1,D20,IF(D21>1,D21,IF(D22>1,D22,IF(D23>1,D23,""))))))))))))))),IF(D26=D9,IF(D10>1,D10,IF(D11>1,D11,IF(D12>1,D12,IF(D13>1,D13,IF(D14>1,D14,IF(D15>1,D15,IF(D16>1,D16,IF(D17>1,D17,IF(D18>1,D18,IF(D19>1,D19,IF(D20>1,D20,IF(D21>1,D21,IF(D22>1,D22,IF(D23>1,D23,"")))))))))))))),IF(D26=D10,IF(D11>1,D11,IF(D12>1,D12,IF(D13>1,D13,IF(D14>1,D14,IF(D15>1,D15,IF(D16>1,D16,IF(D17>1,D17,IF(D18>1,D18,IF(D19>1,D19,IF(D20>1,D20,IF(D21>1,D21,IF(D22>1,D22,IF(D23>1,D23,""))))))))))))),IF(D26=D11,IF(D12>1,D12,IF(D13>1,D13,IF(D14>1,D14,IF(D15>1,D15,IF(D16>1,D16,IF(D17>1,D17,IF(D18>1,D18,IF(D19>1,D19,IF(D20>1,D20,IF(D21>1,D21,IF(D22>1,D22,IF(D23>1,D23,"")))))))))))),IF(D26=D12,IF(D13>1,D13,IF(D14>1,D14,IF(D15>1,D15,IF(D16>1,D16,IF(D17>1,D17,IF(D18>1,D18,IF(D19>1,D19,IF(D20>1,D20,IF(D21>1,D21,IF(D22>1,D22,IF(D23>1,D23,""))))))))))),IF(D26=D13,IF(D14>1,D14,IF(D15>1,D15,IF(D16>1,D16,IF(D17>1,D17,IF(D18>1,D18,IF(D19>1,D19,IF(D20>1,D20,IF(D21>1,D21,IF(D22>1,D22,IF(D23>1,D23,"")))))))))),IF(D26=D14,IF(D15>1,D15,IF(D16>1,D16,IF(D17>1,D17,IF(D18>1,D18,IF(D19>1,D19,IF(D20>1,D20,IF(D21>1,D21,IF(D22>1,D22,IF(D23>1,D23,""))))))))),IF(D26=D15,IF(D16>1,D16,IF(D17>1,D17,IF(D18>1,D18,IF(D19>1,D19,IF(D20>1,D20,IF(D21>1,D21,IF(D22>1,D22,IF(D23>1,D23,"")))))))),IF(D26=D16,IF(D17>1,D17,IF(D18>1,D18,IF(D19>1,D19,IF(D20>1,D20,IF(D22>1,D21,IF(D22>1,D22,IF(D23>1,D23,""))))))),IF(D26=D17,IF(D18>1,D18,IF(D19>1,D19,IF(D20>1,D20,IF(D21>1,D21,IF(D22>1,D22,IF(D23>1,D23,"")))))),IF(D26=D18,IF(D19>1,D19,IF(D20>1,D20,IF(D21>1,D21,IF(D22>1,D22,IF(D23>1,D23,""))))),IF(D26=D19,IF(D20>1,D20,IF(D21>1,D21,IF(D22>1,D22,IF(D23>1,D23,"")))),IF(D26=D20,IF(D21>1,D21,IF(D22>1,D22,IF(D23>1,D23,""))),IF(D26=D21,IF(D22>1,D22,IF(D23>1,D23,"")),IF(D26=D22,IF(D23>1,D23,""),"")))))))))))))))))))) -> Clean cubicles appropriately / Clean all cubicles twice every day and make sure enough and clean bedding material is present | E27: 3 | F27: =IF(F26=F3,IF(F4>1,F4,IF(F5>1,F5,IF(F6>1,F6,IF(F7>1,F7,IF(F8>1,F8,IF(F9>1,F9,IF(F10>1,F10,IF(F11>1,F11,IF(F13>1,F12,IF(F13>1,F13,IF(F14>1,F14,IF(F15>1,F15,IF(F16>1,F16,IF(F18>1,F17,IF(F18>1,F18,IF(F19>1,F19,IF(F20>1,F20,IF(F21>1,F21,IF(F22>1,F22,IF(F23>1,F23,"")))))))))))))))))))),IF(F26=F4,IF(F5>1,F5,IF(F6>1,F6,IF(F7>1,F7,IF(F8>1,F8,IF(F9>1,F9,IF(F10>1,F10,IF(F11>1,F11,IF(F12>1,F12,IF(F13>1,F13,IF(F14>1,F14,IF(F15>1,F15,IF(F16>1,F16,IF(F17>1,F17,IF(F18>1,F18,IF(F19>1,F19,IF(F20>1,F20,IF(F21>1,F21,IF(F22>1,F22,IF(F23>1,F23,""))))))))))))))))))),IF(F26=F5,IF(F6>1,F6,IF(F7>1,F7,IF(F8>1,F8,IF(F9>1,F9,IF(F10>1,F10,IF(F11>1,F11,IF(F12>1,F12,IF(F13>1,F13,IF(F14>1,F14,IF(F15>1,F15,IF(F16>1,F16,IF(F17>1,F17,IF(F18>1,F18,IF(F19>1,F19,IF(F20>1,F20,IF(F21>1,F21,IF(F22>1,F22,IF(F23>1,F23,"")))))))))))))))))),IF(F26=F6,IF(F7>1,F7,IF(F8>1,F8,IF(F9>1,F9,IF(F10>1,F10,IF(F11>1,F11,IF(F12>1,F12,IF(F13>1,F13,IF(F14>1,F14,IF(F15>1,F15,IF(F16>1,F16,IF(F17>1,F17,IF(F18>1,F18,IF(F19>1,F19,IF(F20>1,F20,IF(F21>1,F21,IF(F22>1,F22,IF(F23>1,F23,""))))))))))))))))),IF(F26=F7,IF(F8>1,F8,IF(F9>1,F9,IF(F10>1,F10,IF(F11>1,F11,IF(F12>1,F12,IF(F13>1,F13,IF(F14>1,F14,IF(F15>1,F15,IF(F16>1,F16,IF(F17>1,F17,IF(F18>1,F18,IF(F19>1,F19,IF(F20>1,F20,IF(F21>1,F21,IF(F22>1,F22,IF(F23>1,F23,"")))))))))))))))),IF(F26=F8,IF(F9>1,F9,IF(F10>1,F10,IF(F11>1,F11,IF(F12>1,F12,IF(F13>1,F13,IF(F14>1,F14,IF(F15>1,F15,IF(F16>1,F16,IF(F17>1,F17,IF(F18>1,F18,IF(F19>1,F19,IF(F20>1,F20,IF(F21>1,F21,IF(F22>1,F22,IF(F23>1,F23,""))))))))))))))),IF(F26=F9,IF(F10>1,F10,IF(F11>1,F11,IF(F12>1,F12,IF(F13>1,F13,IF(F14>1,F14,IF(F15>1,F15,IF(F16>1,F16,IF(F17>1,F17,IF(F18>1,F18,IF(F19>1,F19,IF(F20>1,F20,IF(F21>1,F21,IF(F22>1,F22,IF(F23>1,F23,"")))))))))))))),IF(F26=F10,IF(F11>1,F11,IF(F12>1,F12,IF(F13>1,F13,IF(F14>1,F14,IF(F15>1,F15,IF(F16>1,F16,IF(F17>1,F17,IF(F18>1,F18,IF(F19>1,F19,IF(F20>1,F20,IF(F21>1,F21,IF(F22>1,F22,IF(F23>1,F23,""))))))))))))),IF(F26=F11,IF(F12>1,F12,IF(F13>1,F13,IF(F14>1,F14,IF(F15>1,F15,IF(F16>1,F16,IF(F17>1,F17,IF(F18>1,F18,IF(F19>1,F19,IF(F20>1,F20,IF(F21>1,F21,IF(F22>1,F22,IF(F23>1,F23,"")))))))))))),IF(F26=F12,IF(F13>1,F13,IF(F14>1,F14,IF(F15>1,F15,IF(F16>1,F16,IF(F17>1,F17,IF(F18>1,F18,IF(F19>1,F19,IF(F20>1,F20,IF(F21>1,F21,IF(F22>1,F22,IF(F23>1,F23,""))))))))))),IF(F26=F13,IF(F14>1,F14,IF(F15>1,F15,IF(F16>1,F16,IF(F17>1,F17,IF(F18>1,F18,IF(F19>1,F19,IF(F20>1,F20,IF(F21>1,F21,IF(F22>1,F22,IF(F23>1,F23,"")))))))))),IF(F26=F14,IF(F15>1,F15,IF(F16>1,F16,IF(F17>1,F17,IF(F18>1,F18,IF(F19>1,F19,IF(F20>1,F20,IF(F21>1,F21,IF(F22>1,F22,IF(F23>1,F23,""))))))))),IF(F26=F15,IF(F16>1,F16,IF(F17>1,F17,IF(F18>1,F18,IF(F19>1,F19,IF(F20>1,F20,IF(F21>1,F21,IF(F22>1,F22,IF(F23>1,F23,"")))))))),IF(F26=F16,IF(F17>1,F17,IF(F18>1,F18,IF(F19>1,F19,IF(F20>1,F20,IF(F22>1,F21,IF(F22>1,F22,IF(F23>1,F23,""))))))),IF(F26=F17,IF(F18>1,F18,IF(F19>1,F19,IF(F20>1,F20,IF(F21>1,F21,IF(F22>1,F22,IF(F23>1,F23,"")))))),IF(F26=F18,IF(F19>1,F19,IF(F20>1,F20,IF(F21>1,F21,IF(F22>1,F22,IF(F23>1,F23,""))))),IF(F26=F19,IF(F20>1,F20,IF(F21>1,F21,IF(F22>1,F22,IF(F23>1,F23,"")))),IF(F26=F20,IF(F21>1,F21,IF(F22>1,F22,IF(F23>1,F23,""))),IF(F26=F21,IF(F22>1,F22,IF(F23>1,F23,"")),IF(F26=F22,IF(F23>1,F23,""),"")))))))))))))))))))) ->  | G27: 3 | H27: =IF(H26=H3,IF(H4>1,H4,IF(H5>1,H5,IF(H6>1,H6,IF(H7>1,H7,IF(H8>1,H8,IF(H9>1,H9,IF(H10>1,H10,IF(H11>1,H11,IF(H13>1,H12,IF(H13>1,H13,IF(H14>1,H14,IF(H15>1,H15,IF(H16>1,H16,IF(H18>1,H17,IF(H18>1,H18,IF(H19>1,H19,IF(H20>1,H20,IF(H21>1,H21,IF(H22>1,H22,IF(H23>1,H23,"")))))))))))))))))))),IF(H26=H4,IF(H5>1,H5,IF(H6>1,H6,IF(H7>1,H7,IF(H8>1,H8,IF(H9>1,H9,IF(H10>1,H10,IF(H11>1,H11,IF(H12>1,H12,IF(H13>1,H13,IF(H14>1,H14,IF(H15>1,H15,IF(H16>1,H16,IF(H17>1,H17,IF(H18>1,H18,IF(H19>1,H19,IF(H20>1,H20,IF(H21>1,H21,IF(H22>1,H22,IF(H23>1,H23,""))))))))))))))))))),IF(H26=H5,IF(H6>1,H6,IF(H7>1,H7,IF(H8>1,H8,IF(H9>1,H9,IF(H10>1,H10,IF(H11>1,H11,IF(H12>1,H12,IF(H13>1,H13,IF(H14>1,H14,IF(H15>1,H15,IF(H16>1,H16,IF(H17>1,H17,IF(H18>1,H18,IF(H19>1,H19,IF(H20>1,H20,IF(H21>1,H21,IF(H22>1,H22,IF(H23>1,H23,"")))))))))))))))))),IF(H26=H6,IF(H7>1,H7,IF(H8>1,H8,IF(H9>1,H9,IF(H10>1,H10,IF(H11>1,H11,IF(H12>1,H12,IF(H13>1,H13,IF(H14>1,H14,IF(H15>1,H15,IF(H16>1,H16,IF(H17>1,H17,IF(H18>1,H18,IF(H19>1,H19,IF(H20>1,H20,IF(H21>1,H21,IF(H22>1,H22,IF(H23>1,H23,""))))))))))))))))),IF(H26=H7,IF(H8>1,H8,IF(H9>1,H9,IF(H10>1,H10,IF(H11>1,H11,IF(H12>1,H12,IF(H13>1,H13,IF(H14>1,H14,IF(H15>1,H15,IF(H16>1,H16,IF(H17>1,H17,IF(H18>1,H18,IF(H19>1,H19,IF(H20>1,H20,IF(H21>1,H21,IF(H22>1,H22,IF(H23>1,H23,"")))))))))))))))),IF(H26=H8,IF(H9>1,H9,IF(H10>1,H10,IF(H11>1,H11,IF(H12>1,H12,IF(H13>1,H13,IF(H14>1,H14,IF(H15>1,H15,IF(H16>1,H16,IF(H17>1,H17,IF(H18>1,H18,IF(H19>1,H19,IF(H20>1,H20,IF(H21>1,H21,IF(H22>1,H22,IF(H23>1,H23,""))))))))))))))),IF(H26=H9,IF(H10>1,H10,IF(H11>1,H11,IF(H12>1,H12,IF(H13>1,H13,IF(H14>1,H14,IF(H15>1,H15,IF(H16>1,H16,IF(H17>1,H17,IF(H18>1,H18,IF(H19>1,H19,IF(H20>1,H20,IF(H21>1,H21,IF(H22>1,H22,IF(H23>1,H23,"")))))))))))))),IF(H26=H10,IF(H11>1,H11,IF(H12>1,H12,IF(H13>1,H13,IF(H14>1,H14,IF(H15>1,H15,IF(H16>1,H16,IF(H17>1,H17,IF(H18>1,H18,IF(H19>1,H19,IF(H20>1,H20,IF(H21>1,H21,IF(H22>1,H22,IF(H23>1,H23,""))))))))))))),IF(H26=H11,IF(H12>1,H12,IF(H13>1,H13,IF(H14>1,H14,IF(H15>1,H15,IF(H16>1,H16,IF(H17>1,H17,IF(H18>1,H18,IF(H19>1,H19,IF(H20>1,H20,IF(H21>1,H21,IF(H22>1,H22,IF(H23>1,H23,"")))))))))))),IF(H26=H12,IF(H13>1,H13,IF(H14>1,H14,IF(H15>1,H15,IF(H16>1,H16,IF(H17>1,H17,IF(H18>1,H18,IF(H19>1,H19,IF(H20>1,H20,IF(H21>1,H21,IF(H22>1,H22,IF(H23>1,H23,""))))))))))),IF(H26=H13,IF(H14>1,H14,IF(H15>1,H15,IF(H16>1,H16,IF(H17>1,H17,IF(H18>1,H18,IF(H19>1,H19,IF(H20>1,H20,IF(H21>1,H21,IF(H22>1,H22,IF(H23>1,H23,"")))))))))),IF(H26=H14,IF(H15>1,H15,IF(H16>1,H16,IF(H17>1,H17,IF(H18>1,H18,IF(H19>1,H19,IF(H20>1,H20,IF(H21>1,H21,IF(H22>1,H22,IF(H23>1,H23,""))))))))),IF(H26=H15,IF(H16>1,H16,IF(H17>1,H17,IF(H18>1,H18,IF(H19>1,H19,IF(H20>1,H20,IF(H21>1,H21,IF(H22>1,H22,IF(H23>1,H23,"")))))))),IF(H26=H16,IF(H17>1,H17,IF(H18>1,H18,IF(H19>1,H19,IF(H20>1,H20,IF(H22>1,H21,IF(H22>1,H22,IF(H23>1,H23,""))))))),IF(H26=H17,IF(H18>1,H18,IF(H19>1,H19,IF(H20>1,H20,IF(H21>1,H21,IF(H22>1,H22,IF(H23>1,H23,"")))))),IF(H26=H18,IF(H19>1,H19,IF(H20>1,H20,IF(H21>1,H21,IF(H22>1,H22,IF(H23>1,H23,""))))),IF(H26=H19,IF(H20>1,H20,IF(H21>1,H21,IF(H22>1,H22,IF(H23>1,H23,"")))),IF(H26=H20,IF(H21>1,H21,IF(H22>1,H22,IF(H23>1,H23,""))),IF(H26=H21,IF(H22>1,H22,IF(H23>1,H23,"")),IF(H26=H22,IF(H23>1,H23,""),"")))))))))))))))))))) -> Control BCS during the dry period / Precalving BCS check and registration
A28: 4 | B28: =IF(B27=B3,IF(B4>1,B4,IF(B5>1,B5,IF(B6>1,B6,IF(B7>1,B7,IF(B8>1,B8,IF(B9>1,B9,IF(B10>1,B10,IF(B11>1,B11,IF(B14>1,B12,IF(B13>1,B13,IF(B14>1,B14,IF(B15>1,B15,IF(B16>1,B16,IF(B19>1,B17,IF(B18>1,B18,IF(B19>1,B19,IF(B20>1,B20,IF(B21>1,B21,IF(B22>1,B22,IF(B23>1,B23,"")))))))))))))))))))),IF(B27=B4,IF(B5>1,B5,IF(B6>1,B6,IF(B7>1,B7,IF(B8>1,B8,IF(B9>1,B9,IF(B10>1,B10,IF(B11>1,B11,IF(B12>1,B12,IF(B13>1,B13,IF(B14>1,B14,IF(B15>1,B15,IF(B16>1,B16,IF(B17>1,B17,IF(B18>1,B18,IF(B19>1,B19,IF(B20>1,B20,IF(B21>1,B21,IF(B22>1,B22,IF(B23>1,B23,""))))))))))))))))))),IF(B27=B5,IF(B6>1,B6,IF(B7>1,B7,IF(B8>1,B8,IF(B9>1,B9,IF(B10>1,B10,IF(B11>1,B11,IF(B12>1,B12,IF(B13>1,B13,IF(B14>1,B14,IF(B15>1,B15,IF(B16>1,B16,IF(B17>1,B17,IF(B18>1,B18,IF(B19>1,B19,IF(B20>1,B20,IF(B21>1,B21,IF(B22>1,B22,IF(B23>1,B23,"")))))))))))))))))),IF(B27=B6,IF(B7>1,B7,IF(B8>1,B8,IF(B9>1,B9,IF(B10>1,B10,IF(B11>1,B11,IF(B12>1,B12,IF(B13>1,B13,IF(B14>1,B14,IF(B15>1,B15,IF(B16>1,B16,IF(B17>1,B17,IF(B18>1,B18,IF(B19>1,B19,IF(B20>1,B20,IF(B21>1,B21,IF(B22>1,B22,IF(B23>1,B23,""))))))))))))))))),IF(B27=B7,IF(B8>1,B8,IF(B9>1,B9,IF(B10>1,B10,IF(B11>1,B11,IF(B12>1,B12,IF(B13>1,B13,IF(B14>1,B14,IF(B15>1,B15,IF(B16>1,B16,IF(B17>1,B17,IF(B18>1,B18,IF(B19>1,B19,IF(B20>1,B20,IF(B21>1,B21,IF(B22>1,B22,IF(B23>1,B23,"")))))))))))))))),IF(B27=B8,IF(B9>1,B9,IF(B10>1,B10,IF(B11>1,B11,IF(B12>1,B12,IF(B13>1,B13,IF(B14>1,B14,IF(B15>1,B15,IF(B16>1,B16,IF(B17>1,B17,IF(B18>1,B18,IF(B19>1,B19,IF(B20>1,B20,IF(B21>1,B21,IF(B22>1,B22,IF(B23>1,B23,""))))))))))))))),IF(B27=B9,IF(B10>1,B10,IF(B11>1,B11,IF(B12>1,B12,IF(B13>1,B13,IF(B14>1,B14,IF(B15>1,B15,IF(B16>1,B16,IF(B17>1,B17,IF(B18>1,B18,IF(B19>1,B19,IF(B20>1,B20,IF(B21>1,B21,IF(B22>1,B22,IF(B23>1,B23,"")))))))))))))),IF(B27=B10,IF(B11>1,B11,IF(B12>1,B12,IF(B13>1,B13,IF(B14>1,B14,IF(B15>1,B15,IF(B16>1,B16,IF(B17>1,B17,IF(B18>1,B18,IF(B19>1,B19,IF(B20>1,B20,IF(B21>1,B21,IF(B22>1,B22,IF(B23>1,B23,""))))))))))))),IF(B27=B11,IF(B12>1,B12,IF(B13>1,B13,IF(B14>1,B14,IF(B15>1,B15,IF(B16>1,B16,IF(B17>1,B17,IF(B18>1,B18,IF(B19>1,B19,IF(B20>1,B20,IF(B21>1,B21,IF(B22>1,B22,IF(B23>1,B23,"")))))))))))),IF(B27=B12,IF(B13>1,B13,IF(B14>1,B14,IF(B15>1,B15,IF(B16>1,B16,IF(B17>1,B17,IF(B18>1,B18,IF(B19>1,B19,IF(B20>1,B20,IF(B21>1,B21,IF(B22>1,B22,IF(B23>1,B23,""))))))))))),IF(B27=B13,IF(B14>1,B14,IF(B15>1,B15,IF(B16>1,B16,IF(B17>1,B17,IF(B18>1,B18,IF(B19>1,B19,IF(B20>1,B20,IF(B21>1,B21,IF(B22>1,B22,IF(B23>1,B23,"")))))))))),IF(B27=B14,IF(B15>1,B15,IF(B16>1,B16,IF(B17>1,B17,IF(B18>1,B18,IF(B19>1,B19,IF(B20>1,B20,IF(B21>1,B21,IF(B22>1,B22,IF(B23>1,B23,""))))))))),IF(B27=B15,IF(B16>1,B16,IF(B17>1,B17,IF(B18>1,B18,IF(B19>1,B19,IF(B20>1,B20,IF(B21>1,B21,IF(B22>1,B22,IF(B23>1,B23,"")))))))),IF(B27=B16,IF(B17>1,B17,IF(B18>1,B18,IF(B19>1,B19,IF(B20>1,B20,IF(B23>1,B21,IF(B22>1,B22,IF(B23>1,B23,""))))))),IF(B27=B17,IF(B18>1,B18,IF(B19>1,B19,IF(B20>1,B20,IF(B21>1,B21,IF(B22>1,B22,IF(B23>1,B23,"")))))),IF(B27=B18,IF(B19>1,B19,IF(B20>1,B20,IF(B21>1,B21,IF(B22>1,B22,IF(B23>1,B23,""))))),IF(B27=B19,IF(B20>1,B20,IF(B21>1,B21,IF(B22>1,B22,IF(B23>1,B23,"")))),IF(B27=B20,IF(B21>1,B21,IF(B22>1,B22,IF(B23>1,B23,""))),IF(B27=B21,IF(B22>1,B22,IF(B23>1,B23,"")),IF(B27=B22,IF(B23>1,B23,""),"")))))))))))))))))))) ->  | C28: 4 | D28: =IF(D27=D3,IF(D4>1,D4,IF(D5>1,D5,IF(D6>1,D6,IF(D7>1,D7,IF(D8>1,D8,IF(D9>1,D9,IF(D10>1,D10,IF(D11>1,D11,IF(D14>1,D12,IF(D13>1,D13,IF(D14>1,D14,IF(D15>1,D15,IF(D16>1,D16,IF(D19>1,D17,IF(D18>1,D18,IF(D19>1,D19,IF(D20>1,D20,IF(D21>1,D21,IF(D22>1,D22,IF(D23>1,D23,"")))))))))))))))))))),IF(D27=D4,IF(D5>1,D5,IF(D6>1,D6,IF(D7>1,D7,IF(D8>1,D8,IF(D9>1,D9,IF(D10>1,D10,IF(D11>1,D11,IF(D12>1,D12,IF(D13>1,D13,IF(D14>1,D14,IF(D15>1,D15,IF(D16>1,D16,IF(D17>1,D17,IF(D18>1,D18,IF(D19>1,D19,IF(D20>1,D20,IF(D21>1,D21,IF(D22>1,D22,IF(D23>1,D23,""))))))))))))))))))),IF(D27=D5,IF(D6>1,D6,IF(D7>1,D7,IF(D8>1,D8,IF(D9>1,D9,IF(D10>1,D10,IF(D11>1,D11,IF(D12>1,D12,IF(D13>1,D13,IF(D14>1,D14,IF(D15>1,D15,IF(D16>1,D16,IF(D17>1,D17,IF(D18>1,D18,IF(D19>1,D19,IF(D20>1,D20,IF(D21>1,D21,IF(D22>1,D22,IF(D23>1,D23,"")))))))))))))))))),IF(D27=D6,IF(D7>1,D7,IF(D8>1,D8,IF(D9>1,D9,IF(D10>1,D10,IF(D11>1,D11,IF(D12>1,D12,IF(D13>1,D13,IF(D14>1,D14,IF(D15>1,D15,IF(D16>1,D16,IF(D17>1,D17,IF(D18>1,D18,IF(D19>1,D19,IF(D20>1,D20,IF(D21>1,D21,IF(D22>1,D22,IF(D23>1,D23,""))))))))))))))))),IF(D27=D7,IF(D8>1,D8,IF(D9>1,D9,IF(D10>1,D10,IF(D11>1,D11,IF(D12>1,D12,IF(D13>1,D13,IF(D14>1,D14,IF(D15>1,D15,IF(D16>1,D16,IF(D17>1,D17,IF(D18>1,D18,IF(D19>1,D19,IF(D20>1,D20,IF(D21>1,D21,IF(D22>1,D22,IF(D23>1,D23,"")))))))))))))))),IF(D27=D8,IF(D9>1,D9,IF(D10>1,D10,IF(D11>1,D11,IF(D12>1,D12,IF(D13>1,D13,IF(D14>1,D14,IF(D15>1,D15,IF(D16>1,D16,IF(D17>1,D17,IF(D18>1,D18,IF(D19>1,D19,IF(D20>1,D20,IF(D21>1,D21,IF(D22>1,D22,IF(D23>1,D23,""))))))))))))))),IF(D27=D9,IF(D10>1,D10,IF(D11>1,D11,IF(D12>1,D12,IF(D13>1,D13,IF(D14>1,D14,IF(D15>1,D15,IF(D16>1,D16,IF(D17>1,D17,IF(D18>1,D18,IF(D19>1,D19,IF(D20>1,D20,IF(D21>1,D21,IF(D22>1,D22,IF(D23>1,D23,"")))))))))))))),IF(D27=D10,IF(D11>1,D11,IF(D12>1,D12,IF(D13>1,D13,IF(D14>1,D14,IF(D15>1,D15,IF(D16>1,D16,IF(D17>1,D17,IF(D18>1,D18,IF(D19>1,D19,IF(D20>1,D20,IF(D21>1,D21,IF(D22>1,D22,IF(D23>1,D23,""))))))))))))),IF(D27=D11,IF(D12>1,D12,IF(D13>1,D13,IF(D14>1,D14,IF(D15>1,D15,IF(D16>1,D16,IF(D17>1,D17,IF(D18>1,D18,IF(D19>1,D19,IF(D20>1,D20,IF(D21>1,D21,IF(D22>1,D22,IF(D23>1,D23,"")))))))))))),IF(D27=D12,IF(D13>1,D13,IF(D14>1,D14,IF(D15>1,D15,IF(D16>1,D16,IF(D17>1,D17,IF(D18>1,D18,IF(D19>1,D19,IF(D20>1,D20,IF(D21>1,D21,IF(D22>1,D22,IF(D23>1,D23,""))))))))))),IF(D27=D13,IF(D14>1,D14,IF(D15>1,D15,IF(D16>1,D16,IF(D17>1,D17,IF(D18>1,D18,IF(D19>1,D19,IF(D20>1,D20,IF(D21>1,D21,IF(D22>1,D22,IF(D23>1,D23,"")))))))))),IF(D27=D14,IF(D15>1,D15,IF(D16>1,D16,IF(D17>1,D17,IF(D18>1,D18,IF(D19>1,D19,IF(D20>1,D20,IF(D21>1,D21,IF(D22>1,D22,IF(D23>1,D23,""))))))))),IF(D27=D15,IF(D16>1,D16,IF(D17>1,D17,IF(D18>1,D18,IF(D19>1,D19,IF(D20>1,D20,IF(D21>1,D21,IF(D22>1,D22,IF(D23>1,D23,"")))))))),IF(D27=D16,IF(D17>1,D17,IF(D18>1,D18,IF(D19>1,D19,IF(D20>1,D20,IF(D23>1,D21,IF(D22>1,D22,IF(D23>1,D23,""))))))),IF(D27=D17,IF(D18>1,D18,IF(D19>1,D19,IF(D20>1,D20,IF(D21>1,D21,IF(D22>1,D22,IF(D23>1,D23,"")))))),IF(D27=D18,IF(D19>1,D19,IF(D20>1,D20,IF(D21>1,D21,IF(D22>1,D22,IF(D23>1,D23,""))))),IF(D27=D19,IF(D20>1,D20,IF(D21>1,D21,IF(D22>1,D22,IF(D23>1,D23,"")))),IF(D27=D20,IF(D21>1,D21,IF(D22>1,D22,IF(D23>1,D23,""))),IF(D27=D21,IF(D22>1,D22,IF(D23>1,D23,"")),IF(D27=D22,IF(D23>1,D23,""),"")))))))))))))))))))) ->  | E28: 4 | F28: =IF(F27=F3,IF(F4>1,F4,IF(F5>1,F5,IF(F6>1,F6,IF(F7>1,F7,IF(F8>1,F8,IF(F9>1,F9,IF(F10>1,F10,IF(F11>1,F11,IF(F14>1,F12,IF(F13>1,F13,IF(F14>1,F14,IF(F15>1,F15,IF(F16>1,F16,IF(F19>1,F17,IF(F18>1,F18,IF(F19>1,F19,IF(F20>1,F20,IF(F21>1,F21,IF(F22>1,F22,IF(F23>1,F23,"")))))))))))))))))))),IF(F27=F4,IF(F5>1,F5,IF(F6>1,F6,IF(F7>1,F7,IF(F8>1,F8,IF(F9>1,F9,IF(F10>1,F10,IF(F11>1,F11,IF(F12>1,F12,IF(F13>1,F13,IF(F14>1,F14,IF(F15>1,F15,IF(F16>1,F16,IF(F17>1,F17,IF(F18>1,F18,IF(F19>1,F19,IF(F20>1,F20,IF(F21>1,F21,IF(F22>1,F22,IF(F23>1,F23,""))))))))))))))))))),IF(F27=F5,IF(F6>1,F6,IF(F7>1,F7,IF(F8>1,F8,IF(F9>1,F9,IF(F10>1,F10,IF(F11>1,F11,IF(F12>1,F12,IF(F13>1,F13,IF(F14>1,F14,IF(F15>1,F15,IF(F16>1,F16,IF(F17>1,F17,IF(F18>1,F18,IF(F19>1,F19,IF(F20>1,F20,IF(F21>1,F21,IF(F22>1,F22,IF(F23>1,F23,"")))))))))))))))))),IF(F27=F6,IF(F7>1,F7,IF(F8>1,F8,IF(F9>1,F9,IF(F10>1,F10,IF(F11>1,F11,IF(F12>1,F12,IF(F13>1,F13,IF(F14>1,F14,IF(F15>1,F15,IF(F16>1,F16,IF(F17>1,F17,IF(F18>1,F18,IF(F19>1,F19,IF(F20>1,F20,IF(F21>1,F21,IF(F22>1,F22,IF(F23>1,F23,""))))))))))))))))),IF(F27=F7,IF(F8>1,F8,IF(F9>1,F9,IF(F10>1,F10,IF(F11>1,F11,IF(F12>1,F12,IF(F13>1,F13,IF(F14>1,F14,IF(F15>1,F15,IF(F16>1,F16,IF(F17>1,F17,IF(F18>1,F18,IF(F19>1,F19,IF(F20>1,F20,IF(F21>1,F21,IF(F22>1,F22,IF(F23>1,F23,"")))))))))))))))),IF(F27=F8,IF(F9>1,F9,IF(F10>1,F10,IF(F11>1,F11,IF(F12>1,F12,IF(F13>1,F13,IF(F14>1,F14,IF(F15>1,F15,IF(F16>1,F16,IF(F17>1,F17,IF(F18>1,F18,IF(F19>1,F19,IF(F20>1,F20,IF(F21>1,F21,IF(F22>1,F22,IF(F23>1,F23,""))))))))))))))),IF(F27=F9,IF(F10>1,F10,IF(F11>1,F11,IF(F12>1,F12,IF(F13>1,F13,IF(F14>1,F14,IF(F15>1,F15,IF(F16>1,F16,IF(F17>1,F17,IF(F18>1,F18,IF(F19>1,F19,IF(F20>1,F20,IF(F21>1,F21,IF(F22>1,F22,IF(F23>1,F23,"")))))))))))))),IF(F27=F10,IF(F11>1,F11,IF(F12>1,F12,IF(F13>1,F13,IF(F14>1,F14,IF(F15>1,F15,IF(F16>1,F16,IF(F17>1,F17,IF(F18>1,F18,IF(F19>1,F19,IF(F20>1,F20,IF(F21>1,F21,IF(F22>1,F22,IF(F23>1,F23,""))))))))))))),IF(F27=F11,IF(F12>1,F12,IF(F13>1,F13,IF(F14>1,F14,IF(F15>1,F15,IF(F16>1,F16,IF(F17>1,F17,IF(F18>1,F18,IF(F19>1,F19,IF(F20>1,F20,IF(F21>1,F21,IF(F22>1,F22,IF(F23>1,F23,"")))))))))))),IF(F27=F12,IF(F13>1,F13,IF(F14>1,F14,IF(F15>1,F15,IF(F16>1,F16,IF(F17>1,F17,IF(F18>1,F18,IF(F19>1,F19,IF(F20>1,F20,IF(F21>1,F21,IF(F22>1,F22,IF(F23>1,F23,""))))))))))),IF(F27=F13,IF(F14>1,F14,IF(F15>1,F15,IF(F16>1,F16,IF(F17>1,F17,IF(F18>1,F18,IF(F19>1,F19,IF(F20>1,F20,IF(F21>1,F21,IF(F22>1,F22,IF(F23>1,F23,"")))))))))),IF(F27=F14,IF(F15>1,F15,IF(F16>1,F16,IF(F17>1,F17,IF(F18>1,F18,IF(F19>1,F19,IF(F20>1,F20,IF(F21>1,F21,IF(F22>1,F22,IF(F23>1,F23,""))))))))),IF(F27=F15,IF(F16>1,F16,IF(F17>1,F17,IF(F18>1,F18,IF(F19>1,F19,IF(F20>1,F20,IF(F21>1,F21,IF(F22>1,F22,IF(F23>1,F23,"")))))))),IF(F27=F16,IF(F17>1,F17,IF(F18>1,F18,IF(F19>1,F19,IF(F20>1,F20,IF(F23>1,F21,IF(F22>1,F22,IF(F23>1,F23,""))))))),IF(F27=F17,IF(F18>1,F18,IF(F19>1,F19,IF(F20>1,F20,IF(F21>1,F21,IF(F22>1,F22,IF(F23>1,F23,"")))))),IF(F27=F18,IF(F19>1,F19,IF(F20>1,F20,IF(F21>1,F21,IF(F22>1,F22,IF(F23>1,F23,""))))),IF(F27=F19,IF(F20>1,F20,IF(F21>1,F21,IF(F22>1,F22,IF(F23>1,F23,"")))),IF(F27=F20,IF(F21>1,F21,IF(F22>1,F22,IF(F23>1,F23,""))),IF(F27=F21,IF(F22>1,F22,IF(F23>1,F23,"")),IF(F27=F22,IF(F23>1,F23,""),"")))))))))))))))))))) ->  | G28: 4 | H28: =IF(H27=H3,IF(H4>1,H4,IF(H5>1,H5,IF(H6>1,H6,IF(H7>1,H7,IF(H8>1,H8,IF(H9>1,H9,IF(H10>1,H10,IF(H11>1,H11,IF(H14>1,H12,IF(H13>1,H13,IF(H14>1,H14,IF(H15>1,H15,IF(H16>1,H16,IF(H19>1,H17,IF(H18>1,H18,IF(H19>1,H19,IF(H20>1,H20,IF(H21>1,H21,IF(H22>1,H22,IF(H23>1,H23,"")))))))))))))))))))),IF(H27=H4,IF(H5>1,H5,IF(H6>1,H6,IF(H7>1,H7,IF(H8>1,H8,IF(H9>1,H9,IF(H10>1,H10,IF(H11>1,H11,IF(H12>1,H12,IF(H13>1,H13,IF(H14>1,H14,IF(H15>1,H15,IF(H16>1,H16,IF(H17>1,H17,IF(H18>1,H18,IF(H19>1,H19,IF(H20>1,H20,IF(H21>1,H21,IF(H22>1,H22,IF(H23>1,H23,""))))))))))))))))))),IF(H27=H5,IF(H6>1,H6,IF(H7>1,H7,IF(H8>1,H8,IF(H9>1,H9,IF(H10>1,H10,IF(H11>1,H11,IF(H12>1,H12,IF(H13>1,H13,IF(H14>1,H14,IF(H15>1,H15,IF(H16>1,H16,IF(H17>1,H17,IF(H18>1,H18,IF(H19>1,H19,IF(H20>1,H20,IF(H21>1,H21,IF(H22>1,H22,IF(H23>1,H23,"")))))))))))))))))),IF(H27=H6,IF(H7>1,H7,IF(H8>1,H8,IF(H9>1,H9,IF(H10>1,H10,IF(H11>1,H11,IF(H12>1,H12,IF(H13>1,H13,IF(H14>1,H14,IF(H15>1,H15,IF(H16>1,H16,IF(H17>1,H17,IF(H18>1,H18,IF(H19>1,H19,IF(H20>1,H20,IF(H21>1,H21,IF(H22>1,H22,IF(H23>1,H23,""))))))))))))))))),IF(H27=H7,IF(H8>1,H8,IF(H9>1,H9,IF(H10>1,H10,IF(H11>1,H11,IF(H12>1,H12,IF(H13>1,H13,IF(H14>1,H14,IF(H15>1,H15,IF(H16>1,H16,IF(H17>1,H17,IF(H18>1,H18,IF(H19>1,H19,IF(H20>1,H20,IF(H21>1,H21,IF(H22>1,H22,IF(H23>1,H23,"")))))))))))))))),IF(H27=H8,IF(H9>1,H9,IF(H10>1,H10,IF(H11>1,H11,IF(H12>1,H12,IF(H13>1,H13,IF(H14>1,H14,IF(H15>1,H15,IF(H16>1,H16,IF(H17>1,H17,IF(H18>1,H18,IF(H19>1,H19,IF(H20>1,H20,IF(H21>1,H21,IF(H22>1,H22,IF(H23>1,H23,""))))))))))))))),IF(H27=H9,IF(H10>1,H10,IF(H11>1,H11,IF(H12>1,H12,IF(H13>1,H13,IF(H14>1,H14,IF(H15>1,H15,IF(H16>1,H16,IF(H17>1,H17,IF(H18>1,H18,IF(H19>1,H19,IF(H20>1,H20,IF(H21>1,H21,IF(H22>1,H22,IF(H23>1,H23,"")))))))))))))),IF(H27=H10,IF(H11>1,H11,IF(H12>1,H12,IF(H13>1,H13,IF(H14>1,H14,IF(H15>1,H15,IF(H16>1,H16,IF(H17>1,H17,IF(H18>1,H18,IF(H19>1,H19,IF(H20>1,H20,IF(H21>1,H21,IF(H22>1,H22,IF(H23>1,H23,""))))))))))))),IF(H27=H11,IF(H12>1,H12,IF(H13>1,H13,IF(H14>1,H14,IF(H15>1,H15,IF(H16>1,H16,IF(H17>1,H17,IF(H18>1,H18,IF(H19>1,H19,IF(H20>1,H20,IF(H21>1,H21,IF(H22>1,H22,IF(H23>1,H23,"")))))))))))),IF(H27=H12,IF(H13>1,H13,IF(H14>1,H14,IF(H15>1,H15,IF(H16>1,H16,IF(H17>1,H17,IF(H18>1,H18,IF(H19>1,H19,IF(H20>1,H20,IF(H21>1,H21,IF(H22>1,H22,IF(H23>1,H23,""))))))))))),IF(H27=H13,IF(H14>1,H14,IF(H15>1,H15,IF(H16>1,H16,IF(H17>1,H17,IF(H18>1,H18,IF(H19>1,H19,IF(H20>1,H20,IF(H21>1,H21,IF(H22>1,H22,IF(H23>1,H23,"")))))))))),IF(H27=H14,IF(H15>1,H15,IF(H16>1,H16,IF(H17>1,H17,IF(H18>1,H18,IF(H19>1,H19,IF(H20>1,H20,IF(H21>1,H21,IF(H22>1,H22,IF(H23>1,H23,""))))))))),IF(H27=H15,IF(H16>1,H16,IF(H17>1,H17,IF(H18>1,H18,IF(H19>1,H19,IF(H20>1,H20,IF(H21>1,H21,IF(H22>1,H22,IF(H23>1,H23,"")))))))),IF(H27=H16,IF(H17>1,H17,IF(H18>1,H18,IF(H19>1,H19,IF(H20>1,H20,IF(H23>1,H21,IF(H22>1,H22,IF(H23>1,H23,""))))))),IF(H27=H17,IF(H18>1,H18,IF(H19>1,H19,IF(H20>1,H20,IF(H21>1,H21,IF(H22>1,H22,IF(H23>1,H23,"")))))),IF(H27=H18,IF(H19>1,H19,IF(H20>1,H20,IF(H21>1,H21,IF(H22>1,H22,IF(H23>1,H23,""))))),IF(H27=H19,IF(H20>1,H20,IF(H21>1,H21,IF(H22>1,H22,IF(H23>1,H23,"")))),IF(H27=H20,IF(H21>1,H21,IF(H22>1,H22,IF(H23>1,H23,""))),IF(H27=H21,IF(H22>1,H22,IF(H23>1,H23,"")),IF(H27=H22,IF(H23>1,H23,""),"")))))))))))))))))))) -> 
A29: 5 | B29: =IF(B28=B3,IF(B4>1,B4,IF(B5>1,B5,IF(B6>1,B6,IF(B7>1,B7,IF(B8>1,B8,IF(B9>1,B9,IF(B10>1,B10,IF(B11>1,B11,IF(B15>1,B12,IF(B13>1,B13,IF(B14>1,B14,IF(B15>1,B15,IF(B16>1,B16,IF(B20>1,B17,IF(B18>1,B18,IF(B19>1,B19,IF(B20>1,B20,IF(B21>1,B21,IF(B22>1,B22,IF(B23>1,B23,"")))))))))))))))))))),IF(B28=B4,IF(B5>1,B5,IF(B6>1,B6,IF(B7>1,B7,IF(B8>1,B8,IF(B9>1,B9,IF(B10>1,B10,IF(B11>1,B11,IF(B12>1,B12,IF(B13>1,B13,IF(B14>1,B14,IF(B15>1,B15,IF(B16>1,B16,IF(B17>1,B17,IF(B18>1,B18,IF(B19>1,B19,IF(B20>1,B20,IF(B21>1,B21,IF(B22>1,B22,IF(B23>1,B23,""))))))))))))))))))),IF(B28=B5,IF(B6>1,B6,IF(B7>1,B7,IF(B8>1,B8,IF(B9>1,B9,IF(B10>1,B10,IF(B11>1,B11,IF(B12>1,B12,IF(B13>1,B13,IF(B14>1,B14,IF(B15>1,B15,IF(B16>1,B16,IF(B17>1,B17,IF(B18>1,B18,IF(B19>1,B19,IF(B20>1,B20,IF(B21>1,B21,IF(B22>1,B22,IF(B23>1,B23,"")))))))))))))))))),IF(B28=B6,IF(B7>1,B7,IF(B8>1,B8,IF(B9>1,B9,IF(B10>1,B10,IF(B11>1,B11,IF(B12>1,B12,IF(B13>1,B13,IF(B14>1,B14,IF(B15>1,B15,IF(B16>1,B16,IF(B17>1,B17,IF(B18>1,B18,IF(B19>1,B19,IF(B20>1,B20,IF(B21>1,B21,IF(B22>1,B22,IF(B23>1,B23,""))))))))))))))))),IF(B28=B7,IF(B8>1,B8,IF(B9>1,B9,IF(B10>1,B10,IF(B11>1,B11,IF(B12>1,B12,IF(B13>1,B13,IF(B14>1,B14,IF(B15>1,B15,IF(B16>1,B16,IF(B17>1,B17,IF(B18>1,B18,IF(B19>1,B19,IF(B20>1,B20,IF(B21>1,B21,IF(B22>1,B22,IF(B23>1,B23,"")))))))))))))))),IF(B28=B8,IF(B9>1,B9,IF(B10>1,B10,IF(B11>1,B11,IF(B12>1,B12,IF(B13>1,B13,IF(B14>1,B14,IF(B15>1,B15,IF(B16>1,B16,IF(B17>1,B17,IF(B18>1,B18,IF(B19>1,B19,IF(B20>1,B20,IF(B21>1,B21,IF(B22>1,B22,IF(B23>1,B23,""))))))))))))))),IF(B28=B9,IF(B10>1,B10,IF(B11>1,B11,IF(B12>1,B12,IF(B13>1,B13,IF(B14>1,B14,IF(B15>1,B15,IF(B16>1,B16,IF(B17>1,B17,IF(B18>1,B18,IF(B19>1,B19,IF(B20>1,B20,IF(B21>1,B21,IF(B22>1,B22,IF(B23>1,B23,"")))))))))))))),IF(B28=B10,IF(B11>1,B11,IF(B12>1,B12,IF(B13>1,B13,IF(B14>1,B14,IF(B15>1,B15,IF(B16>1,B16,IF(B17>1,B17,IF(B18>1,B18,IF(B19>1,B19,IF(B20>1,B20,IF(B21>1,B21,IF(B22>1,B22,IF(B23>1,B23,""))))))))))))),IF(B28=B11,IF(B12>1,B12,IF(B13>1,B13,IF(B14>1,B14,IF(B15>1,B15,IF(B16>1,B16,IF(B17>1,B17,IF(B18>1,B18,IF(B19>1,B19,IF(B20>1,B20,IF(B21>1,B21,IF(B22>1,B22,IF(B23>1,B23,"")))))))))))),IF(B28=B12,IF(B13>1,B13,IF(B14>1,B14,IF(B15>1,B15,IF(B16>1,B16,IF(B17>1,B17,IF(B18>1,B18,IF(B19>1,B19,IF(B20>1,B20,IF(B21>1,B21,IF(B22>1,B22,IF(B23>1,B23,""))))))))))),IF(B28=B13,IF(B14>1,B14,IF(B15>1,B15,IF(B16>1,B16,IF(B17>1,B17,IF(B18>1,B18,IF(B19>1,B19,IF(B20>1,B20,IF(B21>1,B21,IF(B22>1,B22,IF(B23>1,B23,"")))))))))),IF(B28=B14,IF(B15>1,B15,IF(B16>1,B16,IF(B17>1,B17,IF(B18>1,B18,IF(B19>1,B19,IF(B20>1,B20,IF(B21>1,B21,IF(B22>1,B22,IF(B23>1,B23,""))))))))),IF(B28=B15,IF(B16>1,B16,IF(B17>1,B17,IF(B18>1,B18,IF(B19>1,B19,IF(B20>1,B20,IF(B21>1,B21,IF(B22>1,B22,IF(B23>1,B23,"")))))))),IF(B28=B16,IF(B17>1,B17,IF(B18>1,B18,IF(B19>1,B19,IF(B20>1,B20,IF(B24>1,B21,IF(B22>1,B22,IF(B23>1,B23,""))))))),IF(B28=B17,IF(B18>1,B18,IF(B19>1,B19,IF(B20>1,B20,IF(B21>1,B21,IF(B22>1,B22,IF(B23>1,B23,"")))))),IF(B28=B18,IF(B19>1,B19,IF(B20>1,B20,IF(B21>1,B21,IF(B22>1,B22,IF(B23>1,B23,""))))),IF(B28=B19,IF(B20>1,B20,IF(B21>1,B21,IF(B22>1,B22,IF(B23>1,B23,"")))),IF(B28=B20,IF(B21>1,B21,IF(B22>1,B22,IF(B23>1,B23,""))),IF(B28=B21,IF(B22>1,B22,IF(B23>1,B23,"")),IF(B28=B22,IF(B23>1,B23,""),"")))))))))))))))))))) ->  | C29: 5 | D29: =IF(D28=D3,IF(D4>1,D4,IF(D5>1,D5,IF(D6>1,D6,IF(D7>1,D7,IF(D8>1,D8,IF(D9>1,D9,IF(D10>1,D10,IF(D11>1,D11,IF(D15>1,D12,IF(D13>1,D13,IF(D14>1,D14,IF(D15>1,D15,IF(D16>1,D16,IF(D20>1,D17,IF(D18>1,D18,IF(D19>1,D19,IF(D20>1,D20,IF(D21>1,D21,IF(D22>1,D22,IF(D23>1,D23,"")))))))))))))))))))),IF(D28=D4,IF(D5>1,D5,IF(D6>1,D6,IF(D7>1,D7,IF(D8>1,D8,IF(D9>1,D9,IF(D10>1,D10,IF(D11>1,D11,IF(D12>1,D12,IF(D13>1,D13,IF(D14>1,D14,IF(D15>1,D15,IF(D16>1,D16,IF(D17>1,D17,IF(D18>1,D18,IF(D19>1,D19,IF(D20>1,D20,IF(D21>1,D21,IF(D22>1,D22,IF(D23>1,D23,""))))))))))))))))))),IF(D28=D5,IF(D6>1,D6,IF(D7>1,D7,IF(D8>1,D8,IF(D9>1,D9,IF(D10>1,D10,IF(D11>1,D11,IF(D12>1,D12,IF(D13>1,D13,IF(D14>1,D14,IF(D15>1,D15,IF(D16>1,D16,IF(D17>1,D17,IF(D18>1,D18,IF(D19>1,D19,IF(D20>1,D20,IF(D21>1,D21,IF(D22>1,D22,IF(D23>1,D23,"")))))))))))))))))),IF(D28=D6,IF(D7>1,D7,IF(D8>1,D8,IF(D9>1,D9,IF(D10>1,D10,IF(D11>1,D11,IF(D12>1,D12,IF(D13>1,D13,IF(D14>1,D14,IF(D15>1,D15,IF(D16>1,D16,IF(D17>1,D17,IF(D18>1,D18,IF(D19>1,D19,IF(D20>1,D20,IF(D21>1,D21,IF(D22>1,D22,IF(D23>1,D23,""))))))))))))))))),IF(D28=D7,IF(D8>1,D8,IF(D9>1,D9,IF(D10>1,D10,IF(D11>1,D11,IF(D12>1,D12,IF(D13>1,D13,IF(D14>1,D14,IF(D15>1,D15,IF(D16>1,D16,IF(D17>1,D17,IF(D18>1,D18,IF(D19>1,D19,IF(D20>1,D20,IF(D21>1,D21,IF(D22>1,D22,IF(D23>1,D23,"")))))))))))))))),IF(D28=D8,IF(D9>1,D9,IF(D10>1,D10,IF(D11>1,D11,IF(D12>1,D12,IF(D13>1,D13,IF(D14>1,D14,IF(D15>1,D15,IF(D16>1,D16,IF(D17>1,D17,IF(D18>1,D18,IF(D19>1,D19,IF(D20>1,D20,IF(D21>1,D21,IF(D22>1,D22,IF(D23>1,D23,""))))))))))))))),IF(D28=D9,IF(D10>1,D10,IF(D11>1,D11,IF(D12>1,D12,IF(D13>1,D13,IF(D14>1,D14,IF(D15>1,D15,IF(D16>1,D16,IF(D17>1,D17,IF(D18>1,D18,IF(D19>1,D19,IF(D20>1,D20,IF(D21>1,D21,IF(D22>1,D22,IF(D23>1,D23,"")))))))))))))),IF(D28=D10,IF(D11>1,D11,IF(D12>1,D12,IF(D13>1,D13,IF(D14>1,D14,IF(D15>1,D15,IF(D16>1,D16,IF(D17>1,D17,IF(D18>1,D18,IF(D19>1,D19,IF(D20>1,D20,IF(D21>1,D21,IF(D22>1,D22,IF(D23>1,D23,""))))))))))))),IF(D28=D11,IF(D12>1,D12,IF(D13>1,D13,IF(D14>1,D14,IF(D15>1,D15,IF(D16>1,D16,IF(D17>1,D17,IF(D18>1,D18,IF(D19>1,D19,IF(D20>1,D20,IF(D21>1,D21,IF(D22>1,D22,IF(D23>1,D23,"")))))))))))),IF(D28=D12,IF(D13>1,D13,IF(D14>1,D14,IF(D15>1,D15,IF(D16>1,D16,IF(D17>1,D17,IF(D18>1,D18,IF(D19>1,D19,IF(D20>1,D20,IF(D21>1,D21,IF(D22>1,D22,IF(D23>1,D23,""))))))))))),IF(D28=D13,IF(D14>1,D14,IF(D15>1,D15,IF(D16>1,D16,IF(D17>1,D17,IF(D18>1,D18,IF(D19>1,D19,IF(D20>1,D20,IF(D21>1,D21,IF(D22>1,D22,IF(D23>1,D23,"")))))))))),IF(D28=D14,IF(D15>1,D15,IF(D16>1,D16,IF(D17>1,D17,IF(D18>1,D18,IF(D19>1,D19,IF(D20>1,D20,IF(D21>1,D21,IF(D22>1,D22,IF(D23>1,D23,""))))))))),IF(D28=D15,IF(D16>1,D16,IF(D17>1,D17,IF(D18>1,D18,IF(D19>1,D19,IF(D20>1,D20,IF(D21>1,D21,IF(D22>1,D22,IF(D23>1,D23,"")))))))),IF(D28=D16,IF(D17>1,D17,IF(D18>1,D18,IF(D19>1,D19,IF(D20>1,D20,IF(D24>1,D21,IF(D22>1,D22,IF(D23>1,D23,""))))))),IF(D28=D17,IF(D18>1,D18,IF(D19>1,D19,IF(D20>1,D20,IF(D21>1,D21,IF(D22>1,D22,IF(D23>1,D23,"")))))),IF(D28=D18,IF(D19>1,D19,IF(D20>1,D20,IF(D21>1,D21,IF(D22>1,D22,IF(D23>1,D23,""))))),IF(D28=D19,IF(D20>1,D20,IF(D21>1,D21,IF(D22>1,D22,IF(D23>1,D23,"")))),IF(D28=D20,IF(D21>1,D21,IF(D22>1,D22,IF(D23>1,D23,""))),IF(D28=D21,IF(D22>1,D22,IF(D23>1,D23,"")),IF(D28=D22,IF(D23>1,D23,""),"")))))))))))))))))))) ->  | E29: 5 | F29: =IF(F28=F3,IF(F4>1,F4,IF(F5>1,F5,IF(F6>1,F6,IF(F7>1,F7,IF(F8>1,F8,IF(F9>1,F9,IF(F10>1,F10,IF(F11>1,F11,IF(F15>1,F12,IF(F13>1,F13,IF(F14>1,F14,IF(F15>1,F15,IF(F16>1,F16,IF(F20>1,F17,IF(F18>1,F18,IF(F19>1,F19,IF(F20>1,F20,IF(F21>1,F21,IF(F22>1,F22,IF(F23>1,F23,"")))))))))))))))))))),IF(F28=F4,IF(F5>1,F5,IF(F6>1,F6,IF(F7>1,F7,IF(F8>1,F8,IF(F9>1,F9,IF(F10>1,F10,IF(F11>1,F11,IF(F12>1,F12,IF(F13>1,F13,IF(F14>1,F14,IF(F15>1,F15,IF(F16>1,F16,IF(F17>1,F17,IF(F18>1,F18,IF(F19>1,F19,IF(F20>1,F20,IF(F21>1,F21,IF(F22>1,F22,IF(F23>1,F23,""))))))))))))))))))),IF(F28=F5,IF(F6>1,F6,IF(F7>1,F7,IF(F8>1,F8,IF(F9>1,F9,IF(F10>1,F10,IF(F11>1,F11,IF(F12>1,F12,IF(F13>1,F13,IF(F14>1,F14,IF(F15>1,F15,IF(F16>1,F16,IF(F17>1,F17,IF(F18>1,F18,IF(F19>1,F19,IF(F20>1,F20,IF(F21>1,F21,IF(F22>1,F22,IF(F23>1,F23,"")))))))))))))))))),IF(F28=F6,IF(F7>1,F7,IF(F8>1,F8,IF(F9>1,F9,IF(F10>1,F10,IF(F11>1,F11,IF(F12>1,F12,IF(F13>1,F13,IF(F14>1,F14,IF(F15>1,F15,IF(F16>1,F16,IF(F17>1,F17,IF(F18>1,F18,IF(F19>1,F19,IF(F20>1,F20,IF(F21>1,F21,IF(F22>1,F22,IF(F23>1,F23,""))))))))))))))))),IF(F28=F7,IF(F8>1,F8,IF(F9>1,F9,IF(F10>1,F10,IF(F11>1,F11,IF(F12>1,F12,IF(F13>1,F13,IF(F14>1,F14,IF(F15>1,F15,IF(F16>1,F16,IF(F17>1,F17,IF(F18>1,F18,IF(F19>1,F19,IF(F20>1,F20,IF(F21>1,F21,IF(F22>1,F22,IF(F23>1,F23,"")))))))))))))))),IF(F28=F8,IF(F9>1,F9,IF(F10>1,F10,IF(F11>1,F11,IF(F12>1,F12,IF(F13>1,F13,IF(F14>1,F14,IF(F15>1,F15,IF(F16>1,F16,IF(F17>1,F17,IF(F18>1,F18,IF(F19>1,F19,IF(F20>1,F20,IF(F21>1,F21,IF(F22>1,F22,IF(F23>1,F23,""))))))))))))))),IF(F28=F9,IF(F10>1,F10,IF(F11>1,F11,IF(F12>1,F12,IF(F13>1,F13,IF(F14>1,F14,IF(F15>1,F15,IF(F16>1,F16,IF(F17>1,F17,IF(F18>1,F18,IF(F19>1,F19,IF(F20>1,F20,IF(F21>1,F21,IF(F22>1,F22,IF(F23>1,F23,"")))))))))))))),IF(F28=F10,IF(F11>1,F11,IF(F12>1,F12,IF(F13>1,F13,IF(F14>1,F14,IF(F15>1,F15,IF(F16>1,F16,IF(F17>1,F17,IF(F18>1,F18,IF(F19>1,F19,IF(F20>1,F20,IF(F21>1,F21,IF(F22>1,F22,IF(F23>1,F23,""))))))))))))),IF(F28=F11,IF(F12>1,F12,IF(F13>1,F13,IF(F14>1,F14,IF(F15>1,F15,IF(F16>1,F16,IF(F17>1,F17,IF(F18>1,F18,IF(F19>1,F19,IF(F20>1,F20,IF(F21>1,F21,IF(F22>1,F22,IF(F23>1,F23,"")))))))))))),IF(F28=F12,IF(F13>1,F13,IF(F14>1,F14,IF(F15>1,F15,IF(F16>1,F16,IF(F17>1,F17,IF(F18>1,F18,IF(F19>1,F19,IF(F20>1,F20,IF(F21>1,F21,IF(F22>1,F22,IF(F23>1,F23,""))))))))))),IF(F28=F13,IF(F14>1,F14,IF(F15>1,F15,IF(F16>1,F16,IF(F17>1,F17,IF(F18>1,F18,IF(F19>1,F19,IF(F20>1,F20,IF(F21>1,F21,IF(F22>1,F22,IF(F23>1,F23,"")))))))))),IF(F28=F14,IF(F15>1,F15,IF(F16>1,F16,IF(F17>1,F17,IF(F18>1,F18,IF(F19>1,F19,IF(F20>1,F20,IF(F21>1,F21,IF(F22>1,F22,IF(F23>1,F23,""))))))))),IF(F28=F15,IF(F16>1,F16,IF(F17>1,F17,IF(F18>1,F18,IF(F19>1,F19,IF(F20>1,F20,IF(F21>1,F21,IF(F22>1,F22,IF(F23>1,F23,"")))))))),IF(F28=F16,IF(F17>1,F17,IF(F18>1,F18,IF(F19>1,F19,IF(F20>1,F20,IF(F24>1,F21,IF(F22>1,F22,IF(F23>1,F23,""))))))),IF(F28=F17,IF(F18>1,F18,IF(F19>1,F19,IF(F20>1,F20,IF(F21>1,F21,IF(F22>1,F22,IF(F23>1,F23,"")))))),IF(F28=F18,IF(F19>1,F19,IF(F20>1,F20,IF(F21>1,F21,IF(F22>1,F22,IF(F23>1,F23,""))))),IF(F28=F19,IF(F20>1,F20,IF(F21>1,F21,IF(F22>1,F22,IF(F23>1,F23,"")))),IF(F28=F20,IF(F21>1,F21,IF(F22>1,F22,IF(F23>1,F23,""))),IF(F28=F21,IF(F22>1,F22,IF(F23>1,F23,"")),IF(F28=F22,IF(F23>1,F23,""),"")))))))))))))))))))) ->  | G29: 5 | H29: =IF(H28=H3,IF(H4>1,H4,IF(H5>1,H5,IF(H6>1,H6,IF(H7>1,H7,IF(H8>1,H8,IF(H9>1,H9,IF(H10>1,H10,IF(H11>1,H11,IF(H15>1,H12,IF(H13>1,H13,IF(H14>1,H14,IF(H15>1,H15,IF(H16>1,H16,IF(H20>1,H17,IF(H18>1,H18,IF(H19>1,H19,IF(H20>1,H20,IF(H21>1,H21,IF(H22>1,H22,IF(H23>1,H23,"")))))))))))))))))))),IF(H28=H4,IF(H5>1,H5,IF(H6>1,H6,IF(H7>1,H7,IF(H8>1,H8,IF(H9>1,H9,IF(H10>1,H10,IF(H11>1,H11,IF(H12>1,H12,IF(H13>1,H13,IF(H14>1,H14,IF(H15>1,H15,IF(H16>1,H16,IF(H17>1,H17,IF(H18>1,H18,IF(H19>1,H19,IF(H20>1,H20,IF(H21>1,H21,IF(H22>1,H22,IF(H23>1,H23,""))))))))))))))))))),IF(H28=H5,IF(H6>1,H6,IF(H7>1,H7,IF(H8>1,H8,IF(H9>1,H9,IF(H10>1,H10,IF(H11>1,H11,IF(H12>1,H12,IF(H13>1,H13,IF(H14>1,H14,IF(H15>1,H15,IF(H16>1,H16,IF(H17>1,H17,IF(H18>1,H18,IF(H19>1,H19,IF(H20>1,H20,IF(H21>1,H21,IF(H22>1,H22,IF(H23>1,H23,"")))))))))))))))))),IF(H28=H6,IF(H7>1,H7,IF(H8>1,H8,IF(H9>1,H9,IF(H10>1,H10,IF(H11>1,H11,IF(H12>1,H12,IF(H13>1,H13,IF(H14>1,H14,IF(H15>1,H15,IF(H16>1,H16,IF(H17>1,H17,IF(H18>1,H18,IF(H19>1,H19,IF(H20>1,H20,IF(H21>1,H21,IF(H22>1,H22,IF(H23>1,H23,""))))))))))))))))),IF(H28=H7,IF(H8>1,H8,IF(H9>1,H9,IF(H10>1,H10,IF(H11>1,H11,IF(H12>1,H12,IF(H13>1,H13,IF(H14>1,H14,IF(H15>1,H15,IF(H16>1,H16,IF(H17>1,H17,IF(H18>1,H18,IF(H19>1,H19,IF(H20>1,H20,IF(H21>1,H21,IF(H22>1,H22,IF(H23>1,H23,"")))))))))))))))),IF(H28=H8,IF(H9>1,H9,IF(H10>1,H10,IF(H11>1,H11,IF(H12>1,H12,IF(H13>1,H13,IF(H14>1,H14,IF(H15>1,H15,IF(H16>1,H16,IF(H17>1,H17,IF(H18>1,H18,IF(H19>1,H19,IF(H20>1,H20,IF(H21>1,H21,IF(H22>1,H22,IF(H23>1,H23,""))))))))))))))),IF(H28=H9,IF(H10>1,H10,IF(H11>1,H11,IF(H12>1,H12,IF(H13>1,H13,IF(H14>1,H14,IF(H15>1,H15,IF(H16>1,H16,IF(H17>1,H17,IF(H18>1,H18,IF(H19>1,H19,IF(H20>1,H20,IF(H21>1,H21,IF(H22>1,H22,IF(H23>1,H23,"")))))))))))))),IF(H28=H10,IF(H11>1,H11,IF(H12>1,H12,IF(H13>1,H13,IF(H14>1,H14,IF(H15>1,H15,IF(H16>1,H16,IF(H17>1,H17,IF(H18>1,H18,IF(H19>1,H19,IF(H20>1,H20,IF(H21>1,H21,IF(H22>1,H22,IF(H23>1,H23,""))))))))))))),IF(H28=H11,IF(H12>1,H12,IF(H13>1,H13,IF(H14>1,H14,IF(H15>1,H15,IF(H16>1,H16,IF(H17>1,H17,IF(H18>1,H18,IF(H19>1,H19,IF(H20>1,H20,IF(H21>1,H21,IF(H22>1,H22,IF(H23>1,H23,"")))))))))))),IF(H28=H12,IF(H13>1,H13,IF(H14>1,H14,IF(H15>1,H15,IF(H16>1,H16,IF(H17>1,H17,IF(H18>1,H18,IF(H19>1,H19,IF(H20>1,H20,IF(H21>1,H21,IF(H22>1,H22,IF(H23>1,H23,""))))))))))),IF(H28=H13,IF(H14>1,H14,IF(H15>1,H15,IF(H16>1,H16,IF(H17>1,H17,IF(H18>1,H18,IF(H19>1,H19,IF(H20>1,H20,IF(H21>1,H21,IF(H22>1,H22,IF(H23>1,H23,"")))))))))),IF(H28=H14,IF(H15>1,H15,IF(H16>1,H16,IF(H17>1,H17,IF(H18>1,H18,IF(H19>1,H19,IF(H20>1,H20,IF(H21>1,H21,IF(H22>1,H22,IF(H23>1,H23,""))))))))),IF(H28=H15,IF(H16>1,H16,IF(H17>1,H17,IF(H18>1,H18,IF(H19>1,H19,IF(H20>1,H20,IF(H21>1,H21,IF(H22>1,H22,IF(H23>1,H23,"")))))))),IF(H28=H16,IF(H17>1,H17,IF(H18>1,H18,IF(H19>1,H19,IF(H20>1,H20,IF(H24>1,H21,IF(H22>1,H22,IF(H23>1,H23,""))))))),IF(H28=H17,IF(H18>1,H18,IF(H19>1,H19,IF(H20>1,H20,IF(H21>1,H21,IF(H22>1,H22,IF(H23>1,H23,"")))))),IF(H28=H18,IF(H19>1,H19,IF(H20>1,H20,IF(H21>1,H21,IF(H22>1,H22,IF(H23>1,H23,""))))),IF(H28=H19,IF(H20>1,H20,IF(H21>1,H21,IF(H22>1,H22,IF(H23>1,H23,"")))),IF(H28=H20,IF(H21>1,H21,IF(H22>1,H22,IF(H23>1,H23,""))),IF(H28=H21,IF(H22>1,H22,IF(H23>1,H23,"")),IF(H28=H22,IF(H23>1,H23,""),"")))))))))))))))))))) -> 
A30: 6 | B30: =IF(B29=B3,IF(B4>1,B4,IF(B5>1,B5,IF(B6>1,B6,IF(B7>1,B7,IF(B8>1,B8,IF(B9>1,B9,IF(B10>1,B10,IF(B11>1,B11,IF(B16>1,B12,IF(B13>1,B13,IF(B14>1,B14,IF(B15>1,B15,IF(B16>1,B16,IF(B21>1,B17,IF(B18>1,B18,IF(B19>1,B19,IF(B20>1,B20,IF(B21>1,B21,IF(B22>1,B22,IF(B23>1,B23,"")))))))))))))))))))),IF(B29=B4,IF(B5>1,B5,IF(B6>1,B6,IF(B7>1,B7,IF(B8>1,B8,IF(B9>1,B9,IF(B10>1,B10,IF(B11>1,B11,IF(B12>1,B12,IF(B13>1,B13,IF(B14>1,B14,IF(B15>1,B15,IF(B16>1,B16,IF(B17>1,B17,IF(B18>1,B18,IF(B19>1,B19,IF(B20>1,B20,IF(B21>1,B21,IF(B22>1,B22,IF(B23>1,B23,""))))))))))))))))))),IF(B29=B5,IF(B6>1,B6,IF(B7>1,B7,IF(B8>1,B8,IF(B9>1,B9,IF(B10>1,B10,IF(B11>1,B11,IF(B12>1,B12,IF(B13>1,B13,IF(B14>1,B14,IF(B15>1,B15,IF(B16>1,B16,IF(B17>1,B17,IF(B18>1,B18,IF(B19>1,B19,IF(B20>1,B20,IF(B21>1,B21,IF(B22>1,B22,IF(B23>1,B23,"")))))))))))))))))),IF(B29=B6,IF(B7>1,B7,IF(B8>1,B8,IF(B9>1,B9,IF(B10>1,B10,IF(B11>1,B11,IF(B12>1,B12,IF(B13>1,B13,IF(B14>1,B14,IF(B15>1,B15,IF(B16>1,B16,IF(B17>1,B17,IF(B18>1,B18,IF(B19>1,B19,IF(B20>1,B20,IF(B21>1,B21,IF(B22>1,B22,IF(B23>1,B23,""))))))))))))))))),IF(B29=B7,IF(B8>1,B8,IF(B9>1,B9,IF(B10>1,B10,IF(B11>1,B11,IF(B12>1,B12,IF(B13>1,B13,IF(B14>1,B14,IF(B15>1,B15,IF(B16>1,B16,IF(B17>1,B17,IF(B18>1,B18,IF(B19>1,B19,IF(B20>1,B20,IF(B21>1,B21,IF(B22>1,B22,IF(B23>1,B23,"")))))))))))))))),IF(B29=B8,IF(B9>1,B9,IF(B10>1,B10,IF(B11>1,B11,IF(B12>1,B12,IF(B13>1,B13,IF(B14>1,B14,IF(B15>1,B15,IF(B16>1,B16,IF(B17>1,B17,IF(B18>1,B18,IF(B19>1,B19,IF(B20>1,B20,IF(B21>1,B21,IF(B22>1,B22,IF(B23>1,B23,""))))))))))))))),IF(B29=B9,IF(B10>1,B10,IF(B11>1,B11,IF(B12>1,B12,IF(B13>1,B13,IF(B14>1,B14,IF(B15>1,B15,IF(B16>1,B16,IF(B17>1,B17,IF(B18>1,B18,IF(B19>1,B19,IF(B20>1,B20,IF(B21>1,B21,IF(B22>1,B22,IF(B23>1,B23,"")))))))))))))),IF(B29=B10,IF(B11>1,B11,IF(B12>1,B12,IF(B13>1,B13,IF(B14>1,B14,IF(B15>1,B15,IF(B16>1,B16,IF(B17>1,B17,IF(B18>1,B18,IF(B19>1,B19,IF(B20>1,B20,IF(B21>1,B21,IF(B22>1,B22,IF(B23>1,B23,""))))))))))))),IF(B29=B11,IF(B12>1,B12,IF(B13>1,B13,IF(B14>1,B14,IF(B15>1,B15,IF(B16>1,B16,IF(B17>1,B17,IF(B18>1,B18,IF(B19>1,B19,IF(B20>1,B20,IF(B21>1,B21,IF(B22>1,B22,IF(B23>1,B23,"")))))))))))),IF(B29=B12,IF(B13>1,B13,IF(B14>1,B14,IF(B15>1,B15,IF(B16>1,B16,IF(B17>1,B17,IF(B18>1,B18,IF(B19>1,B19,IF(B20>1,B20,IF(B21>1,B21,IF(B22>1,B22,IF(B23>1,B23,""))))))))))),IF(B29=B13,IF(B14>1,B14,IF(B15>1,B15,IF(B16>1,B16,IF(B17>1,B17,IF(B18>1,B18,IF(B19>1,B19,IF(B20>1,B20,IF(B21>1,B21,IF(B22>1,B22,IF(B23>1,B23,"")))))))))),IF(B29=B14,IF(B15>1,B15,IF(B16>1,B16,IF(B17>1,B17,IF(B18>1,B18,IF(B19>1,B19,IF(B20>1,B20,IF(B21>1,B21,IF(B22>1,B22,IF(B23>1,B23,""))))))))),IF(B29=B15,IF(B16>1,B16,IF(B17>1,B17,IF(B18>1,B18,IF(B19>1,B19,IF(B20>1,B20,IF(B21>1,B21,IF(B22>1,B22,IF(B23>1,B23,"")))))))),IF(B29=B16,IF(B17>1,B17,IF(B18>1,B18,IF(B19>1,B19,IF(B20>1,B20,IF(B25>1,B21,IF(B22>1,B22,IF(B23>1,B23,""))))))),IF(B29=B17,IF(B18>1,B18,IF(B19>1,B19,IF(B20>1,B20,IF(B21>1,B21,IF(B22>1,B22,IF(B23>1,B23,"")))))),IF(B29=B18,IF(B19>1,B19,IF(B20>1,B20,IF(B21>1,B21,IF(B22>1,B22,IF(B23>1,B23,""))))),IF(B29=B19,IF(B20>1,B20,IF(B21>1,B21,IF(B22>1,B22,IF(B23>1,B23,"")))),IF(B29=B20,IF(B21>1,B21,IF(B22>1,B22,IF(B23>1,B23,""))),IF(B29=B21,IF(B22>1,B22,IF(B23>1,B23,"")),IF(B29=B22,IF(B23>1,B23,""),"")))))))))))))))))))) ->  | C30: 6 | D30: =IF(D29=D3,IF(D4>1,D4,IF(D5>1,D5,IF(D6>1,D6,IF(D7>1,D7,IF(D8>1,D8,IF(D9>1,D9,IF(D10>1,D10,IF(D11>1,D11,IF(D16>1,D12,IF(D13>1,D13,IF(D14>1,D14,IF(D15>1,D15,IF(D16>1,D16,IF(D21>1,D17,IF(D18>1,D18,IF(D19>1,D19,IF(D20>1,D20,IF(D21>1,D21,IF(D22>1,D22,IF(D23>1,D23,"")))))))))))))))))))),IF(D29=D4,IF(D5>1,D5,IF(D6>1,D6,IF(D7>1,D7,IF(D8>1,D8,IF(D9>1,D9,IF(D10>1,D10,IF(D11>1,D11,IF(D12>1,D12,IF(D13>1,D13,IF(D14>1,D14,IF(D15>1,D15,IF(D16>1,D16,IF(D17>1,D17,IF(D18>1,D18,IF(D19>1,D19,IF(D20>1,D20,IF(D21>1,D21,IF(D22>1,D22,IF(D23>1,D23,""))))))))))))))))))),IF(D29=D5,IF(D6>1,D6,IF(D7>1,D7,IF(D8>1,D8,IF(D9>1,D9,IF(D10>1,D10,IF(D11>1,D11,IF(D12>1,D12,IF(D13>1,D13,IF(D14>1,D14,IF(D15>1,D15,IF(D16>1,D16,IF(D17>1,D17,IF(D18>1,D18,IF(D19>1,D19,IF(D20>1,D20,IF(D21>1,D21,IF(D22>1,D22,IF(D23>1,D23,"")))))))))))))))))),IF(D29=D6,IF(D7>1,D7,IF(D8>1,D8,IF(D9>1,D9,IF(D10>1,D10,IF(D11>1,D11,IF(D12>1,D12,IF(D13>1,D13,IF(D14>1,D14,IF(D15>1,D15,IF(D16>1,D16,IF(D17>1,D17,IF(D18>1,D18,IF(D19>1,D19,IF(D20>1,D20,IF(D21>1,D21,IF(D22>1,D22,IF(D23>1,D23,""))))))))))))))))),IF(D29=D7,IF(D8>1,D8,IF(D9>1,D9,IF(D10>1,D10,IF(D11>1,D11,IF(D12>1,D12,IF(D13>1,D13,IF(D14>1,D14,IF(D15>1,D15,IF(D16>1,D16,IF(D17>1,D17,IF(D18>1,D18,IF(D19>1,D19,IF(D20>1,D20,IF(D21>1,D21,IF(D22>1,D22,IF(D23>1,D23,"")))))))))))))))),IF(D29=D8,IF(D9>1,D9,IF(D10>1,D10,IF(D11>1,D11,IF(D12>1,D12,IF(D13>1,D13,IF(D14>1,D14,IF(D15>1,D15,IF(D16>1,D16,IF(D17>1,D17,IF(D18>1,D18,IF(D19>1,D19,IF(D20>1,D20,IF(D21>1,D21,IF(D22>1,D22,IF(D23>1,D23,""))))))))))))))),IF(D29=D9,IF(D10>1,D10,IF(D11>1,D11,IF(D12>1,D12,IF(D13>1,D13,IF(D14>1,D14,IF(D15>1,D15,IF(D16>1,D16,IF(D17>1,D17,IF(D18>1,D18,IF(D19>1,D19,IF(D20>1,D20,IF(D21>1,D21,IF(D22>1,D22,IF(D23>1,D23,"")))))))))))))),IF(D29=D10,IF(D11>1,D11,IF(D12>1,D12,IF(D13>1,D13,IF(D14>1,D14,IF(D15>1,D15,IF(D16>1,D16,IF(D17>1,D17,IF(D18>1,D18,IF(D19>1,D19,IF(D20>1,D20,IF(D21>1,D21,IF(D22>1,D22,IF(D23>1,D23,""))))))))))))),IF(D29=D11,IF(D12>1,D12,IF(D13>1,D13,IF(D14>1,D14,IF(D15>1,D15,IF(D16>1,D16,IF(D17>1,D17,IF(D18>1,D18,IF(D19>1,D19,IF(D20>1,D20,IF(D21>1,D21,IF(D22>1,D22,IF(D23>1,D23,"")))))))))))),IF(D29=D12,IF(D13>1,D13,IF(D14>1,D14,IF(D15>1,D15,IF(D16>1,D16,IF(D17>1,D17,IF(D18>1,D18,IF(D19>1,D19,IF(D20>1,D20,IF(D21>1,D21,IF(D22>1,D22,IF(D23>1,D23,""))))))))))),IF(D29=D13,IF(D14>1,D14,IF(D15>1,D15,IF(D16>1,D16,IF(D17>1,D17,IF(D18>1,D18,IF(D19>1,D19,IF(D20>1,D20,IF(D21>1,D21,IF(D22>1,D22,IF(D23>1,D23,"")))))))))),IF(D29=D14,IF(D15>1,D15,IF(D16>1,D16,IF(D17>1,D17,IF(D18>1,D18,IF(D19>1,D19,IF(D20>1,D20,IF(D21>1,D21,IF(D22>1,D22,IF(D23>1,D23,""))))))))),IF(D29=D15,IF(D16>1,D16,IF(D17>1,D17,IF(D18>1,D18,IF(D19>1,D19,IF(D20>1,D20,IF(D21>1,D21,IF(D22>1,D22,IF(D23>1,D23,"")))))))),IF(D29=D16,IF(D17>1,D17,IF(D18>1,D18,IF(D19>1,D19,IF(D20>1,D20,IF(D25>1,D21,IF(D22>1,D22,IF(D23>1,D23,""))))))),IF(D29=D17,IF(D18>1,D18,IF(D19>1,D19,IF(D20>1,D20,IF(D21>1,D21,IF(D22>1,D22,IF(D23>1,D23,"")))))),IF(D29=D18,IF(D19>1,D19,IF(D20>1,D20,IF(D21>1,D21,IF(D22>1,D22,IF(D23>1,D23,""))))),IF(D29=D19,IF(D20>1,D20,IF(D21>1,D21,IF(D22>1,D22,IF(D23>1,D23,"")))),IF(D29=D20,IF(D21>1,D21,IF(D22>1,D22,IF(D23>1,D23,""))),IF(D29=D21,IF(D22>1,D22,IF(D23>1,D23,"")),IF(D29=D22,IF(D23>1,D23,""),"")))))))))))))))))))) ->  | E30: 6 | F30: =IF(F29=F3,IF(F4>1,F4,IF(F5>1,F5,IF(F6>1,F6,IF(F7>1,F7,IF(F8>1,F8,IF(F9>1,F9,IF(F10>1,F10,IF(F11>1,F11,IF(F16>1,F12,IF(F13>1,F13,IF(F14>1,F14,IF(F15>1,F15,IF(F16>1,F16,IF(F21>1,F17,IF(F18>1,F18,IF(F19>1,F19,IF(F20>1,F20,IF(F21>1,F21,IF(F22>1,F22,IF(F23>1,F23,"")))))))))))))))))))),IF(F29=F4,IF(F5>1,F5,IF(F6>1,F6,IF(F7>1,F7,IF(F8>1,F8,IF(F9>1,F9,IF(F10>1,F10,IF(F11>1,F11,IF(F12>1,F12,IF(F13>1,F13,IF(F14>1,F14,IF(F15>1,F15,IF(F16>1,F16,IF(F17>1,F17,IF(F18>1,F18,IF(F19>1,F19,IF(F20>1,F20,IF(F21>1,F21,IF(F22>1,F22,IF(F23>1,F23,""))))))))))))))))))),IF(F29=F5,IF(F6>1,F6,IF(F7>1,F7,IF(F8>1,F8,IF(F9>1,F9,IF(F10>1,F10,IF(F11>1,F11,IF(F12>1,F12,IF(F13>1,F13,IF(F14>1,F14,IF(F15>1,F15,IF(F16>1,F16,IF(F17>1,F17,IF(F18>1,F18,IF(F19>1,F19,IF(F20>1,F20,IF(F21>1,F21,IF(F22>1,F22,IF(F23>1,F23,"")))))))))))))))))),IF(F29=F6,IF(F7>1,F7,IF(F8>1,F8,IF(F9>1,F9,IF(F10>1,F10,IF(F11>1,F11,IF(F12>1,F12,IF(F13>1,F13,IF(F14>1,F14,IF(F15>1,F15,IF(F16>1,F16,IF(F17>1,F17,IF(F18>1,F18,IF(F19>1,F19,IF(F20>1,F20,IF(F21>1,F21,IF(F22>1,F22,IF(F23>1,F23,""))))))))))))))))),IF(F29=F7,IF(F8>1,F8,IF(F9>1,F9,IF(F10>1,F10,IF(F11>1,F11,IF(F12>1,F12,IF(F13>1,F13,IF(F14>1,F14,IF(F15>1,F15,IF(F16>1,F16,IF(F17>1,F17,IF(F18>1,F18,IF(F19>1,F19,IF(F20>1,F20,IF(F21>1,F21,IF(F22>1,F22,IF(F23>1,F23,"")))))))))))))))),IF(F29=F8,IF(F9>1,F9,IF(F10>1,F10,IF(F11>1,F11,IF(F12>1,F12,IF(F13>1,F13,IF(F14>1,F14,IF(F15>1,F15,IF(F16>1,F16,IF(F17>1,F17,IF(F18>1,F18,IF(F19>1,F19,IF(F20>1,F20,IF(F21>1,F21,IF(F22>1,F22,IF(F23>1,F23,""))))))))))))))),IF(F29=F9,IF(F10>1,F10,IF(F11>1,F11,IF(F12>1,F12,IF(F13>1,F13,IF(F14>1,F14,IF(F15>1,F15,IF(F16>1,F16,IF(F17>1,F17,IF(F18>1,F18,IF(F19>1,F19,IF(F20>1,F20,IF(F21>1,F21,IF(F22>1,F22,IF(F23>1,F23,"")))))))))))))),IF(F29=F10,IF(F11>1,F11,IF(F12>1,F12,IF(F13>1,F13,IF(F14>1,F14,IF(F15>1,F15,IF(F16>1,F16,IF(F17>1,F17,IF(F18>1,F18,IF(F19>1,F19,IF(F20>1,F20,IF(F21>1,F21,IF(F22>1,F22,IF(F23>1,F23,""))))))))))))),IF(F29=F11,IF(F12>1,F12,IF(F13>1,F13,IF(F14>1,F14,IF(F15>1,F15,IF(F16>1,F16,IF(F17>1,F17,IF(F18>1,F18,IF(F19>1,F19,IF(F20>1,F20,IF(F21>1,F21,IF(F22>1,F22,IF(F23>1,F23,"")))))))))))),IF(F29=F12,IF(F13>1,F13,IF(F14>1,F14,IF(F15>1,F15,IF(F16>1,F16,IF(F17>1,F17,IF(F18>1,F18,IF(F19>1,F19,IF(F20>1,F20,IF(F21>1,F21,IF(F22>1,F22,IF(F23>1,F23,""))))))))))),IF(F29=F13,IF(F14>1,F14,IF(F15>1,F15,IF(F16>1,F16,IF(F17>1,F17,IF(F18>1,F18,IF(F19>1,F19,IF(F20>1,F20,IF(F21>1,F21,IF(F22>1,F22,IF(F23>1,F23,"")))))))))),IF(F29=F14,IF(F15>1,F15,IF(F16>1,F16,IF(F17>1,F17,IF(F18>1,F18,IF(F19>1,F19,IF(F20>1,F20,IF(F21>1,F21,IF(F22>1,F22,IF(F23>1,F23,""))))))))),IF(F29=F15,IF(F16>1,F16,IF(F17>1,F17,IF(F18>1,F18,IF(F19>1,F19,IF(F20>1,F20,IF(F21>1,F21,IF(F22>1,F22,IF(F23>1,F23,"")))))))),IF(F29=F16,IF(F17>1,F17,IF(F18>1,F18,IF(F19>1,F19,IF(F20>1,F20,IF(F25>1,F21,IF(F22>1,F22,IF(F23>1,F23,""))))))),IF(F29=F17,IF(F18>1,F18,IF(F19>1,F19,IF(F20>1,F20,IF(F21>1,F21,IF(F22>1,F22,IF(F23>1,F23,"")))))),IF(F29=F18,IF(F19>1,F19,IF(F20>1,F20,IF(F21>1,F21,IF(F22>1,F22,IF(F23>1,F23,""))))),IF(F29=F19,IF(F20>1,F20,IF(F21>1,F21,IF(F22>1,F22,IF(F23>1,F23,"")))),IF(F29=F20,IF(F21>1,F21,IF(F22>1,F22,IF(F23>1,F23,""))),IF(F29=F21,IF(F22>1,F22,IF(F23>1,F23,"")),IF(F29=F22,IF(F23>1,F23,""),"")))))))))))))))))))) ->  | G30: 6 | H30: =IF(H29=H3,IF(H4>1,H4,IF(H5>1,H5,IF(H6>1,H6,IF(H7>1,H7,IF(H8>1,H8,IF(H9>1,H9,IF(H10>1,H10,IF(H11>1,H11,IF(H16>1,H12,IF(H13>1,H13,IF(H14>1,H14,IF(H15>1,H15,IF(H16>1,H16,IF(H21>1,H17,IF(H18>1,H18,IF(H19>1,H19,IF(H20>1,H20,IF(H21>1,H21,IF(H22>1,H22,IF(H23>1,H23,"")))))))))))))))))))),IF(H29=H4,IF(H5>1,H5,IF(H6>1,H6,IF(H7>1,H7,IF(H8>1,H8,IF(H9>1,H9,IF(H10>1,H10,IF(H11>1,H11,IF(H12>1,H12,IF(H13>1,H13,IF(H14>1,H14,IF(H15>1,H15,IF(H16>1,H16,IF(H17>1,H17,IF(H18>1,H18,IF(H19>1,H19,IF(H20>1,H20,IF(H21>1,H21,IF(H22>1,H22,IF(H23>1,H23,""))))))))))))))))))),IF(H29=H5,IF(H6>1,H6,IF(H7>1,H7,IF(H8>1,H8,IF(H9>1,H9,IF(H10>1,H10,IF(H11>1,H11,IF(H12>1,H12,IF(H13>1,H13,IF(H14>1,H14,IF(H15>1,H15,IF(H16>1,H16,IF(H17>1,H17,IF(H18>1,H18,IF(H19>1,H19,IF(H20>1,H20,IF(H21>1,H21,IF(H22>1,H22,IF(H23>1,H23,"")))))))))))))))))),IF(H29=H6,IF(H7>1,H7,IF(H8>1,H8,IF(H9>1,H9,IF(H10>1,H10,IF(H11>1,H11,IF(H12>1,H12,IF(H13>1,H13,IF(H14>1,H14,IF(H15>1,H15,IF(H16>1,H16,IF(H17>1,H17,IF(H18>1,H18,IF(H19>1,H19,IF(H20>1,H20,IF(H21>1,H21,IF(H22>1,H22,IF(H23>1,H23,""))))))))))))))))),IF(H29=H7,IF(H8>1,H8,IF(H9>1,H9,IF(H10>1,H10,IF(H11>1,H11,IF(H12>1,H12,IF(H13>1,H13,IF(H14>1,H14,IF(H15>1,H15,IF(H16>1,H16,IF(H17>1,H17,IF(H18>1,H18,IF(H19>1,H19,IF(H20>1,H20,IF(H21>1,H21,IF(H22>1,H22,IF(H23>1,H23,"")))))))))))))))),IF(H29=H8,IF(H9>1,H9,IF(H10>1,H10,IF(H11>1,H11,IF(H12>1,H12,IF(H13>1,H13,IF(H14>1,H14,IF(H15>1,H15,IF(H16>1,H16,IF(H17>1,H17,IF(H18>1,H18,IF(H19>1,H19,IF(H20>1,H20,IF(H21>1,H21,IF(H22>1,H22,IF(H23>1,H23,""))))))))))))))),IF(H29=H9,IF(H10>1,H10,IF(H11>1,H11,IF(H12>1,H12,IF(H13>1,H13,IF(H14>1,H14,IF(H15>1,H15,IF(H16>1,H16,IF(H17>1,H17,IF(H18>1,H18,IF(H19>1,H19,IF(H20>1,H20,IF(H21>1,H21,IF(H22>1,H22,IF(H23>1,H23,"")))))))))))))),IF(H29=H10,IF(H11>1,H11,IF(H12>1,H12,IF(H13>1,H13,IF(H14>1,H14,IF(H15>1,H15,IF(H16>1,H16,IF(H17>1,H17,IF(H18>1,H18,IF(H19>1,H19,IF(H20>1,H20,IF(H21>1,H21,IF(H22>1,H22,IF(H23>1,H23,""))))))))))))),IF(H29=H11,IF(H12>1,H12,IF(H13>1,H13,IF(H14>1,H14,IF(H15>1,H15,IF(H16>1,H16,IF(H17>1,H17,IF(H18>1,H18,IF(H19>1,H19,IF(H20>1,H20,IF(H21>1,H21,IF(H22>1,H22,IF(H23>1,H23,"")))))))))))),IF(H29=H12,IF(H13>1,H13,IF(H14>1,H14,IF(H15>1,H15,IF(H16>1,H16,IF(H17>1,H17,IF(H18>1,H18,IF(H19>1,H19,IF(H20>1,H20,IF(H21>1,H21,IF(H22>1,H22,IF(H23>1,H23,""))))))))))),IF(H29=H13,IF(H14>1,H14,IF(H15>1,H15,IF(H16>1,H16,IF(H17>1,H17,IF(H18>1,H18,IF(H19>1,H19,IF(H20>1,H20,IF(H21>1,H21,IF(H22>1,H22,IF(H23>1,H23,"")))))))))),IF(H29=H14,IF(H15>1,H15,IF(H16>1,H16,IF(H17>1,H17,IF(H18>1,H18,IF(H19>1,H19,IF(H20>1,H20,IF(H21>1,H21,IF(H22>1,H22,IF(H23>1,H23,""))))))))),IF(H29=H15,IF(H16>1,H16,IF(H17>1,H17,IF(H18>1,H18,IF(H19>1,H19,IF(H20>1,H20,IF(H21>1,H21,IF(H22>1,H22,IF(H23>1,H23,"")))))))),IF(H29=H16,IF(H17>1,H17,IF(H18>1,H18,IF(H19>1,H19,IF(H20>1,H20,IF(H25>1,H21,IF(H22>1,H22,IF(H23>1,H23,""))))))),IF(H29=H17,IF(H18>1,H18,IF(H19>1,H19,IF(H20>1,H20,IF(H21>1,H21,IF(H22>1,H22,IF(H23>1,H23,"")))))),IF(H29=H18,IF(H19>1,H19,IF(H20>1,H20,IF(H21>1,H21,IF(H22>1,H22,IF(H23>1,H23,""))))),IF(H29=H19,IF(H20>1,H20,IF(H21>1,H21,IF(H22>1,H22,IF(H23>1,H23,"")))),IF(H29=H20,IF(H21>1,H21,IF(H22>1,H22,IF(H23>1,H23,""))),IF(H29=H21,IF(H22>1,H22,IF(H23>1,H23,"")),IF(H29=H22,IF(H23>1,H23,""),"")))))))))))))))))))) -> 0
A31: 7 | B31: =IF(B30=B3,IF(B4>1,B4,IF(B5>1,B5,IF(B6>1,B6,IF(B7>1,B7,IF(B8>1,B8,IF(B9>1,B9,IF(B10>1,B10,IF(B11>1,B11,IF(B17>1,B12,IF(B13>1,B13,IF(B14>1,B14,IF(B15>1,B15,IF(B16>1,B16,IF(B22>1,B17,IF(B18>1,B18,IF(B19>1,B19,IF(B20>1,B20,IF(B21>1,B21,IF(B22>1,B22,IF(B23>1,B23,"")))))))))))))))))))),IF(B30=B4,IF(B5>1,B5,IF(B6>1,B6,IF(B7>1,B7,IF(B8>1,B8,IF(B9>1,B9,IF(B10>1,B10,IF(B11>1,B11,IF(B12>1,B12,IF(B13>1,B13,IF(B14>1,B14,IF(B15>1,B15,IF(B16>1,B16,IF(B17>1,B17,IF(B18>1,B18,IF(B19>1,B19,IF(B20>1,B20,IF(B21>1,B21,IF(B22>1,B22,IF(B23>1,B23,""))))))))))))))))))),IF(B30=B5,IF(B6>1,B6,IF(B7>1,B7,IF(B8>1,B8,IF(B9>1,B9,IF(B10>1,B10,IF(B11>1,B11,IF(B12>1,B12,IF(B13>1,B13,IF(B14>1,B14,IF(B15>1,B15,IF(B16>1,B16,IF(B17>1,B17,IF(B18>1,B18,IF(B19>1,B19,IF(B20>1,B20,IF(B21>1,B21,IF(B22>1,B22,IF(B23>1,B23,"")))))))))))))))))),IF(B30=B6,IF(B7>1,B7,IF(B8>1,B8,IF(B9>1,B9,IF(B10>1,B10,IF(B11>1,B11,IF(B12>1,B12,IF(B13>1,B13,IF(B14>1,B14,IF(B15>1,B15,IF(B16>1,B16,IF(B17>1,B17,IF(B18>1,B18,IF(B19>1,B19,IF(B20>1,B20,IF(B21>1,B21,IF(B22>1,B22,IF(B23>1,B23,""))))))))))))))))),IF(B30=B7,IF(B8>1,B8,IF(B9>1,B9,IF(B10>1,B10,IF(B11>1,B11,IF(B12>1,B12,IF(B13>1,B13,IF(B14>1,B14,IF(B15>1,B15,IF(B16>1,B16,IF(B17>1,B17,IF(B18>1,B18,IF(B19>1,B19,IF(B20>1,B20,IF(B21>1,B21,IF(B22>1,B22,IF(B23>1,B23,"")))))))))))))))),IF(B30=B8,IF(B9>1,B9,IF(B10>1,B10,IF(B11>1,B11,IF(B12>1,B12,IF(B13>1,B13,IF(B14>1,B14,IF(B15>1,B15,IF(B16>1,B16,IF(B17>1,B17,IF(B18>1,B18,IF(B19>1,B19,IF(B20>1,B20,IF(B21>1,B21,IF(B22>1,B22,IF(B23>1,B23,""))))))))))))))),IF(B30=B9,IF(B10>1,B10,IF(B11>1,B11,IF(B12>1,B12,IF(B13>1,B13,IF(B14>1,B14,IF(B15>1,B15,IF(B16>1,B16,IF(B17>1,B17,IF(B18>1,B18,IF(B19>1,B19,IF(B20>1,B20,IF(B21>1,B21,IF(B22>1,B22,IF(B23>1,B23,"")))))))))))))),IF(B30=B10,IF(B11>1,B11,IF(B12>1,B12,IF(B13>1,B13,IF(B14>1,B14,IF(B15>1,B15,IF(B16>1,B16,IF(B17>1,B17,IF(B18>1,B18,IF(B19>1,B19,IF(B20>1,B20,IF(B21>1,B21,IF(B22>1,B22,IF(B23>1,B23,""))))))))))))),IF(B30=B11,IF(B12>1,B12,IF(B13>1,B13,IF(B14>1,B14,IF(B15>1,B15,IF(B16>1,B16,IF(B17>1,B17,IF(B18>1,B18,IF(B19>1,B19,IF(B20>1,B20,IF(B21>1,B21,IF(B22>1,B22,IF(B23>1,B23,"")))))))))))),IF(B30=B12,IF(B13>1,B13,IF(B14>1,B14,IF(B15>1,B15,IF(B16>1,B16,IF(B17>1,B17,IF(B18>1,B18,IF(B19>1,B19,IF(B20>1,B20,IF(B21>1,B21,IF(B22>1,B22,IF(B23>1,B23,""))))))))))),IF(B30=B13,IF(B14>1,B14,IF(B15>1,B15,IF(B16>1,B16,IF(B17>1,B17,IF(B18>1,B18,IF(B19>1,B19,IF(B20>1,B20,IF(B21>1,B21,IF(B22>1,B22,IF(B23>1,B23,"")))))))))),IF(B30=B14,IF(B15>1,B15,IF(B16>1,B16,IF(B17>1,B17,IF(B18>1,B18,IF(B19>1,B19,IF(B20>1,B20,IF(B21>1,B21,IF(B22>1,B22,IF(B23>1,B23,""))))))))),IF(B30=B15,IF(B16>1,B16,IF(B17>1,B17,IF(B18>1,B18,IF(B19>1,B19,IF(B20>1,B20,IF(B21>1,B21,IF(B22>1,B22,IF(B23>1,B23,"")))))))),IF(B30=B16,IF(B17>1,B17,IF(B18>1,B18,IF(B19>1,B19,IF(B20>1,B20,IF(B26>1,B21,IF(B22>1,B22,IF(B23>1,B23,""))))))),IF(B30=B17,IF(B18>1,B18,IF(B19>1,B19,IF(B20>1,B20,IF(B21>1,B21,IF(B22>1,B22,IF(B23>1,B23,"")))))),IF(B30=B18,IF(B19>1,B19,IF(B20>1,B20,IF(B21>1,B21,IF(B22>1,B22,IF(B23>1,B23,""))))),IF(B30=B19,IF(B20>1,B20,IF(B21>1,B21,IF(B22>1,B22,IF(B23>1,B23,"")))),IF(B30=B20,IF(B21>1,B21,IF(B22>1,B22,IF(B23>1,B23,""))),IF(B30=B21,IF(B22>1,B22,IF(B23>1,B23,"")),IF(B30=B22,IF(B23>1,B23,""),"")))))))))))))))))))) ->  | C31: 7 | D31: =IF(D30=D3,IF(D4>1,D4,IF(D5>1,D5,IF(D6>1,D6,IF(D7>1,D7,IF(D8>1,D8,IF(D9>1,D9,IF(D10>1,D10,IF(D11>1,D11,IF(D17>1,D12,IF(D13>1,D13,IF(D14>1,D14,IF(D15>1,D15,IF(D16>1,D16,IF(D22>1,D17,IF(D18>1,D18,IF(D19>1,D19,IF(D20>1,D20,IF(D21>1,D21,IF(D22>1,D22,IF(D23>1,D23,"")))))))))))))))))))),IF(D30=D4,IF(D5>1,D5,IF(D6>1,D6,IF(D7>1,D7,IF(D8>1,D8,IF(D9>1,D9,IF(D10>1,D10,IF(D11>1,D11,IF(D12>1,D12,IF(D13>1,D13,IF(D14>1,D14,IF(D15>1,D15,IF(D16>1,D16,IF(D17>1,D17,IF(D18>1,D18,IF(D19>1,D19,IF(D20>1,D20,IF(D21>1,D21,IF(D22>1,D22,IF(D23>1,D23,""))))))))))))))))))),IF(D30=D5,IF(D6>1,D6,IF(D7>1,D7,IF(D8>1,D8,IF(D9>1,D9,IF(D10>1,D10,IF(D11>1,D11,IF(D12>1,D12,IF(D13>1,D13,IF(D14>1,D14,IF(D15>1,D15,IF(D16>1,D16,IF(D17>1,D17,IF(D18>1,D18,IF(D19>1,D19,IF(D20>1,D20,IF(D21>1,D21,IF(D22>1,D22,IF(D23>1,D23,"")))))))))))))))))),IF(D30=D6,IF(D7>1,D7,IF(D8>1,D8,IF(D9>1,D9,IF(D10>1,D10,IF(D11>1,D11,IF(D12>1,D12,IF(D13>1,D13,IF(D14>1,D14,IF(D15>1,D15,IF(D16>1,D16,IF(D17>1,D17,IF(D18>1,D18,IF(D19>1,D19,IF(D20>1,D20,IF(D21>1,D21,IF(D22>1,D22,IF(D23>1,D23,""))))))))))))))))),IF(D30=D7,IF(D8>1,D8,IF(D9>1,D9,IF(D10>1,D10,IF(D11>1,D11,IF(D12>1,D12,IF(D13>1,D13,IF(D14>1,D14,IF(D15>1,D15,IF(D16>1,D16,IF(D17>1,D17,IF(D18>1,D18,IF(D19>1,D19,IF(D20>1,D20,IF(D21>1,D21,IF(D22>1,D22,IF(D23>1,D23,"")))))))))))))))),IF(D30=D8,IF(D9>1,D9,IF(D10>1,D10,IF(D11>1,D11,IF(D12>1,D12,IF(D13>1,D13,IF(D14>1,D14,IF(D15>1,D15,IF(D16>1,D16,IF(D17>1,D17,IF(D18>1,D18,IF(D19>1,D19,IF(D20>1,D20,IF(D21>1,D21,IF(D22>1,D22,IF(D23>1,D23,""))))))))))))))),IF(D30=D9,IF(D10>1,D10,IF(D11>1,D11,IF(D12>1,D12,IF(D13>1,D13,IF(D14>1,D14,IF(D15>1,D15,IF(D16>1,D16,IF(D17>1,D17,IF(D18>1,D18,IF(D19>1,D19,IF(D20>1,D20,IF(D21>1,D21,IF(D22>1,D22,IF(D23>1,D23,"")))))))))))))),IF(D30=D10,IF(D11>1,D11,IF(D12>1,D12,IF(D13>1,D13,IF(D14>1,D14,IF(D15>1,D15,IF(D16>1,D16,IF(D17>1,D17,IF(D18>1,D18,IF(D19>1,D19,IF(D20>1,D20,IF(D21>1,D21,IF(D22>1,D22,IF(D23>1,D23,""))))))))))))),IF(D30=D11,IF(D12>1,D12,IF(D13>1,D13,IF(D14>1,D14,IF(D15>1,D15,IF(D16>1,D16,IF(D17>1,D17,IF(D18>1,D18,IF(D19>1,D19,IF(D20>1,D20,IF(D21>1,D21,IF(D22>1,D22,IF(D23>1,D23,"")))))))))))),IF(D30=D12,IF(D13>1,D13,IF(D14>1,D14,IF(D15>1,D15,IF(D16>1,D16,IF(D17>1,D17,IF(D18>1,D18,IF(D19>1,D19,IF(D20>1,D20,IF(D21>1,D21,IF(D22>1,D22,IF(D23>1,D23,""))))))))))),IF(D30=D13,IF(D14>1,D14,IF(D15>1,D15,IF(D16>1,D16,IF(D17>1,D17,IF(D18>1,D18,IF(D19>1,D19,IF(D20>1,D20,IF(D21>1,D21,IF(D22>1,D22,IF(D23>1,D23,"")))))))))),IF(D30=D14,IF(D15>1,D15,IF(D16>1,D16,IF(D17>1,D17,IF(D18>1,D18,IF(D19>1,D19,IF(D20>1,D20,IF(D21>1,D21,IF(D22>1,D22,IF(D23>1,D23,""))))))))),IF(D30=D15,IF(D16>1,D16,IF(D17>1,D17,IF(D18>1,D18,IF(D19>1,D19,IF(D20>1,D20,IF(D21>1,D21,IF(D22>1,D22,IF(D23>1,D23,"")))))))),IF(D30=D16,IF(D17>1,D17,IF(D18>1,D18,IF(D19>1,D19,IF(D20>1,D20,IF(D26>1,D21,IF(D22>1,D22,IF(D23>1,D23,""))))))),IF(D30=D17,IF(D18>1,D18,IF(D19>1,D19,IF(D20>1,D20,IF(D21>1,D21,IF(D22>1,D22,IF(D23>1,D23,"")))))),IF(D30=D18,IF(D19>1,D19,IF(D20>1,D20,IF(D21>1,D21,IF(D22>1,D22,IF(D23>1,D23,""))))),IF(D30=D19,IF(D20>1,D20,IF(D21>1,D21,IF(D22>1,D22,IF(D23>1,D23,"")))),IF(D30=D20,IF(D21>1,D21,IF(D22>1,D22,IF(D23>1,D23,""))),IF(D30=D21,IF(D22>1,D22,IF(D23>1,D23,"")),IF(D30=D22,IF(D23>1,D23,""),"")))))))))))))))))))) ->  | E31: 7 | F31: =IF(F30=F3,IF(F4>1,F4,IF(F5>1,F5,IF(F6>1,F6,IF(F7>1,F7,IF(F8>1,F8,IF(F9>1,F9,IF(F10>1,F10,IF(F11>1,F11,IF(F17>1,F12,IF(F13>1,F13,IF(F14>1,F14,IF(F15>1,F15,IF(F16>1,F16,IF(F22>1,F17,IF(F18>1,F18,IF(F19>1,F19,IF(F20>1,F20,IF(F21>1,F21,IF(F22>1,F22,IF(F23>1,F23,"")))))))))))))))))))),IF(F30=F4,IF(F5>1,F5,IF(F6>1,F6,IF(F7>1,F7,IF(F8>1,F8,IF(F9>1,F9,IF(F10>1,F10,IF(F11>1,F11,IF(F12>1,F12,IF(F13>1,F13,IF(F14>1,F14,IF(F15>1,F15,IF(F16>1,F16,IF(F17>1,F17,IF(F18>1,F18,IF(F19>1,F19,IF(F20>1,F20,IF(F21>1,F21,IF(F22>1,F22,IF(F23>1,F23,""))))))))))))))))))),IF(F30=F5,IF(F6>1,F6,IF(F7>1,F7,IF(F8>1,F8,IF(F9>1,F9,IF(F10>1,F10,IF(F11>1,F11,IF(F12>1,F12,IF(F13>1,F13,IF(F14>1,F14,IF(F15>1,F15,IF(F16>1,F16,IF(F17>1,F17,IF(F18>1,F18,IF(F19>1,F19,IF(F20>1,F20,IF(F21>1,F21,IF(F22>1,F22,IF(F23>1,F23,"")))))))))))))))))),IF(F30=F6,IF(F7>1,F7,IF(F8>1,F8,IF(F9>1,F9,IF(F10>1,F10,IF(F11>1,F11,IF(F12>1,F12,IF(F13>1,F13,IF(F14>1,F14,IF(F15>1,F15,IF(F16>1,F16,IF(F17>1,F17,IF(F18>1,F18,IF(F19>1,F19,IF(F20>1,F20,IF(F21>1,F21,IF(F22>1,F22,IF(F23>1,F23,""))))))))))))))))),IF(F30=F7,IF(F8>1,F8,IF(F9>1,F9,IF(F10>1,F10,IF(F11>1,F11,IF(F12>1,F12,IF(F13>1,F13,IF(F14>1,F14,IF(F15>1,F15,IF(F16>1,F16,IF(F17>1,F17,IF(F18>1,F18,IF(F19>1,F19,IF(F20>1,F20,IF(F21>1,F21,IF(F22>1,F22,IF(F23>1,F23,"")))))))))))))))),IF(F30=F8,IF(F9>1,F9,IF(F10>1,F10,IF(F11>1,F11,IF(F12>1,F12,IF(F13>1,F13,IF(F14>1,F14,IF(F15>1,F15,IF(F16>1,F16,IF(F17>1,F17,IF(F18>1,F18,IF(F19>1,F19,IF(F20>1,F20,IF(F21>1,F21,IF(F22>1,F22,IF(F23>1,F23,""))))))))))))))),IF(F30=F9,IF(F10>1,F10,IF(F11>1,F11,IF(F12>1,F12,IF(F13>1,F13,IF(F14>1,F14,IF(F15>1,F15,IF(F16>1,F16,IF(F17>1,F17,IF(F18>1,F18,IF(F19>1,F19,IF(F20>1,F20,IF(F21>1,F21,IF(F22>1,F22,IF(F23>1,F23,"")))))))))))))),IF(F30=F10,IF(F11>1,F11,IF(F12>1,F12,IF(F13>1,F13,IF(F14>1,F14,IF(F15>1,F15,IF(F16>1,F16,IF(F17>1,F17,IF(F18>1,F18,IF(F19>1,F19,IF(F20>1,F20,IF(F21>1,F21,IF(F22>1,F22,IF(F23>1,F23,""))))))))))))),IF(F30=F11,IF(F12>1,F12,IF(F13>1,F13,IF(F14>1,F14,IF(F15>1,F15,IF(F16>1,F16,IF(F17>1,F17,IF(F18>1,F18,IF(F19>1,F19,IF(F20>1,F20,IF(F21>1,F21,IF(F22>1,F22,IF(F23>1,F23,"")))))))))))),IF(F30=F12,IF(F13>1,F13,IF(F14>1,F14,IF(F15>1,F15,IF(F16>1,F16,IF(F17>1,F17,IF(F18>1,F18,IF(F19>1,F19,IF(F20>1,F20,IF(F21>1,F21,IF(F22>1,F22,IF(F23>1,F23,""))))))))))),IF(F30=F13,IF(F14>1,F14,IF(F15>1,F15,IF(F16>1,F16,IF(F17>1,F17,IF(F18>1,F18,IF(F19>1,F19,IF(F20>1,F20,IF(F21>1,F21,IF(F22>1,F22,IF(F23>1,F23,"")))))))))),IF(F30=F14,IF(F15>1,F15,IF(F16>1,F16,IF(F17>1,F17,IF(F18>1,F18,IF(F19>1,F19,IF(F20>1,F20,IF(F21>1,F21,IF(F22>1,F22,IF(F23>1,F23,""))))))))),IF(F30=F15,IF(F16>1,F16,IF(F17>1,F17,IF(F18>1,F18,IF(F19>1,F19,IF(F20>1,F20,IF(F21>1,F21,IF(F22>1,F22,IF(F23>1,F23,"")))))))),IF(F30=F16,IF(F17>1,F17,IF(F18>1,F18,IF(F19>1,F19,IF(F20>1,F20,IF(F26>1,F21,IF(F22>1,F22,IF(F23>1,F23,""))))))),IF(F30=F17,IF(F18>1,F18,IF(F19>1,F19,IF(F20>1,F20,IF(F21>1,F21,IF(F22>1,F22,IF(F23>1,F23,"")))))),IF(F30=F18,IF(F19>1,F19,IF(F20>1,F20,IF(F21>1,F21,IF(F22>1,F22,IF(F23>1,F23,""))))),IF(F30=F19,IF(F20>1,F20,IF(F21>1,F21,IF(F22>1,F22,IF(F23>1,F23,"")))),IF(F30=F20,IF(F21>1,F21,IF(F22>1,F22,IF(F23>1,F23,""))),IF(F30=F21,IF(F22>1,F22,IF(F23>1,F23,"")),IF(F30=F22,IF(F23>1,F23,""),"")))))))))))))))))))) ->  | G31: 7 | H31: =IF(H30=H3,IF(H4>1,H4,IF(H5>1,H5,IF(H6>1,H6,IF(H7>1,H7,IF(H8>1,H8,IF(H9>1,H9,IF(H10>1,H10,IF(H11>1,H11,IF(H17>1,H12,IF(H13>1,H13,IF(H14>1,H14,IF(H15>1,H15,IF(H16>1,H16,IF(H22>1,H17,IF(H18>1,H18,IF(H19>1,H19,IF(H20>1,H20,IF(H21>1,H21,IF(H22>1,H22,IF(H23>1,H23,"")))))))))))))))))))),IF(H30=H4,IF(H5>1,H5,IF(H6>1,H6,IF(H7>1,H7,IF(H8>1,H8,IF(H9>1,H9,IF(H10>1,H10,IF(H11>1,H11,IF(H12>1,H12,IF(H13>1,H13,IF(H14>1,H14,IF(H15>1,H15,IF(H16>1,H16,IF(H17>1,H17,IF(H18>1,H18,IF(H19>1,H19,IF(H20>1,H20,IF(H21>1,H21,IF(H22>1,H22,IF(H23>1,H23,""))))))))))))))))))),IF(H30=H5,IF(H6>1,H6,IF(H7>1,H7,IF(H8>1,H8,IF(H9>1,H9,IF(H10>1,H10,IF(H11>1,H11,IF(H12>1,H12,IF(H13>1,H13,IF(H14>1,H14,IF(H15>1,H15,IF(H16>1,H16,IF(H17>1,H17,IF(H18>1,H18,IF(H19>1,H19,IF(H20>1,H20,IF(H21>1,H21,IF(H22>1,H22,IF(H23>1,H23,"")))))))))))))))))),IF(H30=H6,IF(H7>1,H7,IF(H8>1,H8,IF(H9>1,H9,IF(H10>1,H10,IF(H11>1,H11,IF(H12>1,H12,IF(H13>1,H13,IF(H14>1,H14,IF(H15>1,H15,IF(H16>1,H16,IF(H17>1,H17,IF(H18>1,H18,IF(H19>1,H19,IF(H20>1,H20,IF(H21>1,H21,IF(H22>1,H22,IF(H23>1,H23,""))))))))))))))))),IF(H30=H7,IF(H8>1,H8,IF(H9>1,H9,IF(H10>1,H10,IF(H11>1,H11,IF(H12>1,H12,IF(H13>1,H13,IF(H14>1,H14,IF(H15>1,H15,IF(H16>1,H16,IF(H17>1,H17,IF(H18>1,H18,IF(H19>1,H19,IF(H20>1,H20,IF(H21>1,H21,IF(H22>1,H22,IF(H23>1,H23,"")))))))))))))))),IF(H30=H8,IF(H9>1,H9,IF(H10>1,H10,IF(H11>1,H11,IF(H12>1,H12,IF(H13>1,H13,IF(H14>1,H14,IF(H15>1,H15,IF(H16>1,H16,IF(H17>1,H17,IF(H18>1,H18,IF(H19>1,H19,IF(H20>1,H20,IF(H21>1,H21,IF(H22>1,H22,IF(H23>1,H23,""))))))))))))))),IF(H30=H9,IF(H10>1,H10,IF(H11>1,H11,IF(H12>1,H12,IF(H13>1,H13,IF(H14>1,H14,IF(H15>1,H15,IF(H16>1,H16,IF(H17>1,H17,IF(H18>1,H18,IF(H19>1,H19,IF(H20>1,H20,IF(H21>1,H21,IF(H22>1,H22,IF(H23>1,H23,"")))))))))))))),IF(H30=H10,IF(H11>1,H11,IF(H12>1,H12,IF(H13>1,H13,IF(H14>1,H14,IF(H15>1,H15,IF(H16>1,H16,IF(H17>1,H17,IF(H18>1,H18,IF(H19>1,H19,IF(H20>1,H20,IF(H21>1,H21,IF(H22>1,H22,IF(H23>1,H23,""))))))))))))),IF(H30=H11,IF(H12>1,H12,IF(H13>1,H13,IF(H14>1,H14,IF(H15>1,H15,IF(H16>1,H16,IF(H17>1,H17,IF(H18>1,H18,IF(H19>1,H19,IF(H20>1,H20,IF(H21>1,H21,IF(H22>1,H22,IF(H23>1,H23,"")))))))))))),IF(H30=H12,IF(H13>1,H13,IF(H14>1,H14,IF(H15>1,H15,IF(H16>1,H16,IF(H17>1,H17,IF(H18>1,H18,IF(H19>1,H19,IF(H20>1,H20,IF(H21>1,H21,IF(H22>1,H22,IF(H23>1,H23,""))))))))))),IF(H30=H13,IF(H14>1,H14,IF(H15>1,H15,IF(H16>1,H16,IF(H17>1,H17,IF(H18>1,H18,IF(H19>1,H19,IF(H20>1,H20,IF(H21>1,H21,IF(H22>1,H22,IF(H23>1,H23,"")))))))))),IF(H30=H14,IF(H15>1,H15,IF(H16>1,H16,IF(H17>1,H17,IF(H18>1,H18,IF(H19>1,H19,IF(H20>1,H20,IF(H21>1,H21,IF(H22>1,H22,IF(H23>1,H23,""))))))))),IF(H30=H15,IF(H16>1,H16,IF(H17>1,H17,IF(H18>1,H18,IF(H19>1,H19,IF(H20>1,H20,IF(H21>1,H21,IF(H22>1,H22,IF(H23>1,H23,"")))))))),IF(H30=H16,IF(H17>1,H17,IF(H18>1,H18,IF(H19>1,H19,IF(H20>1,H20,IF(H26>1,H21,IF(H22>1,H22,IF(H23>1,H23,""))))))),IF(H30=H17,IF(H18>1,H18,IF(H19>1,H19,IF(H20>1,H20,IF(H21>1,H21,IF(H22>1,H22,IF(H23>1,H23,"")))))),IF(H30=H18,IF(H19>1,H19,IF(H20>1,H20,IF(H21>1,H21,IF(H22>1,H22,IF(H23>1,H23,""))))),IF(H30=H19,IF(H20>1,H20,IF(H21>1,H21,IF(H22>1,H22,IF(H23>1,H23,"")))),IF(H30=H20,IF(H21>1,H21,IF(H22>1,H22,IF(H23>1,H23,""))),IF(H30=H21,IF(H22>1,H22,IF(H23>1,H23,"")),IF(H30=H22,IF(H23>1,H23,""),"")))))))))))))))))))) -> 0
A32: 8 | B32: =IF(B31=B3,IF(B4>1,B4,IF(B5>1,B5,IF(B6>1,B6,IF(B7>1,B7,IF(B8>1,B8,IF(B9>1,B9,IF(B10>1,B10,IF(B11>1,B11,IF(B18>1,B12,IF(B13>1,B13,IF(B14>1,B14,IF(B15>1,B15,IF(B16>1,B16,IF(B23>1,B17,IF(B18>1,B18,IF(B19>1,B19,IF(B20>1,B20,IF(B21>1,B21,IF(B22>1,B22,IF(B23>1,B23,"")))))))))))))))))))),IF(B31=B4,IF(B5>1,B5,IF(B6>1,B6,IF(B7>1,B7,IF(B8>1,B8,IF(B9>1,B9,IF(B10>1,B10,IF(B11>1,B11,IF(B12>1,B12,IF(B13>1,B13,IF(B14>1,B14,IF(B15>1,B15,IF(B16>1,B16,IF(B17>1,B17,IF(B18>1,B18,IF(B19>1,B19,IF(B20>1,B20,IF(B21>1,B21,IF(B22>1,B22,IF(B23>1,B23,""))))))))))))))))))),IF(B31=B5,IF(B6>1,B6,IF(B7>1,B7,IF(B8>1,B8,IF(B9>1,B9,IF(B10>1,B10,IF(B11>1,B11,IF(B12>1,B12,IF(B13>1,B13,IF(B14>1,B14,IF(B15>1,B15,IF(B16>1,B16,IF(B17>1,B17,IF(B18>1,B18,IF(B19>1,B19,IF(B20>1,B20,IF(B21>1,B21,IF(B22>1,B22,IF(B23>1,B23,"")))))))))))))))))),IF(B31=B6,IF(B7>1,B7,IF(B8>1,B8,IF(B9>1,B9,IF(B10>1,B10,IF(B11>1,B11,IF(B12>1,B12,IF(B13>1,B13,IF(B14>1,B14,IF(B15>1,B15,IF(B16>1,B16,IF(B17>1,B17,IF(B18>1,B18,IF(B19>1,B19,IF(B20>1,B20,IF(B21>1,B21,IF(B22>1,B22,IF(B23>1,B23,""))))))))))))))))),IF(B31=B7,IF(B8>1,B8,IF(B9>1,B9,IF(B10>1,B10,IF(B11>1,B11,IF(B12>1,B12,IF(B13>1,B13,IF(B14>1,B14,IF(B15>1,B15,IF(B16>1,B16,IF(B17>1,B17,IF(B18>1,B18,IF(B19>1,B19,IF(B20>1,B20,IF(B21>1,B21,IF(B22>1,B22,IF(B23>1,B23,"")))))))))))))))),IF(B31=B8,IF(B9>1,B9,IF(B10>1,B10,IF(B11>1,B11,IF(B12>1,B12,IF(B13>1,B13,IF(B14>1,B14,IF(B15>1,B15,IF(B16>1,B16,IF(B17>1,B17,IF(B18>1,B18,IF(B19>1,B19,IF(B20>1,B20,IF(B21>1,B21,IF(B22>1,B22,IF(B23>1,B23,""))))))))))))))),IF(B31=B9,IF(B10>1,B10,IF(B11>1,B11,IF(B12>1,B12,IF(B13>1,B13,IF(B14>1,B14,IF(B15>1,B15,IF(B16>1,B16,IF(B17>1,B17,IF(B18>1,B18,IF(B19>1,B19,IF(B20>1,B20,IF(B21>1,B21,IF(B22>1,B22,IF(B23>1,B23,"")))))))))))))),IF(B31=B10,IF(B11>1,B11,IF(B12>1,B12,IF(B13>1,B13,IF(B14>1,B14,IF(B15>1,B15,IF(B16>1,B16,IF(B17>1,B17,IF(B18>1,B18,IF(B19>1,B19,IF(B20>1,B20,IF(B21>1,B21,IF(B22>1,B22,IF(B23>1,B23,""))))))))))))),IF(B31=B11,IF(B12>1,B12,IF(B13>1,B13,IF(B14>1,B14,IF(B15>1,B15,IF(B16>1,B16,IF(B17>1,B17,IF(B18>1,B18,IF(B19>1,B19,IF(B20>1,B20,IF(B21>1,B21,IF(B22>1,B22,IF(B23>1,B23,"")))))))))))),IF(B31=B12,IF(B13>1,B13,IF(B14>1,B14,IF(B15>1,B15,IF(B16>1,B16,IF(B17>1,B17,IF(B18>1,B18,IF(B19>1,B19,IF(B20>1,B20,IF(B21>1,B21,IF(B22>1,B22,IF(B23>1,B23,""))))))))))),IF(B31=B13,IF(B14>1,B14,IF(B15>1,B15,IF(B16>1,B16,IF(B17>1,B17,IF(B18>1,B18,IF(B19>1,B19,IF(B20>1,B20,IF(B21>1,B21,IF(B22>1,B22,IF(B23>1,B23,"")))))))))),IF(B31=B14,IF(B15>1,B15,IF(B16>1,B16,IF(B17>1,B17,IF(B18>1,B18,IF(B19>1,B19,IF(B20>1,B20,IF(B21>1,B21,IF(B22>1,B22,IF(B23>1,B23,""))))))))),IF(B31=B15,IF(B16>1,B16,IF(B17>1,B17,IF(B18>1,B18,IF(B19>1,B19,IF(B20>1,B20,IF(B21>1,B21,IF(B22>1,B22,IF(B23>1,B23,"")))))))),IF(B31=B16,IF(B17>1,B17,IF(B18>1,B18,IF(B19>1,B19,IF(B20>1,B20,IF(B27>1,B21,IF(B22>1,B22,IF(B23>1,B23,""))))))),IF(B31=B17,IF(B18>1,B18,IF(B19>1,B19,IF(B20>1,B20,IF(B21>1,B21,IF(B22>1,B22,IF(B23>1,B23,"")))))),IF(B31=B18,IF(B19>1,B19,IF(B20>1,B20,IF(B21>1,B21,IF(B22>1,B22,IF(B23>1,B23,""))))),IF(B31=B19,IF(B20>1,B20,IF(B21>1,B21,IF(B22>1,B22,IF(B23>1,B23,"")))),IF(B31=B20,IF(B21>1,B21,IF(B22>1,B22,IF(B23>1,B23,""))),IF(B31=B21,IF(B22>1,B22,IF(B23>1,B23,"")),IF(B31=B22,IF(B23>1,B23,""),"")))))))))))))))))))) ->  | C32: 8 | D32: =IF(D31=D3,IF(D4>1,D4,IF(D5>1,D5,IF(D6>1,D6,IF(D7>1,D7,IF(D8>1,D8,IF(D9>1,D9,IF(D10>1,D10,IF(D11>1,D11,IF(D18>1,D12,IF(D13>1,D13,IF(D14>1,D14,IF(D15>1,D15,IF(D16>1,D16,IF(D23>1,D17,IF(D18>1,D18,IF(D19>1,D19,IF(D20>1,D20,IF(D21>1,D21,IF(D22>1,D22,IF(D23>1,D23,"")))))))))))))))))))),IF(D31=D4,IF(D5>1,D5,IF(D6>1,D6,IF(D7>1,D7,IF(D8>1,D8,IF(D9>1,D9,IF(D10>1,D10,IF(D11>1,D11,IF(D12>1,D12,IF(D13>1,D13,IF(D14>1,D14,IF(D15>1,D15,IF(D16>1,D16,IF(D17>1,D17,IF(D18>1,D18,IF(D19>1,D19,IF(D20>1,D20,IF(D21>1,D21,IF(D22>1,D22,IF(D23>1,D23,""))))))))))))))))))),IF(D31=D5,IF(D6>1,D6,IF(D7>1,D7,IF(D8>1,D8,IF(D9>1,D9,IF(D10>1,D10,IF(D11>1,D11,IF(D12>1,D12,IF(D13>1,D13,IF(D14>1,D14,IF(D15>1,D15,IF(D16>1,D16,IF(D17>1,D17,IF(D18>1,D18,IF(D19>1,D19,IF(D20>1,D20,IF(D21>1,D21,IF(D22>1,D22,IF(D23>1,D23,"")))))))))))))))))),IF(D31=D6,IF(D7>1,D7,IF(D8>1,D8,IF(D9>1,D9,IF(D10>1,D10,IF(D11>1,D11,IF(D12>1,D12,IF(D13>1,D13,IF(D14>1,D14,IF(D15>1,D15,IF(D16>1,D16,IF(D17>1,D17,IF(D18>1,D18,IF(D19>1,D19,IF(D20>1,D20,IF(D21>1,D21,IF(D22>1,D22,IF(D23>1,D23,""))))))))))))))))),IF(D31=D7,IF(D8>1,D8,IF(D9>1,D9,IF(D10>1,D10,IF(D11>1,D11,IF(D12>1,D12,IF(D13>1,D13,IF(D14>1,D14,IF(D15>1,D15,IF(D16>1,D16,IF(D17>1,D17,IF(D18>1,D18,IF(D19>1,D19,IF(D20>1,D20,IF(D21>1,D21,IF(D22>1,D22,IF(D23>1,D23,"")))))))))))))))),IF(D31=D8,IF(D9>1,D9,IF(D10>1,D10,IF(D11>1,D11,IF(D12>1,D12,IF(D13>1,D13,IF(D14>1,D14,IF(D15>1,D15,IF(D16>1,D16,IF(D17>1,D17,IF(D18>1,D18,IF(D19>1,D19,IF(D20>1,D20,IF(D21>1,D21,IF(D22>1,D22,IF(D23>1,D23,""))))))))))))))),IF(D31=D9,IF(D10>1,D10,IF(D11>1,D11,IF(D12>1,D12,IF(D13>1,D13,IF(D14>1,D14,IF(D15>1,D15,IF(D16>1,D16,IF(D17>1,D17,IF(D18>1,D18,IF(D19>1,D19,IF(D20>1,D20,IF(D21>1,D21,IF(D22>1,D22,IF(D23>1,D23,"")))))))))))))),IF(D31=D10,IF(D11>1,D11,IF(D12>1,D12,IF(D13>1,D13,IF(D14>1,D14,IF(D15>1,D15,IF(D16>1,D16,IF(D17>1,D17,IF(D18>1,D18,IF(D19>1,D19,IF(D20>1,D20,IF(D21>1,D21,IF(D22>1,D22,IF(D23>1,D23,""))))))))))))),IF(D31=D11,IF(D12>1,D12,IF(D13>1,D13,IF(D14>1,D14,IF(D15>1,D15,IF(D16>1,D16,IF(D17>1,D17,IF(D18>1,D18,IF(D19>1,D19,IF(D20>1,D20,IF(D21>1,D21,IF(D22>1,D22,IF(D23>1,D23,"")))))))))))),IF(D31=D12,IF(D13>1,D13,IF(D14>1,D14,IF(D15>1,D15,IF(D16>1,D16,IF(D17>1,D17,IF(D18>1,D18,IF(D19>1,D19,IF(D20>1,D20,IF(D21>1,D21,IF(D22>1,D22,IF(D23>1,D23,""))))))))))),IF(D31=D13,IF(D14>1,D14,IF(D15>1,D15,IF(D16>1,D16,IF(D17>1,D17,IF(D18>1,D18,IF(D19>1,D19,IF(D20>1,D20,IF(D21>1,D21,IF(D22>1,D22,IF(D23>1,D23,"")))))))))),IF(D31=D14,IF(D15>1,D15,IF(D16>1,D16,IF(D17>1,D17,IF(D18>1,D18,IF(D19>1,D19,IF(D20>1,D20,IF(D21>1,D21,IF(D22>1,D22,IF(D23>1,D23,""))))))))),IF(D31=D15,IF(D16>1,D16,IF(D17>1,D17,IF(D18>1,D18,IF(D19>1,D19,IF(D20>1,D20,IF(D21>1,D21,IF(D22>1,D22,IF(D23>1,D23,"")))))))),IF(D31=D16,IF(D17>1,D17,IF(D18>1,D18,IF(D19>1,D19,IF(D20>1,D20,IF(D27>1,D21,IF(D22>1,D22,IF(D23>1,D23,""))))))),IF(D31=D17,IF(D18>1,D18,IF(D19>1,D19,IF(D20>1,D20,IF(D21>1,D21,IF(D22>1,D22,IF(D23>1,D23,"")))))),IF(D31=D18,IF(D19>1,D19,IF(D20>1,D20,IF(D21>1,D21,IF(D22>1,D22,IF(D23>1,D23,""))))),IF(D31=D19,IF(D20>1,D20,IF(D21>1,D21,IF(D22>1,D22,IF(D23>1,D23,"")))),IF(D31=D20,IF(D21>1,D21,IF(D22>1,D22,IF(D23>1,D23,""))),IF(D31=D21,IF(D22>1,D22,IF(D23>1,D23,"")),IF(D31=D22,IF(D23>1,D23,""),"")))))))))))))))))))) ->  | E32: 8 | F32: =IF(F31=F3,IF(F4>1,F4,IF(F5>1,F5,IF(F6>1,F6,IF(F7>1,F7,IF(F8>1,F8,IF(F9>1,F9,IF(F10>1,F10,IF(F11>1,F11,IF(F18>1,F12,IF(F13>1,F13,IF(F14>1,F14,IF(F15>1,F15,IF(F16>1,F16,IF(F23>1,F17,IF(F18>1,F18,IF(F19>1,F19,IF(F20>1,F20,IF(F21>1,F21,IF(F22>1,F22,IF(F23>1,F23,"")))))))))))))))))))),IF(F31=F4,IF(F5>1,F5,IF(F6>1,F6,IF(F7>1,F7,IF(F8>1,F8,IF(F9>1,F9,IF(F10>1,F10,IF(F11>1,F11,IF(F12>1,F12,IF(F13>1,F13,IF(F14>1,F14,IF(F15>1,F15,IF(F16>1,F16,IF(F17>1,F17,IF(F18>1,F18,IF(F19>1,F19,IF(F20>1,F20,IF(F21>1,F21,IF(F22>1,F22,IF(F23>1,F23,""))))))))))))))))))),IF(F31=F5,IF(F6>1,F6,IF(F7>1,F7,IF(F8>1,F8,IF(F9>1,F9,IF(F10>1,F10,IF(F11>1,F11,IF(F12>1,F12,IF(F13>1,F13,IF(F14>1,F14,IF(F15>1,F15,IF(F16>1,F16,IF(F17>1,F17,IF(F18>1,F18,IF(F19>1,F19,IF(F20>1,F20,IF(F21>1,F21,IF(F22>1,F22,IF(F23>1,F23,"")))))))))))))))))),IF(F31=F6,IF(F7>1,F7,IF(F8>1,F8,IF(F9>1,F9,IF(F10>1,F10,IF(F11>1,F11,IF(F12>1,F12,IF(F13>1,F13,IF(F14>1,F14,IF(F15>1,F15,IF(F16>1,F16,IF(F17>1,F17,IF(F18>1,F18,IF(F19>1,F19,IF(F20>1,F20,IF(F21>1,F21,IF(F22>1,F22,IF(F23>1,F23,""))))))))))))))))),IF(F31=F7,IF(F8>1,F8,IF(F9>1,F9,IF(F10>1,F10,IF(F11>1,F11,IF(F12>1,F12,IF(F13>1,F13,IF(F14>1,F14,IF(F15>1,F15,IF(F16>1,F16,IF(F17>1,F17,IF(F18>1,F18,IF(F19>1,F19,IF(F20>1,F20,IF(F21>1,F21,IF(F22>1,F22,IF(F23>1,F23,"")))))))))))))))),IF(F31=F8,IF(F9>1,F9,IF(F10>1,F10,IF(F11>1,F11,IF(F12>1,F12,IF(F13>1,F13,IF(F14>1,F14,IF(F15>1,F15,IF(F16>1,F16,IF(F17>1,F17,IF(F18>1,F18,IF(F19>1,F19,IF(F20>1,F20,IF(F21>1,F21,IF(F22>1,F22,IF(F23>1,F23,""))))))))))))))),IF(F31=F9,IF(F10>1,F10,IF(F11>1,F11,IF(F12>1,F12,IF(F13>1,F13,IF(F14>1,F14,IF(F15>1,F15,IF(F16>1,F16,IF(F17>1,F17,IF(F18>1,F18,IF(F19>1,F19,IF(F20>1,F20,IF(F21>1,F21,IF(F22>1,F22,IF(F23>1,F23,"")))))))))))))),IF(F31=F10,IF(F11>1,F11,IF(F12>1,F12,IF(F13>1,F13,IF(F14>1,F14,IF(F15>1,F15,IF(F16>1,F16,IF(F17>1,F17,IF(F18>1,F18,IF(F19>1,F19,IF(F20>1,F20,IF(F21>1,F21,IF(F22>1,F22,IF(F23>1,F23,""))))))))))))),IF(F31=F11,IF(F12>1,F12,IF(F13>1,F13,IF(F14>1,F14,IF(F15>1,F15,IF(F16>1,F16,IF(F17>1,F17,IF(F18>1,F18,IF(F19>1,F19,IF(F20>1,F20,IF(F21>1,F21,IF(F22>1,F22,IF(F23>1,F23,"")))))))))))),IF(F31=F12,IF(F13>1,F13,IF(F14>1,F14,IF(F15>1,F15,IF(F16>1,F16,IF(F17>1,F17,IF(F18>1,F18,IF(F19>1,F19,IF(F20>1,F20,IF(F21>1,F21,IF(F22>1,F22,IF(F23>1,F23,""))))))))))),IF(F31=F13,IF(F14>1,F14,IF(F15>1,F15,IF(F16>1,F16,IF(F17>1,F17,IF(F18>1,F18,IF(F19>1,F19,IF(F20>1,F20,IF(F21>1,F21,IF(F22>1,F22,IF(F23>1,F23,"")))))))))),IF(F31=F14,IF(F15>1,F15,IF(F16>1,F16,IF(F17>1,F17,IF(F18>1,F18,IF(F19>1,F19,IF(F20>1,F20,IF(F21>1,F21,IF(F22>1,F22,IF(F23>1,F23,""))))))))),IF(F31=F15,IF(F16>1,F16,IF(F17>1,F17,IF(F18>1,F18,IF(F19>1,F19,IF(F20>1,F20,IF(F21>1,F21,IF(F22>1,F22,IF(F23>1,F23,"")))))))),IF(F31=F16,IF(F17>1,F17,IF(F18>1,F18,IF(F19>1,F19,IF(F20>1,F20,IF(F27>1,F21,IF(F22>1,F22,IF(F23>1,F23,""))))))),IF(F31=F17,IF(F18>1,F18,IF(F19>1,F19,IF(F20>1,F20,IF(F21>1,F21,IF(F22>1,F22,IF(F23>1,F23,"")))))),IF(F31=F18,IF(F19>1,F19,IF(F20>1,F20,IF(F21>1,F21,IF(F22>1,F22,IF(F23>1,F23,""))))),IF(F31=F19,IF(F20>1,F20,IF(F21>1,F21,IF(F22>1,F22,IF(F23>1,F23,"")))),IF(F31=F20,IF(F21>1,F21,IF(F22>1,F22,IF(F23>1,F23,""))),IF(F31=F21,IF(F22>1,F22,IF(F23>1,F23,"")),IF(F31=F22,IF(F23>1,F23,""),"")))))))))))))))))))) ->  | G32: 8 | H32: =IF(H31=H3,IF(H4>1,H4,IF(H5>1,H5,IF(H6>1,H6,IF(H7>1,H7,IF(H8>1,H8,IF(H9>1,H9,IF(H10>1,H10,IF(H11>1,H11,IF(H18>1,H12,IF(H13>1,H13,IF(H14>1,H14,IF(H15>1,H15,IF(H16>1,H16,IF(H23>1,H17,IF(H18>1,H18,IF(H19>1,H19,IF(H20>1,H20,IF(H21>1,H21,IF(H22>1,H22,IF(H23>1,H23,"")))))))))))))))))))),IF(H31=H4,IF(H5>1,H5,IF(H6>1,H6,IF(H7>1,H7,IF(H8>1,H8,IF(H9>1,H9,IF(H10>1,H10,IF(H11>1,H11,IF(H12>1,H12,IF(H13>1,H13,IF(H14>1,H14,IF(H15>1,H15,IF(H16>1,H16,IF(H17>1,H17,IF(H18>1,H18,IF(H19>1,H19,IF(H20>1,H20,IF(H21>1,H21,IF(H22>1,H22,IF(H23>1,H23,""))))))))))))))))))),IF(H31=H5,IF(H6>1,H6,IF(H7>1,H7,IF(H8>1,H8,IF(H9>1,H9,IF(H10>1,H10,IF(H11>1,H11,IF(H12>1,H12,IF(H13>1,H13,IF(H14>1,H14,IF(H15>1,H15,IF(H16>1,H16,IF(H17>1,H17,IF(H18>1,H18,IF(H19>1,H19,IF(H20>1,H20,IF(H21>1,H21,IF(H22>1,H22,IF(H23>1,H23,"")))))))))))))))))),IF(H31=H6,IF(H7>1,H7,IF(H8>1,H8,IF(H9>1,H9,IF(H10>1,H10,IF(H11>1,H11,IF(H12>1,H12,IF(H13>1,H13,IF(H14>1,H14,IF(H15>1,H15,IF(H16>1,H16,IF(H17>1,H17,IF(H18>1,H18,IF(H19>1,H19,IF(H20>1,H20,IF(H21>1,H21,IF(H22>1,H22,IF(H23>1,H23,""))))))))))))))))),IF(H31=H7,IF(H8>1,H8,IF(H9>1,H9,IF(H10>1,H10,IF(H11>1,H11,IF(H12>1,H12,IF(H13>1,H13,IF(H14>1,H14,IF(H15>1,H15,IF(H16>1,H16,IF(H17>1,H17,IF(H18>1,H18,IF(H19>1,H19,IF(H20>1,H20,IF(H21>1,H21,IF(H22>1,H22,IF(H23>1,H23,"")))))))))))))))),IF(H31=H8,IF(H9>1,H9,IF(H10>1,H10,IF(H11>1,H11,IF(H12>1,H12,IF(H13>1,H13,IF(H14>1,H14,IF(H15>1,H15,IF(H16>1,H16,IF(H17>1,H17,IF(H18>1,H18,IF(H19>1,H19,IF(H20>1,H20,IF(H21>1,H21,IF(H22>1,H22,IF(H23>1,H23,""))))))))))))))),IF(H31=H9,IF(H10>1,H10,IF(H11>1,H11,IF(H12>1,H12,IF(H13>1,H13,IF(H14>1,H14,IF(H15>1,H15,IF(H16>1,H16,IF(H17>1,H17,IF(H18>1,H18,IF(H19>1,H19,IF(H20>1,H20,IF(H21>1,H21,IF(H22>1,H22,IF(H23>1,H23,"")))))))))))))),IF(H31=H10,IF(H11>1,H11,IF(H12>1,H12,IF(H13>1,H13,IF(H14>1,H14,IF(H15>1,H15,IF(H16>1,H16,IF(H17>1,H17,IF(H18>1,H18,IF(H19>1,H19,IF(H20>1,H20,IF(H21>1,H21,IF(H22>1,H22,IF(H23>1,H23,""))))))))))))),IF(H31=H11,IF(H12>1,H12,IF(H13>1,H13,IF(H14>1,H14,IF(H15>1,H15,IF(H16>1,H16,IF(H17>1,H17,IF(H18>1,H18,IF(H19>1,H19,IF(H20>1,H20,IF(H21>1,H21,IF(H22>1,H22,IF(H23>1,H23,"")))))))))))),IF(H31=H12,IF(H13>1,H13,IF(H14>1,H14,IF(H15>1,H15,IF(H16>1,H16,IF(H17>1,H17,IF(H18>1,H18,IF(H19>1,H19,IF(H20>1,H20,IF(H21>1,H21,IF(H22>1,H22,IF(H23>1,H23,""))))))))))),IF(H31=H13,IF(H14>1,H14,IF(H15>1,H15,IF(H16>1,H16,IF(H17>1,H17,IF(H18>1,H18,IF(H19>1,H19,IF(H20>1,H20,IF(H21>1,H21,IF(H22>1,H22,IF(H23>1,H23,"")))))))))),IF(H31=H14,IF(H15>1,H15,IF(H16>1,H16,IF(H17>1,H17,IF(H18>1,H18,IF(H19>1,H19,IF(H20>1,H20,IF(H21>1,H21,IF(H22>1,H22,IF(H23>1,H23,""))))))))),IF(H31=H15,IF(H16>1,H16,IF(H17>1,H17,IF(H18>1,H18,IF(H19>1,H19,IF(H20>1,H20,IF(H21>1,H21,IF(H22>1,H22,IF(H23>1,H23,"")))))))),IF(H31=H16,IF(H17>1,H17,IF(H18>1,H18,IF(H19>1,H19,IF(H20>1,H20,IF(H27>1,H21,IF(H22>1,H22,IF(H23>1,H23,""))))))),IF(H31=H17,IF(H18>1,H18,IF(H19>1,H19,IF(H20>1,H20,IF(H21>1,H21,IF(H22>1,H22,IF(H23>1,H23,"")))))),IF(H31=H18,IF(H19>1,H19,IF(H20>1,H20,IF(H21>1,H21,IF(H22>1,H22,IF(H23>1,H23,""))))),IF(H31=H19,IF(H20>1,H20,IF(H21>1,H21,IF(H22>1,H22,IF(H23>1,H23,"")))),IF(H31=H20,IF(H21>1,H21,IF(H22>1,H22,IF(H23>1,H23,""))),IF(H31=H21,IF(H22>1,H22,IF(H23>1,H23,"")),IF(H31=H22,IF(H23>1,H23,""),"")))))))))))))))))))) -> 0
A33: 9 | B33: =IF(B32=B3,IF(B4>1,B4,IF(B5>1,B5,IF(B6>1,B6,IF(B7>1,B7,IF(B8>1,B8,IF(B9>1,B9,IF(B10>1,B10,IF(B11>1,B11,IF(B19>1,B12,IF(B13>1,B13,IF(B14>1,B14,IF(B15>1,B15,IF(B16>1,B16,IF(B24>1,B17,IF(B18>1,B18,IF(B19>1,B19,IF(B20>1,B20,IF(B21>1,B21,IF(B22>1,B22,IF(B23>1,B23,"")))))))))))))))))))),IF(B32=B4,IF(B5>1,B5,IF(B6>1,B6,IF(B7>1,B7,IF(B8>1,B8,IF(B9>1,B9,IF(B10>1,B10,IF(B11>1,B11,IF(B12>1,B12,IF(B13>1,B13,IF(B14>1,B14,IF(B15>1,B15,IF(B16>1,B16,IF(B17>1,B17,IF(B18>1,B18,IF(B19>1,B19,IF(B20>1,B20,IF(B21>1,B21,IF(B22>1,B22,IF(B23>1,B23,""))))))))))))))))))),IF(B32=B5,IF(B6>1,B6,IF(B7>1,B7,IF(B8>1,B8,IF(B9>1,B9,IF(B10>1,B10,IF(B11>1,B11,IF(B12>1,B12,IF(B13>1,B13,IF(B14>1,B14,IF(B15>1,B15,IF(B16>1,B16,IF(B17>1,B17,IF(B18>1,B18,IF(B19>1,B19,IF(B20>1,B20,IF(B21>1,B21,IF(B22>1,B22,IF(B23>1,B23,"")))))))))))))))))),IF(B32=B6,IF(B7>1,B7,IF(B8>1,B8,IF(B9>1,B9,IF(B10>1,B10,IF(B11>1,B11,IF(B12>1,B12,IF(B13>1,B13,IF(B14>1,B14,IF(B15>1,B15,IF(B16>1,B16,IF(B17>1,B17,IF(B18>1,B18,IF(B19>1,B19,IF(B20>1,B20,IF(B21>1,B21,IF(B22>1,B22,IF(B23>1,B23,""))))))))))))))))),IF(B32=B7,IF(B8>1,B8,IF(B9>1,B9,IF(B10>1,B10,IF(B11>1,B11,IF(B12>1,B12,IF(B13>1,B13,IF(B14>1,B14,IF(B15>1,B15,IF(B16>1,B16,IF(B17>1,B17,IF(B18>1,B18,IF(B19>1,B19,IF(B20>1,B20,IF(B21>1,B21,IF(B22>1,B22,IF(B23>1,B23,"")))))))))))))))),IF(B32=B8,IF(B9>1,B9,IF(B10>1,B10,IF(B11>1,B11,IF(B12>1,B12,IF(B13>1,B13,IF(B14>1,B14,IF(B15>1,B15,IF(B16>1,B16,IF(B17>1,B17,IF(B18>1,B18,IF(B19>1,B19,IF(B20>1,B20,IF(B21>1,B21,IF(B22>1,B22,IF(B23>1,B23,""))))))))))))))),IF(B32=B9,IF(B10>1,B10,IF(B11>1,B11,IF(B12>1,B12,IF(B13>1,B13,IF(B14>1,B14,IF(B15>1,B15,IF(B16>1,B16,IF(B17>1,B17,IF(B18>1,B18,IF(B19>1,B19,IF(B20>1,B20,IF(B21>1,B21,IF(B22>1,B22,IF(B23>1,B23,"")))))))))))))),IF(B32=B10,IF(B11>1,B11,IF(B12>1,B12,IF(B13>1,B13,IF(B14>1,B14,IF(B15>1,B15,IF(B16>1,B16,IF(B17>1,B17,IF(B18>1,B18,IF(B19>1,B19,IF(B20>1,B20,IF(B21>1,B21,IF(B22>1,B22,IF(B23>1,B23,""))))))))))))),IF(B32=B11,IF(B12>1,B12,IF(B13>1,B13,IF(B14>1,B14,IF(B15>1,B15,IF(B16>1,B16,IF(B17>1,B17,IF(B18>1,B18,IF(B19>1,B19,IF(B20>1,B20,IF(B21>1,B21,IF(B22>1,B22,IF(B23>1,B23,"")))))))))))),IF(B32=B12,IF(B13>1,B13,IF(B14>1,B14,IF(B15>1,B15,IF(B16>1,B16,IF(B17>1,B17,IF(B18>1,B18,IF(B19>1,B19,IF(B20>1,B20,IF(B21>1,B21,IF(B22>1,B22,IF(B23>1,B23,""))))))))))),IF(B32=B13,IF(B14>1,B14,IF(B15>1,B15,IF(B16>1,B16,IF(B17>1,B17,IF(B18>1,B18,IF(B19>1,B19,IF(B20>1,B20,IF(B21>1,B21,IF(B22>1,B22,IF(B23>1,B23,"")))))))))),IF(B32=B14,IF(B15>1,B15,IF(B16>1,B16,IF(B17>1,B17,IF(B18>1,B18,IF(B19>1,B19,IF(B20>1,B20,IF(B21>1,B21,IF(B22>1,B22,IF(B23>1,B23,""))))))))),IF(B32=B15,IF(B16>1,B16,IF(B17>1,B17,IF(B18>1,B18,IF(B19>1,B19,IF(B20>1,B20,IF(B21>1,B21,IF(B22>1,B22,IF(B23>1,B23,"")))))))),IF(B32=B16,IF(B17>1,B17,IF(B18>1,B18,IF(B19>1,B19,IF(B20>1,B20,IF(B28>1,B21,IF(B22>1,B22,IF(B23>1,B23,""))))))),IF(B32=B17,IF(B18>1,B18,IF(B19>1,B19,IF(B20>1,B20,IF(B21>1,B21,IF(B22>1,B22,IF(B23>1,B23,"")))))),IF(B32=B18,IF(B19>1,B19,IF(B20>1,B20,IF(B21>1,B21,IF(B22>1,B22,IF(B23>1,B23,""))))),IF(B32=B19,IF(B20>1,B20,IF(B21>1,B21,IF(B22>1,B22,IF(B23>1,B23,"")))),IF(B32=B20,IF(B21>1,B21,IF(B22>1,B22,IF(B23>1,B23,""))),IF(B32=B21,IF(B22>1,B22,IF(B23>1,B23,"")),IF(B32=B22,IF(B23>1,B23,""),"")))))))))))))))))))) ->  | C33: 9 | D33: =IF(D32=D3,IF(D4>1,D4,IF(D5>1,D5,IF(D6>1,D6,IF(D7>1,D7,IF(D8>1,D8,IF(D9>1,D9,IF(D10>1,D10,IF(D11>1,D11,IF(D19>1,D12,IF(D13>1,D13,IF(D14>1,D14,IF(D15>1,D15,IF(D16>1,D16,IF(D24>1,D17,IF(D18>1,D18,IF(D19>1,D19,IF(D20>1,D20,IF(D21>1,D21,IF(D22>1,D22,IF(D23>1,D23,"")))))))))))))))))))),IF(D32=D4,IF(D5>1,D5,IF(D6>1,D6,IF(D7>1,D7,IF(D8>1,D8,IF(D9>1,D9,IF(D10>1,D10,IF(D11>1,D11,IF(D12>1,D12,IF(D13>1,D13,IF(D14>1,D14,IF(D15>1,D15,IF(D16>1,D16,IF(D17>1,D17,IF(D18>1,D18,IF(D19>1,D19,IF(D20>1,D20,IF(D21>1,D21,IF(D22>1,D22,IF(D23>1,D23,""))))))))))))))))))),IF(D32=D5,IF(D6>1,D6,IF(D7>1,D7,IF(D8>1,D8,IF(D9>1,D9,IF(D10>1,D10,IF(D11>1,D11,IF(D12>1,D12,IF(D13>1,D13,IF(D14>1,D14,IF(D15>1,D15,IF(D16>1,D16,IF(D17>1,D17,IF(D18>1,D18,IF(D19>1,D19,IF(D20>1,D20,IF(D21>1,D21,IF(D22>1,D22,IF(D23>1,D23,"")))))))))))))))))),IF(D32=D6,IF(D7>1,D7,IF(D8>1,D8,IF(D9>1,D9,IF(D10>1,D10,IF(D11>1,D11,IF(D12>1,D12,IF(D13>1,D13,IF(D14>1,D14,IF(D15>1,D15,IF(D16>1,D16,IF(D17>1,D17,IF(D18>1,D18,IF(D19>1,D19,IF(D20>1,D20,IF(D21>1,D21,IF(D22>1,D22,IF(D23>1,D23,""))))))))))))))))),IF(D32=D7,IF(D8>1,D8,IF(D9>1,D9,IF(D10>1,D10,IF(D11>1,D11,IF(D12>1,D12,IF(D13>1,D13,IF(D14>1,D14,IF(D15>1,D15,IF(D16>1,D16,IF(D17>1,D17,IF(D18>1,D18,IF(D19>1,D19,IF(D20>1,D20,IF(D21>1,D21,IF(D22>1,D22,IF(D23>1,D23,"")))))))))))))))),IF(D32=D8,IF(D9>1,D9,IF(D10>1,D10,IF(D11>1,D11,IF(D12>1,D12,IF(D13>1,D13,IF(D14>1,D14,IF(D15>1,D15,IF(D16>1,D16,IF(D17>1,D17,IF(D18>1,D18,IF(D19>1,D19,IF(D20>1,D20,IF(D21>1,D21,IF(D22>1,D22,IF(D23>1,D23,""))))))))))))))),IF(D32=D9,IF(D10>1,D10,IF(D11>1,D11,IF(D12>1,D12,IF(D13>1,D13,IF(D14>1,D14,IF(D15>1,D15,IF(D16>1,D16,IF(D17>1,D17,IF(D18>1,D18,IF(D19>1,D19,IF(D20>1,D20,IF(D21>1,D21,IF(D22>1,D22,IF(D23>1,D23,"")))))))))))))),IF(D32=D10,IF(D11>1,D11,IF(D12>1,D12,IF(D13>1,D13,IF(D14>1,D14,IF(D15>1,D15,IF(D16>1,D16,IF(D17>1,D17,IF(D18>1,D18,IF(D19>1,D19,IF(D20>1,D20,IF(D21>1,D21,IF(D22>1,D22,IF(D23>1,D23,""))))))))))))),IF(D32=D11,IF(D12>1,D12,IF(D13>1,D13,IF(D14>1,D14,IF(D15>1,D15,IF(D16>1,D16,IF(D17>1,D17,IF(D18>1,D18,IF(D19>1,D19,IF(D20>1,D20,IF(D21>1,D21,IF(D22>1,D22,IF(D23>1,D23,"")))))))))))),IF(D32=D12,IF(D13>1,D13,IF(D14>1,D14,IF(D15>1,D15,IF(D16>1,D16,IF(D17>1,D17,IF(D18>1,D18,IF(D19>1,D19,IF(D20>1,D20,IF(D21>1,D21,IF(D22>1,D22,IF(D23>1,D23,""))))))))))),IF(D32=D13,IF(D14>1,D14,IF(D15>1,D15,IF(D16>1,D16,IF(D17>1,D17,IF(D18>1,D18,IF(D19>1,D19,IF(D20>1,D20,IF(D21>1,D21,IF(D22>1,D22,IF(D23>1,D23,"")))))))))),IF(D32=D14,IF(D15>1,D15,IF(D16>1,D16,IF(D17>1,D17,IF(D18>1,D18,IF(D19>1,D19,IF(D20>1,D20,IF(D21>1,D21,IF(D22>1,D22,IF(D23>1,D23,""))))))))),IF(D32=D15,IF(D16>1,D16,IF(D17>1,D17,IF(D18>1,D18,IF(D19>1,D19,IF(D20>1,D20,IF(D21>1,D21,IF(D22>1,D22,IF(D23>1,D23,"")))))))),IF(D32=D16,IF(D17>1,D17,IF(D18>1,D18,IF(D19>1,D19,IF(D20>1,D20,IF(D28>1,D21,IF(D22>1,D22,IF(D23>1,D23,""))))))),IF(D32=D17,IF(D18>1,D18,IF(D19>1,D19,IF(D20>1,D20,IF(D21>1,D21,IF(D22>1,D22,IF(D23>1,D23,"")))))),IF(D32=D18,IF(D19>1,D19,IF(D20>1,D20,IF(D21>1,D21,IF(D22>1,D22,IF(D23>1,D23,""))))),IF(D32=D19,IF(D20>1,D20,IF(D21>1,D21,IF(D22>1,D22,IF(D23>1,D23,"")))),IF(D32=D20,IF(D21>1,D21,IF(D22>1,D22,IF(D23>1,D23,""))),IF(D32=D21,IF(D22>1,D22,IF(D23>1,D23,"")),IF(D32=D22,IF(D23>1,D23,""),"")))))))))))))))))))) ->  | E33: 9 | F33: =IF(F32=F3,IF(F4>1,F4,IF(F5>1,F5,IF(F6>1,F6,IF(F7>1,F7,IF(F8>1,F8,IF(F9>1,F9,IF(F10>1,F10,IF(F11>1,F11,IF(F19>1,F12,IF(F13>1,F13,IF(F14>1,F14,IF(F15>1,F15,IF(F16>1,F16,IF(F24>1,F17,IF(F18>1,F18,IF(F19>1,F19,IF(F20>1,F20,IF(F21>1,F21,IF(F22>1,F22,IF(F23>1,F23,"")))))))))))))))))))),IF(F32=F4,IF(F5>1,F5,IF(F6>1,F6,IF(F7>1,F7,IF(F8>1,F8,IF(F9>1,F9,IF(F10>1,F10,IF(F11>1,F11,IF(F12>1,F12,IF(F13>1,F13,IF(F14>1,F14,IF(F15>1,F15,IF(F16>1,F16,IF(F17>1,F17,IF(F18>1,F18,IF(F19>1,F19,IF(F20>1,F20,IF(F21>1,F21,IF(F22>1,F22,IF(F23>1,F23,""))))))))))))))))))),IF(F32=F5,IF(F6>1,F6,IF(F7>1,F7,IF(F8>1,F8,IF(F9>1,F9,IF(F10>1,F10,IF(F11>1,F11,IF(F12>1,F12,IF(F13>1,F13,IF(F14>1,F14,IF(F15>1,F15,IF(F16>1,F16,IF(F17>1,F17,IF(F18>1,F18,IF(F19>1,F19,IF(F20>1,F20,IF(F21>1,F21,IF(F22>1,F22,IF(F23>1,F23,"")))))))))))))))))),IF(F32=F6,IF(F7>1,F7,IF(F8>1,F8,IF(F9>1,F9,IF(F10>1,F10,IF(F11>1,F11,IF(F12>1,F12,IF(F13>1,F13,IF(F14>1,F14,IF(F15>1,F15,IF(F16>1,F16,IF(F17>1,F17,IF(F18>1,F18,IF(F19>1,F19,IF(F20>1,F20,IF(F21>1,F21,IF(F22>1,F22,IF(F23>1,F23,""))))))))))))))))),IF(F32=F7,IF(F8>1,F8,IF(F9>1,F9,IF(F10>1,F10,IF(F11>1,F11,IF(F12>1,F12,IF(F13>1,F13,IF(F14>1,F14,IF(F15>1,F15,IF(F16>1,F16,IF(F17>1,F17,IF(F18>1,F18,IF(F19>1,F19,IF(F20>1,F20,IF(F21>1,F21,IF(F22>1,F22,IF(F23>1,F23,"")))))))))))))))),IF(F32=F8,IF(F9>1,F9,IF(F10>1,F10,IF(F11>1,F11,IF(F12>1,F12,IF(F13>1,F13,IF(F14>1,F14,IF(F15>1,F15,IF(F16>1,F16,IF(F17>1,F17,IF(F18>1,F18,IF(F19>1,F19,IF(F20>1,F20,IF(F21>1,F21,IF(F22>1,F22,IF(F23>1,F23,""))))))))))))))),IF(F32=F9,IF(F10>1,F10,IF(F11>1,F11,IF(F12>1,F12,IF(F13>1,F13,IF(F14>1,F14,IF(F15>1,F15,IF(F16>1,F16,IF(F17>1,F17,IF(F18>1,F18,IF(F19>1,F19,IF(F20>1,F20,IF(F21>1,F21,IF(F22>1,F22,IF(F23>1,F23,"")))))))))))))),IF(F32=F10,IF(F11>1,F11,IF(F12>1,F12,IF(F13>1,F13,IF(F14>1,F14,IF(F15>1,F15,IF(F16>1,F16,IF(F17>1,F17,IF(F18>1,F18,IF(F19>1,F19,IF(F20>1,F20,IF(F21>1,F21,IF(F22>1,F22,IF(F23>1,F23,""))))))))))))),IF(F32=F11,IF(F12>1,F12,IF(F13>1,F13,IF(F14>1,F14,IF(F15>1,F15,IF(F16>1,F16,IF(F17>1,F17,IF(F18>1,F18,IF(F19>1,F19,IF(F20>1,F20,IF(F21>1,F21,IF(F22>1,F22,IF(F23>1,F23,"")))))))))))),IF(F32=F12,IF(F13>1,F13,IF(F14>1,F14,IF(F15>1,F15,IF(F16>1,F16,IF(F17>1,F17,IF(F18>1,F18,IF(F19>1,F19,IF(F20>1,F20,IF(F21>1,F21,IF(F22>1,F22,IF(F23>1,F23,""))))))))))),IF(F32=F13,IF(F14>1,F14,IF(F15>1,F15,IF(F16>1,F16,IF(F17>1,F17,IF(F18>1,F18,IF(F19>1,F19,IF(F20>1,F20,IF(F21>1,F21,IF(F22>1,F22,IF(F23>1,F23,"")))))))))),IF(F32=F14,IF(F15>1,F15,IF(F16>1,F16,IF(F17>1,F17,IF(F18>1,F18,IF(F19>1,F19,IF(F20>1,F20,IF(F21>1,F21,IF(F22>1,F22,IF(F23>1,F23,""))))))))),IF(F32=F15,IF(F16>1,F16,IF(F17>1,F17,IF(F18>1,F18,IF(F19>1,F19,IF(F20>1,F20,IF(F21>1,F21,IF(F22>1,F22,IF(F23>1,F23,"")))))))),IF(F32=F16,IF(F17>1,F17,IF(F18>1,F18,IF(F19>1,F19,IF(F20>1,F20,IF(F28>1,F21,IF(F22>1,F22,IF(F23>1,F23,""))))))),IF(F32=F17,IF(F18>1,F18,IF(F19>1,F19,IF(F20>1,F20,IF(F21>1,F21,IF(F22>1,F22,IF(F23>1,F23,"")))))),IF(F32=F18,IF(F19>1,F19,IF(F20>1,F20,IF(F21>1,F21,IF(F22>1,F22,IF(F23>1,F23,""))))),IF(F32=F19,IF(F20>1,F20,IF(F21>1,F21,IF(F22>1,F22,IF(F23>1,F23,"")))),IF(F32=F20,IF(F21>1,F21,IF(F22>1,F22,IF(F23>1,F23,""))),IF(F32=F21,IF(F22>1,F22,IF(F23>1,F23,"")),IF(F32=F22,IF(F23>1,F23,""),"")))))))))))))))))))) ->  | G33: 9 | H33: =IF(H32=H3,IF(H4>1,H4,IF(H5>1,H5,IF(H6>1,H6,IF(H7>1,H7,IF(H8>1,H8,IF(H9>1,H9,IF(H10>1,H10,IF(H11>1,H11,IF(H19>1,H12,IF(H13>1,H13,IF(H14>1,H14,IF(H15>1,H15,IF(H16>1,H16,IF(H24>1,H17,IF(H18>1,H18,IF(H19>1,H19,IF(H20>1,H20,IF(H21>1,H21,IF(H22>1,H22,IF(H23>1,H23,"")))))))))))))))))))),IF(H32=H4,IF(H5>1,H5,IF(H6>1,H6,IF(H7>1,H7,IF(H8>1,H8,IF(H9>1,H9,IF(H10>1,H10,IF(H11>1,H11,IF(H12>1,H12,IF(H13>1,H13,IF(H14>1,H14,IF(H15>1,H15,IF(H16>1,H16,IF(H17>1,H17,IF(H18>1,H18,IF(H19>1,H19,IF(H20>1,H20,IF(H21>1,H21,IF(H22>1,H22,IF(H23>1,H23,""))))))))))))))))))),IF(H32=H5,IF(H6>1,H6,IF(H7>1,H7,IF(H8>1,H8,IF(H9>1,H9,IF(H10>1,H10,IF(H11>1,H11,IF(H12>1,H12,IF(H13>1,H13,IF(H14>1,H14,IF(H15>1,H15,IF(H16>1,H16,IF(H17>1,H17,IF(H18>1,H18,IF(H19>1,H19,IF(H20>1,H20,IF(H21>1,H21,IF(H22>1,H22,IF(H23>1,H23,"")))))))))))))))))),IF(H32=H6,IF(H7>1,H7,IF(H8>1,H8,IF(H9>1,H9,IF(H10>1,H10,IF(H11>1,H11,IF(H12>1,H12,IF(H13>1,H13,IF(H14>1,H14,IF(H15>1,H15,IF(H16>1,H16,IF(H17>1,H17,IF(H18>1,H18,IF(H19>1,H19,IF(H20>1,H20,IF(H21>1,H21,IF(H22>1,H22,IF(H23>1,H23,""))))))))))))))))),IF(H32=H7,IF(H8>1,H8,IF(H9>1,H9,IF(H10>1,H10,IF(H11>1,H11,IF(H12>1,H12,IF(H13>1,H13,IF(H14>1,H14,IF(H15>1,H15,IF(H16>1,H16,IF(H17>1,H17,IF(H18>1,H18,IF(H19>1,H19,IF(H20>1,H20,IF(H21>1,H21,IF(H22>1,H22,IF(H23>1,H23,"")))))))))))))))),IF(H32=H8,IF(H9>1,H9,IF(H10>1,H10,IF(H11>1,H11,IF(H12>1,H12,IF(H13>1,H13,IF(H14>1,H14,IF(H15>1,H15,IF(H16>1,H16,IF(H17>1,H17,IF(H18>1,H18,IF(H19>1,H19,IF(H20>1,H20,IF(H21>1,H21,IF(H22>1,H22,IF(H23>1,H23,""))))))))))))))),IF(H32=H9,IF(H10>1,H10,IF(H11>1,H11,IF(H12>1,H12,IF(H13>1,H13,IF(H14>1,H14,IF(H15>1,H15,IF(H16>1,H16,IF(H17>1,H17,IF(H18>1,H18,IF(H19>1,H19,IF(H20>1,H20,IF(H21>1,H21,IF(H22>1,H22,IF(H23>1,H23,"")))))))))))))),IF(H32=H10,IF(H11>1,H11,IF(H12>1,H12,IF(H13>1,H13,IF(H14>1,H14,IF(H15>1,H15,IF(H16>1,H16,IF(H17>1,H17,IF(H18>1,H18,IF(H19>1,H19,IF(H20>1,H20,IF(H21>1,H21,IF(H22>1,H22,IF(H23>1,H23,""))))))))))))),IF(H32=H11,IF(H12>1,H12,IF(H13>1,H13,IF(H14>1,H14,IF(H15>1,H15,IF(H16>1,H16,IF(H17>1,H17,IF(H18>1,H18,IF(H19>1,H19,IF(H20>1,H20,IF(H21>1,H21,IF(H22>1,H22,IF(H23>1,H23,"")))))))))))),IF(H32=H12,IF(H13>1,H13,IF(H14>1,H14,IF(H15>1,H15,IF(H16>1,H16,IF(H17>1,H17,IF(H18>1,H18,IF(H19>1,H19,IF(H20>1,H20,IF(H21>1,H21,IF(H22>1,H22,IF(H23>1,H23,""))))))))))),IF(H32=H13,IF(H14>1,H14,IF(H15>1,H15,IF(H16>1,H16,IF(H17>1,H17,IF(H18>1,H18,IF(H19>1,H19,IF(H20>1,H20,IF(H21>1,H21,IF(H22>1,H22,IF(H23>1,H23,"")))))))))),IF(H32=H14,IF(H15>1,H15,IF(H16>1,H16,IF(H17>1,H17,IF(H18>1,H18,IF(H19>1,H19,IF(H20>1,H20,IF(H21>1,H21,IF(H22>1,H22,IF(H23>1,H23,""))))))))),IF(H32=H15,IF(H16>1,H16,IF(H17>1,H17,IF(H18>1,H18,IF(H19>1,H19,IF(H20>1,H20,IF(H21>1,H21,IF(H22>1,H22,IF(H23>1,H23,"")))))))),IF(H32=H16,IF(H17>1,H17,IF(H18>1,H18,IF(H19>1,H19,IF(H20>1,H20,IF(H28>1,H21,IF(H22>1,H22,IF(H23>1,H23,""))))))),IF(H32=H17,IF(H18>1,H18,IF(H19>1,H19,IF(H20>1,H20,IF(H21>1,H21,IF(H22>1,H22,IF(H23>1,H23,"")))))),IF(H32=H18,IF(H19>1,H19,IF(H20>1,H20,IF(H21>1,H21,IF(H22>1,H22,IF(H23>1,H23,""))))),IF(H32=H19,IF(H20>1,H20,IF(H21>1,H21,IF(H22>1,H22,IF(H23>1,H23,"")))),IF(H32=H20,IF(H21>1,H21,IF(H22>1,H22,IF(H23>1,H23,""))),IF(H32=H21,IF(H22>1,H22,IF(H23>1,H23,"")),IF(H32=H22,IF(H23>1,H23,""),"")))))))))))))))))))) -> 0
A34: 10 | B34: =IF(B33=B3,IF(B4>1,B4,IF(B5>1,B5,IF(B6>1,B6,IF(B7>1,B7,IF(B8>1,B8,IF(B9>1,B9,IF(B10>1,B10,IF(B11>1,B11,IF(B20>1,B12,IF(B13>1,B13,IF(B14>1,B14,IF(B15>1,B15,IF(B16>1,B16,IF(B25>1,B17,IF(B18>1,B18,IF(B19>1,B19,IF(B20>1,B20,IF(B21>1,B21,IF(B22>1,B22,IF(B23>1,B23,"")))))))))))))))))))),IF(B33=B4,IF(B5>1,B5,IF(B6>1,B6,IF(B7>1,B7,IF(B8>1,B8,IF(B9>1,B9,IF(B10>1,B10,IF(B11>1,B11,IF(B12>1,B12,IF(B13>1,B13,IF(B14>1,B14,IF(B15>1,B15,IF(B16>1,B16,IF(B17>1,B17,IF(B18>1,B18,IF(B19>1,B19,IF(B20>1,B20,IF(B21>1,B21,IF(B22>1,B22,IF(B23>1,B23,""))))))))))))))))))),IF(B33=B5,IF(B6>1,B6,IF(B7>1,B7,IF(B8>1,B8,IF(B9>1,B9,IF(B10>1,B10,IF(B11>1,B11,IF(B12>1,B12,IF(B13>1,B13,IF(B14>1,B14,IF(B15>1,B15,IF(B16>1,B16,IF(B17>1,B17,IF(B18>1,B18,IF(B19>1,B19,IF(B20>1,B20,IF(B21>1,B21,IF(B22>1,B22,IF(B23>1,B23,"")))))))))))))))))),IF(B33=B6,IF(B7>1,B7,IF(B8>1,B8,IF(B9>1,B9,IF(B10>1,B10,IF(B11>1,B11,IF(B12>1,B12,IF(B13>1,B13,IF(B14>1,B14,IF(B15>1,B15,IF(B16>1,B16,IF(B17>1,B17,IF(B18>1,B18,IF(B19>1,B19,IF(B20>1,B20,IF(B21>1,B21,IF(B22>1,B22,IF(B23>1,B23,""))))))))))))))))),IF(B33=B7,IF(B8>1,B8,IF(B9>1,B9,IF(B10>1,B10,IF(B11>1,B11,IF(B12>1,B12,IF(B13>1,B13,IF(B14>1,B14,IF(B15>1,B15,IF(B16>1,B16,IF(B17>1,B17,IF(B18>1,B18,IF(B19>1,B19,IF(B20>1,B20,IF(B21>1,B21,IF(B22>1,B22,IF(B23>1,B23,"")))))))))))))))),IF(B33=B8,IF(B9>1,B9,IF(B10>1,B10,IF(B11>1,B11,IF(B12>1,B12,IF(B13>1,B13,IF(B14>1,B14,IF(B15>1,B15,IF(B16>1,B16,IF(B17>1,B17,IF(B18>1,B18,IF(B19>1,B19,IF(B20>1,B20,IF(B21>1,B21,IF(B22>1,B22,IF(B23>1,B23,""))))))))))))))),IF(B33=B9,IF(B10>1,B10,IF(B11>1,B11,IF(B12>1,B12,IF(B13>1,B13,IF(B14>1,B14,IF(B15>1,B15,IF(B16>1,B16,IF(B17>1,B17,IF(B18>1,B18,IF(B19>1,B19,IF(B20>1,B20,IF(B21>1,B21,IF(B22>1,B22,IF(B23>1,B23,"")))))))))))))),IF(B33=B10,IF(B11>1,B11,IF(B12>1,B12,IF(B13>1,B13,IF(B14>1,B14,IF(B15>1,B15,IF(B16>1,B16,IF(B17>1,B17,IF(B18>1,B18,IF(B19>1,B19,IF(B20>1,B20,IF(B21>1,B21,IF(B22>1,B22,IF(B23>1,B23,""))))))))))))),IF(B33=B11,IF(B12>1,B12,IF(B13>1,B13,IF(B14>1,B14,IF(B15>1,B15,IF(B16>1,B16,IF(B17>1,B17,IF(B18>1,B18,IF(B19>1,B19,IF(B20>1,B20,IF(B21>1,B21,IF(B22>1,B22,IF(B23>1,B23,"")))))))))))),IF(B33=B12,IF(B13>1,B13,IF(B14>1,B14,IF(B15>1,B15,IF(B16>1,B16,IF(B17>1,B17,IF(B18>1,B18,IF(B19>1,B19,IF(B20>1,B20,IF(B21>1,B21,IF(B22>1,B22,IF(B23>1,B23,""))))))))))),IF(B33=B13,IF(B14>1,B14,IF(B15>1,B15,IF(B16>1,B16,IF(B17>1,B17,IF(B18>1,B18,IF(B19>1,B19,IF(B20>1,B20,IF(B21>1,B21,IF(B22>1,B22,IF(B23>1,B23,"")))))))))),IF(B33=B14,IF(B15>1,B15,IF(B16>1,B16,IF(B17>1,B17,IF(B18>1,B18,IF(B19>1,B19,IF(B20>1,B20,IF(B21>1,B21,IF(B22>1,B22,IF(B23>1,B23,""))))))))),IF(B33=B15,IF(B16>1,B16,IF(B17>1,B17,IF(B18>1,B18,IF(B19>1,B19,IF(B20>1,B20,IF(B21>1,B21,IF(B22>1,B22,IF(B23>1,B23,"")))))))),IF(B33=B16,IF(B17>1,B17,IF(B18>1,B18,IF(B19>1,B19,IF(B20>1,B20,IF(B29>1,B21,IF(B22>1,B22,IF(B23>1,B23,""))))))),IF(B33=B17,IF(B18>1,B18,IF(B19>1,B19,IF(B20>1,B20,IF(B21>1,B21,IF(B22>1,B22,IF(B23>1,B23,"")))))),IF(B33=B18,IF(B19>1,B19,IF(B20>1,B20,IF(B21>1,B21,IF(B22>1,B22,IF(B23>1,B23,""))))),IF(B33=B19,IF(B20>1,B20,IF(B21>1,B21,IF(B22>1,B22,IF(B23>1,B23,"")))),IF(B33=B20,IF(B21>1,B21,IF(B22>1,B22,IF(B23>1,B23,""))),IF(B33=B21,IF(B22>1,B22,IF(B23>1,B23,"")),IF(B33=B22,IF(B23>1,B23,""),"")))))))))))))))))))) ->  | C34: 10 | D34: =IF(D33=D3,IF(D4>1,D4,IF(D5>1,D5,IF(D6>1,D6,IF(D7>1,D7,IF(D8>1,D8,IF(D9>1,D9,IF(D10>1,D10,IF(D11>1,D11,IF(D20>1,D12,IF(D13>1,D13,IF(D14>1,D14,IF(D15>1,D15,IF(D16>1,D16,IF(D25>1,D17,IF(D18>1,D18,IF(D19>1,D19,IF(D20>1,D20,IF(D21>1,D21,IF(D22>1,D22,IF(D23>1,D23,"")))))))))))))))))))),IF(D33=D4,IF(D5>1,D5,IF(D6>1,D6,IF(D7>1,D7,IF(D8>1,D8,IF(D9>1,D9,IF(D10>1,D10,IF(D11>1,D11,IF(D12>1,D12,IF(D13>1,D13,IF(D14>1,D14,IF(D15>1,D15,IF(D16>1,D16,IF(D17>1,D17,IF(D18>1,D18,IF(D19>1,D19,IF(D20>1,D20,IF(D21>1,D21,IF(D22>1,D22,IF(D23>1,D23,""))))))))))))))))))),IF(D33=D5,IF(D6>1,D6,IF(D7>1,D7,IF(D8>1,D8,IF(D9>1,D9,IF(D10>1,D10,IF(D11>1,D11,IF(D12>1,D12,IF(D13>1,D13,IF(D14>1,D14,IF(D15>1,D15,IF(D16>1,D16,IF(D17>1,D17,IF(D18>1,D18,IF(D19>1,D19,IF(D20>1,D20,IF(D21>1,D21,IF(D22>1,D22,IF(D23>1,D23,"")))))))))))))))))),IF(D33=D6,IF(D7>1,D7,IF(D8>1,D8,IF(D9>1,D9,IF(D10>1,D10,IF(D11>1,D11,IF(D12>1,D12,IF(D13>1,D13,IF(D14>1,D14,IF(D15>1,D15,IF(D16>1,D16,IF(D17>1,D17,IF(D18>1,D18,IF(D19>1,D19,IF(D20>1,D20,IF(D21>1,D21,IF(D22>1,D22,IF(D23>1,D23,""))))))))))))))))),IF(D33=D7,IF(D8>1,D8,IF(D9>1,D9,IF(D10>1,D10,IF(D11>1,D11,IF(D12>1,D12,IF(D13>1,D13,IF(D14>1,D14,IF(D15>1,D15,IF(D16>1,D16,IF(D17>1,D17,IF(D18>1,D18,IF(D19>1,D19,IF(D20>1,D20,IF(D21>1,D21,IF(D22>1,D22,IF(D23>1,D23,"")))))))))))))))),IF(D33=D8,IF(D9>1,D9,IF(D10>1,D10,IF(D11>1,D11,IF(D12>1,D12,IF(D13>1,D13,IF(D14>1,D14,IF(D15>1,D15,IF(D16>1,D16,IF(D17>1,D17,IF(D18>1,D18,IF(D19>1,D19,IF(D20>1,D20,IF(D21>1,D21,IF(D22>1,D22,IF(D23>1,D23,""))))))))))))))),IF(D33=D9,IF(D10>1,D10,IF(D11>1,D11,IF(D12>1,D12,IF(D13>1,D13,IF(D14>1,D14,IF(D15>1,D15,IF(D16>1,D16,IF(D17>1,D17,IF(D18>1,D18,IF(D19>1,D19,IF(D20>1,D20,IF(D21>1,D21,IF(D22>1,D22,IF(D23>1,D23,"")))))))))))))),IF(D33=D10,IF(D11>1,D11,IF(D12>1,D12,IF(D13>1,D13,IF(D14>1,D14,IF(D15>1,D15,IF(D16>1,D16,IF(D17>1,D17,IF(D18>1,D18,IF(D19>1,D19,IF(D20>1,D20,IF(D21>1,D21,IF(D22>1,D22,IF(D23>1,D23,""))))))))))))),IF(D33=D11,IF(D12>1,D12,IF(D13>1,D13,IF(D14>1,D14,IF(D15>1,D15,IF(D16>1,D16,IF(D17>1,D17,IF(D18>1,D18,IF(D19>1,D19,IF(D20>1,D20,IF(D21>1,D21,IF(D22>1,D22,IF(D23>1,D23,"")))))))))))),IF(D33=D12,IF(D13>1,D13,IF(D14>1,D14,IF(D15>1,D15,IF(D16>1,D16,IF(D17>1,D17,IF(D18>1,D18,IF(D19>1,D19,IF(D20>1,D20,IF(D21>1,D21,IF(D22>1,D22,IF(D23>1,D23,""))))))))))),IF(D33=D13,IF(D14>1,D14,IF(D15>1,D15,IF(D16>1,D16,IF(D17>1,D17,IF(D18>1,D18,IF(D19>1,D19,IF(D20>1,D20,IF(D21>1,D21,IF(D22>1,D22,IF(D23>1,D23,"")))))))))),IF(D33=D14,IF(D15>1,D15,IF(D16>1,D16,IF(D17>1,D17,IF(D18>1,D18,IF(D19>1,D19,IF(D20>1,D20,IF(D21>1,D21,IF(D22>1,D22,IF(D23>1,D23,""))))))))),IF(D33=D15,IF(D16>1,D16,IF(D17>1,D17,IF(D18>1,D18,IF(D19>1,D19,IF(D20>1,D20,IF(D21>1,D21,IF(D22>1,D22,IF(D23>1,D23,"")))))))),IF(D33=D16,IF(D17>1,D17,IF(D18>1,D18,IF(D19>1,D19,IF(D20>1,D20,IF(D29>1,D21,IF(D22>1,D22,IF(D23>1,D23,""))))))),IF(D33=D17,IF(D18>1,D18,IF(D19>1,D19,IF(D20>1,D20,IF(D21>1,D21,IF(D22>1,D22,IF(D23>1,D23,"")))))),IF(D33=D18,IF(D19>1,D19,IF(D20>1,D20,IF(D21>1,D21,IF(D22>1,D22,IF(D23>1,D23,""))))),IF(D33=D19,IF(D20>1,D20,IF(D21>1,D21,IF(D22>1,D22,IF(D23>1,D23,"")))),IF(D33=D20,IF(D21>1,D21,IF(D22>1,D22,IF(D23>1,D23,""))),IF(D33=D21,IF(D22>1,D22,IF(D23>1,D23,"")),IF(D33=D22,IF(D23>1,D23,""),"")))))))))))))))))))) ->  | E34: 10 | F34: =IF(F33=F3,IF(F4>1,F4,IF(F5>1,F5,IF(F6>1,F6,IF(F7>1,F7,IF(F8>1,F8,IF(F9>1,F9,IF(F10>1,F10,IF(F11>1,F11,IF(F20>1,F12,IF(F13>1,F13,IF(F14>1,F14,IF(F15>1,F15,IF(F16>1,F16,IF(F25>1,F17,IF(F18>1,F18,IF(F19>1,F19,IF(F20>1,F20,IF(F21>1,F21,IF(F22>1,F22,IF(F23>1,F23,"")))))))))))))))))))),IF(F33=F4,IF(F5>1,F5,IF(F6>1,F6,IF(F7>1,F7,IF(F8>1,F8,IF(F9>1,F9,IF(F10>1,F10,IF(F11>1,F11,IF(F12>1,F12,IF(F13>1,F13,IF(F14>1,F14,IF(F15>1,F15,IF(F16>1,F16,IF(F17>1,F17,IF(F18>1,F18,IF(F19>1,F19,IF(F20>1,F20,IF(F21>1,F21,IF(F22>1,F22,IF(F23>1,F23,""))))))))))))))))))),IF(F33=F5,IF(F6>1,F6,IF(F7>1,F7,IF(F8>1,F8,IF(F9>1,F9,IF(F10>1,F10,IF(F11>1,F11,IF(F12>1,F12,IF(F13>1,F13,IF(F14>1,F14,IF(F15>1,F15,IF(F16>1,F16,IF(F17>1,F17,IF(F18>1,F18,IF(F19>1,F19,IF(F20>1,F20,IF(F21>1,F21,IF(F22>1,F22,IF(F23>1,F23,"")))))))))))))))))),IF(F33=F6,IF(F7>1,F7,IF(F8>1,F8,IF(F9>1,F9,IF(F10>1,F10,IF(F11>1,F11,IF(F12>1,F12,IF(F13>1,F13,IF(F14>1,F14,IF(F15>1,F15,IF(F16>1,F16,IF(F17>1,F17,IF(F18>1,F18,IF(F19>1,F19,IF(F20>1,F20,IF(F21>1,F21,IF(F22>1,F22,IF(F23>1,F23,""))))))))))))))))),IF(F33=F7,IF(F8>1,F8,IF(F9>1,F9,IF(F10>1,F10,IF(F11>1,F11,IF(F12>1,F12,IF(F13>1,F13,IF(F14>1,F14,IF(F15>1,F15,IF(F16>1,F16,IF(F17>1,F17,IF(F18>1,F18,IF(F19>1,F19,IF(F20>1,F20,IF(F21>1,F21,IF(F22>1,F22,IF(F23>1,F23,"")))))))))))))))),IF(F33=F8,IF(F9>1,F9,IF(F10>1,F10,IF(F11>1,F11,IF(F12>1,F12,IF(F13>1,F13,IF(F14>1,F14,IF(F15>1,F15,IF(F16>1,F16,IF(F17>1,F17,IF(F18>1,F18,IF(F19>1,F19,IF(F20>1,F20,IF(F21>1,F21,IF(F22>1,F22,IF(F23>1,F23,""))))))))))))))),IF(F33=F9,IF(F10>1,F10,IF(F11>1,F11,IF(F12>1,F12,IF(F13>1,F13,IF(F14>1,F14,IF(F15>1,F15,IF(F16>1,F16,IF(F17>1,F17,IF(F18>1,F18,IF(F19>1,F19,IF(F20>1,F20,IF(F21>1,F21,IF(F22>1,F22,IF(F23>1,F23,"")))))))))))))),IF(F33=F10,IF(F11>1,F11,IF(F12>1,F12,IF(F13>1,F13,IF(F14>1,F14,IF(F15>1,F15,IF(F16>1,F16,IF(F17>1,F17,IF(F18>1,F18,IF(F19>1,F19,IF(F20>1,F20,IF(F21>1,F21,IF(F22>1,F22,IF(F23>1,F23,""))))))))))))),IF(F33=F11,IF(F12>1,F12,IF(F13>1,F13,IF(F14>1,F14,IF(F15>1,F15,IF(F16>1,F16,IF(F17>1,F17,IF(F18>1,F18,IF(F19>1,F19,IF(F20>1,F20,IF(F21>1,F21,IF(F22>1,F22,IF(F23>1,F23,"")))))))))))),IF(F33=F12,IF(F13>1,F13,IF(F14>1,F14,IF(F15>1,F15,IF(F16>1,F16,IF(F17>1,F17,IF(F18>1,F18,IF(F19>1,F19,IF(F20>1,F20,IF(F21>1,F21,IF(F22>1,F22,IF(F23>1,F23,""))))))))))),IF(F33=F13,IF(F14>1,F14,IF(F15>1,F15,IF(F16>1,F16,IF(F17>1,F17,IF(F18>1,F18,IF(F19>1,F19,IF(F20>1,F20,IF(F21>1,F21,IF(F22>1,F22,IF(F23>1,F23,"")))))))))),IF(F33=F14,IF(F15>1,F15,IF(F16>1,F16,IF(F17>1,F17,IF(F18>1,F18,IF(F19>1,F19,IF(F20>1,F20,IF(F21>1,F21,IF(F22>1,F22,IF(F23>1,F23,""))))))))),IF(F33=F15,IF(F16>1,F16,IF(F17>1,F17,IF(F18>1,F18,IF(F19>1,F19,IF(F20>1,F20,IF(F21>1,F21,IF(F22>1,F22,IF(F23>1,F23,"")))))))),IF(F33=F16,IF(F17>1,F17,IF(F18>1,F18,IF(F19>1,F19,IF(F20>1,F20,IF(F29>1,F21,IF(F22>1,F22,IF(F23>1,F23,""))))))),IF(F33=F17,IF(F18>1,F18,IF(F19>1,F19,IF(F20>1,F20,IF(F21>1,F21,IF(F22>1,F22,IF(F23>1,F23,"")))))),IF(F33=F18,IF(F19>1,F19,IF(F20>1,F20,IF(F21>1,F21,IF(F22>1,F22,IF(F23>1,F23,""))))),IF(F33=F19,IF(F20>1,F20,IF(F21>1,F21,IF(F22>1,F22,IF(F23>1,F23,"")))),IF(F33=F20,IF(F21>1,F21,IF(F22>1,F22,IF(F23>1,F23,""))),IF(F33=F21,IF(F22>1,F22,IF(F23>1,F23,"")),IF(F33=F22,IF(F23>1,F23,""),"")))))))))))))))))))) ->  | G34: 10 | H34: =IF(H33=H3,IF(H4>1,H4,IF(H5>1,H5,IF(H6>1,H6,IF(H7>1,H7,IF(H8>1,H8,IF(H9>1,H9,IF(H10>1,H10,IF(H11>1,H11,IF(H20>1,H12,IF(H13>1,H13,IF(H14>1,H14,IF(H15>1,H15,IF(H16>1,H16,IF(H25>1,H17,IF(H18>1,H18,IF(H19>1,H19,IF(H20>1,H20,IF(H21>1,H21,IF(H22>1,H22,IF(H23>1,H23,"")))))))))))))))))))),IF(H33=H4,IF(H5>1,H5,IF(H6>1,H6,IF(H7>1,H7,IF(H8>1,H8,IF(H9>1,H9,IF(H10>1,H10,IF(H11>1,H11,IF(H12>1,H12,IF(H13>1,H13,IF(H14>1,H14,IF(H15>1,H15,IF(H16>1,H16,IF(H17>1,H17,IF(H18>1,H18,IF(H19>1,H19,IF(H20>1,H20,IF(H21>1,H21,IF(H22>1,H22,IF(H23>1,H23,""))))))))))))))))))),IF(H33=H5,IF(H6>1,H6,IF(H7>1,H7,IF(H8>1,H8,IF(H9>1,H9,IF(H10>1,H10,IF(H11>1,H11,IF(H12>1,H12,IF(H13>1,H13,IF(H14>1,H14,IF(H15>1,H15,IF(H16>1,H16,IF(H17>1,H17,IF(H18>1,H18,IF(H19>1,H19,IF(H20>1,H20,IF(H21>1,H21,IF(H22>1,H22,IF(H23>1,H23,"")))))))))))))))))),IF(H33=H6,IF(H7>1,H7,IF(H8>1,H8,IF(H9>1,H9,IF(H10>1,H10,IF(H11>1,H11,IF(H12>1,H12,IF(H13>1,H13,IF(H14>1,H14,IF(H15>1,H15,IF(H16>1,H16,IF(H17>1,H17,IF(H18>1,H18,IF(H19>1,H19,IF(H20>1,H20,IF(H21>1,H21,IF(H22>1,H22,IF(H23>1,H23,""))))))))))))))))),IF(H33=H7,IF(H8>1,H8,IF(H9>1,H9,IF(H10>1,H10,IF(H11>1,H11,IF(H12>1,H12,IF(H13>1,H13,IF(H14>1,H14,IF(H15>1,H15,IF(H16>1,H16,IF(H17>1,H17,IF(H18>1,H18,IF(H19>1,H19,IF(H20>1,H20,IF(H21>1,H21,IF(H22>1,H22,IF(H23>1,H23,"")))))))))))))))),IF(H33=H8,IF(H9>1,H9,IF(H10>1,H10,IF(H11>1,H11,IF(H12>1,H12,IF(H13>1,H13,IF(H14>1,H14,IF(H15>1,H15,IF(H16>1,H16,IF(H17>1,H17,IF(H18>1,H18,IF(H19>1,H19,IF(H20>1,H20,IF(H21>1,H21,IF(H22>1,H22,IF(H23>1,H23,""))))))))))))))),IF(H33=H9,IF(H10>1,H10,IF(H11>1,H11,IF(H12>1,H12,IF(H13>1,H13,IF(H14>1,H14,IF(H15>1,H15,IF(H16>1,H16,IF(H17>1,H17,IF(H18>1,H18,IF(H19>1,H19,IF(H20>1,H20,IF(H21>1,H21,IF(H22>1,H22,IF(H23>1,H23,"")))))))))))))),IF(H33=H10,IF(H11>1,H11,IF(H12>1,H12,IF(H13>1,H13,IF(H14>1,H14,IF(H15>1,H15,IF(H16>1,H16,IF(H17>1,H17,IF(H18>1,H18,IF(H19>1,H19,IF(H20>1,H20,IF(H21>1,H21,IF(H22>1,H22,IF(H23>1,H23,""))))))))))))),IF(H33=H11,IF(H12>1,H12,IF(H13>1,H13,IF(H14>1,H14,IF(H15>1,H15,IF(H16>1,H16,IF(H17>1,H17,IF(H18>1,H18,IF(H19>1,H19,IF(H20>1,H20,IF(H21>1,H21,IF(H22>1,H22,IF(H23>1,H23,"")))))))))))),IF(H33=H12,IF(H13>1,H13,IF(H14>1,H14,IF(H15>1,H15,IF(H16>1,H16,IF(H17>1,H17,IF(H18>1,H18,IF(H19>1,H19,IF(H20>1,H20,IF(H21>1,H21,IF(H22>1,H22,IF(H23>1,H23,""))))))))))),IF(H33=H13,IF(H14>1,H14,IF(H15>1,H15,IF(H16>1,H16,IF(H17>1,H17,IF(H18>1,H18,IF(H19>1,H19,IF(H20>1,H20,IF(H21>1,H21,IF(H22>1,H22,IF(H23>1,H23,"")))))))))),IF(H33=H14,IF(H15>1,H15,IF(H16>1,H16,IF(H17>1,H17,IF(H18>1,H18,IF(H19>1,H19,IF(H20>1,H20,IF(H21>1,H21,IF(H22>1,H22,IF(H23>1,H23,""))))))))),IF(H33=H15,IF(H16>1,H16,IF(H17>1,H17,IF(H18>1,H18,IF(H19>1,H19,IF(H20>1,H20,IF(H21>1,H21,IF(H22>1,H22,IF(H23>1,H23,"")))))))),IF(H33=H16,IF(H17>1,H17,IF(H18>1,H18,IF(H19>1,H19,IF(H20>1,H20,IF(H29>1,H21,IF(H22>1,H22,IF(H23>1,H23,""))))))),IF(H33=H17,IF(H18>1,H18,IF(H19>1,H19,IF(H20>1,H20,IF(H21>1,H21,IF(H22>1,H22,IF(H23>1,H23,"")))))),IF(H33=H18,IF(H19>1,H19,IF(H20>1,H20,IF(H21>1,H21,IF(H22>1,H22,IF(H23>1,H23,""))))),IF(H33=H19,IF(H20>1,H20,IF(H21>1,H21,IF(H22>1,H22,IF(H23>1,H23,"")))),IF(H33=H20,IF(H21>1,H21,IF(H22>1,H22,IF(H23>1,H23,""))),IF(H33=H21,IF(H22>1,H22,IF(H23>1,H23,"")),IF(H33=H22,IF(H23>1,H23,""),"")))))))))))))))))))) -> 0
A35: 11 | B35: =IF(B34=B3,IF(B4>1,B4,IF(B5>1,B5,IF(B6>1,B6,IF(B7>1,B7,IF(B8>1,B8,IF(B9>1,B9,IF(B10>1,B10,IF(B11>1,B11,IF(B21>1,B12,IF(B13>1,B13,IF(B14>1,B14,IF(B15>1,B15,IF(B16>1,B16,IF(B26>1,B17,IF(B18>1,B18,IF(B19>1,B19,IF(B20>1,B20,IF(B21>1,B21,IF(B22>1,B22,IF(B23>1,B23,"")))))))))))))))))))),IF(B34=B4,IF(B5>1,B5,IF(B6>1,B6,IF(B7>1,B7,IF(B8>1,B8,IF(B9>1,B9,IF(B10>1,B10,IF(B11>1,B11,IF(B12>1,B12,IF(B13>1,B13,IF(B14>1,B14,IF(B15>1,B15,IF(B16>1,B16,IF(B17>1,B17,IF(B18>1,B18,IF(B19>1,B19,IF(B20>1,B20,IF(B21>1,B21,IF(B22>1,B22,IF(B23>1,B23,""))))))))))))))))))),IF(B34=B5,IF(B6>1,B6,IF(B7>1,B7,IF(B8>1,B8,IF(B9>1,B9,IF(B10>1,B10,IF(B11>1,B11,IF(B12>1,B12,IF(B13>1,B13,IF(B14>1,B14,IF(B15>1,B15,IF(B16>1,B16,IF(B17>1,B17,IF(B18>1,B18,IF(B19>1,B19,IF(B20>1,B20,IF(B21>1,B21,IF(B22>1,B22,IF(B23>1,B23,"")))))))))))))))))),IF(B34=B6,IF(B7>1,B7,IF(B8>1,B8,IF(B9>1,B9,IF(B10>1,B10,IF(B11>1,B11,IF(B12>1,B12,IF(B13>1,B13,IF(B14>1,B14,IF(B15>1,B15,IF(B16>1,B16,IF(B17>1,B17,IF(B18>1,B18,IF(B19>1,B19,IF(B20>1,B20,IF(B21>1,B21,IF(B22>1,B22,IF(B23>1,B23,""))))))))))))))))),IF(B34=B7,IF(B8>1,B8,IF(B9>1,B9,IF(B10>1,B10,IF(B11>1,B11,IF(B12>1,B12,IF(B13>1,B13,IF(B14>1,B14,IF(B15>1,B15,IF(B16>1,B16,IF(B17>1,B17,IF(B18>1,B18,IF(B19>1,B19,IF(B20>1,B20,IF(B21>1,B21,IF(B22>1,B22,IF(B23>1,B23,"")))))))))))))))),IF(B34=B8,IF(B9>1,B9,IF(B10>1,B10,IF(B11>1,B11,IF(B12>1,B12,IF(B13>1,B13,IF(B14>1,B14,IF(B15>1,B15,IF(B16>1,B16,IF(B17>1,B17,IF(B18>1,B18,IF(B19>1,B19,IF(B20>1,B20,IF(B21>1,B21,IF(B22>1,B22,IF(B23>1,B23,""))))))))))))))),IF(B34=B9,IF(B10>1,B10,IF(B11>1,B11,IF(B12>1,B12,IF(B13>1,B13,IF(B14>1,B14,IF(B15>1,B15,IF(B16>1,B16,IF(B17>1,B17,IF(B18>1,B18,IF(B19>1,B19,IF(B20>1,B20,IF(B21>1,B21,IF(B22>1,B22,IF(B23>1,B23,"")))))))))))))),IF(B34=B10,IF(B11>1,B11,IF(B12>1,B12,IF(B13>1,B13,IF(B14>1,B14,IF(B15>1,B15,IF(B16>1,B16,IF(B17>1,B17,IF(B18>1,B18,IF(B19>1,B19,IF(B20>1,B20,IF(B21>1,B21,IF(B22>1,B22,IF(B23>1,B23,""))))))))))))),IF(B34=B11,IF(B12>1,B12,IF(B13>1,B13,IF(B14>1,B14,IF(B15>1,B15,IF(B16>1,B16,IF(B17>1,B17,IF(B18>1,B18,IF(B19>1,B19,IF(B20>1,B20,IF(B21>1,B21,IF(B22>1,B22,IF(B23>1,B23,"")))))))))))),IF(B34=B12,IF(B13>1,B13,IF(B14>1,B14,IF(B15>1,B15,IF(B16>1,B16,IF(B17>1,B17,IF(B18>1,B18,IF(B19>1,B19,IF(B20>1,B20,IF(B21>1,B21,IF(B22>1,B22,IF(B23>1,B23,""))))))))))),IF(B34=B13,IF(B14>1,B14,IF(B15>1,B15,IF(B16>1,B16,IF(B17>1,B17,IF(B18>1,B18,IF(B19>1,B19,IF(B20>1,B20,IF(B21>1,B21,IF(B22>1,B22,IF(B23>1,B23,"")))))))))),IF(B34=B14,IF(B15>1,B15,IF(B16>1,B16,IF(B17>1,B17,IF(B18>1,B18,IF(B19>1,B19,IF(B20>1,B20,IF(B21>1,B21,IF(B22>1,B22,IF(B23>1,B23,""))))))))),IF(B34=B15,IF(B16>1,B16,IF(B17>1,B17,IF(B18>1,B18,IF(B19>1,B19,IF(B20>1,B20,IF(B21>1,B21,IF(B22>1,B22,IF(B23>1,B23,"")))))))),IF(B34=B16,IF(B17>1,B17,IF(B18>1,B18,IF(B19>1,B19,IF(B20>1,B20,IF(B30>1,B21,IF(B22>1,B22,IF(B23>1,B23,""))))))),IF(B34=B17,IF(B18>1,B18,IF(B19>1,B19,IF(B20>1,B20,IF(B21>1,B21,IF(B22>1,B22,IF(B23>1,B23,"")))))),IF(B34=B18,IF(B19>1,B19,IF(B20>1,B20,IF(B21>1,B21,IF(B22>1,B22,IF(B23>1,B23,""))))),IF(B34=B19,IF(B20>1,B20,IF(B21>1,B21,IF(B22>1,B22,IF(B23>1,B23,"")))),IF(B34=B20,IF(B21>1,B21,IF(B22>1,B22,IF(B23>1,B23,""))),IF(B34=B21,IF(B22>1,B22,IF(B23>1,B23,"")),IF(B34=B22,IF(B23>1,B23,""),"")))))))))))))))))))) ->  | C35: 11 | D35: =IF(D34=D3,IF(D4>1,D4,IF(D5>1,D5,IF(D6>1,D6,IF(D7>1,D7,IF(D8>1,D8,IF(D9>1,D9,IF(D10>1,D10,IF(D11>1,D11,IF(D21>1,D12,IF(D13>1,D13,IF(D14>1,D14,IF(D15>1,D15,IF(D16>1,D16,IF(D26>1,D17,IF(D18>1,D18,IF(D19>1,D19,IF(D20>1,D20,IF(D21>1,D21,IF(D22>1,D22,IF(D23>1,D23,"")))))))))))))))))))),IF(D34=D4,IF(D5>1,D5,IF(D6>1,D6,IF(D7>1,D7,IF(D8>1,D8,IF(D9>1,D9,IF(D10>1,D10,IF(D11>1,D11,IF(D12>1,D12,IF(D13>1,D13,IF(D14>1,D14,IF(D15>1,D15,IF(D16>1,D16,IF(D17>1,D17,IF(D18>1,D18,IF(D19>1,D19,IF(D20>1,D20,IF(D21>1,D21,IF(D22>1,D22,IF(D23>1,D23,""))))))))))))))))))),IF(D34=D5,IF(D6>1,D6,IF(D7>1,D7,IF(D8>1,D8,IF(D9>1,D9,IF(D10>1,D10,IF(D11>1,D11,IF(D12>1,D12,IF(D13>1,D13,IF(D14>1,D14,IF(D15>1,D15,IF(D16>1,D16,IF(D17>1,D17,IF(D18>1,D18,IF(D19>1,D19,IF(D20>1,D20,IF(D21>1,D21,IF(D22>1,D22,IF(D23>1,D23,"")))))))))))))))))),IF(D34=D6,IF(D7>1,D7,IF(D8>1,D8,IF(D9>1,D9,IF(D10>1,D10,IF(D11>1,D11,IF(D12>1,D12,IF(D13>1,D13,IF(D14>1,D14,IF(D15>1,D15,IF(D16>1,D16,IF(D17>1,D17,IF(D18>1,D18,IF(D19>1,D19,IF(D20>1,D20,IF(D21>1,D21,IF(D22>1,D22,IF(D23>1,D23,""))))))))))))))))),IF(D34=D7,IF(D8>1,D8,IF(D9>1,D9,IF(D10>1,D10,IF(D11>1,D11,IF(D12>1,D12,IF(D13>1,D13,IF(D14>1,D14,IF(D15>1,D15,IF(D16>1,D16,IF(D17>1,D17,IF(D18>1,D18,IF(D19>1,D19,IF(D20>1,D20,IF(D21>1,D21,IF(D22>1,D22,IF(D23>1,D23,"")))))))))))))))),IF(D34=D8,IF(D9>1,D9,IF(D10>1,D10,IF(D11>1,D11,IF(D12>1,D12,IF(D13>1,D13,IF(D14>1,D14,IF(D15>1,D15,IF(D16>1,D16,IF(D17>1,D17,IF(D18>1,D18,IF(D19>1,D19,IF(D20>1,D20,IF(D21>1,D21,IF(D22>1,D22,IF(D23>1,D23,""))))))))))))))),IF(D34=D9,IF(D10>1,D10,IF(D11>1,D11,IF(D12>1,D12,IF(D13>1,D13,IF(D14>1,D14,IF(D15>1,D15,IF(D16>1,D16,IF(D17>1,D17,IF(D18>1,D18,IF(D19>1,D19,IF(D20>1,D20,IF(D21>1,D21,IF(D22>1,D22,IF(D23>1,D23,"")))))))))))))),IF(D34=D10,IF(D11>1,D11,IF(D12>1,D12,IF(D13>1,D13,IF(D14>1,D14,IF(D15>1,D15,IF(D16>1,D16,IF(D17>1,D17,IF(D18>1,D18,IF(D19>1,D19,IF(D20>1,D20,IF(D21>1,D21,IF(D22>1,D22,IF(D23>1,D23,""))))))))))))),IF(D34=D11,IF(D12>1,D12,IF(D13>1,D13,IF(D14>1,D14,IF(D15>1,D15,IF(D16>1,D16,IF(D17>1,D17,IF(D18>1,D18,IF(D19>1,D19,IF(D20>1,D20,IF(D21>1,D21,IF(D22>1,D22,IF(D23>1,D23,"")))))))))))),IF(D34=D12,IF(D13>1,D13,IF(D14>1,D14,IF(D15>1,D15,IF(D16>1,D16,IF(D17>1,D17,IF(D18>1,D18,IF(D19>1,D19,IF(D20>1,D20,IF(D21>1,D21,IF(D22>1,D22,IF(D23>1,D23,""))))))))))),IF(D34=D13,IF(D14>1,D14,IF(D15>1,D15,IF(D16>1,D16,IF(D17>1,D17,IF(D18>1,D18,IF(D19>1,D19,IF(D20>1,D20,IF(D21>1,D21,IF(D22>1,D22,IF(D23>1,D23,"")))))))))),IF(D34=D14,IF(D15>1,D15,IF(D16>1,D16,IF(D17>1,D17,IF(D18>1,D18,IF(D19>1,D19,IF(D20>1,D20,IF(D21>1,D21,IF(D22>1,D22,IF(D23>1,D23,""))))))))),IF(D34=D15,IF(D16>1,D16,IF(D17>1,D17,IF(D18>1,D18,IF(D19>1,D19,IF(D20>1,D20,IF(D21>1,D21,IF(D22>1,D22,IF(D23>1,D23,"")))))))),IF(D34=D16,IF(D17>1,D17,IF(D18>1,D18,IF(D19>1,D19,IF(D20>1,D20,IF(D30>1,D21,IF(D22>1,D22,IF(D23>1,D23,""))))))),IF(D34=D17,IF(D18>1,D18,IF(D19>1,D19,IF(D20>1,D20,IF(D21>1,D21,IF(D22>1,D22,IF(D23>1,D23,"")))))),IF(D34=D18,IF(D19>1,D19,IF(D20>1,D20,IF(D21>1,D21,IF(D22>1,D22,IF(D23>1,D23,""))))),IF(D34=D19,IF(D20>1,D20,IF(D21>1,D21,IF(D22>1,D22,IF(D23>1,D23,"")))),IF(D34=D20,IF(D21>1,D21,IF(D22>1,D22,IF(D23>1,D23,""))),IF(D34=D21,IF(D22>1,D22,IF(D23>1,D23,"")),IF(D34=D22,IF(D23>1,D23,""),"")))))))))))))))))))) ->  | E35: 11 | F35: =IF(F34=F3,IF(F4>1,F4,IF(F5>1,F5,IF(F6>1,F6,IF(F7>1,F7,IF(F8>1,F8,IF(F9>1,F9,IF(F10>1,F10,IF(F11>1,F11,IF(F21>1,F12,IF(F13>1,F13,IF(F14>1,F14,IF(F15>1,F15,IF(F16>1,F16,IF(F26>1,F17,IF(F18>1,F18,IF(F19>1,F19,IF(F20>1,F20,IF(F21>1,F21,IF(F22>1,F22,IF(F23>1,F23,"")))))))))))))))))))),IF(F34=F4,IF(F5>1,F5,IF(F6>1,F6,IF(F7>1,F7,IF(F8>1,F8,IF(F9>1,F9,IF(F10>1,F10,IF(F11>1,F11,IF(F12>1,F12,IF(F13>1,F13,IF(F14>1,F14,IF(F15>1,F15,IF(F16>1,F16,IF(F17>1,F17,IF(F18>1,F18,IF(F19>1,F19,IF(F20>1,F20,IF(F21>1,F21,IF(F22>1,F22,IF(F23>1,F23,""))))))))))))))))))),IF(F34=F5,IF(F6>1,F6,IF(F7>1,F7,IF(F8>1,F8,IF(F9>1,F9,IF(F10>1,F10,IF(F11>1,F11,IF(F12>1,F12,IF(F13>1,F13,IF(F14>1,F14,IF(F15>1,F15,IF(F16>1,F16,IF(F17>1,F17,IF(F18>1,F18,IF(F19>1,F19,IF(F20>1,F20,IF(F21>1,F21,IF(F22>1,F22,IF(F23>1,F23,"")))))))))))))))))),IF(F34=F6,IF(F7>1,F7,IF(F8>1,F8,IF(F9>1,F9,IF(F10>1,F10,IF(F11>1,F11,IF(F12>1,F12,IF(F13>1,F13,IF(F14>1,F14,IF(F15>1,F15,IF(F16>1,F16,IF(F17>1,F17,IF(F18>1,F18,IF(F19>1,F19,IF(F20>1,F20,IF(F21>1,F21,IF(F22>1,F22,IF(F23>1,F23,""))))))))))))))))),IF(F34=F7,IF(F8>1,F8,IF(F9>1,F9,IF(F10>1,F10,IF(F11>1,F11,IF(F12>1,F12,IF(F13>1,F13,IF(F14>1,F14,IF(F15>1,F15,IF(F16>1,F16,IF(F17>1,F17,IF(F18>1,F18,IF(F19>1,F19,IF(F20>1,F20,IF(F21>1,F21,IF(F22>1,F22,IF(F23>1,F23,"")))))))))))))))),IF(F34=F8,IF(F9>1,F9,IF(F10>1,F10,IF(F11>1,F11,IF(F12>1,F12,IF(F13>1,F13,IF(F14>1,F14,IF(F15>1,F15,IF(F16>1,F16,IF(F17>1,F17,IF(F18>1,F18,IF(F19>1,F19,IF(F20>1,F20,IF(F21>1,F21,IF(F22>1,F22,IF(F23>1,F23,""))))))))))))))),IF(F34=F9,IF(F10>1,F10,IF(F11>1,F11,IF(F12>1,F12,IF(F13>1,F13,IF(F14>1,F14,IF(F15>1,F15,IF(F16>1,F16,IF(F17>1,F17,IF(F18>1,F18,IF(F19>1,F19,IF(F20>1,F20,IF(F21>1,F21,IF(F22>1,F22,IF(F23>1,F23,"")))))))))))))),IF(F34=F10,IF(F11>1,F11,IF(F12>1,F12,IF(F13>1,F13,IF(F14>1,F14,IF(F15>1,F15,IF(F16>1,F16,IF(F17>1,F17,IF(F18>1,F18,IF(F19>1,F19,IF(F20>1,F20,IF(F21>1,F21,IF(F22>1,F22,IF(F23>1,F23,""))))))))))))),IF(F34=F11,IF(F12>1,F12,IF(F13>1,F13,IF(F14>1,F14,IF(F15>1,F15,IF(F16>1,F16,IF(F17>1,F17,IF(F18>1,F18,IF(F19>1,F19,IF(F20>1,F20,IF(F21>1,F21,IF(F22>1,F22,IF(F23>1,F23,"")))))))))))),IF(F34=F12,IF(F13>1,F13,IF(F14>1,F14,IF(F15>1,F15,IF(F16>1,F16,IF(F17>1,F17,IF(F18>1,F18,IF(F19>1,F19,IF(F20>1,F20,IF(F21>1,F21,IF(F22>1,F22,IF(F23>1,F23,""))))))))))),IF(F34=F13,IF(F14>1,F14,IF(F15>1,F15,IF(F16>1,F16,IF(F17>1,F17,IF(F18>1,F18,IF(F19>1,F19,IF(F20>1,F20,IF(F21>1,F21,IF(F22>1,F22,IF(F23>1,F23,"")))))))))),IF(F34=F14,IF(F15>1,F15,IF(F16>1,F16,IF(F17>1,F17,IF(F18>1,F18,IF(F19>1,F19,IF(F20>1,F20,IF(F21>1,F21,IF(F22>1,F22,IF(F23>1,F23,""))))))))),IF(F34=F15,IF(F16>1,F16,IF(F17>1,F17,IF(F18>1,F18,IF(F19>1,F19,IF(F20>1,F20,IF(F21>1,F21,IF(F22>1,F22,IF(F23>1,F23,"")))))))),IF(F34=F16,IF(F17>1,F17,IF(F18>1,F18,IF(F19>1,F19,IF(F20>1,F20,IF(F30>1,F21,IF(F22>1,F22,IF(F23>1,F23,""))))))),IF(F34=F17,IF(F18>1,F18,IF(F19>1,F19,IF(F20>1,F20,IF(F21>1,F21,IF(F22>1,F22,IF(F23>1,F23,"")))))),IF(F34=F18,IF(F19>1,F19,IF(F20>1,F20,IF(F21>1,F21,IF(F22>1,F22,IF(F23>1,F23,""))))),IF(F34=F19,IF(F20>1,F20,IF(F21>1,F21,IF(F22>1,F22,IF(F23>1,F23,"")))),IF(F34=F20,IF(F21>1,F21,IF(F22>1,F22,IF(F23>1,F23,""))),IF(F34=F21,IF(F22>1,F22,IF(F23>1,F23,"")),IF(F34=F22,IF(F23>1,F23,""),"")))))))))))))))))))) ->  | G35: 11 | H35: =IF(H34=H3,IF(H4>1,H4,IF(H5>1,H5,IF(H6>1,H6,IF(H7>1,H7,IF(H8>1,H8,IF(H9>1,H9,IF(H10>1,H10,IF(H11>1,H11,IF(H21>1,H12,IF(H13>1,H13,IF(H14>1,H14,IF(H15>1,H15,IF(H16>1,H16,IF(H26>1,H17,IF(H18>1,H18,IF(H19>1,H19,IF(H20>1,H20,IF(H21>1,H21,IF(H22>1,H22,IF(H23>1,H23,"")))))))))))))))))))),IF(H34=H4,IF(H5>1,H5,IF(H6>1,H6,IF(H7>1,H7,IF(H8>1,H8,IF(H9>1,H9,IF(H10>1,H10,IF(H11>1,H11,IF(H12>1,H12,IF(H13>1,H13,IF(H14>1,H14,IF(H15>1,H15,IF(H16>1,H16,IF(H17>1,H17,IF(H18>1,H18,IF(H19>1,H19,IF(H20>1,H20,IF(H21>1,H21,IF(H22>1,H22,IF(H23>1,H23,""))))))))))))))))))),IF(H34=H5,IF(H6>1,H6,IF(H7>1,H7,IF(H8>1,H8,IF(H9>1,H9,IF(H10>1,H10,IF(H11>1,H11,IF(H12>1,H12,IF(H13>1,H13,IF(H14>1,H14,IF(H15>1,H15,IF(H16>1,H16,IF(H17>1,H17,IF(H18>1,H18,IF(H19>1,H19,IF(H20>1,H20,IF(H21>1,H21,IF(H22>1,H22,IF(H23>1,H23,"")))))))))))))))))),IF(H34=H6,IF(H7>1,H7,IF(H8>1,H8,IF(H9>1,H9,IF(H10>1,H10,IF(H11>1,H11,IF(H12>1,H12,IF(H13>1,H13,IF(H14>1,H14,IF(H15>1,H15,IF(H16>1,H16,IF(H17>1,H17,IF(H18>1,H18,IF(H19>1,H19,IF(H20>1,H20,IF(H21>1,H21,IF(H22>1,H22,IF(H23>1,H23,""))))))))))))))))),IF(H34=H7,IF(H8>1,H8,IF(H9>1,H9,IF(H10>1,H10,IF(H11>1,H11,IF(H12>1,H12,IF(H13>1,H13,IF(H14>1,H14,IF(H15>1,H15,IF(H16>1,H16,IF(H17>1,H17,IF(H18>1,H18,IF(H19>1,H19,IF(H20>1,H20,IF(H21>1,H21,IF(H22>1,H22,IF(H23>1,H23,"")))))))))))))))),IF(H34=H8,IF(H9>1,H9,IF(H10>1,H10,IF(H11>1,H11,IF(H12>1,H12,IF(H13>1,H13,IF(H14>1,H14,IF(H15>1,H15,IF(H16>1,H16,IF(H17>1,H17,IF(H18>1,H18,IF(H19>1,H19,IF(H20>1,H20,IF(H21>1,H21,IF(H22>1,H22,IF(H23>1,H23,""))))))))))))))),IF(H34=H9,IF(H10>1,H10,IF(H11>1,H11,IF(H12>1,H12,IF(H13>1,H13,IF(H14>1,H14,IF(H15>1,H15,IF(H16>1,H16,IF(H17>1,H17,IF(H18>1,H18,IF(H19>1,H19,IF(H20>1,H20,IF(H21>1,H21,IF(H22>1,H22,IF(H23>1,H23,"")))))))))))))),IF(H34=H10,IF(H11>1,H11,IF(H12>1,H12,IF(H13>1,H13,IF(H14>1,H14,IF(H15>1,H15,IF(H16>1,H16,IF(H17>1,H17,IF(H18>1,H18,IF(H19>1,H19,IF(H20>1,H20,IF(H21>1,H21,IF(H22>1,H22,IF(H23>1,H23,""))))))))))))),IF(H34=H11,IF(H12>1,H12,IF(H13>1,H13,IF(H14>1,H14,IF(H15>1,H15,IF(H16>1,H16,IF(H17>1,H17,IF(H18>1,H18,IF(H19>1,H19,IF(H20>1,H20,IF(H21>1,H21,IF(H22>1,H22,IF(H23>1,H23,"")))))))))))),IF(H34=H12,IF(H13>1,H13,IF(H14>1,H14,IF(H15>1,H15,IF(H16>1,H16,IF(H17>1,H17,IF(H18>1,H18,IF(H19>1,H19,IF(H20>1,H20,IF(H21>1,H21,IF(H22>1,H22,IF(H23>1,H23,""))))))))))),IF(H34=H13,IF(H14>1,H14,IF(H15>1,H15,IF(H16>1,H16,IF(H17>1,H17,IF(H18>1,H18,IF(H19>1,H19,IF(H20>1,H20,IF(H21>1,H21,IF(H22>1,H22,IF(H23>1,H23,"")))))))))),IF(H34=H14,IF(H15>1,H15,IF(H16>1,H16,IF(H17>1,H17,IF(H18>1,H18,IF(H19>1,H19,IF(H20>1,H20,IF(H21>1,H21,IF(H22>1,H22,IF(H23>1,H23,""))))))))),IF(H34=H15,IF(H16>1,H16,IF(H17>1,H17,IF(H18>1,H18,IF(H19>1,H19,IF(H20>1,H20,IF(H21>1,H21,IF(H22>1,H22,IF(H23>1,H23,"")))))))),IF(H34=H16,IF(H17>1,H17,IF(H18>1,H18,IF(H19>1,H19,IF(H20>1,H20,IF(H30>1,H21,IF(H22>1,H22,IF(H23>1,H23,""))))))),IF(H34=H17,IF(H18>1,H18,IF(H19>1,H19,IF(H20>1,H20,IF(H21>1,H21,IF(H22>1,H22,IF(H23>1,H23,"")))))),IF(H34=H18,IF(H19>1,H19,IF(H20>1,H20,IF(H21>1,H21,IF(H22>1,H22,IF(H23>1,H23,""))))),IF(H34=H19,IF(H20>1,H20,IF(H21>1,H21,IF(H22>1,H22,IF(H23>1,H23,"")))),IF(H34=H20,IF(H21>1,H21,IF(H22>1,H22,IF(H23>1,H23,""))),IF(H34=H21,IF(H22>1,H22,IF(H23>1,H23,"")),IF(H34=H22,IF(H23>1,H23,""),"")))))))))))))))))))) -> 
A36: 12 | B36: =IF(B35=B3,IF(B4>1,B4,IF(B5>1,B5,IF(B6>1,B6,IF(B7>1,B7,IF(B8>1,B8,IF(B9>1,B9,IF(B10>1,B10,IF(B11>1,B11,IF(B22>1,B12,IF(B13>1,B13,IF(B14>1,B14,IF(B15>1,B15,IF(B16>1,B16,IF(B27>1,B17,IF(B18>1,B18,IF(B19>1,B19,IF(B20>1,B20,IF(B21>1,B21,IF(B22>1,B22,IF(B23>1,B23,"")))))))))))))))))))),IF(B35=B4,IF(B5>1,B5,IF(B6>1,B6,IF(B7>1,B7,IF(B8>1,B8,IF(B9>1,B9,IF(B10>1,B10,IF(B11>1,B11,IF(B12>1,B12,IF(B13>1,B13,IF(B14>1,B14,IF(B15>1,B15,IF(B16>1,B16,IF(B17>1,B17,IF(B18>1,B18,IF(B19>1,B19,IF(B20>1,B20,IF(B21>1,B21,IF(B22>1,B22,IF(B23>1,B23,""))))))))))))))))))),IF(B35=B5,IF(B6>1,B6,IF(B7>1,B7,IF(B8>1,B8,IF(B9>1,B9,IF(B10>1,B10,IF(B11>1,B11,IF(B12>1,B12,IF(B13>1,B13,IF(B14>1,B14,IF(B15>1,B15,IF(B16>1,B16,IF(B17>1,B17,IF(B18>1,B18,IF(B19>1,B19,IF(B20>1,B20,IF(B21>1,B21,IF(B22>1,B22,IF(B23>1,B23,"")))))))))))))))))),IF(B35=B6,IF(B7>1,B7,IF(B8>1,B8,IF(B9>1,B9,IF(B10>1,B10,IF(B11>1,B11,IF(B12>1,B12,IF(B13>1,B13,IF(B14>1,B14,IF(B15>1,B15,IF(B16>1,B16,IF(B17>1,B17,IF(B18>1,B18,IF(B19>1,B19,IF(B20>1,B20,IF(B21>1,B21,IF(B22>1,B22,IF(B23>1,B23,""))))))))))))))))),IF(B35=B7,IF(B8>1,B8,IF(B9>1,B9,IF(B10>1,B10,IF(B11>1,B11,IF(B12>1,B12,IF(B13>1,B13,IF(B14>1,B14,IF(B15>1,B15,IF(B16>1,B16,IF(B17>1,B17,IF(B18>1,B18,IF(B19>1,B19,IF(B20>1,B20,IF(B21>1,B21,IF(B22>1,B22,IF(B23>1,B23,"")))))))))))))))),IF(B35=B8,IF(B9>1,B9,IF(B10>1,B10,IF(B11>1,B11,IF(B12>1,B12,IF(B13>1,B13,IF(B14>1,B14,IF(B15>1,B15,IF(B16>1,B16,IF(B17>1,B17,IF(B18>1,B18,IF(B19>1,B19,IF(B20>1,B20,IF(B21>1,B21,IF(B22>1,B22,IF(B23>1,B23,""))))))))))))))),IF(B35=B9,IF(B10>1,B10,IF(B11>1,B11,IF(B12>1,B12,IF(B13>1,B13,IF(B14>1,B14,IF(B15>1,B15,IF(B16>1,B16,IF(B17>1,B17,IF(B18>1,B18,IF(B19>1,B19,IF(B20>1,B20,IF(B21>1,B21,IF(B22>1,B22,IF(B23>1,B23,"")))))))))))))),IF(B35=B10,IF(B11>1,B11,IF(B12>1,B12,IF(B13>1,B13,IF(B14>1,B14,IF(B15>1,B15,IF(B16>1,B16,IF(B17>1,B17,IF(B18>1,B18,IF(B19>1,B19,IF(B20>1,B20,IF(B21>1,B21,IF(B22>1,B22,IF(B23>1,B23,""))))))))))))),IF(B35=B11,IF(B12>1,B12,IF(B13>1,B13,IF(B14>1,B14,IF(B15>1,B15,IF(B16>1,B16,IF(B17>1,B17,IF(B18>1,B18,IF(B19>1,B19,IF(B20>1,B20,IF(B21>1,B21,IF(B22>1,B22,IF(B23>1,B23,"")))))))))))),IF(B35=B12,IF(B13>1,B13,IF(B14>1,B14,IF(B15>1,B15,IF(B16>1,B16,IF(B17>1,B17,IF(B18>1,B18,IF(B19>1,B19,IF(B20>1,B20,IF(B21>1,B21,IF(B22>1,B22,IF(B23>1,B23,""))))))))))),IF(B35=B13,IF(B14>1,B14,IF(B15>1,B15,IF(B16>1,B16,IF(B17>1,B17,IF(B18>1,B18,IF(B19>1,B19,IF(B20>1,B20,IF(B21>1,B21,IF(B22>1,B22,IF(B23>1,B23,"")))))))))),IF(B35=B14,IF(B15>1,B15,IF(B16>1,B16,IF(B17>1,B17,IF(B18>1,B18,IF(B19>1,B19,IF(B20>1,B20,IF(B21>1,B21,IF(B22>1,B22,IF(B23>1,B23,""))))))))),IF(B35=B15,IF(B16>1,B16,IF(B17>1,B17,IF(B18>1,B18,IF(B19>1,B19,IF(B20>1,B20,IF(B21>1,B21,IF(B22>1,B22,IF(B23>1,B23,"")))))))),IF(B35=B16,IF(B17>1,B17,IF(B18>1,B18,IF(B19>1,B19,IF(B20>1,B20,IF(B31>1,B21,IF(B22>1,B22,IF(B23>1,B23,""))))))),IF(B35=B17,IF(B18>1,B18,IF(B19>1,B19,IF(B20>1,B20,IF(B21>1,B21,IF(B22>1,B22,IF(B23>1,B23,"")))))),IF(B35=B18,IF(B19>1,B19,IF(B20>1,B20,IF(B21>1,B21,IF(B22>1,B22,IF(B23>1,B23,""))))),IF(B35=B19,IF(B20>1,B20,IF(B21>1,B21,IF(B22>1,B22,IF(B23>1,B23,"")))),IF(B35=B20,IF(B21>1,B21,IF(B22>1,B22,IF(B23>1,B23,""))),IF(B35=B21,IF(B22>1,B22,IF(B23>1,B23,"")),IF(B35=B22,IF(B23>1,B23,""),"")))))))))))))))))))) ->  | C36: 12 | D36: =IF(D35=D3,IF(D4>1,D4,IF(D5>1,D5,IF(D6>1,D6,IF(D7>1,D7,IF(D8>1,D8,IF(D9>1,D9,IF(D10>1,D10,IF(D11>1,D11,IF(D22>1,D12,IF(D13>1,D13,IF(D14>1,D14,IF(D15>1,D15,IF(D16>1,D16,IF(D27>1,D17,IF(D18>1,D18,IF(D19>1,D19,IF(D20>1,D20,IF(D21>1,D21,IF(D22>1,D22,IF(D23>1,D23,"")))))))))))))))))))),IF(D35=D4,IF(D5>1,D5,IF(D6>1,D6,IF(D7>1,D7,IF(D8>1,D8,IF(D9>1,D9,IF(D10>1,D10,IF(D11>1,D11,IF(D12>1,D12,IF(D13>1,D13,IF(D14>1,D14,IF(D15>1,D15,IF(D16>1,D16,IF(D17>1,D17,IF(D18>1,D18,IF(D19>1,D19,IF(D20>1,D20,IF(D21>1,D21,IF(D22>1,D22,IF(D23>1,D23,""))))))))))))))))))),IF(D35=D5,IF(D6>1,D6,IF(D7>1,D7,IF(D8>1,D8,IF(D9>1,D9,IF(D10>1,D10,IF(D11>1,D11,IF(D12>1,D12,IF(D13>1,D13,IF(D14>1,D14,IF(D15>1,D15,IF(D16>1,D16,IF(D17>1,D17,IF(D18>1,D18,IF(D19>1,D19,IF(D20>1,D20,IF(D21>1,D21,IF(D22>1,D22,IF(D23>1,D23,"")))))))))))))))))),IF(D35=D6,IF(D7>1,D7,IF(D8>1,D8,IF(D9>1,D9,IF(D10>1,D10,IF(D11>1,D11,IF(D12>1,D12,IF(D13>1,D13,IF(D14>1,D14,IF(D15>1,D15,IF(D16>1,D16,IF(D17>1,D17,IF(D18>1,D18,IF(D19>1,D19,IF(D20>1,D20,IF(D21>1,D21,IF(D22>1,D22,IF(D23>1,D23,""))))))))))))))))),IF(D35=D7,IF(D8>1,D8,IF(D9>1,D9,IF(D10>1,D10,IF(D11>1,D11,IF(D12>1,D12,IF(D13>1,D13,IF(D14>1,D14,IF(D15>1,D15,IF(D16>1,D16,IF(D17>1,D17,IF(D18>1,D18,IF(D19>1,D19,IF(D20>1,D20,IF(D21>1,D21,IF(D22>1,D22,IF(D23>1,D23,"")))))))))))))))),IF(D35=D8,IF(D9>1,D9,IF(D10>1,D10,IF(D11>1,D11,IF(D12>1,D12,IF(D13>1,D13,IF(D14>1,D14,IF(D15>1,D15,IF(D16>1,D16,IF(D17>1,D17,IF(D18>1,D18,IF(D19>1,D19,IF(D20>1,D20,IF(D21>1,D21,IF(D22>1,D22,IF(D23>1,D23,""))))))))))))))),IF(D35=D9,IF(D10>1,D10,IF(D11>1,D11,IF(D12>1,D12,IF(D13>1,D13,IF(D14>1,D14,IF(D15>1,D15,IF(D16>1,D16,IF(D17>1,D17,IF(D18>1,D18,IF(D19>1,D19,IF(D20>1,D20,IF(D21>1,D21,IF(D22>1,D22,IF(D23>1,D23,"")))))))))))))),IF(D35=D10,IF(D11>1,D11,IF(D12>1,D12,IF(D13>1,D13,IF(D14>1,D14,IF(D15>1,D15,IF(D16>1,D16,IF(D17>1,D17,IF(D18>1,D18,IF(D19>1,D19,IF(D20>1,D20,IF(D21>1,D21,IF(D22>1,D22,IF(D23>1,D23,""))))))))))))),IF(D35=D11,IF(D12>1,D12,IF(D13>1,D13,IF(D14>1,D14,IF(D15>1,D15,IF(D16>1,D16,IF(D17>1,D17,IF(D18>1,D18,IF(D19>1,D19,IF(D20>1,D20,IF(D21>1,D21,IF(D22>1,D22,IF(D23>1,D23,"")))))))))))),IF(D35=D12,IF(D13>1,D13,IF(D14>1,D14,IF(D15>1,D15,IF(D16>1,D16,IF(D17>1,D17,IF(D18>1,D18,IF(D19>1,D19,IF(D20>1,D20,IF(D21>1,D21,IF(D22>1,D22,IF(D23>1,D23,""))))))))))),IF(D35=D13,IF(D14>1,D14,IF(D15>1,D15,IF(D16>1,D16,IF(D17>1,D17,IF(D18>1,D18,IF(D19>1,D19,IF(D20>1,D20,IF(D21>1,D21,IF(D22>1,D22,IF(D23>1,D23,"")))))))))),IF(D35=D14,IF(D15>1,D15,IF(D16>1,D16,IF(D17>1,D17,IF(D18>1,D18,IF(D19>1,D19,IF(D20>1,D20,IF(D21>1,D21,IF(D22>1,D22,IF(D23>1,D23,""))))))))),IF(D35=D15,IF(D16>1,D16,IF(D17>1,D17,IF(D18>1,D18,IF(D19>1,D19,IF(D20>1,D20,IF(D21>1,D21,IF(D22>1,D22,IF(D23>1,D23,"")))))))),IF(D35=D16,IF(D17>1,D17,IF(D18>1,D18,IF(D19>1,D19,IF(D20>1,D20,IF(D31>1,D21,IF(D22>1,D22,IF(D23>1,D23,""))))))),IF(D35=D17,IF(D18>1,D18,IF(D19>1,D19,IF(D20>1,D20,IF(D21>1,D21,IF(D22>1,D22,IF(D23>1,D23,"")))))),IF(D35=D18,IF(D19>1,D19,IF(D20>1,D20,IF(D21>1,D21,IF(D22>1,D22,IF(D23>1,D23,""))))),IF(D35=D19,IF(D20>1,D20,IF(D21>1,D21,IF(D22>1,D22,IF(D23>1,D23,"")))),IF(D35=D20,IF(D21>1,D21,IF(D22>1,D22,IF(D23>1,D23,""))),IF(D35=D21,IF(D22>1,D22,IF(D23>1,D23,"")),IF(D35=D22,IF(D23>1,D23,""),"")))))))))))))))))))) ->  | E36: 12 | F36: =IF(F35=F3,IF(F4>1,F4,IF(F5>1,F5,IF(F6>1,F6,IF(F7>1,F7,IF(F8>1,F8,IF(F9>1,F9,IF(F10>1,F10,IF(F11>1,F11,IF(F22>1,F12,IF(F13>1,F13,IF(F14>1,F14,IF(F15>1,F15,IF(F16>1,F16,IF(F27>1,F17,IF(F18>1,F18,IF(F19>1,F19,IF(F20>1,F20,IF(F21>1,F21,IF(F22>1,F22,IF(F23>1,F23,"")))))))))))))))))))),IF(F35=F4,IF(F5>1,F5,IF(F6>1,F6,IF(F7>1,F7,IF(F8>1,F8,IF(F9>1,F9,IF(F10>1,F10,IF(F11>1,F11,IF(F12>1,F12,IF(F13>1,F13,IF(F14>1,F14,IF(F15>1,F15,IF(F16>1,F16,IF(F17>1,F17,IF(F18>1,F18,IF(F19>1,F19,IF(F20>1,F20,IF(F21>1,F21,IF(F22>1,F22,IF(F23>1,F23,""))))))))))))))))))),IF(F35=F5,IF(F6>1,F6,IF(F7>1,F7,IF(F8>1,F8,IF(F9>1,F9,IF(F10>1,F10,IF(F11>1,F11,IF(F12>1,F12,IF(F13>1,F13,IF(F14>1,F14,IF(F15>1,F15,IF(F16>1,F16,IF(F17>1,F17,IF(F18>1,F18,IF(F19>1,F19,IF(F20>1,F20,IF(F21>1,F21,IF(F22>1,F22,IF(F23>1,F23,"")))))))))))))))))),IF(F35=F6,IF(F7>1,F7,IF(F8>1,F8,IF(F9>1,F9,IF(F10>1,F10,IF(F11>1,F11,IF(F12>1,F12,IF(F13>1,F13,IF(F14>1,F14,IF(F15>1,F15,IF(F16>1,F16,IF(F17>1,F17,IF(F18>1,F18,IF(F19>1,F19,IF(F20>1,F20,IF(F21>1,F21,IF(F22>1,F22,IF(F23>1,F23,""))))))))))))))))),IF(F35=F7,IF(F8>1,F8,IF(F9>1,F9,IF(F10>1,F10,IF(F11>1,F11,IF(F12>1,F12,IF(F13>1,F13,IF(F14>1,F14,IF(F15>1,F15,IF(F16>1,F16,IF(F17>1,F17,IF(F18>1,F18,IF(F19>1,F19,IF(F20>1,F20,IF(F21>1,F21,IF(F22>1,F22,IF(F23>1,F23,"")))))))))))))))),IF(F35=F8,IF(F9>1,F9,IF(F10>1,F10,IF(F11>1,F11,IF(F12>1,F12,IF(F13>1,F13,IF(F14>1,F14,IF(F15>1,F15,IF(F16>1,F16,IF(F17>1,F17,IF(F18>1,F18,IF(F19>1,F19,IF(F20>1,F20,IF(F21>1,F21,IF(F22>1,F22,IF(F23>1,F23,""))))))))))))))),IF(F35=F9,IF(F10>1,F10,IF(F11>1,F11,IF(F12>1,F12,IF(F13>1,F13,IF(F14>1,F14,IF(F15>1,F15,IF(F16>1,F16,IF(F17>1,F17,IF(F18>1,F18,IF(F19>1,F19,IF(F20>1,F20,IF(F21>1,F21,IF(F22>1,F22,IF(F23>1,F23,"")))))))))))))),IF(F35=F10,IF(F11>1,F11,IF(F12>1,F12,IF(F13>1,F13,IF(F14>1,F14,IF(F15>1,F15,IF(F16>1,F16,IF(F17>1,F17,IF(F18>1,F18,IF(F19>1,F19,IF(F20>1,F20,IF(F21>1,F21,IF(F22>1,F22,IF(F23>1,F23,""))))))))))))),IF(F35=F11,IF(F12>1,F12,IF(F13>1,F13,IF(F14>1,F14,IF(F15>1,F15,IF(F16>1,F16,IF(F17>1,F17,IF(F18>1,F18,IF(F19>1,F19,IF(F20>1,F20,IF(F21>1,F21,IF(F22>1,F22,IF(F23>1,F23,"")))))))))))),IF(F35=F12,IF(F13>1,F13,IF(F14>1,F14,IF(F15>1,F15,IF(F16>1,F16,IF(F17>1,F17,IF(F18>1,F18,IF(F19>1,F19,IF(F20>1,F20,IF(F21>1,F21,IF(F22>1,F22,IF(F23>1,F23,""))))))))))),IF(F35=F13,IF(F14>1,F14,IF(F15>1,F15,IF(F16>1,F16,IF(F17>1,F17,IF(F18>1,F18,IF(F19>1,F19,IF(F20>1,F20,IF(F21>1,F21,IF(F22>1,F22,IF(F23>1,F23,"")))))))))),IF(F35=F14,IF(F15>1,F15,IF(F16>1,F16,IF(F17>1,F17,IF(F18>1,F18,IF(F19>1,F19,IF(F20>1,F20,IF(F21>1,F21,IF(F22>1,F22,IF(F23>1,F23,""))))))))),IF(F35=F15,IF(F16>1,F16,IF(F17>1,F17,IF(F18>1,F18,IF(F19>1,F19,IF(F20>1,F20,IF(F21>1,F21,IF(F22>1,F22,IF(F23>1,F23,"")))))))),IF(F35=F16,IF(F17>1,F17,IF(F18>1,F18,IF(F19>1,F19,IF(F20>1,F20,IF(F31>1,F21,IF(F22>1,F22,IF(F23>1,F23,""))))))),IF(F35=F17,IF(F18>1,F18,IF(F19>1,F19,IF(F20>1,F20,IF(F21>1,F21,IF(F22>1,F22,IF(F23>1,F23,"")))))),IF(F35=F18,IF(F19>1,F19,IF(F20>1,F20,IF(F21>1,F21,IF(F22>1,F22,IF(F23>1,F23,""))))),IF(F35=F19,IF(F20>1,F20,IF(F21>1,F21,IF(F22>1,F22,IF(F23>1,F23,"")))),IF(F35=F20,IF(F21>1,F21,IF(F22>1,F22,IF(F23>1,F23,""))),IF(F35=F21,IF(F22>1,F22,IF(F23>1,F23,"")),IF(F35=F22,IF(F23>1,F23,""),"")))))))))))))))))))) ->  | G36: 12 | H36: =IF(H35=H3,IF(H4>1,H4,IF(H5>1,H5,IF(H6>1,H6,IF(H7>1,H7,IF(H8>1,H8,IF(H9>1,H9,IF(H10>1,H10,IF(H11>1,H11,IF(H22>1,H12,IF(H13>1,H13,IF(H14>1,H14,IF(H15>1,H15,IF(H16>1,H16,IF(H27>1,H17,IF(H18>1,H18,IF(H19>1,H19,IF(H20>1,H20,IF(H21>1,H21,IF(H22>1,H22,IF(H23>1,H23,"")))))))))))))))))))),IF(H35=H4,IF(H5>1,H5,IF(H6>1,H6,IF(H7>1,H7,IF(H8>1,H8,IF(H9>1,H9,IF(H10>1,H10,IF(H11>1,H11,IF(H12>1,H12,IF(H13>1,H13,IF(H14>1,H14,IF(H15>1,H15,IF(H16>1,H16,IF(H17>1,H17,IF(H18>1,H18,IF(H19>1,H19,IF(H20>1,H20,IF(H21>1,H21,IF(H22>1,H22,IF(H23>1,H23,""))))))))))))))))))),IF(H35=H5,IF(H6>1,H6,IF(H7>1,H7,IF(H8>1,H8,IF(H9>1,H9,IF(H10>1,H10,IF(H11>1,H11,IF(H12>1,H12,IF(H13>1,H13,IF(H14>1,H14,IF(H15>1,H15,IF(H16>1,H16,IF(H17>1,H17,IF(H18>1,H18,IF(H19>1,H19,IF(H20>1,H20,IF(H21>1,H21,IF(H22>1,H22,IF(H23>1,H23,"")))))))))))))))))),IF(H35=H6,IF(H7>1,H7,IF(H8>1,H8,IF(H9>1,H9,IF(H10>1,H10,IF(H11>1,H11,IF(H12>1,H12,IF(H13>1,H13,IF(H14>1,H14,IF(H15>1,H15,IF(H16>1,H16,IF(H17>1,H17,IF(H18>1,H18,IF(H19>1,H19,IF(H20>1,H20,IF(H21>1,H21,IF(H22>1,H22,IF(H23>1,H23,""))))))))))))))))),IF(H35=H7,IF(H8>1,H8,IF(H9>1,H9,IF(H10>1,H10,IF(H11>1,H11,IF(H12>1,H12,IF(H13>1,H13,IF(H14>1,H14,IF(H15>1,H15,IF(H16>1,H16,IF(H17>1,H17,IF(H18>1,H18,IF(H19>1,H19,IF(H20>1,H20,IF(H21>1,H21,IF(H22>1,H22,IF(H23>1,H23,"")))))))))))))))),IF(H35=H8,IF(H9>1,H9,IF(H10>1,H10,IF(H11>1,H11,IF(H12>1,H12,IF(H13>1,H13,IF(H14>1,H14,IF(H15>1,H15,IF(H16>1,H16,IF(H17>1,H17,IF(H18>1,H18,IF(H19>1,H19,IF(H20>1,H20,IF(H21>1,H21,IF(H22>1,H22,IF(H23>1,H23,""))))))))))))))),IF(H35=H9,IF(H10>1,H10,IF(H11>1,H11,IF(H12>1,H12,IF(H13>1,H13,IF(H14>1,H14,IF(H15>1,H15,IF(H16>1,H16,IF(H17>1,H17,IF(H18>1,H18,IF(H19>1,H19,IF(H20>1,H20,IF(H21>1,H21,IF(H22>1,H22,IF(H23>1,H23,"")))))))))))))),IF(H35=H10,IF(H11>1,H11,IF(H12>1,H12,IF(H13>1,H13,IF(H14>1,H14,IF(H15>1,H15,IF(H16>1,H16,IF(H17>1,H17,IF(H18>1,H18,IF(H19>1,H19,IF(H20>1,H20,IF(H21>1,H21,IF(H22>1,H22,IF(H23>1,H23,""))))))))))))),IF(H35=H11,IF(H12>1,H12,IF(H13>1,H13,IF(H14>1,H14,IF(H15>1,H15,IF(H16>1,H16,IF(H17>1,H17,IF(H18>1,H18,IF(H19>1,H19,IF(H20>1,H20,IF(H21>1,H21,IF(H22>1,H22,IF(H23>1,H23,"")))))))))))),IF(H35=H12,IF(H13>1,H13,IF(H14>1,H14,IF(H15>1,H15,IF(H16>1,H16,IF(H17>1,H17,IF(H18>1,H18,IF(H19>1,H19,IF(H20>1,H20,IF(H21>1,H21,IF(H22>1,H22,IF(H23>1,H23,""))))))))))),IF(H35=H13,IF(H14>1,H14,IF(H15>1,H15,IF(H16>1,H16,IF(H17>1,H17,IF(H18>1,H18,IF(H19>1,H19,IF(H20>1,H20,IF(H21>1,H21,IF(H22>1,H22,IF(H23>1,H23,"")))))))))),IF(H35=H14,IF(H15>1,H15,IF(H16>1,H16,IF(H17>1,H17,IF(H18>1,H18,IF(H19>1,H19,IF(H20>1,H20,IF(H21>1,H21,IF(H22>1,H22,IF(H23>1,H23,""))))))))),IF(H35=H15,IF(H16>1,H16,IF(H17>1,H17,IF(H18>1,H18,IF(H19>1,H19,IF(H20>1,H20,IF(H21>1,H21,IF(H22>1,H22,IF(H23>1,H23,"")))))))),IF(H35=H16,IF(H17>1,H17,IF(H18>1,H18,IF(H19>1,H19,IF(H20>1,H20,IF(H31>1,H21,IF(H22>1,H22,IF(H23>1,H23,""))))))),IF(H35=H17,IF(H18>1,H18,IF(H19>1,H19,IF(H20>1,H20,IF(H21>1,H21,IF(H22>1,H22,IF(H23>1,H23,"")))))),IF(H35=H18,IF(H19>1,H19,IF(H20>1,H20,IF(H21>1,H21,IF(H22>1,H22,IF(H23>1,H23,""))))),IF(H35=H19,IF(H20>1,H20,IF(H21>1,H21,IF(H22>1,H22,IF(H23>1,H23,"")))),IF(H35=H20,IF(H21>1,H21,IF(H22>1,H22,IF(H23>1,H23,""))),IF(H35=H21,IF(H22>1,H22,IF(H23>1,H23,"")),IF(H35=H22,IF(H23>1,H23,""),"")))))))))))))))))))) -> 
A37: 13 | B37: =IF(B36=B3,IF(B4>1,B4,IF(B5>1,B5,IF(B6>1,B6,IF(B7>1,B7,IF(B8>1,B8,IF(B9>1,B9,IF(B10>1,B10,IF(B11>1,B11,IF(B23>1,B12,IF(B13>1,B13,IF(B14>1,B14,IF(B15>1,B15,IF(B16>1,B16,IF(B28>1,B17,IF(B18>1,B18,IF(B19>1,B19,IF(B20>1,B20,IF(B21>1,B21,IF(B22>1,B22,IF(B23>1,B23,"")))))))))))))))))))),IF(B36=B4,IF(B5>1,B5,IF(B6>1,B6,IF(B7>1,B7,IF(B8>1,B8,IF(B9>1,B9,IF(B10>1,B10,IF(B11>1,B11,IF(B12>1,B12,IF(B13>1,B13,IF(B14>1,B14,IF(B15>1,B15,IF(B16>1,B16,IF(B17>1,B17,IF(B18>1,B18,IF(B19>1,B19,IF(B20>1,B20,IF(B21>1,B21,IF(B22>1,B22,IF(B23>1,B23,""))))))))))))))))))),IF(B36=B5,IF(B6>1,B6,IF(B7>1,B7,IF(B8>1,B8,IF(B9>1,B9,IF(B10>1,B10,IF(B11>1,B11,IF(B12>1,B12,IF(B13>1,B13,IF(B14>1,B14,IF(B15>1,B15,IF(B16>1,B16,IF(B17>1,B17,IF(B18>1,B18,IF(B19>1,B19,IF(B20>1,B20,IF(B21>1,B21,IF(B22>1,B22,IF(B23>1,B23,"")))))))))))))))))),IF(B36=B6,IF(B7>1,B7,IF(B8>1,B8,IF(B9>1,B9,IF(B10>1,B10,IF(B11>1,B11,IF(B12>1,B12,IF(B13>1,B13,IF(B14>1,B14,IF(B15>1,B15,IF(B16>1,B16,IF(B17>1,B17,IF(B18>1,B18,IF(B19>1,B19,IF(B20>1,B20,IF(B21>1,B21,IF(B22>1,B22,IF(B23>1,B23,""))))))))))))))))),IF(B36=B7,IF(B8>1,B8,IF(B9>1,B9,IF(B10>1,B10,IF(B11>1,B11,IF(B12>1,B12,IF(B13>1,B13,IF(B14>1,B14,IF(B15>1,B15,IF(B16>1,B16,IF(B17>1,B17,IF(B18>1,B18,IF(B19>1,B19,IF(B20>1,B20,IF(B21>1,B21,IF(B22>1,B22,IF(B23>1,B23,"")))))))))))))))),IF(B36=B8,IF(B9>1,B9,IF(B10>1,B10,IF(B11>1,B11,IF(B12>1,B12,IF(B13>1,B13,IF(B14>1,B14,IF(B15>1,B15,IF(B16>1,B16,IF(B17>1,B17,IF(B18>1,B18,IF(B19>1,B19,IF(B20>1,B20,IF(B21>1,B21,IF(B22>1,B22,IF(B23>1,B23,""))))))))))))))),IF(B36=B9,IF(B10>1,B10,IF(B11>1,B11,IF(B12>1,B12,IF(B13>1,B13,IF(B14>1,B14,IF(B15>1,B15,IF(B16>1,B16,IF(B17>1,B17,IF(B18>1,B18,IF(B19>1,B19,IF(B20>1,B20,IF(B21>1,B21,IF(B22>1,B22,IF(B23>1,B23,"")))))))))))))),IF(B36=B10,IF(B11>1,B11,IF(B12>1,B12,IF(B13>1,B13,IF(B14>1,B14,IF(B15>1,B15,IF(B16>1,B16,IF(B17>1,B17,IF(B18>1,B18,IF(B19>1,B19,IF(B20>1,B20,IF(B21>1,B21,IF(B22>1,B22,IF(B23>1,B23,""))))))))))))),IF(B36=B11,IF(B12>1,B12,IF(B13>1,B13,IF(B14>1,B14,IF(B15>1,B15,IF(B16>1,B16,IF(B17>1,B17,IF(B18>1,B18,IF(B19>1,B19,IF(B20>1,B20,IF(B21>1,B21,IF(B22>1,B22,IF(B23>1,B23,"")))))))))))),IF(B36=B12,IF(B13>1,B13,IF(B14>1,B14,IF(B15>1,B15,IF(B16>1,B16,IF(B17>1,B17,IF(B18>1,B18,IF(B19>1,B19,IF(B20>1,B20,IF(B21>1,B21,IF(B22>1,B22,IF(B23>1,B23,""))))))))))),IF(B36=B13,IF(B14>1,B14,IF(B15>1,B15,IF(B16>1,B16,IF(B17>1,B17,IF(B18>1,B18,IF(B19>1,B19,IF(B20>1,B20,IF(B21>1,B21,IF(B22>1,B22,IF(B23>1,B23,"")))))))))),IF(B36=B14,IF(B15>1,B15,IF(B16>1,B16,IF(B17>1,B17,IF(B18>1,B18,IF(B19>1,B19,IF(B20>1,B20,IF(B21>1,B21,IF(B22>1,B22,IF(B23>1,B23,""))))))))),IF(B36=B15,IF(B16>1,B16,IF(B17>1,B17,IF(B18>1,B18,IF(B19>1,B19,IF(B20>1,B20,IF(B21>1,B21,IF(B22>1,B22,IF(B23>1,B23,"")))))))),IF(B36=B16,IF(B17>1,B17,IF(B18>1,B18,IF(B19>1,B19,IF(B20>1,B20,IF(B32>1,B21,IF(B22>1,B22,IF(B23>1,B23,""))))))),IF(B36=B17,IF(B18>1,B18,IF(B19>1,B19,IF(B20>1,B20,IF(B21>1,B21,IF(B22>1,B22,IF(B23>1,B23,"")))))),IF(B36=B18,IF(B19>1,B19,IF(B20>1,B20,IF(B21>1,B21,IF(B22>1,B22,IF(B23>1,B23,""))))),IF(B36=B19,IF(B20>1,B20,IF(B21>1,B21,IF(B22>1,B22,IF(B23>1,B23,"")))),IF(B36=B20,IF(B21>1,B21,IF(B22>1,B22,IF(B23>1,B23,""))),IF(B36=B21,IF(B22>1,B22,IF(B23>1,B23,"")),IF(B36=B22,IF(B23>1,B23,""),"")))))))))))))))))))) ->  | C37: 13 | D37: =IF(D36=D3,IF(D4>1,D4,IF(D5>1,D5,IF(D6>1,D6,IF(D7>1,D7,IF(D8>1,D8,IF(D9>1,D9,IF(D10>1,D10,IF(D11>1,D11,IF(D23>1,D12,IF(D13>1,D13,IF(D14>1,D14,IF(D15>1,D15,IF(D16>1,D16,IF(D28>1,D17,IF(D18>1,D18,IF(D19>1,D19,IF(D20>1,D20,IF(D21>1,D21,IF(D22>1,D22,IF(D23>1,D23,"")))))))))))))))))))),IF(D36=D4,IF(D5>1,D5,IF(D6>1,D6,IF(D7>1,D7,IF(D8>1,D8,IF(D9>1,D9,IF(D10>1,D10,IF(D11>1,D11,IF(D12>1,D12,IF(D13>1,D13,IF(D14>1,D14,IF(D15>1,D15,IF(D16>1,D16,IF(D17>1,D17,IF(D18>1,D18,IF(D19>1,D19,IF(D20>1,D20,IF(D21>1,D21,IF(D22>1,D22,IF(D23>1,D23,""))))))))))))))))))),IF(D36=D5,IF(D6>1,D6,IF(D7>1,D7,IF(D8>1,D8,IF(D9>1,D9,IF(D10>1,D10,IF(D11>1,D11,IF(D12>1,D12,IF(D13>1,D13,IF(D14>1,D14,IF(D15>1,D15,IF(D16>1,D16,IF(D17>1,D17,IF(D18>1,D18,IF(D19>1,D19,IF(D20>1,D20,IF(D21>1,D21,IF(D22>1,D22,IF(D23>1,D23,"")))))))))))))))))),IF(D36=D6,IF(D7>1,D7,IF(D8>1,D8,IF(D9>1,D9,IF(D10>1,D10,IF(D11>1,D11,IF(D12>1,D12,IF(D13>1,D13,IF(D14>1,D14,IF(D15>1,D15,IF(D16>1,D16,IF(D17>1,D17,IF(D18>1,D18,IF(D19>1,D19,IF(D20>1,D20,IF(D21>1,D21,IF(D22>1,D22,IF(D23>1,D23,""))))))))))))))))),IF(D36=D7,IF(D8>1,D8,IF(D9>1,D9,IF(D10>1,D10,IF(D11>1,D11,IF(D12>1,D12,IF(D13>1,D13,IF(D14>1,D14,IF(D15>1,D15,IF(D16>1,D16,IF(D17>1,D17,IF(D18>1,D18,IF(D19>1,D19,IF(D20>1,D20,IF(D21>1,D21,IF(D22>1,D22,IF(D23>1,D23,"")))))))))))))))),IF(D36=D8,IF(D9>1,D9,IF(D10>1,D10,IF(D11>1,D11,IF(D12>1,D12,IF(D13>1,D13,IF(D14>1,D14,IF(D15>1,D15,IF(D16>1,D16,IF(D17>1,D17,IF(D18>1,D18,IF(D19>1,D19,IF(D20>1,D20,IF(D21>1,D21,IF(D22>1,D22,IF(D23>1,D23,""))))))))))))))),IF(D36=D9,IF(D10>1,D10,IF(D11>1,D11,IF(D12>1,D12,IF(D13>1,D13,IF(D14>1,D14,IF(D15>1,D15,IF(D16>1,D16,IF(D17>1,D17,IF(D18>1,D18,IF(D19>1,D19,IF(D20>1,D20,IF(D21>1,D21,IF(D22>1,D22,IF(D23>1,D23,"")))))))))))))),IF(D36=D10,IF(D11>1,D11,IF(D12>1,D12,IF(D13>1,D13,IF(D14>1,D14,IF(D15>1,D15,IF(D16>1,D16,IF(D17>1,D17,IF(D18>1,D18,IF(D19>1,D19,IF(D20>1,D20,IF(D21>1,D21,IF(D22>1,D22,IF(D23>1,D23,""))))))))))))),IF(D36=D11,IF(D12>1,D12,IF(D13>1,D13,IF(D14>1,D14,IF(D15>1,D15,IF(D16>1,D16,IF(D17>1,D17,IF(D18>1,D18,IF(D19>1,D19,IF(D20>1,D20,IF(D21>1,D21,IF(D22>1,D22,IF(D23>1,D23,"")))))))))))),IF(D36=D12,IF(D13>1,D13,IF(D14>1,D14,IF(D15>1,D15,IF(D16>1,D16,IF(D17>1,D17,IF(D18>1,D18,IF(D19>1,D19,IF(D20>1,D20,IF(D21>1,D21,IF(D22>1,D22,IF(D23>1,D23,""))))))))))),IF(D36=D13,IF(D14>1,D14,IF(D15>1,D15,IF(D16>1,D16,IF(D17>1,D17,IF(D18>1,D18,IF(D19>1,D19,IF(D20>1,D20,IF(D21>1,D21,IF(D22>1,D22,IF(D23>1,D23,"")))))))))),IF(D36=D14,IF(D15>1,D15,IF(D16>1,D16,IF(D17>1,D17,IF(D18>1,D18,IF(D19>1,D19,IF(D20>1,D20,IF(D21>1,D21,IF(D22>1,D22,IF(D23>1,D23,""))))))))),IF(D36=D15,IF(D16>1,D16,IF(D17>1,D17,IF(D18>1,D18,IF(D19>1,D19,IF(D20>1,D20,IF(D21>1,D21,IF(D22>1,D22,IF(D23>1,D23,"")))))))),IF(D36=D16,IF(D17>1,D17,IF(D18>1,D18,IF(D19>1,D19,IF(D20>1,D20,IF(D32>1,D21,IF(D22>1,D22,IF(D23>1,D23,""))))))),IF(D36=D17,IF(D18>1,D18,IF(D19>1,D19,IF(D20>1,D20,IF(D21>1,D21,IF(D22>1,D22,IF(D23>1,D23,"")))))),IF(D36=D18,IF(D19>1,D19,IF(D20>1,D20,IF(D21>1,D21,IF(D22>1,D22,IF(D23>1,D23,""))))),IF(D36=D19,IF(D20>1,D20,IF(D21>1,D21,IF(D22>1,D22,IF(D23>1,D23,"")))),IF(D36=D20,IF(D21>1,D21,IF(D22>1,D22,IF(D23>1,D23,""))),IF(D36=D21,IF(D22>1,D22,IF(D23>1,D23,"")),IF(D36=D22,IF(D23>1,D23,""),"")))))))))))))))))))) ->  | G37: 13 | H37: =IF(H36=H3,IF(H4>1,H4,IF(H5>1,H5,IF(H6>1,H6,IF(H7>1,H7,IF(H8>1,H8,IF(H9>1,H9,IF(H10>1,H10,IF(H11>1,H11,IF(H23>1,H12,IF(H13>1,H13,IF(H14>1,H14,IF(H15>1,H15,IF(H16>1,H16,IF(H28>1,H17,IF(H18>1,H18,IF(H19>1,H19,IF(H20>1,H20,IF(H21>1,H21,IF(H22>1,H22,IF(H23>1,H23,"")))))))))))))))))))),IF(H36=H4,IF(H5>1,H5,IF(H6>1,H6,IF(H7>1,H7,IF(H8>1,H8,IF(H9>1,H9,IF(H10>1,H10,IF(H11>1,H11,IF(H12>1,H12,IF(H13>1,H13,IF(H14>1,H14,IF(H15>1,H15,IF(H16>1,H16,IF(H17>1,H17,IF(H18>1,H18,IF(H19>1,H19,IF(H20>1,H20,IF(H21>1,H21,IF(H22>1,H22,IF(H23>1,H23,""))))))))))))))))))),IF(H36=H5,IF(H6>1,H6,IF(H7>1,H7,IF(H8>1,H8,IF(H9>1,H9,IF(H10>1,H10,IF(H11>1,H11,IF(H12>1,H12,IF(H13>1,H13,IF(H14>1,H14,IF(H15>1,H15,IF(H16>1,H16,IF(H17>1,H17,IF(H18>1,H18,IF(H19>1,H19,IF(H20>1,H20,IF(H21>1,H21,IF(H22>1,H22,IF(H23>1,H23,"")))))))))))))))))),IF(H36=H6,IF(H7>1,H7,IF(H8>1,H8,IF(H9>1,H9,IF(H10>1,H10,IF(H11>1,H11,IF(H12>1,H12,IF(H13>1,H13,IF(H14>1,H14,IF(H15>1,H15,IF(H16>1,H16,IF(H17>1,H17,IF(H18>1,H18,IF(H19>1,H19,IF(H20>1,H20,IF(H21>1,H21,IF(H22>1,H22,IF(H23>1,H23,""))))))))))))))))),IF(H36=H7,IF(H8>1,H8,IF(H9>1,H9,IF(H10>1,H10,IF(H11>1,H11,IF(H12>1,H12,IF(H13>1,H13,IF(H14>1,H14,IF(H15>1,H15,IF(H16>1,H16,IF(H17>1,H17,IF(H18>1,H18,IF(H19>1,H19,IF(H20>1,H20,IF(H21>1,H21,IF(H22>1,H22,IF(H23>1,H23,"")))))))))))))))),IF(H36=H8,IF(H9>1,H9,IF(H10>1,H10,IF(H11>1,H11,IF(H12>1,H12,IF(H13>1,H13,IF(H14>1,H14,IF(H15>1,H15,IF(H16>1,H16,IF(H17>1,H17,IF(H18>1,H18,IF(H19>1,H19,IF(H20>1,H20,IF(H21>1,H21,IF(H22>1,H22,IF(H23>1,H23,""))))))))))))))),IF(H36=H9,IF(H10>1,H10,IF(H11>1,H11,IF(H12>1,H12,IF(H13>1,H13,IF(H14>1,H14,IF(H15>1,H15,IF(H16>1,H16,IF(H17>1,H17,IF(H18>1,H18,IF(H19>1,H19,IF(H20>1,H20,IF(H21>1,H21,IF(H22>1,H22,IF(H23>1,H23,"")))))))))))))),IF(H36=H10,IF(H11>1,H11,IF(H12>1,H12,IF(H13>1,H13,IF(H14>1,H14,IF(H15>1,H15,IF(H16>1,H16,IF(H17>1,H17,IF(H18>1,H18,IF(H19>1,H19,IF(H20>1,H20,IF(H21>1,H21,IF(H22>1,H22,IF(H23>1,H23,""))))))))))))),IF(H36=H11,IF(H12>1,H12,IF(H13>1,H13,IF(H14>1,H14,IF(H15>1,H15,IF(H16>1,H16,IF(H17>1,H17,IF(H18>1,H18,IF(H19>1,H19,IF(H20>1,H20,IF(H21>1,H21,IF(H22>1,H22,IF(H23>1,H23,"")))))))))))),IF(H36=H12,IF(H13>1,H13,IF(H14>1,H14,IF(H15>1,H15,IF(H16>1,H16,IF(H17>1,H17,IF(H18>1,H18,IF(H19>1,H19,IF(H20>1,H20,IF(H21>1,H21,IF(H22>1,H22,IF(H23>1,H23,""))))))))))),IF(H36=H13,IF(H14>1,H14,IF(H15>1,H15,IF(H16>1,H16,IF(H17>1,H17,IF(H18>1,H18,IF(H19>1,H19,IF(H20>1,H20,IF(H21>1,H21,IF(H22>1,H22,IF(H23>1,H23,"")))))))))),IF(H36=H14,IF(H15>1,H15,IF(H16>1,H16,IF(H17>1,H17,IF(H18>1,H18,IF(H19>1,H19,IF(H20>1,H20,IF(H21>1,H21,IF(H22>1,H22,IF(H23>1,H23,""))))))))),IF(H36=H15,IF(H16>1,H16,IF(H17>1,H17,IF(H18>1,H18,IF(H19>1,H19,IF(H20>1,H20,IF(H21>1,H21,IF(H22>1,H22,IF(H23>1,H23,"")))))))),IF(H36=H16,IF(H17>1,H17,IF(H18>1,H18,IF(H19>1,H19,IF(H20>1,H20,IF(H32>1,H21,IF(H22>1,H22,IF(H23>1,H23,""))))))),IF(H36=H17,IF(H18>1,H18,IF(H19>1,H19,IF(H20>1,H20,IF(H21>1,H21,IF(H22>1,H22,IF(H23>1,H23,"")))))),IF(H36=H18,IF(H19>1,H19,IF(H20>1,H20,IF(H21>1,H21,IF(H22>1,H22,IF(H23>1,H23,""))))),IF(H36=H19,IF(H20>1,H20,IF(H21>1,H21,IF(H22>1,H22,IF(H23>1,H23,"")))),IF(H36=H20,IF(H21>1,H21,IF(H22>1,H22,IF(H23>1,H23,""))),IF(H36=H21,IF(H22>1,H22,IF(H23>1,H23,"")),IF(H36=H22,IF(H23>1,H23,""),"")))))))))))))))))))) -> 
A38: 14 | B38: =IF(B37=$B$3,IF($B$4>1,$B$4,IF($B$5>1,$B$5,IF($B$6>1,$B$6,IF($B$7>1,$B$7,IF($B$8>1,$B$8,IF($B$9>1,$B$9,IF($B$10>1,$B$10,IF($B$11>1,$B$11,IF(B24>1,$B$12,IF($B$13>1,$B$13,IF($B$14>1,$B$14,IF($B$15>1,$B$15,IF($B$16>1,$B$16,IF(B29>1,$B$17,IF($B$18>1,$B$18,IF($B$19>1,$B$19,IF($B$20>1,$B$20,IF($B$21>1,$B$21,IF($B$22>1,$B$22,IF($B$23>1,$B$23,"")))))))))))))))))))),IF(B37=$B$4,IF($B$5>1,$B$5,IF($B$6>1,$B$6,IF($B$7>1,$B$7,IF($B$8>1,$B$8,IF($B$9>1,$B$9,IF($B$10>1,$B$10,IF($B$11>1,$B$11,IF($B$12>1,$B$12,IF($B$13>1,$B$13,IF($B$14>1,$B$14,IF($B$15>1,$B$15,IF($B$16>1,$B$16,IF($B$17>1,$B$17,IF($B$18>1,$B$18,IF($B$19>1,$B$19,IF($B$20>1,$B$20,IF($B$21>1,$B$21,IF($B$22>1,$B$22,IF($B$23>1,$B$23,""))))))))))))))))))),IF(B37=$B$5,IF($B$6>1,$B$6,IF($B$7>1,$B$7,IF($B$8>1,$B$8,IF($B$9>1,$B$9,IF($B$10>1,$B$10,IF($B$11>1,$B$11,IF($B$12>1,$B$12,IF($B$13>1,$B$13,IF($B$14>1,$B$14,IF($B$15>1,$B$15,IF($B$16>1,$B$16,IF($B$17>1,$B$17,IF($B$18>1,$B$18,IF($B$19>1,$B$19,IF($B$20>1,$B$20,IF($B$21>1,$B$21,IF($B$22>1,$B$22,IF($B$23>1,$B$23,"")))))))))))))))))),IF(B37=$B$6,IF($B$7>1,$B$7,IF($B$8>1,$B$8,IF($B$9>1,$B$9,IF($B$10>1,$B$10,IF($B$11>1,$B$11,IF($B$12>1,$B$12,IF($B$13>1,$B$13,IF($B$14>1,$B$14,IF($B$15>1,$B$15,IF($B$16>1,$B$16,IF($B$17>1,$B$17,IF($B$18>1,$B$18,IF($B$19>1,$B$19,IF($B$20>1,$B$20,IF($B$21>1,$B$21,IF($B$22>1,$B$22,IF($B$23>1,$B$23,""))))))))))))))))),IF(B37=$B$7,IF($B$8>1,$B$8,IF($B$9>1,$B$9,IF($B$10>1,$B$10,IF($B$11>1,$B$11,IF($B$12>1,$B$12,IF($B$13>1,$B$13,IF($B$14>1,$B$14,IF($B$15>1,$B$15,IF($B$16>1,$B$16,IF($B$17>1,$B$17,IF($B$18>1,$B$18,IF($B$19>1,$B$19,IF($B$20>1,$B$20,IF($B$21>1,$B$21,IF($B$22>1,$B$22,IF($B$23>1,$B$23,"")))))))))))))))),IF(B37=$B$8,IF($B$9>1,$B$9,IF($B$10>1,$B$10,IF($B$11>1,$B$11,IF($B$12>1,$B$12,IF($B$13>1,$B$13,IF($B$14>1,$B$14,IF($B$15>1,$B$15,IF($B$16>1,$B$16,IF($B$17>1,$B$17,IF($B$18>1,$B$18,IF($B$19>1,$B$19,IF($B$20>1,$B$20,IF($B$21>1,$B$21,IF($B$22>1,$B$22,IF($B$23>1,$B$23,""))))))))))))))),IF(B37=$B$9,IF($B$10>1,$B$10,IF($B$11>1,$B$11,IF($B$12>1,$B$12,IF($B$13>1,$B$13,IF($B$14>1,$B$14,IF($B$15>1,$B$15,IF($B$16>1,$B$16,IF($B$17>1,$B$17,IF($B$18>1,$B$18,IF($B$19>1,$B$19,IF($B$20>1,$B$20,IF($B$21>1,$B$21,IF($B$22>1,$B$22,IF($B$23>1,$B$23,"")))))))))))))),IF(B37=$B$10,IF($B$11>1,$B$11,IF($B$12>1,$B$12,IF($B$13>1,$B$13,IF($B$14>1,$B$14,IF($B$15>1,$B$15,IF($B$16>1,$B$16,IF($B$17>1,$B$17,IF($B$18>1,$B$18,IF($B$19>1,$B$19,IF($B$20>1,$B$20,IF($B$21>1,$B$21,IF($B$22>1,$B$22,IF($B$23>1,$B$23,""))))))))))))),IF(B37=$B$11,IF($B$12>1,$B$12,IF($B$13>1,$B$13,IF($B$14>1,$B$14,IF($B$15>1,$B$15,IF($B$16>1,$B$16,IF($B$17>1,$B$17,IF($B$18>1,$B$18,IF($B$19>1,$B$19,IF($B$20>1,$B$20,IF($B$21>1,$B$21,IF($B$22>1,$B$22,IF($B$23>1,$B$23,"")))))))))))),IF(B37=$B$12,IF($B$13>1,$B$13,IF($B$14>1,$B$14,IF($B$15>1,$B$15,IF($B$16>1,$B$16,IF($B$17>1,$B$17,IF($B$18>1,$B$18,IF($B$19>1,$B$19,IF($B$20>1,$B$20,IF($B$21>1,$B$21,IF($B$22>1,$B$22,IF($B$23>1,$B$23,""))))))))))),IF(B37=$B$13,IF($B$14>1,$B$14,IF($B$15>1,$B$15,IF($B$16>1,$B$16,IF($B$17>1,$B$17,IF($B$18>1,$B$18,IF($B$19>1,$B$19,IF($B$20>1,$B$20,IF($B$21>1,$B$21,IF($B$22>1,$B$22,IF($B$23>1,$B$23,"")))))))))),IF(B37=$B$14,IF($B$15>1,$B$15,IF($B$16>1,$B$16,IF($B$17>1,$B$17,IF($B$18>1,$B$18,IF($B$19>1,$B$19,IF($B$20>1,$B$20,IF($B$21>1,$B$21,IF($B$22>1,$B$22,IF($B$23>1,$B$23,""))))))))),IF(B37=$B$15,IF($B$16>1,$B$16,IF($B$17>1,$B$17,IF($B$18>1,$B$18,IF($B$19>1,$B$19,IF($B$20>1,$B$20,IF($B$21>1,$B$21,IF($B$22>1,$B$22,IF($B$23>1,$B$23,"")))))))),IF(B37=$B$16,IF($B$17>1,$B$17,IF($B$18>1,$B$18,IF($B$19>1,$B$19,IF($B$20>1,$B$20,IF(B33>1,$B$21,IF($B$22>1,$B$22,IF($B$23>1,$B$23,""))))))),IF(B37=$B$17,IF($B$18>1,$B$18,IF($B$19>1,$B$19,IF($B$20>1,$B$20,IF($B$21>1,$B$21,IF($B$22>1,$B$22,IF($B$23>1,$B$23,"")))))),IF(B37=$B$18,IF($B$19>1,$B$19,IF($B$20>1,$B$20,IF($B$21>1,$B$21,IF($B$22>1,$B$22,IF($B$23>1,$B$23,""))))),IF(B37=$B$19,IF($B$20>1,$B$20,IF($B$21>1,$B$21,IF($B$22>1,$B$22,IF($B$23>1,$B$23,"")))),IF(B37=$B$20,IF($B$21>1,$B$21,IF($B$22>1,$B$22,IF($B$23>1,$B$23,""))),IF(B37=$B$21,IF($B$22>1,$B$22,IF($B$23>1,$B$23,"")),IF(B37=$B$22,IF($B$23>1,$B$23,""),"")))))))))))))))))))) -> 
A39: 15
A40: 16
A41: 17
A42: 18
A43: 19
A44: 20
A45: 21

Sheet TEXT 3
B2: In the third part of the questionnaire we try to assess what the effect on herd health would be after the indicated measures has been implemented for a year. What would you think would be the effect of the management measures on herd health status?
B8: Please indicate the correct value in the approporiate cells to indicate the effect on the sepcific herd health characteristic. We present your current situation as a reference

Sheet PC 5
A1: Effect of intervention strategy
A3: Herd size | G3: =ASSUMPTIONS!F6 -> 100
A4: 305 day milk production (kg milk per cow) | G4: =ASSUMPTIONS!F5 -> 8310
A5: Replacement percentage | G5: =ASSUMPTIONS!F83 -> 0.3 | J5: Please indicate given the selected intervention programme how many cases the intervention programme could prevent next year , if there is no reduction insert a 0
F8: The current animal health status on your farm is:
A9: Dairy cows with clinical mastitis | G9: =ROUND(ASSUMPTIONS!F7*ASSUMPTIONS!F6,0) -> 30 | H9: # cows / year | J9: 2 | K9: # cows / year | M9: =(G9-J9)/$G$3*100 -> 28 | N9: %
A10: Dairy cows with severe lameness | G10: =ROUND(ASSUMPTIONS!F8*ASSUMPTIONS!F6,0) -> 15 | H10: # cows / year | J10: 2 | K10: # cows / year | M10: =(G10-J10)/$G$3*100 -> 13 | N10: %
A11: Dairy cows with mild lameness | G11: =ROUND(ASSUMPTIONS!F9*ASSUMPTIONS!F6,0) -> 25 | H11: # cows / year | J11: 3 | K11: # cows / year | M11: 22 | N11: %
A12: Dairy cows with ketosis | G12: =ROUND(ASSUMPTIONS!F19*ASSUMPTIONS!F6,0) -> 25 | H12: # cows / year | J12: 5 | K12: # cows / year | M12: 20 | N12: %
A13: Dairy cows with metritis | G13: =ROUND(ASSUMPTIONS!F12*ASSUMPTIONS!F6,0) -> 25 | H13: # cows / year | J13: 2 | K13: # cows / year | M13: 23 | N13: %
A14: Dairy cows with endometritis | G14: =ROUND(ASSUMPTIONS!F20*ASSUMPTIONS!F6,0) -> 15 | H14: # cows / year | J14: 2 | K14: # cows / year | M14: 13 | N14: %
J16: Please indicate given the selected intervention programme how the new distribution of cell count would be
A19: Number of dairy cows above SCC threshold
A20: Number of dairy cows with a cell count larger than 100.000 cells/ml | G20: ='FC 1'!C15 -> 70 | H20: # cows / year | J20: 70 | K20: # cows / year | N20: percentage of dairy cows with SCC < 50 | P20: =((G3-J20)*0.5)/G3*100 -> 15 | Q20: %
A21: Number of dairy cows with a cell count larger than 200.000 cells/ml | G21: ='FC 1'!C16 -> 50 | H21: # cows / year | J21: 40 | K21: # cows / year | N21: percentage of dairy cows with SCC 50-100 | P21: =((G3-J20)*0.5)/G3*100 -> 15 | Q21: %
A22: Number of dairy cows with a cell count larger than 300.000 cells/ml | G22: ='FC 1'!C17 -> 30 | H22: # cows / year | J22: 20 | K22: # cows / year | N22: percentage of dairy cows with SCC 100-200 | P22: =(J20-J21)/G3*100 -> 30 | Q22: %
N23: percentage of dairy cows with SCC 200-300 | P23: =(J21-J22)/G3*100 -> 20 | Q23: %
A24: Estimated Bulk milk somatic cell count should be lower than | G24: ='Convert SCC to BMSCC'!G12 -> 360.5592105 | J24: ='Convert SCC to BMSCC'!G25 -> 302.8289474
A25: Would the new BMSCC change the payment of a penalty | G25: Yes | H25: (if no do not check) | J25: If yes, please indicate the total penalty to be paid | N25: 0
A26: Would the new BMSCC change the receipt of a bonus | G26: Yes | H26: (if no do not check) | J26: If yes, please indicate the total amount to be received | N26: 0
A28: The selected measures: | N28: percentage of dairy cows with SCC 300-400 | P28: =(J22*0.7)/G3*100 -> 14 | Q28: %
N29: percentage of dairy cows with SCC >400 | P29: =(J22*0.3)/G3*100 -> 6 | Q29: %
A30: Mastitis | J30: Lameness | S30: Ketosis | AE30: (Endo)metritis
A31: =LOM!B25 ->  | J31: =LOM!D25 -> Decrease the number of cows to prevent overcrowding | S31: =LOM!F25 ->  | AE31: =LOM!H25 -> Provide clean and new straw bedding in the calving pen before every calving
A32: =LOM!B26 ->  | J32: =LOM!D26 -> Groove concrete floors (vs. smooth concrete floor) | S32: =LOM!F26 ->  | AE32: =LOM!H26 -> Prevent reduced feeding time and DMI both post-calving and pre-calving (during transition period) / push feed manually two times per day (next to normal feeding)
A33: =LOM!B27 ->  | J33: =LOM!D27 -> Clean cubicles appropriately / Clean all cubicles twice every day and make sure enough and clean bedding material is present | S33: =LOM!F27 ->  | AE33: =LOM!H27 -> Control BCS during the dry period / Precalving BCS check and registration
A34: =LOM!B28 ->  | J34: =LOM!D28 ->  | S34: =LOM!F28 ->  | AE34: =LOM!H28 -> 
A35: =LOM!B29 ->  | J35: =LOM!D29 ->  | S35: =LOM!F29 ->  | AE35: =LOM!H29 -> 
A36: =LOM!B30 ->  | J36: =LOM!D30 ->  | S36: =LOM!F30 ->  | AE36: =LOM!H30 -> 0
A37: =LOM!B31 ->  | J37: =LOM!D31 ->  | S37: =LOM!F31 ->  | AE37: =LOM!H31 -> 0
A38: =LOM!B32 ->  | J38: =LOM!D32 ->  | S38: =LOM!F32 ->  | AE38: =LOM!H32 -> 0
A39: =LOM!B33 ->  | J39: =LOM!D33 ->  | S39: =LOM!F33 ->  | AE39: =LOM!H33 -> 0
A40: =LOM!B34 ->  | J40: =LOM!D34 ->  | S40: =LOM!F34 ->  | AE40: =LOM!H34 -> 0
A41: =LOM!B35 ->  | J41: =LOM!D35 ->  | S41: =LOM!F35 ->  | AE41: =LOM!H35 -> 
A42: =LOM!B36 ->  | J42: =LOM!D36 ->  | S42: =LOM!F36 ->  | AE42: =LOM!H36 -> 
A43: =LOM!B37 ->  | J43: =LOM!D37 ->  | AE43: =LOM!H37 -> 
A44: =LOM!B38 -> 
A45: =LOM!B39 -> 
A46: =LOM!B40 -> 
A47: =LOM!B41 -> 
A48: =LOM!B42 -> 
A49: =LOM!B43 -> 
A50: =LOM!B44 -> 
A51: =LOM!B45 -> 

Sheet TEXT 4
B2: In the next section the results will be presented per disorder and the costs given the current situation will be given as well as the expected reduction in costs due to decreased disease incidence and the extra costs made to implement the set of measures
B8: Results on the next page can easily be printed on a4 format , and are the end of this questionnaire

Sheet TCOD
A1: Udder health | E1: Claw Health | I1: Ketosis | M1: Metritis
B2: Current situation | D2: Future situation | F2: Current situation | H2: Future situation | J2: Current situation | L2: Future situation | N2: Current situation | P2: Future situation
A3: Failure costs | E3: Failure costs | I3: Failure costs | M3: Failure costs
A4: Milk production losses | B4: ='Losses Udder health'!E84 -> 8013.95625 | D4: ='FS - mastitis'!E87 -> 2908.5 | E4: Milk production losses | F4: ='Losses Lameness'!E81 -> 4051.125 | H4: ='FS - Lameness'!E87 -> 3531.75 | I4: Milk production losses | J4: ='Losses ketose'!E70 -> 4674.375 | L4: ='FS - Ketosis'!E73 -> 3739.5 | M4: Milk production losses | N4: ='Losses (Endo)Metritis'!E100 -> 252.312375 | P4: ='FS - Metritis'!E100 -> 232.127385
A5: Costs of discarded milk (due to antibiotic treatment) | B5: ='Losses Udder health'!E86 -> 531.295082 | D5: ='FS - mastitis'!E89 -> 531.295082 | E5: Costs of discarded milk (due to antibiotic treatment) | F5: ='Losses Lameness'!E83 -> 3967.003279 | H5: ='FS - Lameness'!E89 -> 3843.034426 | I5: Costs of discarded milk (due to antibiotic treatment) | J5: ='Losses ketose'!E72 -> 0 | L5: ='FS - Ketosis'!E75 -> 0 | M5: Costs of discarded milk (due to antibiotic treatment) | N5: ='Losses (Endo)Metritis'!E102 -> 2213.729508 | P5: ='FS - Metritis'!E102 -> 2036.631148
A6: Costs of treatment (only clinical cases are treated) | B6: ='Losses Udder health'!E91 -> 593 | D6: ='FS - mastitis'!E94 -> 560.8 | E6: Costs of treatment (only clinical cases are treated) | F6: ='Losses Lameness'!E88 -> 280 | H6: ='FS - Lameness'!E94 -> 490.3333333 | I6: Costs of treatment (only clinical cases are treated) | J6: ='Losses ketose'!E77 -> 171.6666667 | L6: ='FS - Ketosis'!E80 -> 171.6666667 | M6: Costs of treatment (only clinical cases are treated) | N6: ='Losses (Endo)Metritis'!E107 -> 912.5 | P6: ='FS - Metritis'!E107 -> 835.5
A7: Costs of culling and destruction | B7: ='Losses Udder health'!E93 -> 2500 | D7: ='FS - mastitis'!E96 -> 2500 | E7: Costs of culling and destruction | F7: ='Losses Lameness'!E90 -> 3350 | H7: ='FS - Lameness'!E96 -> 3254.285714 | I7: Costs of culling and destruction | J7: ='Losses ketose'!E79 -> 0 | L7: ='FS - Ketosis'!E82 -> 0 | M7: Costs of culling and destruction | N7: ='Losses (Endo)Metritis'!E109 -> 0 | P7: ='FS - Metritis'!E109 -> 0
A9: Failure costs - udder health | B9: ='Losses Udder health'!D99 -> 11638.25133 | D9: ='FS - mastitis'!D102 -> 6500.595082 | E9: Failure costs - claw health | F9: ='Losses Lameness'!D92 -> 11648.12828 | H9: ='FS - Lameness'!D98 -> 11119.40347 | I9: Failure costs - ketosis | J9: ='Losses ketose'!D81 -> 4846.041667 | L9: ='FS - Ketosis'!D84 -> 3911.166667 | M9: Failure costs - metritis | N9: ='Losses (Endo)Metritis'!D111 -> 3378.541883 | P9: ='FS - Metritis'!D111 -> 3104.258533
A11: Preventive costs | E11: Preventive costs | I11: Preventive costs | M11: Preventive costs
A12: Labor | D12: ='MM Mastitis - costs'!BL23 -> 0 | E12: Labor | H12: ='MM Lameness - costs'!BL22 -> 2920 | I12: Labor | L12: ='MM Ketosis - costs'!BL25 -> 0 | M12: Labor | P12: ='MM Metritis - costs'!AZ19 -> 4235.25266
A13: Consumables | D13: ='MM Mastitis - costs'!BL24 -> 0 | E13: Consumables | H13: ='MM Lameness - costs'!BL23 -> 360 | I13: Consumables | L13: ='MM Ketosis - costs'!BL26 -> 0 | M13: Consumables | P13: ='MM Metritis - costs'!AZ20 -> 882.3429015
A14: Investments | D14: ='MM Mastitis - costs'!BL25 -> 0 | E14: Investments | H14: ='MM Lameness - costs'!BL24 -> 1747.5 | I14: Investments | L14: ='MM Ketosis - costs'!BL27 -> 0 | M14: Investments | P14: ='MM Metritis - costs'!AZ21 -> 0
A16: Preventive costs - udder health | D16: ='MM Mastitis - costs'!BL26 -> 0 | E16: Preventive costs - claw health | H16: ='MM Lameness - costs'!BL25 -> 5027.5 | I16: Preventive costs - ketosis | L16: ='MM Ketosis - costs'!BL28 -> 0 | M16: Preventive costs - metritis | P16: ='MM Metritis - costs'!AZ22 -> 5117.595562
A18: Current - total costs of udder health | B18: =SUM(B9,B16) -> 11638.25133 | D18: =SUM(D9+D16) -> 6500.595082 | E18: Current - total costs of claw health | F18: =SUM(F9,F16) -> 11648.12828 | H18: =SUM(H9+H16) -> 16146.90347 | I18: Current - total costs of ketosis | J18: =SUM(J9,J16) -> 4846.041667 | L18: =SUM(L9+L16) -> 3911.166667 | M18: Current - total costs of metritis | N18: =SUM(N9,N16) -> 3378.541883 | P18: =SUM(P9+P16) -> 8221.854094
A39: You expect that the new intervention strategy will change herd health characteristics to | E39: You expect that the new intervention strategy will change herd health characteristics to | I39: You expect that the new intervention strategy will change herd health characteristics to | M39: You expect that the new intervention strategy will change herd health characteristics to
B40: Current situation | D40: Future situation | F40: Current situation | H40: Future situation | J40: Current situation | L40: Future situation | N40: Current situation | P40: Future situation
A41: Clinical mastitis | B41: =ASSUMPTIONS!F7 -> 0.3 | D41: =ASSUMPTIONS!F94 -> 0.28 | E41: Dairy cows with severe lameness | F41: =ASSUMPTIONS!F8 -> 0.15 | H41: =ASSUMPTIONS!F95 -> 0.13 | I41: Dairy cows with Ketosis | J41: =ASSUMPTIONS!F19 -> 0.25 | L41: =ASSUMPTIONS!F106 -> 0.2 | M41: Dairy cows with Metritis | N41: =ASSUMPTIONS!F12 -> 0.25 | P41: =ASSUMPTIONS!F99 -> 0.23
A42: Dairy cows with SCC < 50 | B42: =ASSUMPTIONS!F13 -> 0.15 | D42: =ASSUMPTIONS!F100 -> 0.15 | E42: Dairy cows with mild lameness | F42: =ASSUMPTIONS!F9 -> 0.25 | H42: =ASSUMPTIONS!F96 -> 0.22 | M42: Dairy cows with Endo metritis | N42: =ASSUMPTIONS!F20 -> 0.15 | P42: =ASSUMPTIONS!F107 -> 0.13
A43: Dairy cows with SCC 50-100 | B43: =ASSUMPTIONS!F14 -> 0.15 | D43: =ASSUMPTIONS!F101 -> 0.15
A44: Dairy cows with SCC 100-200 | B44: =ASSUMPTIONS!F15 -> 0.2 | D44: =ASSUMPTIONS!F102 -> 0.3
A45: Dairy cows with SCC 200-300 | B45: =ASSUMPTIONS!F16 -> 0.2 | D45: =ASSUMPTIONS!F103 -> 0.2
A46: Dairy cows with SCC 300-400 | B46: =ASSUMPTIONS!F17 -> 0.21 | D46: =ASSUMPTIONS!F104 -> 0.14
A47: Dairy cows with SCC >400 | B47: =ASSUMPTIONS!F18 -> 0.09 | D47: =ASSUMPTIONS!F105 -> 0.06
A51: You have selected the following measures to improve udder health status on your farm | E51: You have selected the following measures to improve claw health status on your farm | I51: You have selected the following measures to improve ketosis status on your farm | M51: You have selected the following measures to improve (endo)metritis status on your farm
A53: =LOM!B25 ->  | E53: =LOM!D25 -> Decrease the number of cows to prevent overcrowding | I53: =LOM!F25 ->  | M53: =LOM!H25 -> Provide clean and new straw bedding in the calving pen before every calving
A54: =LOM!B26 ->  | E54: =LOM!D26 -> Groove concrete floors (vs. smooth concrete floor) | I54: =LOM!F26 ->  | M54: =LOM!H26 -> Prevent reduced feeding time and DMI both post-calving and pre-calving (during transition period) / push feed manually two times per day (next to normal feeding)
A55: =LOM!B27 ->  | E55: =LOM!D27 -> Clean cubicles appropriately / Clean all cubicles twice every day and make sure enough and clean bedding material is present | I55: =LOM!F27 ->  | M55: =LOM!H27 -> Control BCS during the dry period / Precalving BCS check and registration
A56: =LOM!B28 ->  | E56: =LOM!D28 ->  | I56: =LOM!F28 ->  | M56: =LOM!H28 -> 
A57: =LOM!B29 ->  | E57: =LOM!D29 ->  | I57: =LOM!F29 ->  | M57: =LOM!H29 -> 
A58: =LOM!B30 ->  | E58: =LOM!D30 ->  | I58: =LOM!F30 ->  | M58: =LOM!H30 -> 0
A59: =LOM!B31 ->  | E59: =LOM!D31 ->  | I59: =LOM!F31 ->  | M59: =LOM!H31 -> 0
A60: =LOM!B32 ->  | E60: =LOM!D32 ->  | I60: =LOM!F32 ->  | M60: =LOM!H32 -> 0
A61: =LOM!B33 ->  | E61: =LOM!D33 ->  | I61: =LOM!F33 ->  | M61: =LOM!H33 -> 0
A62: =LOM!B34 ->  | E62: =LOM!D34 ->  | I62: =LOM!F34 ->  | M62: =LOM!H34 -> 0
A63: =LOM!B35 ->  | E63: =LOM!D35 ->  | I63: =LOM!F35 ->  | M63: =LOM!H35 -> 
A64: =LOM!B36 ->  | E64: =LOM!D36 ->  | I64: =LOM!F36 ->  | M64: =LOM!H36 -> 
A65: =LOM!B37 ->  | E65: =LOM!D37 ->  | M65: =LOM!H37 -> 
A66: =LOM!B38 -> 
A67: =LOM!B39 -> 
A68: =LOM!B40 -> 
A69: =LOM!B41 -> 
A70: =LOM!B42 -> 
A71: =LOM!B43 -> 
A72: =LOM!B44 -> 
A73: =LOM!B45 -> 
A74: The selected measures require an extra investment of | D74: =D16-B16 -> 0 | E74: The selected measures require an extra investment of | H74: =H16-F16 -> 5027.5 | I74: The selected measures require an extra investment of | L74: =L16-J16 -> 0 | M74: The selected measures require an extra investment of | P74: =P16-N16 -> 5117.595562
A75: The failure costs of mastitis will be reduced by | D75: =B9-D9 -> 5137.65625 | E75: The failure costs of mastitis will be reduced by | H75: =F9-H9 -> 528.7248048 | I75: The failure costs of mastitis will be reduced by | L75: =J9-L9 -> 934.875 | M75: The failure costs of mastitis will be reduced by | P75: =N9-P9 -> 274.2833507
A76: If all selected measures have the assumed effect the total costs of mastitis will have | E76: If all selected measures have the assumed effect the total costs of mastitis will have | I76: If all selected measures have the assumed effect the total costs of mastitis will have | M76: If all selected measures have the assumed effect the total costs of mastitis will have
A77: =IF(D18<B18,"decreased","increased") -> decreased | E77: =IF(H18<F18,"decreased","increased") -> increased | I77: =IF(L18<J18,"decreased","increased") -> decreased | M77: =IF(P18<N18,"decreased","increased") -> increased
A78: by the amount of : | B78: =IF(B18>D18,B18-D18,D18-B18) -> 5137.65625 | E78: by the amount of : | F78: =IF(F18>H18,F18-H18,H18-F18) -> 4498.775195 | I78: by the amount of : | J78: =IF(J18>L18,J18-L18,L18-J18) -> 934.875 | M78: by the amount of : | N78: =IF(N18>P18,N18-P18,P18-N18) -> 4843.312211
A79: next year | E79: next year | I79: next year | M79: next year

Sheet ASSUMPTIONS
A1: Overview of assumptions
A2: On this tab you can find an overview of all adjustable variables in the model. If you want to change a variable in the model (not asked to the farmer or derived from the first farm visit; variables ID's 1 - 17, 61-67 and 75-88) one can do so by entering the value in the input column in the respective row of the variable
A4: ID | B4: Variable | C4: Specification | D4: Input | E4: Reference | F4: Selected output | G4: Unit
A5: 1 | B5: MP305 | D5: ='FC 1'!C9 -> 8310 | E5: 6500 | F5: =IF(D5>0,D5,E5) -> 8310 | G5: kg milk / dairy cow / year
A6: 2 | B6: NDC | D6: ='FC 1'!C7 -> 100 | E6: 65 | F6: =IF(D6>0,D6,E6) -> 100
A7: 3 | B7: NCLIN% | C7: Mastitis | D7: ='FC 1'!M12/100 -> 0.3 | E7: 0.3 | F7: =IF(D7>0,D7,E7) -> 0.3
A8: 4 | C8: Lameness : Score 3 | D8: ='FC 1'!M24/100 -> 0.15 | F8: =D8 -> 0.15
A9: 5 | C9: Lameness : Score 2 | D9: ='FC 1'!M25/100 -> 0.25 | F9: =D9 -> 0.25
A10: 6 | C10: Lameness: Score 1 | D10: ='FC 1'!M26/100 -> 0.6 | F10: 0.6
A11: 7 | C11: Ketosis | D11: ='FC 2'!F6/100 -> 0.02 | E11: 0.02 | F11: 0.02
A12: 8 | C12: Metritis | D12: ='FC 2'!F7/100 -> 0.25 | E12: 0.51 | F12: 0.25
A13: 9 | B13: NSCL% | C13: percentage of dairy cows with SCC < 50 | D13: ='FC 1'!M14/100 -> 0.15 | E13: 0.5 | F13: 0.15
A14: 10 | C14: percentage of dairy cows with SCC 50-100 | D14: ='FC 1'!M15/100 -> 0.15 | E14: 0.2 | F14: 0.15
A15: 11 | C15: percentage of dairy cows with SCC 100-200 | D15: ='FC 1'!M16/100 -> 0.2 | E15: 0.1 | F15: 0.2
A16: 12 | C16: percentage of dairy cows with SCC 200-300 | D16: ='FC 1'!M17/100 -> 0.2 | E16: 0.1 | F16: 0.2
A17: 13 | C17: percentage of dairy cows with SCC 300-400 | D17: ='FC 1'!M20/100 -> 0.21 | E17: 0.05 | F17: 0.21
A18: 14 | C18: percentage of dairy cows with SCC >400 | D18: ='FC 1'!M22/100 -> 0.09 | E18: 0.05 | F18: 0.09
A19: 15 | C19: Subclinical ketosis | D19: ='FC 1'!M28/100 -> 0.25 | E19: 0.18 | F19: 0.25
A20: 16 | C20: Endometritis | D20: ='FC 2'!F8/100 -> 0.15 | E20: 0.2 | F20: 0.15
A21: 17 | B21: MPLOSS% | C21: Mastitis | E21: 0.05 | F21: 0.05
A22: 18 | C22: Lameness (score 3: severe) | E22: 0.08 | F22: 0.08
A23: 19 | C23: Lameness (score 2: moderate) | E23: 0.03 | F23: 0.03
A24: 20 | C24: Lameness (score 1: no lameness | E24: 0 | F24: 0
A25: 21 | C25: Metritis (parity 1) | E25: 0.0028 | F25: 0.0028
A26: 22 | C26: Metritis (parity 2) | E26: 0.0026 | F26: 0.0026
A27: 23 | C27: Metritis (parity 3) | E27: 0.0084 | F27: 0.0084
A28: 24 | C28: Metritis (parity ≥4) | E28: 0.0054 | F28: 0.0054
A29: 25 | C29: Endometritis | E29: 0 | F29: 0
A30: 26 | B30: MPLSCL% | C30: dairy cows with SCC < 50 | E30: 0 | F30: 0
A31: 27 | C31: dairy cows with SCC 50-100 | E31: 0.005 | F31: 0.005
A32: 28 | C32: dairy cows with SCC 100-200 | E32: 0.0175 | F32: 0.0175
A33: 29 | C33: dairy cows with SCC 200-300 | E33: 0.0265 | F33: 0.0265
A34: 30 | C34: dairy cows with SCC 300-400 | E34: 0.0325 | F34: 0.0325
A35: 31 | C35: dairy cows with SCC >400 | E35: 0.08 | F35: 0.08
A36: 32 | C36: Subclinical ketosis | E36: 0.05 | F36: 0.05
A37: 33 | B37: DDISC | C37: Mastitis | E37: 6 | F37: 6 | G37: days
A38: 34 | C38: Lameness | E38: 7 | F38: 7 | G38: days
A39: 35 | C39: Ketosis | E39: 0 | F39: 0 | G39: days
A40: 36 | C40: Metritis | E40: 5 | F40: 5 | G40: days
A41: 37 | C41: Endometritis | E41: 0 | F41: 0 | G41: days
A42: 38 | B42: LAB | C42: Mastitis | E42: 45 | F42: 45 | G42: minutes / treatment / case mastitis
A43: 39 | C43: Lameness | E43: 20 | F43: 20 | G43: minutes / treatment / case lameness
A44: 40 | C44: Ketosis | E44: 70 | F44: 70 | G44: minutes / treatment / case ketosis
A45: 41 | C45: Metritis | E45: 30 | F45: 30 | G45: minutes / treatment / case metritis
A46: 42 | C46: Endometritis | E46: 15 | F46: 15 | G46: minutes / treatment / case endometritis
A47: 43 | B47: FAB | C47: when antibiotics are never used to treat disease X | E47: 0 | F47: 0
A48: 44 | C48: when antibiotics are sometimes used to treat disease X | E48: 0.5 | F48: 0.5
A49: 45 | C49: when antibiotics are always used to treat disease X | E49: 1 | F49: 1
A50: 46 | B50: FALT | C50: when homeopathic therapy is never used to treat disease X | E50: 0 | F50: 0
A51: 47 | C51: when homeopathic therapy is sometimes used to treat disease X | E51: 0.5 | F51: 0.5
A52: 48 | C52: when homeopathic therapy is always used to treat disease X | E52: 1 | F52: 1
A53: 49 | B53: PVET | C53: Mastitis | E53: 22 | F53: 22 | G53: € / visit
A54: 50 | C54: Lameness | E54: 100 | F54: 100 | G54: € / visit
A55: 51 | C55: Ketosis | E55: 25 | F55: 25 | G55: € / visit
A56: 52 | C56: Metritis | E56: 25 | F56: 25 | G56: € / visit
A57: 53 | B57: PMED | C57: Mastitis | E57: 22 | F57: 22 | G57: € / treatment
A58: 54 | C58: Lameness | E58: 3 | F58: 3 | G58: € / treatment
A59: 55 | C59: Ketosis | E59: 25 | F59: 25 | G59: € / treatment
A60: 56 | C60: Metritis | E60: 10 | F60: 10 | G60: € / treatment
A61: 57 | B61: PALT | C61: Mastitis | E61: 25 | F61: 25 | G61: € / treatment
A62: 58 | C62: Lameness | E62: 25 | F62: 25 | G62: € / treatment
A63: 59 | C63: Ketosis | E63: 25 | F63: 25 | G63: € / treatment
A64: 60 | C64: Metritis | E64: 25 | F64: 25 | G64: € / treatment
A65: 61 | B65: PMILK | D65: ='FC 2'!C11 -> 0.45 | E65: 0.45 | F65: 0.45 | G65: € / kg milk
A66: 62 | B66: PFEED | D66: ='FC 2'!C12 -> 0.2 | E66: 0.11 | F66: 0.2 | G66: € / kg milk
A67: 63 | B67: PLAB | D67: ='FC 2'!C13 -> 20 | E67: 20 | F67: 20 | G67: € / hour
A68: 64 | B68: PREP | D68: ='FC 2'!C14 -> 1300 | E68: 1100 | F68: 1300 | G68: € / dairy cow
A69: 65 | B69: PDES | D69: ='FC 2'!C15 -> 100 | E69: 130 | F69: 100 | G69: € / dairy cow
A70: 66 | B70: PSLV | D70: ='FC 2'!C16 -> 750 | E70: 555 | F70: 750 | G70: € / dairy cow
A71: 67 | B71: VET% | C71: Mastitis | E71: 0.05 | F71: 0.05
A72: 68 | C72: Lameness | E72: 0.04 | F72: =IF(D72>0,D72,E72) -> 0.04
A73: 69 | C73: Ketosis | E73: 1 | F73: 1
A74: 70 | C74: Metritis | E74: 0.04 | F74: 0.04
A75: 71 | B75: CULL% | C75: Mastitis | D75: ='FC 2'!C23 -> 2 | E75: 0.13 | F75: =D75 -> 2 | G75: dairy cows culled / year
A76: 72 | C76: Lameness | D76: ='FC 2'!C24 -> 1 | E76: 0.03 | F76: =D76 -> 1 | G76: dairy cows culled / year
A77: 73 | C77: Ketosis | D77: ='FC 2'!C25 -> 0 | E77: 0.016 | F77: 0 | G77: dairy cows culled / year
A78: 74 | C78: Metritis | D78: ='FC 2'!C26 -> 0 | E78: 0.01 | F78: 0 | G78: dairy cows culled / year
A79: 75 | B79: DES% | C79: Mastitis | D79: ='FC 2'!C28 -> 1 | E79: 0.02 | F79: 1 | G79: dairy cows died / year
A80: 76 | C80: Lameness | D80: ='FC 2'!C29 -> 2 | E80: 0.01 | F80: 2 | G80: dairy cows died / year
A81: 77 | C81: Ketosis | D81: ='FC 2'!C30 -> 0 | E81: 0.005 | F81: 0 | G81: dairy cows died / year
A82: 78 | C82: Metritis | D82: ='FC 2'!C31 -> 0 | E82: 0.0025 | F82: 0 | G82: dairy cows died / year
A83: 79 | B83: REP% | D83: ='FC 2'!C17/100 -> 0.3 | E83: 0.3 | F83: 0.3
A84: 80 | B84: NBTSCC | C84: Alternative option when SCC classes are unknown | G84: x 1,000 cells/ml
A85: 81 | B85: NTRMAST | C85: Treated with AB | D85: ='FC 1'!E38 -> 5 | E85: ='FC 1'!E34*0.8 -> 24 | F85: =IF(OR($D$85>0,$D$86>0,$D$87>0,$D$88>0),D85,E85) -> 5 | G85: dairy cows / year
A86: 82 | C86: Treated without AB | D86: ='FC 1'!E39 -> 0 | E86: ='FC 1'!E34*0.2 -> 6 | F86: =IF(OR($D$85>0,$D$86>0,$D$87>0,$D$88>0),D86,E86) -> 0 | G86: dairy cows / year
A87: 83 | C87: Treated with homeopathic therapy | D87: ='FC 1'!E40 -> 0 | E87: ='FC 1'!E34*0 -> 0 | F87: 0 | G87: dairy cows / year
A88: 84 | C88: Not treated | D88: ='FC 1'!E41 -> 0 | E88: ='FC 1'!E34*0 -> 0 | F88: 0 | G88: dairy cows / year
A89: 85 | B89: NTRLAME | C89: Treated with AB | D89: ='FC 1'!E48 -> 0 | E89: =(('FC 1'!M24+'FC 1'!M25)/100)*0.8*F6 -> 32 | F89: =IF(OR($D$89>0,$D$90>0,$D$91>0,$D$92>0),D89,E89) -> 32 | G89: dairy cows / year
A90: 86 | C90: Treated without AB | D90: ='FC 1'!E49 -> 0 | E90: =(('FC 1'!M24+'FC 1'!M25)/100)*0.2*F6 -> 8 | F90: =IF(OR($D$89>0,$D$90>0,$D$91>0,$D$92>0),D90,E90) -> 8 | G90: dairy cows / year
A91: 87 | C91: Treated with homeopathic therapy | D91: ='FC 1'!E50 -> 0 | E91: =(('FC 1'!M24+'FC 1'!M25)/100)*0*F6 -> 0 | F91: 0 | G91: dairy cows / year
A92: 88 | C92: Not treated | D92: ='FC 1'!E51 -> 0 | E92: =(('FC 1'!M24+'FC 1'!M25)/100)*0*F6 -> 0 | F92: 0 | G92: dairy cows / year
A93: Intervention strategy
A94: 89 | B94: NCLIN% | C94: Mastitis | D94: ='PC 5'!M9/100 -> 0.28 | E94: =F7 -> 0.3 | F94: =IF(D94>0,D94,E94) -> 0.28
A95: 90 | C95: Lameness : Score 3 | D95: ='PC 5'!M10/100 -> 0.13 | E95: =F8 -> 0.15 | F95: =D95 -> 0.13
A96: 91 | C96: Lameness : Score 2 | D96: ='PC 5'!M11/100 -> 0.22 | E96: =F9 -> 0.25 | F96: =D96 -> 0.22
A97: 92 | C97: Lameness: Score 1 | D97: =1-D95-D96 -> 0.65 | E97: 0.6 | F97: 0.65
A98: 93 | C98: Ketosis | F98: 0
A99: 94 | C99: Metritis | D99: ='PC 5'!M13/100 -> 0.23 | E99: =F12 -> 0.25 | F99: 0.23
A100: 95 | B100: NSCL% | C100: percentage of dairy cows with SCC < 50 | D100: ='PC 5'!P20/100 -> 0.15 | E100: =F13 -> 0.15 | F100: =IF(D100>0,D100,E100) -> 0.15
A101: 96 | C101: percentage of dairy cows with SCC 50-100 | D101: ='PC 5'!P21/100 -> 0.15 | E101: =F14 -> 0.15 | F101: 0.15
A102: 97 | C102: percentage of dairy cows with SCC 100-200 | D102: ='PC 5'!P22/100 -> 0.3 | E102: 0.2 | F102: 0.3
A103: 98 | C103: percentage of dairy cows with SCC 200-300 | D103: ='PC 5'!P23/100 -> 0.2 | E103: 0.2 | F103: =IF(D103>0,D103,E103) -> 0.2
A104: 99 | C104: percentage of dairy cows with SCC 300-400 | D104: ='PC 5'!P28/100 -> 0.14 | E104: 0.21 | F104: =IF(D104>=0,D104,E104) -> 0.14
A105: 100 | C105: percentage of dairy cows with SCC >400 | D105: ='PC 5'!P29/100 -> 0.06 | E105: 0.09 | F105: =IF(D105>=0,D105,E105) -> 0.06
A106: 101 | C106: Subclinical ketosis | D106: ='PC 5'!M12/100 -> 0.2 | E106: =F19 -> 0.25 | F106: 0.2
A107: 102 | C107: Endometritis | D107: ='PC 5'!M14/100 -> 0.13 | E107: =F20 -> 0.15 | F107: 0.13
A108: 103
A109: 104
A110: 105
A111: 106
A112: 107
A113: 108
A114: 109
A115: 110
A116: 111
A117: 112
A118: 113

Sheet MM Mastitis - costs (hidden)
B1: Milking procedure | N1: Housing | Z1: Dry period | AL1: Others | AX1: Custom designed management measures | BI1: Preventive costs Mastitis
J2: Current | K2: Intervent | V2: Current | W2: Intervent | AH2: Current | AI2: Intervent | AT2: Current | AU2: Intervent | BF2: Current | BG2: Intervent
A3: ='PC 1'!A5 -> 0 | B3: Milkers' gloves are worn during very milking | M3: ='PC 1'!A18 -> 18 | N3: ='PC 1'!C18 -> Decrease the number of cows to prevent overcrowding | Y3: ='PC 1'!A23 -> 33 | Z3: ='PC 1'!C23 -> All cows are dried off with an appropriate antibiotic | AK3: ='PC 1'!A26 -> 38 | AL3: ='PC 1'!C26 -> A treatment protocol is set up together with a veterinarian and every month the therapies are evaluated together | AW3: ='PC 1'!A31 -> 53 | AX3: =IF('PC 1'!C31>0,'PC 1'!C31,"") -> 
B4: During every new milking process, milkers wear a new set of gloves, the measures is depending on; consumables, rubber gloves; number of milkings per day (2 is assumed by default); number of milkers per milking round. If an AMS system is used by the farmer this measure is not appropriate to select | N4: The appropriate number of dairy cows equals the number of available lying spaces in the stable (assuming cubicle housing). In which cows are kept untill culling | BK4: Current | BL4: Intervention
BI5: Labor | BJ5: Milking procedure | BK5: =J36+J58+J80+J108+J134+J161+J195+J232+J262+J289 -> 0 | BL5: =K36+K58+K80+K108+K134+K161+K195+K232+K262+K289 -> 0 | BM5: LINK
BJ6: Housing | BK6: =V22+V51+V74 -> 0 | BL6: =W22+W51+W74 -> 0 | BM6: LINK
BJ7: Dry period | BK7: =AH21 -> 0 | BL7: =AI21 -> 0 | BM7: LINK
BJ8: Others | BK8: =AT21+AT50+AT78 -> 0 | BL8: =AU21+AU50+AU78 -> 0 | BM8: LINK
BJ9: Custom | BK9: =BF20+BF42+BF64 -> 0 | BL9: =BG20+BG42+BG64 -> 0 | BM9: LINK
B10: Currently applied | F10: FALSE | G10: =IF(F10,1,0) -> 0 | H10: 0= 'no', 1='yes' | N10: Currently applied | R10: FALSE | S10: =IF(R10,1,0) -> 0 | T10: 0= 'no', 1='yes' | Z10: Currently applied | AD10: FALSE | AE10: =IF(AD10,1,0) -> 0 | AF10: 0= 'no', 1='yes' | BI10: Consumables | BJ10: Milking procedure | BK10: =J19+J59+J81+J160+J196+J233+J263+J290 -> 0 | BL10: =K19+K59+K81+K160+K196+K233+K263+K290 -> 0 | BM10: LINK
B11: Part of new mastitis management | F11: FALSE | G11: =IF(F11,1,0) -> 0 | H11: 0= 'no', 1='yes' | N11: Part of new mastitis management | R11: FALSE | S11: =IF(R11,1,0) -> 0 | T11: 0= 'no', 1='yes' | Z11: Part of new mastitis management | AD11: FALSE | AE11: =IF(AD11,1,0) -> 0 | AF11: 0= 'no', 1='yes' | BJ11: Housing | BK11: =V23+V52+V75 -> 0 | BL11: =W23+W52+W75 -> 0 | BM11: LINK
AL12: Currently applied | AP12: FALSE | AQ12: =IF(AP12,1,0) -> 0 | AR12: 0= 'no', 1='yes' | AX12: Currently applied | BB12: FALSE | BC12: =IF(BB12,1,0) -> 0 | BD12: 0= 'no', 1='yes' | BJ12: Dry period | BK12: =AH22 -> 0 | BL12: =AI22 -> 0 | BM12: LINK
B13: Costs | N13: Costs | Z13: Costs | AL13: Part of new mastitis management | AP13: FALSE | AQ13: =IF(AP13,1,0) -> 0 | AR13: 0= 'no', 1='yes' | AX13: Part of new mastitis management | BB13: FALSE | BC13: =IF(BB13,1,0) -> 0 | BD13: 0= 'no', 1='yes' | BJ13: Others | BK13: =AT22+AT51+AT79 -> 0 | BL13: =AU22+AU51+AU79 -> 0 | BM13: LINK
B14: Number of milkings per day | H14: 2 | N14: Number of dairy cows | T14: =ASSUMPTIONS!F6 -> 100 | U14: LINK | Z14: Number of dairy cows | AF14: =ASSUMPTIONS!F6 -> 100 | BJ14: Custom | BK14: =BF21+BF43+BF65 -> 0 | BL14: =BG21+BG43+BG65 -> 0 | BM14: LINK
B15: Number of milkers per milking | H15: 1 | N15: Number of available lying spaces | T15: 99 | Z15: Average calving interval (days) | AF15: 405 | AL15: Costs | AX15: Costs | BI15: Investments | BJ15: Milking procedure | BK15: =J109+J135+J198+J235+J265+J291 -> 0 | BL15: =K109+K135+K198+K235+K265+K291 -> 0 | BM15: LINK
B16: Costs of rubber gloves package | H16: 15 | N16: Fraction overcrowding | T16: =(T14-T15)/T15 -> 0.0101010101 | U16: LINK | Z16: Number of days in year | AF16: 365 | AL16: Costs of time of veterinarian (€/hour) | AR16: 120 | AX16: Labour to perfom the measures | BD16: ='PC 1 Custom'!K8/60*'PC 1 Custom'!K12 -> 0 | BJ16: Housing | BK16: =V24+V53+V76 -> 0 | BL16: =W24+W53+W76 -> 0 | BM16: LINK
B17: Number of gloves in package | H17: 100 | N17: Average milk yield on farm (kg / cow / year) | T17: =ASSUMPTIONS!F5 -> 8310 | U17: LINK | Z17: Number of dairy cows dried off | AF17: =ROUND(AF16/AF15*AF14,0) -> 90 | AG17: LINK | AL17: Time to discuss udder health per visit (hr) | AR17: =10/60 -> 0.1666666667 | AX17: Opportunity costs of labour | BD17: =ASSUMPTIONS!F67 -> 20 | BJ17: Dry period | BK17: =AH23 -> 0 | BL17: =AI23 -> 0 | BM17: LINK
B18: Days milked in a year | H18: 365 | N18: Milk price | T18: =ASSUMPTIONS!F65 -> 0.45 | U18: LINK | Z18: Price antibiotics €/treatment | AF18: 12 | AL18: Call out costs of veterinarian | AR18: 30 | AX18: Consumables | BD18: ='PC 1 Custom'!K16+'PC 1 Custom'!K27 -> 0 | BJ18: Others | BK18: =AT23+AT52+AT80 -> 0 | BL18: =AU23+AU52+AU80 -> 0 | BM18: LINK
F19: Consumables | H19: =H14*H15*H18*(H16/H17*2) -> 219 | J19: =IF(G10=1,H19,0) -> 0 | K19: =IF(G11=1,H19,0) -> 0 | N19: Feed price | T19: =ASSUMPTIONS!F66 -> 0.2 | U19: LINK | Z19: Labor (hr/ dried off cow) | AF19: =2/60 -> 0.03333333333 | AL19: Number of visits | AR19: 12 | AX19: Investments | BD19: ='PC 1 Custom'!K21/'PC 1 Custom'!K23 -> 0 | BJ19: Custom | BK19: =BF22+BF44+BF66 -> 0 | BL19: =BG22+BG44+BG66 -> 0 | BM19: LINK
B20: Total | H20: =SUM(H19) -> 219 | N20: Slaughter price dairy cow | T20: =ASSUMPTIONS!F70 -> 750 | U20: LINK | Z20: Opportunity costs labor | AF20: =ASSUMPTIONS!F67 -> 20 | AL20: Opportunity costs labour | AR20: =ASSUMPTIONS!F67 -> 20 | AS20: LINK | BC20: Labor | BD20: =BD16*BD17 -> 0 | BF20: =IF($BC$12=1,BD20,0) -> 0 | BG20: =IF($BC$13=1,BD20,0) -> 0
N21: Increase in milk production, no more overcrowding | T21: =IF(T16<0.1,0,0.07) -> 0 | U21: LINK | AE21: Labor | AF21: =AF17*AF19*AF20 -> 60 | AH21: =IF($AE$10=1,AF21,0) -> 0 | AI21: =IF($AE$11=1,AF21,0) -> 0 | AQ21: Labor | AR21: =AR19*AR17*AR20 -> 40 | AT21: =IF($AQ$12=1,AR21,0) -> 0 | AU21: =IF($AQ$13=1,AR21,0) -> 0 | BC21: Consumables | BD21: =BD18 -> 0 | BF21: =IF($BC$12=1,BD21,0) -> 0 | BG21: =IF($BC$13=1,BD21,0) -> 0 | BI21: Total | BK21: =SUM(BK5:BK19) -> 0 | BL21: =SUM(BL5:BL19) -> 0 | BM21: LINK
A22: ='PC 1'!A6 -> 0 | B22: All cows are prestripped | S22: Labor | T22: 0 | V22: =IF($S$10=1,T22,0) -> 0 | W22: =IF($S$11=1,T22,0) -> 0 | AE22: Consumables | AF22: =AF17*AF18 -> 1080 | AH22: =IF($AE$10=1,AF22,0) -> 0 | AI22: =IF($AE$11=1,AF22,0) -> 0 | AQ22: Consumables | AR22: =AR18*AR19+AR16*AR17*AR19 -> 600 | AT22: =IF($AQ$12=1,AR22,0) -> 0 | AU22: =IF($AQ$13=1,AR22,0) -> 0 | BC22: Investments | BD22: =BD19 -> 0 | BF22: 0 | BG22: 0
B23: Before every milking process, all dairy cows are prestripped before milking starts. The measure is only dependend on labour the measure approximately takes 5 seconds per milked cow | S23: Consumables | T23: 0 | V23: =IF($S$10=1,T23,0) -> 0 | W23: =IF($S$11=1,T23,0) -> 0 | AE23: Investments | AF23: 0 | AH23: 0 | AI23: =IF($AE$11=1,AF23,0) -> 0 | AQ23: Investments | AR23: 0 | AT23: 0 | AU23: 0 | AX23: Total | BD23: =SUM(BD20:BD22) -> 0 | BI23: Labor | BK23: =SUM(BK5:BK9) -> 0 | BL23: =SUM(BL5:BL9) -> 0 | BM23: LINK
S24: Investments | T24: =((T14-T15)*T17*(T18-T19)) -> 2077.5 | U24: Milk yield losses culled cows | V24: =IF($S$10=1,T24-T25-T26,0) -> 0 | W24: =IF($S$11=1,T24-T25-T26,0) -> 0 | Z24: Total | AF24: =SUM(AF21:AF23) -> 1140 | AL24: Total | AR24: =SUM(AR21:AR23) -> 640 | BI24: Consumables | BK24: =SUM(BK10:BK14) -> 0 | BL24: =SUM(BL10:BL14) -> 0 | BM24: LINK
T25: =((T14-T15)*T20) -> 750 | U25: Slaughter price sold cows | AW25: ='PC 1'!A32 -> 54 | AX25: =IF('PC 1'!C32>0,'PC 1'!C32,"") ->  | BI25: Investments | BK25: =SUM(BK15:BK19) -> 0 | BL25: =SUM(BL15:BL19) -> 0 | BM25: LINK
T26: =(T17*T15*T21*(T18-T19)) -> 0 | U26: Increased milk yield remaining cows | Y26: ='PC 1'!#REF! ->  | Z26: ='PC 1'!#REF! ->  | AK26: ='PC 1'!A27 -> 39 | AL26: ='PC 1'!C27 -> Add appropriate minerals to the feed of dry cows | BI26: Total | BK26: =SUM(BK23:BK25) -> 0 | BL26: =SUM(BL23:BL25) -> 0 | BM26: LINK
B27: Currently applied | F27: FALSE | G27: =IF(F27,1,0) -> 0 | H27: 0= 'no', 1='yes' | N27: Total | T27: =T22+T23+T24-T25-T26 -> 1327.5
B28: Part of new mastitis management | F28: FALSE | G28: =IF(F28,1,0) -> 0 | H28: 0= 'no', 1='yes'
M29: 19 | N29: ='PC 1'!C19 -> Clean all cubicles twice every day and make sure enough and clean bedding material is present
B30: Costs
B31: Number of dairy cows | H31: =ASSUMPTIONS!F6 -> 100 | I31: LINK | N31: All cubicles are cleaned twice every day and two times per week chalk is provided on all cubicles. Start up labor of the measure is assumed to be 5 minutes per cleaning round and labor per cubicle is 6 seconds
B32: Number of milkings per day | H32: 2
B33: Labour per milked dairy cow (hr/cow/milking) | H33: =5/60/60 -> 0.001388888889
B34: Opportunity costs of labor (€/hr) | H34: =ASSUMPTIONS!F67 -> 20 | I34: LINK | Z34: Currently applied | AD34: FALSE | AE34: =IF(AD34,1,0) -> 0 | AF34: 0= 'no', 1='yes' | AL34: Currently applied | AP34: FALSE | AQ34: =IF(AP34,1,0) -> 0 | AR34: 0= 'no', 1='yes' | AX34: Currently applied | BB34: FALSE | BC34: =IF(BB34,1,0) -> 0 | BD34: 0= 'no', 1='yes'
B35: Days milked in a year | H35: 365 | Z35: Part of new mastitis management | AD35: FALSE | AE35: =IF(AD35,1,0) -> 0 | AF35: 0= 'no', 1='yes' | AL35: Part of new mastitis management | AP35: FALSE | AQ35: =IF(AP35,1,0) -> 0 | AR35: 0= 'no', 1='yes' | AX35: Part of new mastitis management | BB35: FALSE | BC35: =IF(BB35,1,0) -> 0 | BD35: 0= 'no', 1='yes'
F36: Labor | H36: =H31*H32*H33*H34*H35 -> 2027.777778 | J36: =IF(G27=1,H36,0) -> 0 | K36: =IF(G28=1,H36,0) -> 0
B37: Total | H37: =SUM(H36) -> 2027.777778 | Z37: Costs | AL37: Costs | AX37: Costs
N38: Currently applied | R38: FALSE | S38: =IF(R38,1,0) -> 0 | T38: 0= 'no', 1='yes' | Z38: Costs of measure needs to be determined | AL38: Price of mineral bolus | AR38: 475 | AX38: Labour to perfom the measures | BD38: ='PC 1 Custom'!K31/60*'PC 1 Custom'!K35 -> 0
N39: Part of new mastitis management | R39: FALSE | S39: =IF(R39,1,0) -> 0 | T39: 0= 'no', 1='yes' | AL39: Package size (pcs) | AR39: 100 | AX39: Opportunity costs of labour | BD39: =ASSUMPTIONS!F67 -> 20
A40: ='PC 1'!A7 -> 0 | B40: Use of seperate cloth to clean udder | AL40: Price per bolus | AR40: =AR38/AR39 -> 4.75 | AX40: Consumables | BD40: ='PC 1 Custom'!K39+'PC 1 Custom'!K50 -> 0
B41: Before attaching the udder a seperate cloth is used to clean the udder of each individual cow. The measure depends on; consumables, cloth; labor time to clean udder; number of milkings per day, days milked per year and number of dairy cows milked. The measure approximately takes 5 seconds per milked cow | N41: Costs | AL41: Usage per dried off cows | AR41: 2 | AX41: Investments | BD41: ='PC 1 Custom'!K44/'PC 1 Custom'!K46 -> 0
N42: Number of available lying spaces | T42: 70 | AL42: Number of dairy cows | AR42: =ASSUMPTIONS!F6 -> 100 | BC42: Labor | BD42: =BD38*BD39 -> 0 | BF42: =IF($BC$34=1,BD42,0) -> 0 | BG42: =IF($BC$35=1,BD42,0) -> 0
N43: Start-up labor (hr/ cubicle) | T43: =5/60 -> 0.08333333333 | AL43: Calving interval | AR43: 405 | BC43: Consumables | BD43: =BD40 -> 0 | BF43: =IF($BC$34=1,BD43,0) -> 0 | BG43: =IF($BC$35=1,BD43,0) -> 0
N44: Labor per cubicles (hr) | T44: =0.1/60 -> 0.001666666667 | AL44: Number of days in year | AR44: 365 | BC44: Investments | BD44: =BD41 -> 0 | BF44: 0 | BG44: 0
N45: Opportunity costs labor | T45: =ASSUMPTIONS!F67 -> 20 | U45: LINK | AL45: Number of dried off cows | AR45: =ROUND(AR44/AR43*AR42,0) -> 90 | AX45: Total | BD45: =SUM(BD42:BD44) -> 0
N46: Number of days in year | T46: 365 | AL46: Bolusschieter' | AR46: 35
B47: Currently applied | F47: FALSE | G47: =IF(F47,1,0) -> 0 | H47: 0= 'no', 1='yes' | N47: Number of cleanings per day | T47: 2 | AL47: Expected lifetime 'bolusschieter' (yrs) | AR47: 3 | AW47: ='PC 1'!A33 -> 55 | AX47: =IF('PC 1'!C33>0,'PC 1'!C33,"") -> 
B48: Part of new mastitis management | F48: FALSE | G48: =IF(F48,1,0) -> 0 | H48: 0= 'no', 1='yes' | N48: Price of bag of chalk (€) | T48: 20 | AL48: Labor per dried off cow (hrs) | AR48: =3/60 -> 0.05
N49: Content per bag (kg) | T49: 25 | AL49: Opportunity costs labor | AR49: =ASSUMPTIONS!F67 -> 20
B50: Costs | N50: Number of bags used per year | T50: 18 | AQ50: Labor | AR50: =AR48*AR45*AR49 -> 90 | AT50: =IF($AQ$34=1,AR50,0) -> 0 | AU50: =IF($AQ$35=1,AR50,0) -> 0
B51: Number of dairy cows | H51: =ASSUMPTIONS!F6 -> 100 | I51: LINK | S51: Labor | T51: =(T46*T47*T43*T45)+(T46*T47*T42*T44*T45) -> 2920 | V51: =IF($S$38=1,T51,0) -> 0 | W51: =IF($S$39=1,T51,0) -> 0 | AQ51: Consumables | AR51: =AR45*AR40*AR41 -> 855 | AT51: =IF($AQ$34=1,AR51,0) -> 0 | AU51: =IF($AQ$35=1,AR51,0) -> 0
B52: Number of milkings per day | H52: 2 | S52: Consumables | T52: =T48*T50 -> 360 | V52: =IF($S$38=1,T52,0) -> 0 | W52: =IF($S$39=1,T52,0) -> 0 | AQ52: Investments | AR52: =AR46/AR47 -> 11.66666667 | AT52: 0 | AU52: 0
B53: Costs of cleaning cloths package | H53: 30 | S53: Investments | T53: 0 | V53: 0 | W53: 0 | AL53: Total | AR53: =SUM(AR50:AR52) -> 956.6666667
B54: Number of cloths in package | H54: 1000 | N54: Total | T54: =SUM(T51:T53) -> 3280
B55: Labour per cleaned udder (hr/cow/milking) | H55: =5/60/60 -> 0.001388888889 | AK55: ='PC 1'!A28 -> 40 | AL55: ='PC 1'!C28 -> Optimize the feed according to farm-specific needs
B56: Opportunity costs of labor (€/hr) | H56: =ASSUMPTIONS!F67 -> 20 | I56: LINK | M56: 20 | N56: ='PC 1'!C20 -> Manually clean the yards twice a day | AL56: Voeren van krachtvoer 3 weken voorafgaand aan afkalven om NEB te voorkomen. Elke dag voeren 1 minuten | AX56: Currently applied | BB56: FALSE | BC56: =IF(BB56,1,0) -> 0 | BD56: 0= 'no', 1='yes'
B57: Days milked in a year | H57: 365 | AX57: Part of new mastitis management | BB57: FALSE | BC57: =IF(BB57,1,0) -> 0 | BD57: 0= 'no', 1='yes'
F58: Labor | H58: =H51*H52*H57*H55*H56 -> 2027.777778 | J58: =IF($G$47=1,H58,0) -> 0 | K58: =IF($G$48=1,H58,0) -> 0
F59: Consumables | H59: =H51*H52*H57*(H53/H54) -> 2190 | J59: =IF($G$47=1,H59,0) -> 0 | K59: =IF($G$48=1,H59,0) -> 0 | AX59: Costs
B60: Total | H60: =SUM(H58:H59) -> 4217.777778 | AX60: Labour to perfom the measures | BD60: ='PC 1 Custom'!K54/60*'PC 1 Custom'!K58 -> 0
AX61: Opportunity costs of labour | BD61: =ASSUMPTIONS!F67 -> 20
A62: ='PC 1'!A8 -> 0 | B62: All cows are treated with a good teat disinfectant after milking (PMTD) | AX62: Consumables | BD62: ='PC 1 Custom'!K62+'PC 1 Custom'!K73 -> 0
B63: After milking all teats are disinfected with either an appropriate teat dip or teat spray, costs associated with this measure include; consumables, spray or dip; labor, which is assumed to be 3 seconds per treated cow, the number of dairy cows, the number of milkings, opportunity costs of labor and the number of days milked per year | AL63: Currently applied | AP63: FALSE | AQ63: =IF(AP63,1,0) -> 0 | AR63: 0= 'no', 1='yes' | AX63: Investments | BD63: ='PC 1 Custom'!K67/'PC 1 Custom'!K69 -> 0
N64: Currently applied | R64: FALSE | S64: =IF(R64,1,0) -> 0 | T64: 0= 'no', 1='yes' | AL64: Part of new mastitis management | AP64: FALSE | AQ64: =IF(AP64,1,0) -> 0 | AR64: 0= 'no', 1='yes' | BC64: Labor | BD64: =BD60*BD61 -> 0 | BF64: =IF($BC$56=1,BD64,0) -> 0 | BG64: =IF($BC$57=1,BD64,0) -> 0
N65: Part of new mastitis management | R65: FALSE | S65: =IF(R65,1,0) -> 0 | T65: 0= 'no', 1='yes' | BC65: Consumables | BD65: =BD62 -> 0 | BF65: =IF($BC$56=1,BD65,0) -> 0 | BG65: =IF($BC$57=1,BD65,0) -> 0
AL66: Costs | BC66: Investments | BD66: =BD63 -> 0 | BF66: 0 | BG66: 0
N67: Costs | AL67: Number of dairy cows | AR67: =ASSUMPTIONS!F6 -> 100 | AS67: LINK | AX67: Total | BD67: =SUM(BD64:BD66) -> 0
N68: Number of available lying spaces | T68: 70 | AL68: Average calving interval (days) | AR68: 405
B69: Currently applied | F69: FALSE | G69: =IF(F69,1,0) -> 0 | H69: 0= 'no', 1='yes' | N69: Days in year | T69: 365 | AL69: Number of days in year | AR69: 365
B70: Part of new mastitis management | F70: FALSE | G70: =IF(F70,1,0) -> 0 | H70: 0= 'no', 1='yes' | N70: Cleanings per day | T70: 2 | AL70: Number of dairy cows dried off | AR70: =ROUND(AR69/AR68*AR67,0) -> 90 | AS70: LINK
N71: Start-up labor per cleaning (hr) | T71: =5/60 -> 0.08333333333 | AL71: days in week | AR71: 7
B72: Costs | N72: Labor per cubicle (hr) | T72: =0.05/60 -> 0.0008333333333 | AL72: Duration during dry period were concentrate is supplied (weeks) | AR72: 3
B73: Number of dairy cows | H73: =ASSUMPTIONS!F6 -> 100 | I73: LINK | N73: Opportunity costs labor | T73: =ASSUMPTIONS!F67 -> 20 | U73: LINK | AL73: Amount supplied to dry cows ( kg / day) | AR73: 2
B74: Number of milkings per day | H74: 2 | S74: Labor | T74: =(T69*T70*T71*T73)+(T68*T69*T70*T72*T73) -> 2068.333333 | V74: =IF($S$64=1,T74,0) -> 0 | W74: =IF($S$65=1,T74,0) -> 0 | AL74: Price concentrate (€/100 kg) | AR74: 25
B75: Days milked in a year | H75: 365 | S75: Consumables | T75: 0 | V75: =IF($S$64=1,T75,0) -> 0 | W75: =IF($S$65=1,T75,0) -> 0 | AL75: Price concentrate(€/kg) | AR75: =AR74/100 -> 0.25 | AS75: LINK
B76: Opportunity costs of labor (€/hr) | H76: =ASSUMPTIONS!F67 -> 20 | I76: LINK | S76: Investments | T76: 0 | V76: 0 | W76: 0 | AL76: Labor for feeding concentrates (hr / day) | AR76: =1/60 -> 0.01666666667
B77: Labor per disinfected cow (hr/milked/cow) | H77: =3/60/60 -> 0.0008333333333 | N77: Total | T77: =SUM(T74:T76) -> 2068.333333 | AL77: Opportunity costs labor (€/hour) | AR77: =ASSUMPTIONS!F67 -> 20 | AS77: LINK
B78: Costs of spray (€ /L) | H78: =50/20 -> 2.5 | AQ78: Labor | AR78: =AR76*AR69*AR77 -> 121.6666667 | AT78: =IF($AQ$63=1,AR78,0) -> 0 | AU78: =IF($AQ$64=1,AR78,0) -> 0
B79: Use of spray (L / milked cow) | H79: =5/1000 -> 0.005 | M79: 21 | N79: ='PC 1'!#REF! ->  | AQ79: Consumables | AR79: =AR70*AR71*AR72*AR73*AR75 -> 945 | AT79: =IF($AQ$63=1,AR79,0) -> 0 | AU79: =IF($AQ$64=1,AR79,0) -> 0
F80: Labor | H80: =H73*H74*H75*H77*H76 -> 1216.666667 | J80: =IF($G$69=1,H80,0) -> 0 | K80: =IF($G$70=1,H80,0) -> 0 | AQ80: Investments | AR80: 0 | AT80: 0 | AU80: 0
F81: Consumables | H81: =H73*H74*H75*H79*H78 -> 912.5 | J81: =IF($G$69=1,H81,0) -> 0 | K81: =IF($G$70=1,H81,0) -> 0 | AL81: Total | AR81: =SUM(AR78:AR80) -> 1066.666667
B82: Total | H82: =SUM(H80:H81) -> 2129.166667
AK83: ='PC 1'!#REF! ->  | AL83: ='PC 1'!#REF! -> 
A84: ='PC 1'!A9 -> 0 | B84: All cows with an elevated SCC (>250,000 cells/mL) are milked last
B85: All dairy cows with an elevated SCC which is ≥ 250,000 cells/ml are withdrawn from the population and milked last. Costs associated with this measure includes; investment of a seperation fence, opportunity costs of labor, labor and labor for new case, number of dairy cows with a high SCC, number of milkings per day and days milked in a year
N87: Currently applied | R87: FALSE | S87: =IF(R87,1,0) -> 0 | T87: 0= 'no', 1='yes'
N88: Part of new mastitis management | R88: FALSE | S88: =IF(R88,1,0) -> 0 | T88: 0= 'no', 1='yes'
N90: Costs
N91: Costs of measure needs to be determined | AL91: Currently applied | AP91: FALSE | AQ91: =IF(AP91,1,0) -> 0 | AR91: 0= 'no', 1='yes'
B92: Currently applied | F92: FALSE | G92: =IF(F92,1,0) -> 0 | H92: 0= 'no', 1='yes' | AL92: Part of new mastitis management | AP92: FALSE | AQ92: =IF(AP92,1,0) -> 0 | AR92: 0= 'no', 1='yes'
B93: Part of new mastitis management | F93: FALSE | G93: =IF(F93,1,0) -> 0 | H93: 0= 'no', 1='yes'
AL94: Costs
B95: Costs | AL95: Costs of measure needs to be determined
B96: Number of dairy cows | H96: =ASSUMPTIONS!F6 -> 100 | I96: LINK
B97: SCC > 250.000 | H97: =0.5*ASSUMPTIONS!F16*ASSUMPTIONS!F6 -> 10 | I97: LINK
B98: SCC300.000-400.000 | H98: =ASSUMPTIONS!F6*ASSUMPTIONS!F17 -> 21 | I98: LINK
B99: SCC ≥ 400.000 | H99: =ASSUMPTIONS!F18*ASSUMPTIONS!F6 -> 9 | I99: LINK
B100: Number of milkings per day | H100: 2
B101: Days milked in a year | H101: 365
B102: Opportunity costs of labor | H102: =ASSUMPTIONS!F67 -> 20 | I102: LINK
B103: Seperation fence, initial investment | H103: 2500
B104: Depreciation period (yrs) | H104: 10
B105: Yearly depreciation separation fence | H105: =H103/H104 -> 250 | I105: LINK
B106: Labor (hr/milking) | H106: =5/60 -> 0.08333333333
B107: Labor new high SCC cow (hr) | H107: =5/60 -> 0.08333333333
F108: Labor | H108: =(H101*H100*H106*H102)+((H97+H98+H99)*H107*H102) -> 1283.333333 | J108: =IF($G$92=1,H108,0) -> 0 | K108: =IF(G93=1,H108,0) -> 0
F109: Investments | H109: =H105 -> 250 | J109: =IF($G$92=1,H109,0) -> 0 | K109: =IF(G94=1,H109,0) -> 0
B110: Total | H110: =SUM(H108:H109) -> 1533.333333
A112: ='PC 1'!A10 -> 0 | B112: All cows with clinical signs are milked last
B113: All dairy cows with clinical mastitis are withdrawn from the population and milked last. Costs associated with this measure includes; investment of a seperation fence, opportunity costs of labor, labor and labor for new case, number of dairy cows with clinical mastitis, number of milkings per day and days milked in a year
B120: Currently applied | F120: FALSE | G120: =IF(F120,1,0) -> 0 | H120: 0= 'no', 1='yes'
B121: Part of new mastitis management | F121: FALSE | G121: =IF(F121,1,0) -> 0 | H121: 0= 'no', 1='yes'
B123: Costs
B124: Number of dairy cows | H124: =ASSUMPTIONS!F6 -> 100 | I124: LINK
B125: Number of dairy cows with clinical mastitis | H125: =ASSUMPTIONS!F7*ASSUMPTIONS!F6 -> 30 | I125: LINK
B126: Number of milkings per day | H126: 2
B127: Days milked in a year | H127: 365
B128: Opportunity costs of labor | H128: =ASSUMPTIONS!F67 -> 20 | I128: LINK
B129: Seperation fence, initial investment | H129: 2500
B130: Depreciation period (yrs) | H130: 10
B131: Yearly depreciation separation fence | H131: =H129/H130 -> 250 | I131: LINK
B132: Labor (hr/milking) | H132: =5/60 -> 0.08333333333
B133: Labor new high SCC cow (hr) | H133: =5/60 -> 0.08333333333
F134: Labor | H134: =(H125*H133*H128)+(H127*H126*H132*H128) -> 1266.666667 | J134: =IF($G$120=1,H134,0) -> 0 | K134: =IF($G$121=1,H134,0) -> 0
F135: Investments | H135: =H131 -> 250 | J135: =IF($G$120=1,H135,0) -> 0 | K135: =IF($G$121=1,H135,0) -> 0
B136: Total
A138: ='PC 1'!A11 -> 0 | B138: Teat cup liners are replaced according to the manufacterer's norm
B139: Replacement of teat cup liners, to prevent bacteria to contaminate dairy cows due to dried out teat cup liners. Replacement according to manufacturer's norm, after 2,500 milking teat cup liners are replaced. Depends on: number of dairy cows, manufacturers norm, price teat cup liners, labor and opportunity costs of labor
B145: Currently applied | F145: FALSE | G145: =IF(F145,1,0) -> 0 | H145: 0= 'no', 1='yes'
B146: Part of new mastitis management | F146: FALSE | G146: =IF(F146,1,0) -> 0 | H146: 0= 'no', 1='yes'
B148: Costs
B149: Number of dairy cows | H149: =ASSUMPTIONS!F6 -> 100 | I149: LINK
B150: Number of milkings per day | H150: 2
B151: Days milked in a year | H151: 365
B152: Yearly number of milkings | H152: =H149*H150*H151 -> 73000 | I152: LINK
B153: Yearly number of milkings per milking place | H153: =H152/H155 -> 6083.333333
B154: Manufacturers norm to replace teat cup liner after x milkings | H154: 2500
B155: Parlour, number of milking places | H155: 12
B156: Replacement rate per year set teat cup liners | H156: =H153/H154 -> 2.433333333
B157: Price teat cup liners (4 pcs) | H157: 13
B158: Labor per set of teat cups | H158: =10/60 -> 0.1666666667 | I158: 10 minutes per set ?
B159: Opportunity costs labor | H159: =ASSUMPTIONS!F67 -> 20 | I159: LINK
F160: Consumables | H160: =H156*H155*H157 -> 379.6 | J160: =IF($G$145=1,H160,0) -> 0 | K160: =IF($G$146=1,H160,0) -> 0
F161: Labor | H161: =H155*H156*H158*H159 -> 97.33333333 | J161: =IF($G$145=1,H161,0) -> 0 | K161: =IF($G$146=1,H161,0) -> 0
B162: Total | H162: =SUM(H160:H161) -> 476.9333333
A164: ='PC 1'!A12 -> 0 | B164: After milking a cow with clinical signs, the cluster is rinsed with hotwater before another cow is milked
B166: After milking a cows with clinical signs, the cluster is rinsed with hot water of at least 85 °C for at least 5 seconds. A coil heater is used to keep the water on temperature. Start up labor is 3 minutes per milking and labor per cluster is 10 seconds / clinical case / milking. The initial investment of the coil heater is €45 and the expected life time of the coil heater is 2 yrs. It is expected the coil heater is in use for 45 minutes per milking and used 1.5 kWh per milking
B175: Currently applied | F175: FALSE | G175: =IF(F175,1,0) -> 0 | H175: 0= 'no', 1='yes'
B176: Part of new mastitis management | F176: FALSE | G176: =IF(F176,1,0) -> 0 | H176: 0= 'no', 1='yes'
B178: Costs
B179: Number of clinical cases | H179: =ASSUMPTIONS!F7*ASSUMPTIONS!F6 -> 30 | I179: LINK
B180: Number of milkings per day | H180: 2
B181: Days individual cows are clinical cases | H181: 10
B182: Start-up labor | H182: =3/60 -> 0.05
B183: Labor per clinical case | H183: =10/60/60 -> 0.002777777778
B184: opportunity costs labor | H184: =ASSUMPTIONS!F67 -> 20 | I184: LINK
B185: Investment coil | H185: 45
B186: Expected lifetime coil | H186: 2
B187: Yearly investment coil | H187: =H185/H186 -> 22.5 | I187: LINK
B188: kW coil | H188: 2000
B189: Hrs water has to be heated per milking | H189: 0.75
B190: KWh coil per milking | H190: =H188*H189/1000 -> 1.5 | I190: LINK
B191: Price energy (€ / kWh) | H191: 0.22
B192: Liter water during milking used | H192: 5
B193: Price of water € / m3 | H193: 1.2
B194: Price of water €/ltr | H194: =H193/1000 -> 0.0012 | I194: LINK
G195: Labor | H195: =(H182*H181*H180*H184)+(H183*H179*H180*H181) -> 21.66666667 | J195: =IF($G$175=1,H195,0) -> 0 | K195: =IF($G$176=1,H195,0) -> 0
G196: Consumables | H196: =(H179*H180*H181*H190*H191) -> 198 | I196: Electricity | J196: =IF($G$175=1,H196+H197,0) -> 0 | K196: =IF($G$176=1,H196+H197,0) -> 0
H197: =(H179*H180*H181*H192*H194) -> 3.6 | I197: Water
G198: Investment | H198: =H187 -> 22.5 | J198: =IF($G$175=1,H198,0) -> 0 | K198: =IF($G$176=1,H198,0) -> 0
B199: Total | H199: =SUM(H195:H198) -> 245.7666667
A201: ='PC 1'!A13 -> 0 | B201: After milking a cow with subclinical mastitis, the cluster is rinsed with hot water before another cow is milked
B203: After milking a cows with SCC ≥ 250.000 cells/mL, the cluster is rinsed with hot water of at least 85 °C for at least 5 seconds. A coil heater is used to keep the water on temperature. Start up labor is 3 minutes per milking and labor per cluster is 10 seconds / subclinical case / milking. The initial investment of the coil heater is €45 and the expected life time of the coil heater is 2 yrs. It is expected the coil heater is in use for 45 minutes per milking and used 1.5 kWh per milking
B212: Currently applied | F212: FALSE | G212: =IF(F212,1,0) -> 0 | H212: 0= 'no', 1='yes'
B213: Part of new mastitis management | F213: FALSE | G213: =IF(F213,1,0) -> 0 | H213: 0= 'no', 1='yes'
B215: Costs
B216: Number of cows with SCC ≥ 250.000 cells/ml | H216: =ASSUMPTIONS!F6*ASSUMPTIONS!F16*0.5+ASSUMPTIONS!F17*ASSUMPTIONS!F6+ASSUMPTIONS!F18*ASSUMPTIONS!F6 -> 40 | I216: LINK
B217: Number of milkings per day | H217: 2
B218: Days milked in a year | H218: 365
B219: Start-up labor | H219: =3/60 -> 0.05
B220: Labor per clinical case | H220: =10/60/60 -> 0.002777777778
B221: opportunity costs labor | H221: =ASSUMPTIONS!F67 -> 20 | I221: LINK
B222: Investment coil | H222: 45
B223: Expected lifetime coil | H223: 2
B224: Yearly investment coil | H224: =H222/H223 -> 22.5 | I224: LINK
B225: kW coil | H225: 2000
B226: Hrs water has to be heated per milking | H226: 0.75
B227: KWh coil per milking | H227: =H225*H226/1000 -> 1.5 | I227: LINK
B228: Price energy (€ / kWh) | H228: 0.22
B229: Liter water during milking used | H229: 5
B230: Price of water € / m3 | H230: 1.2
B231: Price of water €/ltr | H231: =H230/1000 -> 0.0012 | I231: LINK
G232: Labor | H232: =(H219*H218*H217*H221)+(H220*H216*H217*H218) -> 811.1111111 | J232: =IF($G$212=1,H232,0) -> 0 | K232: =IF($G$213=1,H232,0) -> 0
G233: Consumables | H233: =(H217*H218*H227*H228) -> 240.9 | I233: Electricity | J233: =IF($G$212=1,H233+H234,0) -> 0 | K233: =IF($G$213=1,H233+H234,0) -> 0
H234: =(H217*H218*H229*H231) -> 4.38 | I234: Water
G235: Investment | H235: =H224 -> 22.5 | J235: =IF($G$212=1,H235,0) -> 0 | K235: =IF($G$213=1,H235,0) -> 0
B236: Total | H236: =SUM(H232:H235) -> 1078.891111
A238: ='PC 1'!A14 -> 0 | B238: Dirty udders are washed with water and dried before attaching the cluster
B239: Before attaching the cluster all dirty udders are washed with water and dried before attaching the cluster. During cleaning 2 liter of water and one new dispensable cloth are used, one cleaning takes approximately 15 seconds into account
B246: Currently applied | F246: FALSE | G246: =IF(F246,1,0) -> 0 | H246: 0= 'no', 1='yes'
... 42 more rows

Sheet MM Lameness - costs (hidden)
B1: Farm system | N1: Housing system | Z1: ='PC 2'!$A$16 -> Cubicle dimension and design | AL1: ='PC 2'!A21 -> Cubicle bedding | AX1: Custom designed management measures | BI1: Preventive costs Lameness
J2: Current | K2: Intervent | BF2: Current | BG2: Intervent
A3: ='PC 2'!A5 -> 5 | B3: ='PC 2'!C5 -> Decrease the number of cows to prevent overcrowding | M3: ='PC 2'!A9 -> 10 | N3: ='PC 2'!C9 -> Groove concrete floors (vs. smooth concrete floor) | Y3: ='PC 2'!$A$18 -> 19 | Z3: ='PC 2'!$C$18 -> Clean cubicles appropriately / Clean all cubicles twice every day and make sure enough and clean bedding material is present | AK3: ='PC 2'!A23 -> 22 | AL3: ='PC 2'!C23 -> Use of curbs in cubicles to keep bedding inside | AX3: =IF('PC 2'!C26>0,'PC 2'!C26,"") -> 
N4: Groove concrete floors , to have at least an average leroux value of 63. Work has to be outsourced. Improve nonskid performance of floor | BK4: Current | BL4: Intervention
Z5: All cubicles are cleaned twice every day and two times per week chalk is provided on all cubicles. Start up labor of the measure is assumed to be 5 minutes per cleaning round and labor per cubicle is 6 seconds | BI5: Labor | BJ5: Farm system | BK5: =J23 -> 0 | BL5: =K23 -> 0
BJ6: Housing system | BK6: =V20+V43+V85+V106+V131+V156 -> 0 | BL6: =W20+W43+W85+W106+W131+W156 -> 0
BJ7: Cubicle dimension and design | BK7: =AH25+AH48 -> 0 | BL7: =AI25+AI48 -> 2920
BJ8: Cubicle bedding | BK8: =AT19 -> 0 | BL8: =AU19 -> 0
BJ9: Custom measures | BL9: =BG20+BG42+BG64 -> 0
BI10: Consumables | BJ10: Farm system | BK10: =J24 -> 0 | BL10: =K24 -> 0
B11: Currently applied | F11: FALSE | G11: =IF(F11,1,0) -> 0 | H11: 0= 'no', 1='yes' | N11: Currently applied | R11: FALSE | S11: =IF(R11,1,0) -> 0 | T11: 0= 'no', 1='yes' | BJ11: Housing system | BK11: =V21+V44+V86+V107+V132+V157 -> 0 | BL11: =W21+W44+W86+W107+W132+W157 -> 0
B12: Part of new lameness management | F12: TRUE | G12: =IF(F12,1,0) -> 1 | H12: 0= 'no', 1='yes' | N12: Part of new lameness management | R12: TRUE | S12: =IF(R12,1,0) -> 1 | T12: 0= 'no', 1='yes' | Z12: Currently applied | AD12: FALSE | AE12: =IF(AD12,1,0) -> 0 | AF12: 0= 'no', 1='yes' | AL12: Currently applied | AP12: FALSE | AQ12: =IF(AP12,1,0) -> 0 | AR12: 0= 'no', 1='yes' | AX12: Currently applied | BB12: FALSE | BC12: =IF(BB12,1,0) -> 0 | BD12: 0= 'no', 1='yes' | BJ12: Cubicle dimension and design | BK12: =AH26+AH49 -> 0 | BL12: =AI26+AI49 -> 360
Z13: Part of new lameness management | AD13: TRUE | AE13: =IF(AD13,1,0) -> 1 | AF13: 0= 'no', 1='yes' | AL13: Part of new lameness management | AP13: FALSE | AQ13: =IF(AP13,1,0) -> 0 | AR13: 0= 'no', 1='yes' | AX13: Part of new mastitis management | BB13: FALSE | BC13: =IF(BB13,1,0) -> 0 | BD13: 0= 'no', 1='yes' | BJ13: Cubicle bedding | BK13: =AT20 -> 0 | BL13: =AU20 -> 0
B14: Costs | N14: Costs | BJ14: Custom measures | BL14: =BG21+BG43+BG65 -> 0
B15: Number of dairy cows | H15: =ASSUMPTIONS!F6 -> 100 | I15: LINK | N15: Number of available lying spaces | T15: 70 | Z15: Costs | AL15: Costs | AX15: Costs | BI15: Investments | BJ15: Farm system | BK15: =J25 -> 0 | BL15: =K25 -> 1327.5
B16: Number of available lying spaces | H16: 99 | N16: Average surface per dairy cow (m2) | T16: 10 | Z16: Number of available lying spaces | AF16: 70 | AL16: Number of available lying spaces | AR16: 70 | AX16: Labour to perfom the measures | BD16: ='PC 2 Custom'!K8/60*'PC 2 Custom'!K12 -> 0 | BJ16: Housing system | BK16: =V22+V45+V87+V108+V133+V158 -> 0 | BL16: =W22+W45+W87+W108+W133+W158 -> 420
B17: Fraction overcrowding | H17: =(H15-H16)/H16 -> 0.0101010101 | I17: LINK | N17: Percentage of surface concrete (%) | T17: 0.6 | Z17: Start-up labor (hr/ cubicle) | AF17: =5/60 -> 0.08333333333 | AL17: Price of curb per cubicle (€) | AR17: 20 | AS17: GUESTIMATE | AX17: Opportunity costs of labour | BD17: =ASSUMPTIONS!F67 -> 20 | BJ17: Cubicle dimension and design | BK17: =AH27+AH50 -> 0 | BL17: =AI27+AI50 -> 0
B18: Average milk yield on farm (kg / cow / year) | H18: =ASSUMPTIONS!F5 -> 8310 | I18: LINK | N18: Price of grooving floor by external company (€/m2) | T18: 5 | Z18: Labor per cubicles (hr) | AF18: =0.1/60 -> 0.001666666667 | AL18: Expected lifetime curb (yrs) | AR18: 7 | AX18: Consumables | BD18: ='PC 2 Custom'!K16+'PC 2 Custom'!K27 -> 0 | BJ18: Cubicle bedding | BK18: =AT21 -> 0 | BL18: =AU21 -> 0
B19: Milk price | H19: =ASSUMPTIONS!F65 -> 0.45 | I19: LINK | N19: Expected lifetime grooved floor (yrs) | T19: 5 | Z19: Opportunity costs labor | AF19: =ASSUMPTIONS!F67 -> 20 | AG19: LINK | AQ19: Labor | AR19: =0 -> 0 | AT19: =IF($AQ$12=1,AR19,0) -> 0 | AU19: =IF($AQ$13=1,AR19,0) -> 0 | AX19: Investments | BD19: ='PC 2 Custom'!K21/'PC 2 Custom'!K23 -> 0 | BJ19: Custom measures | BL19: =BG22+BG44+BG66 -> 0
B20: Feed price | H20: =ASSUMPTIONS!F66 -> 0.2 | I20: LINK | S20: Labor | T20: 0 | V20: =IF($S$11=1,T20,0) -> 0 | W20: =IF($S$12=1,T20,0) -> 0 | Z20: Number of days in year | AF20: 365 | AQ20: Consumables | AR20: =0 -> 0 | AT20: =IF($AQ$12=1,AR20,0) -> 0 | AU20: =IF($AQ$13=1,AR20,0) -> 0 | BC20: Labor | BD20: =BD16*BD17 -> 0 | BF20: =IF($BC$12=1,BD20,0) -> 0 | BG20: =IF($BC$13=1,BD20,0) -> 0 | BI20: Total | BK20: =SUM(BK5:BK18) -> 0 | BL20: =SUM(BL5:BL19) -> 5027.5
B21: Slaughter price dairy cow | H21: =ASSUMPTIONS!F70 -> 750 | I21: LINK | S21: Consumables | T21: 0 | V21: =IF($S$11=1,T21,0) -> 0 | W21: =IF($S$12=1,T21,0) -> 0 | Z21: Number of cleanings per day | AF21: 2 | AQ21: Investments | AR21: =AR16*AR17/AR18 -> 200 | AT21: 0 | AU21: 0 | BC21: Consumables | BD21: =BD18 -> 0 | BF21: =IF($BC$12=1,BD21,0) -> 0 | BG21: =IF($BC$13=1,BD21,0) -> 0
B22: Increase in milk production, no more overcrowding | H22: =IF(H17<0.1,0,0.07) -> 0 | I22: LINK | S22: Investments | T22: =T15*T16*T17*T18/T19 -> 420 | V22: 0 | W22: 420 | Z22: Price of bag of chalk (€) | AF22: 20 | AL22: Total | AR22: =SUM(AR19:AR21) -> 200 | BC22: Investments | BD22: =BD19 -> 0 | BF22: 0 | BG22: 0 | BI22: Labor | BK22: =SUM(BK5:BK8) -> 0 | BL22: =SUM(BL5:BL9) -> 2920
G23: Labor | H23: 0 | J23: =IF($G$11=1,H23,0) -> 0 | K23: =IF($G$12=1,H23,0) -> 0 | N23: Total | T23: =SUM(T20:T22) -> 420 | Z23: Content per bag (kg) | AF23: 25 | AX23: Total | BD23: =SUM(BD20:BD22) -> 0 | BI23: Consumables | BK23: =SUM(BK10:BK13) -> 0 | BL23: =SUM(BL10:BL14) -> 360
G24: Consumables | H24: 0 | J24: =IF($G$11=1,H24,0) -> 0 | K24: =IF($G$12=1,H24,0) -> 0 | Z24: Number of bags used per year | AF24: 18 | BI24: Investments | BK24: =SUM(BK15:BK18) -> 0 | BL24: =SUM(BL15:BL19) -> 1747.5
G25: Investments | H25: =((H15-H16)*H18*(H19-H20)) -> 2077.5 | I25: Milk yield losses culled cows | J25: =IF($G$11=1,H25-H26-H27,0) -> 0 | K25: =IF($G$12=1,H25-H26-H27,0) -> 1327.5 | M25: ='PC 2'!A10 -> 13 | N25: ='PC 2'!C10 -> Manually clean the yards twice a day | AE25: Labor | AF25: =(AF20*AF21*AF17*AF19)+(AF20*AF21*AF16*AF18*AF19) -> 2920 | AH25: =IF($AE$12=1,AF25,0) -> 0 | AI25: =IF($AE$13=1,AF25,0) -> 2920 | AX25: =IF('PC 2'!C27>0,'PC 2'!C27,"") ->  | BI25: Total | BK25: =SUM(BK22:BK24) -> 0 | BL25: =SUM(BL22:BL24) -> 5027.5
H26: =((H15-H16)*H21) -> 750 | I26: Slaughter price sold cows | AE26: Consumables | AF26: =AF22*AF24 -> 360 | AH26: =IF($AE$12=1,AF26,0) -> 0 | AI26: =IF($AE$13=1,AF26,0) -> 360
H27: =(H18*H16*H22*(H19-H20)) -> 0 | I27: Increased milk yield remaining cows | AE27: Investments | AF27: 0 | AH27: 0 | AI27: 0
B28: Total | H28: =H23+H24+H25-H26-H27 -> 1327.5 | Z28: Total | AF28: =SUM(AF25:AF27) -> 3280
Y30: ='PC 2'!A19 -> 20 | Z30: ='PC 2'!C19 -> Manually scrape floors (vs. automatic scraper) /Manually clean the yards twice a day
N33: Currently applied | R33: FALSE | S33: =IF(R33,1,0) -> 0 | T33: 0= 'no', 1='yes'
N34: Part of new lameness management | R34: FALSE | S34: =IF(R34,1,0) -> 0 | T34: 0= 'no', 1='yes' | AX34: Currently applied | BB34: FALSE | BC34: =IF(BB34,1,0) -> 0 | BD34: 0= 'no', 1='yes'
AX35: Part of new mastitis management | BB35: FALSE | BC35: =IF(BB35,1,0) -> 0 | BD35: 0= 'no', 1='yes'
N36: Costs
N37: Number of available lying spaces | T37: 70 | AX37: Costs
N38: Days in year | T38: 365 | Z38: Currently applied | AD38: FALSE | AE38: =IF(AD38,1,0) -> 0 | AF38: 0= 'no', 1='yes' | AX38: Labour to perfom the measures | BD38: ='PC 2 Custom'!K31/60*'PC 2 Custom'!K35 -> 0
N39: Cleanings per day | T39: 2 | Z39: Part of new mastitis management | AD39: FALSE | AE39: =IF(AD39,1,0) -> 0 | AF39: 0= 'no', 1='yes' | AX39: Opportunity costs of labour | BD39: =ASSUMPTIONS!F67 -> 20
N40: Start-up labor per cleaning (hr) | T40: =5/60 -> 0.08333333333 | U40: LINK | AX40: Consumables | BD40: ='PC 2 Custom'!K39+'PC 2 Custom'!K50 -> 0
N41: Labor per cubicle (hr) | T41: =0.05/60 -> 0.0008333333333 | Z41: Costs | AX41: Investments | BD41: ='PC 2 Custom'!K44/'PC 2 Custom'!K46 -> 0
N42: Opportunity costs labor | T42: =ASSUMPTIONS!F67 -> 20 | Z42: Number of available lying spaces | AF42: 70 | BC42: Labor | BD42: =BD38*BD39 -> 0 | BF42: =IF($BC$12=1,BD42,0) -> 0 | BG42: =IF($BC$13=1,BD42,0) -> 0
S43: Labor | T43: =(T38*T39*T40*T42)+(T37*T38*T39*T41*T42) -> 2068.333333 | V43: =IF($S$33=1,T43,0) -> 0 | W43: =IF($S$34=1,T43,0) -> 0 | Z43: Days in year | AF43: 365 | BC43: Consumables | BD43: =BD40 -> 0 | BF43: =IF($BC$12=1,BD43,0) -> 0 | BG43: =IF($BC$13=1,BD43,0) -> 0
S44: Consumables | T44: 0 | V44: =IF($S$33=1,T44,0) -> 0 | W44: =IF($S$34=1,T44,0) -> 0 | Z44: Cleanings per day | AF44: 2 | BC44: Investments | BD44: =BD41 -> 0 | BF44: 0 | BG44: 0
S45: Investments | T45: 0 | V45: 0 | W45: 0 | Z45: Start-up labor per cleaning (hr) | AF45: =5/60 -> 0.08333333333 | AX45: Total | BD45: =SUM(BD42:BD44) -> 0
N46: Total | T46: =SUM(T43:T45) -> 2068.333333 | Z46: Labor per cubicle (hr) | AF46: =0.05/60 -> 0.0008333333333
Z47: Opportunity costs labor | AF47: =ASSUMPTIONS!F67 -> 20 | AG47: LINK | AX47: =IF('PC 2'!C28>0,'PC 2'!C28,"") -> 
M48: ='PC 2'!$A$11 -> 14 | N48: ='PC 2'!$C$11 -> Improve foot bath management | AE48: Labor | AF48: =(AF43*AF44*AF45*AF47)+(AF42*AF43*AF44*AF46*AF47) -> 2068.333333 | AH48: =IF($AE$38=1,AF48,0) -> 0 | AI48: =IF($AE$39=1,AF48,0) -> 0
N49: Eenmaal per twee weken wordt een voetbad geplaats met formaline 40% bij de uitgang van de melkstal. Alle koeien lopen hierdoor heen. De minimale lengte van het voetbad is 3 meter en de water/oplossingshoogte is tenminste 15 cm. De inhoud van het voetbad is 400 L. Het voetbad wordt op een dag tweemaal doorlopen door alle koeien (na ochtend en middag melken). Voorafgaand aan het verlaten van de melkstal worden alle klauwen van de koeien schoongespoeld met water. Na het verlaten van de melkstal en het doorlopen van het voetbad worden alle koeien minimal 30 minuten vastgezet aan het voerhek om de formaline oplossing in te laten trekken op de klauwen. | AE49: Consumables | AF49: 0 | AH49: =IF($AE$38=1,AF49,0) -> 0 | AI49: =IF($AE$39=1,AF49,0) -> 0
AE50: Investments | AF50: 0 | AH50: 0 | AI50: 0
Z51: Total | AF51: =SUM(AF48:AF50) -> 2068.333333
AX56: Currently applied | BB56: FALSE | BC56: =IF(BB56,1,0) -> 0 | BD56: 0= 'no', 1='yes'
AX57: Part of new mastitis management | BB57: FALSE | BC57: =IF(BB57,1,0) -> 0 | BD57: 0= 'no', 1='yes'
AX59: Costs
AX60: Labour to perfom the measures | BD60: ='PC 2 Custom'!K54/60*'PC 2 Custom'!K58 -> 0
N61: Currently applied | R61: FALSE | S61: =IF(R61,1,0) -> 0 | T61: 0= 'no', 1='yes' | AX61: Opportunity costs of labour | BD61: =ASSUMPTIONS!F67 -> 20
N62: Part of new lameness management | R62: FALSE | S62: =IF(R62,1,0) -> 0 | T62: 0= 'no', 1='yes' | AX62: Consumables | BD62: ='PC 2 Custom'!K62+'PC 2 Custom'!K73 -> 0
AX63: Investments | BD63: ='PC 2 Custom'!K67/'PC 2 Custom'!K69 -> 0
N64: Costs | BC64: Labor | BD64: =BD60*BD61 -> 0 | BF64: =IF($BC$12=1,BD64,0) -> 0 | BG64: =IF($BC$13=1,BD64,0) -> 0
N65: Number of dairy cows | T65: =ASSUMPTIONS!F6 -> 100 | U65: LINK | BC65: Consumables | BD65: =BD62 -> 0 | BF65: =IF($BC$12=1,BD65,0) -> 0 | BG65: =IF($BC$13=1,BD65,0) -> 0
N66: Number of treatments a year | T66: 26 | BC66: Investments | BD66: =BD63 -> 0 | BF66: 0 | BG66: 0
N67: Number of milkings per day | T67: 2 | AX67: Total | BD67: =SUM(BD64:BD66) -> 0
N68: Content of footbath (L) | T68: 400
N69: Number of times footbath has to be renewed during milking | T69: =IF(T65<101,1,IF(T65<201,2,IF(T65<301,3,IF(T65<401,4,5)))) -> 1
N70: Labor to prepare footbath (hrs / renewal) | T70: =10/60 -> 0.1666666667
N71: Labor to clean claws (hr/cow) | T71: =10/60/60 -> 0.002777777778
N72: Labor to fix cows | T72: =2.5/60 -> 0.04166666667
N73: Opportunity costs labor | T73: =ASSUMPTIONS!F67 -> 20 | U73: LINK
N74: Price formaline (€) | T74: 25
N75: Content formaline (L) | T75: 20
N76: Price formaline (€/L) | T76: =T74/T75 -> 1.25
N77: Use of formaline per footbath (L/100L water) | T77: 4
N78: Use of formaline per footbath round (L) | T78: =T77*T68/100 -> 16
N79: New feed fence with option to keep cows standing (€/ cow place) | T79: 60
N80: Alternative feed fence without option to keep cows standing (€/cow place) | T80: 50 | U80: LINK
N81: Expected life time feeding fence (yrs) | T81: 15
N82: Depreciation costs per year (€ / cow place) | T82: =(T79-T80)/T81 -> 0.6666666667
N83: Price of water € / m3 | T83: 1.2
N84: Price of water €/ltr | T84: =T83/1000 -> 0.0012
S85: Labor | T85: =((T66*T67*T70)+(T65*T66*T67*T71)+(T66*T67*T72))*T73 -> 505.5555556 | V85: =IF($S$61=1,T85,0) -> 0 | W85: =IF($S$62=1,T85,0) -> 0
S86: Consumables | T86: =T66*T67*T69*T78*T76+T66*T67*T68*T69*T84 -> 1064.96 | V86: =IF($S$61=1,T86,0) -> 0 | W86: =IF($S$62=1,T86,0) -> 0
S87: Investments | T87: =T65*T82 -> 66.66666667 | V87: 0 | W87: 0
N88: Total | T88: =SUM(T85:T87) -> 1637.182222
M90: ='PC 2'!$A$12 -> 15 | N90: ='PC 2'!$C$12 -> Improve foot trim management
N91: 2 maal per jaar de klauwen van alle melkgevende en droogstaande koeien laten controleren en/of bekappen door klauwbekapper.
N98: Currently applied | R98: FALSE | S98: =IF(R98,1,0) -> 0 | T98: 0= 'no', 1='yes'
N99: Part of new lameness management | R99: FALSE | S99: =IF(R99,1,0) -> 0 | T99: 0= 'no', 1='yes'
N101: Costs
N102: Number of dairy cows | T102: =ASSUMPTIONS!F6 -> 100
N103: Number of cows in dry period | T103: =ROUNDUP(T102*0.3,0) -> 30
N104: Cost price hooftrimmer (€/cow) | T104: 10
N105: Number of treatments per year | T105: 2
S106: Labor | T106: 0 | V106: =IF($S$98=1,T106,0) -> 0 | W106: =IF($S$99=1,T106,0) -> 0
S107: Consumables | T107: =(T102+T103)*T104*T105 -> 2600 | V107: =IF($S$98=1,T107,0) -> 0 | W107: =IF($S$99=1,T107,0) -> 0
S108: Investments | T108: 0 | V108: 0 | W108: 0
N109: Total | T109: =SUM(T106:T108) -> 2600
M111: ='PC 2'!$A$13 -> 16 | N111: ='PC 2'!$C$13 -> Improve feeding ration
N112: Zorg voor voldoende structuur in het rantsoen en vermijdt te grote hoeveelheden krachtvoer. Na afkalven is een geleidelijke opbouw van de krachtvoergift van belang. (voorkomen van klauwbevangenheid)
N119: Currently applied | R119: FALSE | S119: =IF(R119,1,0) -> 0 | T119: 0= 'no', 1='yes'
N120: Part of new lameness management | R120: FALSE | S120: =IF(R120,1,0) -> 0 | T120: 0= 'no', 1='yes'
N122: Costs
N123: Automatic concentrate feeder | T123: =3000 -> 3000
N124: Expected lifetime feeder (yrs) | T124: 15
N125: Deprecation per year (€) | T125: =T123/15 -> 200
N126: Voeding
N127: Voeding
N128: Voeding
N129: Arbeid
N130: Opportunity costs labor | T130: =ASSUMPTIONS!F67 -> 20
S131: Labor | V131: =IF($R$119=1,T131,0) -> 0 | W131: =IF($S$120=1,T131,0) -> 0
S132: Consumables | V132: =IF($R$119=1,T132,0) -> 0 | W132: =IF($S$120=1,T132,0) -> 0
S133: Investments | T133: =T125 -> 200 | V133: 0 | W133: 0
N134: Total | T134: =SUM(T131:T133) -> 200
M136: ='PC 2'!$A$14 -> 17 | N136: ='PC 2'!$C$14 -> Increase frequency of checking the cows
N137: Every month all dairy cows are checked with the use of a five-point lameness scoring system to assess dairy cow gait and locomotion. Significant findings are registered and reported.
N145: Currently applied | R145: FALSE | S145: =IF(R145,1,0) -> 0 | T145: 0= 'no', 1='yes'
N146: Part of new lameness management | R146: FALSE | S146: =IF(R146,1,0) -> 0 | T146: 0= 'no', 1='yes'
N148: Costs
N149: Number of dairy cows | T149: =ASSUMPTIONS!F6 -> 100 | U149: LINK
N150: Number of dairy cows in dry period | T150: =ROUNDUP(0.3*T149,0) -> 30
N151: Number of checks per month | T151: 1
N152: Months in Year | T152: 12
N153: Labor (register and report checkings) (hr/report) | T153: =15/60 -> 0.25
N154: Labor (check per cow) (hr/cow) | T154: =10/60/60 -> 0.002777777778
N155: Opportunity costs labor (€/hr) | T155: =ASSUMPTIONS!F67 -> 20
S156: Labor | T156: =((T149+T150)*T151*T152*T154*T155)+(T151*T152*T153*T155) -> 146.6666667 | V156: =IF($S$145=1,T156,0) -> 0 | W156: =IF($S$146=1,T156,0) -> 0
S157: Consumables | T157: =0 -> 0 | V157: =IF($S$145=1,T157,0) -> 0 | W157: =IF($S$146=1,T157,0) -> 0
S158: Investments | T158: =0 -> 0 | V158: 0 | W158: 0
N159: Total | T159: =SUM(T156:T158) -> 146.6666667

Sheet MM Ketosis - costs (hidden)
B1: ='PC 3'!A3 -> Housing | N1: ='PC 3'!A9 -> Feeding | Z1: ='PC 3'!A13 -> Feed additives | AL1: ='PC 3'!A17 -> Cow specific measurements | AX1: Custom designed management measures
J2: Current | K2: Intervent | V2: Current | W2: Intervent | AH2: Current | AI2: Intervent | BF2: Current | BG2: Intervent
A3: ='PC 3'!A6 -> 2 | B3: ='PC 3'!C6 -> Clean heifer feeding platform daily | M3: ='PC 3'!A11 -> 7 | N3: ='PC 3'!C11 -> Improve nutritional management / Request independent feed advisor to screen farm feed management twice a year | Y3: ='PC 3'!A15 -> 21 | Z3: ='PC 3'!C15 -> Kexxstone/ Monensin bolus during dry-period | AK3: ='PC 3'!A19 -> 23 | AL3: ='PC 3'!C19 -> Control bloof NEFA values for all dairy cows (treshold ≥ 0.30 mEq/L) | AX3: =IF('PC 3'!C25>0,'PC 3'!C25,"") -> 
B4: Feeding platform of all heifers are cleaned every day. Left-over feed is removed and clean and appropriate feed is supplied to all heifers. Costs of feed are not included in measure as it is not part of the partial budget. We assume heifers are always present in calving pen and euqally divided over the number of pens on the farm. Each heifer needs at least 60 cm of feeding space. Feed is spread equally across an individual heifer pen. Costs of this measure constitute of labor to start-up and clean | N4: Twice a year, an independent feed advisor visits the farm and advises the dairy farmer how to optimise feed all cows. Every visits takes approximately 2 hours into account. The Feed advisors advises on youngstock, heifers, dairy cows and dry cows. 30% of his advice is related to dry cow management. We assume no fixed costs concerning the farm visit, total advisory costs are accounted as the advise is part of a full advisory package. | Z4: Each dairy cow which has been indicated as a potential SCK case in the previous lactation is supplied with a monensin bolus at the start of drying off | AL4: For all dairy cows, blood NEFA values are checked via a blood sample, which has to be done by a veterinarian. It is assumed the veterinarian is already present (once every month) on the farm and the measure can be easily done on the cows. Costs of laboratory check include costs of veterinarian and laboratory work | BK4: Current | BL4: Intervent
BI5: Labor | BJ5: Housing | BK5: =J31+J56+J102 -> 0 | BL5: =K31+K56+K102 -> 0
BJ6: Feeding | BK6: =V22 -> 0 | BL6: =W22 -> 0
BJ7: Feed additives | BK7: =AH26 -> 0 | BL7: =AI26 -> 0
BJ8: Cow specific measurements | BK8: =AT21+AT45+AT70+AT92 -> 0 | BL8: =AU21+AU45+AU70+AU92 -> 0
BJ9: Other
BJ10: Custom | BL10: =BG20+BG42+BG64 -> 0
BI11: Consumables | BJ11: Housing | BK11: =J32+J57+J103 -> 0 | BL11: =K32+K57+K103 -> 0
AX12: Currently applied | BB12: FALSE | BC12: =IF(BB12,1,0) -> 0 | BD12: 0= 'no', 1='yes' | BJ12: Feeding | BK12: =V23 -> 0 | BL12: =W23 -> 0
AX13: Part of new mastitis management | BB13: FALSE | BC13: =IF(BB13,1,0) -> 0 | BD13: 0= 'no', 1='yes' | BJ13: Feed additives | BK13: =AH27 -> 0 | BL13: =AI27 -> 0
B14: Currently applied | F14: FALSE | G14: =IF(F14,1,0) -> 0 | H14: 0= 'no', 1='yes' | N14: Currently applied | R14: FALSE | S14: =IF(R14,1,0) -> 0 | T14: 0= 'no', 1='yes' | Z14: Currently applied | AD14: FALSE | AE14: =IF(AD14,1,0) -> 0 | AF14: 0= 'no', 1='yes' | AL14: Currently applied | AP14: FALSE | AQ14: =IF(AP14,1,0) -> 0 | AR14: 0= 'no', 1='yes' | BJ14: Cow specific measurements | BK14: =AT22+AT46+AT71+AT93 -> 0 | BL14: =AU22+AU46+AU71+AU93 -> 0
B15: Part of new ketosis management | F15: FALSE | G15: =IF(F15,1,0) -> 0 | H15: 0= 'no', 1='yes' | N15: Part of new ketosis management | R15: FALSE | S15: =IF(R15,1,0) -> 0 | T15: 0= 'no', 1='yes' | Z15: Part of new ketosis management | AD15: FALSE | AE15: =IF(AD15,1,0) -> 0 | AF15: 0= 'no', 1='yes' | AL15: Part of new ketosis management | AP15: FALSE | AQ15: =IF(AP15,1,0) -> 0 | AR15: 0= 'no', 1='yes' | AX15: Costs | BJ15: Other
AX16: Labour to perfom the measures | BD16: ='PC 3 Custom'!K8/60*'PC 3 Custom'!K12 -> 0 | BJ16: Custom | BL16: =BG21+BG43+BG65 -> 0
B17: Costs | N17: Costs | Z17: Costs | AL17: Costs | AX17: Opportunity costs of labour | BD17: =ASSUMPTIONS!F67 -> 20 | BI17: Investments | BJ17: Housing | BK17: =J33+J58+J104 -> 0 | BL17: =K33+K58+K104 -> 0
B18: Number of dairy cows | H18: =ASSUMPTIONS!F6 -> 100 | I18: LINK | N18: Labor per visit (hrs) | T18: 2 | Z18: Number of dairy cows on the farm | AF18: =ASSUMPTIONS!F6 -> 100 | AG18: LINK | AL18: Costs of laboratory check (€/animal) | AR18: 15 | AX18: Consumables | BD18: ='PC 3 Custom'!K16+'PC 3 Custom'!K27 -> 25 | BJ18: Feeding | BK18: =V23 -> 0 | BL18: =W23 -> 0
B19: Replacement rate | H19: =ASSUMPTIONS!F83 -> 0.3 | I19: LINK | N19: Opportunity costs labor (€/hr) | T19: =ASSUMPTIONS!F67 -> 20 | Z19: Number of cows dry in a year | AF19: =H82 -> 98.03810016 | AG19: LINK > H82 | AL19: Number of dairy cows on the farm | AR19: =ASSUMPTIONS!F6 -> 100 | AX19: Investments | BD19: ='PC 3 Custom'!K21/'PC 3 Custom'!K23 -> 0 | BJ19: Feed additives | BK19: =AH28 -> 0 | BL19: =AI28 -> 0
B20: Number of heifers | H20: =ROUNDUP(H18*H19,0) -> 30 | I20: LINK | N20: Costs of feed advisor visit | T20: 400 | Z20: Percentage of dairy cows with disturbed fat/protein balance | AF20: =ASSUMPTIONS!F19 -> 0.25 | AG20: LINK | AL20: Number of dry cows in a year | AR20: =H82 -> 98.03810016 | AS20: LINK > H82 | BC20: Labor | BD20: =BD16*BD17 -> 0 | BF20: =IF($BC$12=1,BD20,0) -> 0 | BG20: =IF($BC$13=1,BD20,0) -> 0 | BJ20: Cow specific measurements | BK20: =AT23+AT47+AT72+AT94 -> 0 | BL20: =AU23+AU47+AU72+AU94 -> 0
B21: Min. surface per heifer (m2) | H21: 6 | N21: Number of visits per year | T21: 2 | Z21: Price of monensin bolus (€/pcs) | AF21: 7 | AQ21: Labor | AR21: 0 | AT21: =IF($AQ$14=1,AR21,0) -> 0 | AU21: =IF($AQ$15=1,AR21,0) -> 0 | BC21: Consumables | BD21: =BD18 -> 25 | BF21: =IF($BC$12=1,BD21,0) -> 0 | BG21: =IF($BC$13=1,BD21,0) -> 0 | BJ21: Other
B22: Average surface calving pen(s) | H22: =H20*H21 -> 180 | I22: LINK | S22: Labor | T22: =T18*T21*T19 -> 80 | V22: =IF($S$14=1,T22,0) -> 0 | W22: =IF($S$15=1,T22,0) -> 0 | Z22: Price of 'bolusschieter' | AF22: 35 | AQ22: Consumables | AR22: =AR18*AR20 -> 1470.571502 | AT22: =IF($AQ$14=1,AR22,0) -> 0 | AU22: =IF($AQ$15=1,AR22,0) -> 0 | BC22: Investments | BD22: =BD19 -> 0 | BF22: 0 | BG22: =IF($BC$13=1,BD22,0) -> 0 | BJ22: Custom | BL22: =BG22+BG44+BG66 -> 0
B23: Bunk feeding space per animal (m) | H23: 0.6 | S23: Consumables | T23: =T20*T21 -> 800 | V23: =IF($S$14=1,T23,0) -> 0 | W23: =IF($S$15=1,T23,0) -> 0 | Z23: Expected life time (yrs) | AF23: 3 | AQ23: Investments | AR23: 0 | AT23: 0 | AU23: 0 | AX23: Total | BD23: =SUM(BD20:BD22) -> 25 | BI23: Total | BK23: =SUM(BK5:BK21) -> 0 | BL23: =SUM(BL5:BL22) -> 0
B24: Average bunk feeding space total per group (m) | H24: =H23*H29*H30 -> 18 | I24: LINK | S24: Investments | T24: 0 | V24: 0 | W24: 0 | Z24: Labor to supply bolus (hr/case) | AF24: =3/60 -> 0.05 | AL24: Total | AR24: =SUM(AR21:AR23) -> 1470.571502
B25: Start up labor per cleaning (hrs) | H25: =5/60 -> 0.08333333333 | N25: Total | T25: =SUM(T22:T24) -> 880 | Z25: Opportunity costs labor (€/hr) | AF25: =ASSUMPTIONS!F67 -> 20 | AG25: LINK | AX25: =IF('PC 3'!C26>0,'PC 3'!C26,"") ->  | BI25: Labor | BK25: =SUM(BK5:BK9) -> 0 | BL25: =SUM(BL5:BL10) -> 0
B26: Labor per bunk feeding space (hrs/m) | H26: =5/60/60 -> 0.001388888889 | AE26: Labor | AF26: =AF19*AF20*AF24*AF25 -> 24.50952504 | AH26: =IF($AE$14=1,AF26,0) -> 0 | AI26: =IF($AE$15=1,AF26,0) -> 0 | AK26: ='PC 3'!A20 -> 24 | AL26: ='PC 3'!C20 -> Control blood NEFA values for all dairy cows with disturbed FPR (fat protein ration) within the first 100 days of lactation | BI26: Consumables | BK26: =SUM(BK11:BK15) -> 0 | BL26: =SUM(BL11:BL16) -> 0
B27: Opportunity costs labor (€/hr) | H27: =ASSUMPTIONS!F67 -> 20 | I27: LINK | AE27: Consumables | AF27: =AF19*AF20*AF21 -> 171.5666753 | AH27: =IF($AE$14=1,AF27,0) -> 0 | AI27: =IF($AE$15=1,AF27,0) -> 0 | BI27: Investments | BK27: =SUM(BK17:BK21) -> 0 | BL27: =SUM(BL17:BL22) -> 0
B28: Number of days in year | H28: 365 | AE28: Investments | AF28: =AF22/AF23 -> 11.66666667 | AH28: 0 | AI28: 0 | AL28: For all dairy cows with a disturbed FPR, blood NEFA values are checked via a blood sample, which has to be done by a veterinarian. It is assumed the veterinarian is already present (once every month) on the farm and the measure can be easily done on the cows. Costs of laboratory check include costs of veterinarian and laboratory work | BI28: Total | BK28: =SUM(BK25:BK27) -> 0 | BL28: =SUM(BL25:BL27) -> 0
B29: Average number of heifers per pen | H29: 10 | Z29: Total | AF29: =SUM(AF26:AF28) -> 207.742867
B30: Number of groups | H30: =ROUNDUP(H20/H29,0) -> 3 | I30: LINK
G31: Labor | H31: =H25*H28*H27+H24*H26*H28*H27 -> 790.8333333 | J31: =IF($G$14=1,H31,0) -> 0 | K31: =IF($G$15=1,H31,0) -> 0 | Y31: ='PC 3'!$A$16 -> 22 | Z31: ='PC 3'!C16 -> 0
G32: Consumables | H32: 0 | J32: =IF($G$14=1,H32,0) -> 0 | K32: =IF($G$15=1,H32,0) -> 0
G33: Investments | H33: 0 | J33: 0 | K33: 0 | Z33: With a drenching program, cows received predetermined amount of feed ingredients mixed in a fixed volume of water immediately after calving without waiting for voluntary consumption.
B34: Total | H34: =SUM(H31:H33) -> 790.8333333 | AX34: Currently applied | BB34: FALSE | BC34: =IF(BB34,1,0) -> 0 | BD34: 0= 'no', 1='yes'
AX35: Part of new mastitis management | BB35: FALSE | BC35: =IF(BB35,1,0) -> 0 | BD35: 0= 'no', 1='yes'
A36: ='PC 3'!A5 -> 1 | B36: ='PC 3'!C5 -> Make sure all cows have acces to feed at the same time / Decrease the number of cows to prevent overcrowding
AX37: Costs
B38: The appropriate number of dairy cows equals the number of available lying spaces in the stable (assuming cubicle housing). In which cows are kept untill culling | AL38: Currently applied | AP38: FALSE | AQ38: =IF(AP38,1,0) -> 0 | AR38: 0= 'no', 1='yes' | AX38: Labour to perfom the measures | BD38: ='PC 3 Custom'!K31/60*'PC 3 Custom'!K35 -> 0
AL39: Part of new ketosis management | AP39: FALSE | AQ39: =IF(AP39,1,0) -> 0 | AR39: 0= 'no', 1='yes' | AX39: Opportunity costs of labour | BD39: =ASSUMPTIONS!F67 -> 20
AX40: Consumables | BD40: ='PC 3 Custom'!K39+'PC 3 Custom'!K50 -> 25
Z41: Currently applied | AD41: FALSE | AE41: =IF(AD41,1,0) -> 0 | AF41: 0= 'no', 1='yes' | AL41: Costs | AX41: Investments | BD41: ='PC 3 Custom'!K44/'PC 3 Custom'!K46 -> 0
Z42: Part of new ketosis management | AD42: FALSE | AE42: =IF(AD42,1,0) -> 0 | AF42: 0= 'no', 1='yes' | AL42: Costs of laboratory check (€/animal) | AR42: 15 | BC42: Labor | BD42: =BD38*BD39 -> 0 | BF42: =IF($BC$34=1,BD42,0) -> 0 | BG42: =IF($BC$35=1,BD42,0) -> 0
AL43: Number of dairy cows on the farm | AR43: =ASSUMPTIONS!F6 -> 100 | BC43: Consumables | BD43: =BD40 -> 25 | BF43: =IF($BC$34=1,BD43,0) -> 0 | BG43: =IF($BC$35=1,BD43,0) -> 0
B44: Currently applied | F44: FALSE | G44: =IF(F44,1,0) -> 0 | H44: 0= 'no', 1='yes' | Z44: Costs | AL44: Number of cows with disturbed FPR | AR44: =ASSUMPTIONS!F19*ASSUMPTIONS!F6 -> 25 | AS44: LINK | BC44: Investments | BD44: =BD41 -> 0 | BF44: 0 | BG44: 0
B45: Part of new ketosis management | F45: FALSE | G45: =IF(F45,1,0) -> 0 | H45: 0= 'no', 1='yes' | AQ45: Labor | AR45: 0 | AT45: =IF($AQ$38=1,AR45,0) -> 0 | AU45: =IF($AQ$39=1,AR45,0) -> 0 | AX45: Total | BD45: =SUM(BD42:BD44) -> 25
AQ46: Consumables | AR46: =AR42*AR44 -> 375 | AT46: =IF($AQ$38=1,AR46,0) -> 0 | AU46: =IF($AQ$39=1,AR46,0) -> 0
B47: Costs | AQ47: Investments | AR47: 0 | AT47: 0 | AU47: 0 | AX47: =IF('PC 3'!C27>0,'PC 3'!C27,"") -> 
B48: Number of dairy cows | H48: =ASSUMPTIONS!F6 -> 100 | I48: LINK | AL48: Total | AR48: =SUM(AR45:AR47) -> 375
B49: Number of available lying spaces | H49: 99
B50: Fraction overcrowding | H50: =(H48-H49)/H49 -> 0.0101010101 | I50: LINK | AK50: ='PC 3'!A21 -> 25 | AL50: ='PC 3'!C21 -> Use of keto-strip to measure ketone bodies
B51: Average milk yield on farm (kg / cow / year) | H51: =ASSUMPTIONS!F5 -> 8310 | I51: LINK | AL51: Ketone bodies of all dairy cows which are in 2-21 days of lactation are checked with a keto-strip via the milk
B52: Milk price | H52: =ASSUMPTIONS!F65 -> 0.45 | I52: LINK
B53: Feed price | H53: =ASSUMPTIONS!F66 -> 0.2 | I53: LINK
B54: Slaughter price dairy cow | H54: =ASSUMPTIONS!F70 -> 750 | I54: LINK
B55: Increase in milk production, no more overcrowding | H55: =IF(H50<0.1,0,0.07) -> 0 | I55: LINK
G56: Labor | H56: 0 | J56: =IF($G$44=1,H56,0) -> 0 | K56: =IF($G$45=1,H56,0) -> 0 | AX56: Currently applied | BB56: FALSE | BC56: =IF(BB56,1,0) -> 0 | BD56: 0= 'no', 1='yes'
G57: Consumables | H57: 0 | J57: =IF($G$44=1,H57,0) -> 0 | K57: =IF($G$45=1,H57,0) -> 0 | AX57: Part of new mastitis management | BB57: FALSE | BC57: =IF(BB57,1,0) -> 0 | BD57: 0= 'no', 1='yes'
G58: Investments | H58: =((H48-H49)*H51*(H52-H53)) -> 2077.5 | I58: Milk yield losses culled cows | J58: =IF($G$44=1,H58-H59-H60,0) -> 0 | K58: =IF($G$45=1,H58-H59-H60,0) -> 0
H59: =((H48-H49)*H54) -> 750 | I59: Slaughter price sold cows | AL59: Currently applied | AP59: FALSE | AQ59: =IF(AP59,1,0) -> 0 | AR59: 0= 'no', 1='yes' | AX59: Costs
H60: =(H51*H49*H55*(H52-H53)) -> 0 | I60: Increased milk yield remaining cows | AL60: Part of new ketosis management | AP60: FALSE | AQ60: =IF(AP60,1,0) -> 0 | AR60: 0= 'no', 1='yes' | AX60: Labour to perfom the measures | BD60: ='PC 3 Custom'!K54/60*'PC 3 Custom'!K58 -> 0
B61: Total | H61: =H56+H57+H58-H59-H60 -> 1327.5 | AX61: Opportunity costs of labour | BD61: =ASSUMPTIONS!F67 -> 20
AL62: Costs | AX62: Consumables | BD62: ='PC 3 Custom'!K62+'PC 3 Custom'!K73 -> 25
A63: ='PC 3'!A7 -> 4 | B63: ='PC 3'!C7 -> Keep cows in (≥ 2) seperate groups during dry period (use of far-off and close-up group) | AL63: Number of dairy cows | AR63: =ASSUMPTIONS!F6 -> 100 | AS63: LINK | AX63: Investments | BD63: ='PC 3 Custom'!K67/'PC 3 Custom'!K69 -> 0
B64: Dry cows are put in two seperate groups depending on the number of weeks before calving. Dry cows entering the group until three weeks before calving remain in the far-off group, dry cows who are three weeks before the expected calving date untill actual calving remain in the close-up group. Two distinct feeding regimes are followed depending on dry-off group, it is assumed this does not increase feeding costs of the dry cows. Extra labor is involved in managing an extra ration and moving cows from the far-off to close-up group. Furthermore extra investments are made to make the current dry cow pen suitable to keep two groups, which requires and extra investment of a fence. This measure can only be applied if the current dry-cow pen allows for the creation of two seperate groups. | AL64: Number of cows dried off in a year | AR64: =H82 -> 98.03810016 | AS64: LINK > H82 | BC64: Labor | BD64: =BD60*BD61 -> 0 | BF64: =IF($BC$56=1,BD64,0) -> 0 | BG64: =IF($BC$57=1,BD64,0) -> 0
AL65: Opportunity costs of labor (€/hr) | AR65: =ASSUMPTIONS!F67 -> 20 | AS65: LINK | BC65: Consumables | BD65: =BD62 -> 25 | BF65: =IF($BC$56=1,BD65,0) -> 0 | BG65: =IF($BC$57=1,BD65,0) -> 0
AL66: Labor per dairy cow (hrs) | AR66: =1/60 -> 0.01666666667 | BC66: Investments | BD66: =BD63 -> 0 | BF66: 0 | BG66: 0
AL67: Price keto-test | AR67: 35 | AX67: Total | BD67: =SUM(BD64:BD66) -> 25
AL68: Package content (pcs) | AR68: 20
AL69: Price per strip | AR69: =AR67/AR68 -> 1.75 | AS69: LINK
AQ70: Labor | AR70: =AR64*AR66*AR65 -> 32.67936672 | AT70: =IF($AQ$59=1,AR70,0) -> 0 | AU70: =IF($AQ$60=1,AR70,0) -> 0
AQ71: Consumables | AR71: =AR64*AR69 -> 171.5666753 | AT71: =IF($AQ$59=1,AR71,0) -> 0 | AU71: =IF($AQ$60=1,AR71,0) -> 0
AQ72: Investments | AR72: 0 | AT72: 0 | AU72: 0
AL73: Total | AR73: =SUM(AR70:AR72) -> 204.246042
B74: Currently applied | F74: FALSE | G74: =IF(F74,1,0) -> 0 | H74: 0= 'no', 1='yes'
B75: Part of new ketosis management | F75: FALSE | G75: =IF(F75,1,0) -> 0 | H75: 0= 'no', 1='yes' | AK75: 26 | AL75: ='PC 3'!C22 -> Precalving BCS check and registration
AL76: When all dairy cows are dried off and a week before calving BCS are checked and registered electronically to monitor BCS development during the dry period
B77: Costs
B78: Number of dairy cows | H78: =ASSUMPTIONS!F6 -> 100 | I78: LINK
B79: Average calving interval | H79: 424
B80: Average days in milk (total days) | H80: =H79-H94 -> 372.3042362 | I80: LINK
B81: Number of days in year | H81: 365
B82: Number of dry cows in year | H82: =H78*H81/H80 -> 98.03810016 | I82: LINK
B83: Number of weeks in year | H83: 52
B84: Average dry period heifers (days) | H84: =4.5*7 -> 31.5 | AL84: Currently applied | AP84: FALSE | AQ84: =IF(AP84,1,0) -> 0 | AR84: 0= 'no', 1='yes'
B85: Average dry period 1st parity cows (days) | H85: =8*7 -> 56 | AL85: Part of new ketosis management | AP85: FALSE | AQ85: =IF(AP85,1,0) -> 0 | AR85: 0= 'no', 1='yes'
B86: Average dry period older cows (days) | H86: =7*7 -> 49
B87: Replacement percentage (%) | H87: =ASSUMPTIONS!F83 -> 0.3 | AL87: Costs
B88: N dry period heifers (cows/year) | H88: =IF(($H$87*100)<21,C110*$H$82,IF(($H$87*100)<26,D110*$H$82,IF(($H$87*100)<31,E110*$H$82,F110*$H$82))) -> 29.41143005 | I88: LINK | AL88: Number of dairy cows | AR88: =ASSUMPTIONS!F6 -> 100
B89: N dry period 1st parity cows (cow/year) | H89: =IF(($H$87*100)<21,C111*$H$82,IF(($H$87*100)<26,D111*$H$82,IF(($H$87*100)<31,E111*$H$82,F111*$H$82))) -> 21.66642014 | I89: LINK | AL89: Number of cows dried off in a year | AR89: =H82 -> 98.03810016
B90: N dry period older cows (cow/year) | H90: =IF(($H$87*100)<21,SUM(C112:C113)*$H$82,IF(($H$87*100)<26,SUM(D112:D113)*$H$82,IF(($H$87*100)<31,SUM(E112:E113)*$H$82,SUM(F112:F113)*$H$82))) -> 46.96024998 | I90: LINK | AL90: Opportunity costs of labor (€/hr) | AR90: =ASSUMPTIONS!F67 -> 20
B91: Average number of dry cows at any time on farm | H91: =(H88*H84+H89*H85+H90*H86)/H81 -> 12.16666253 | I91: LINK | AL91: Labor to check and register (hrs/dry cow) | AR91: =5/60 -> 0.08333333333
B92: New percentage | H92: =IF(($H$87*100)<21,C120,IF(($H$87*100)<26,D120,IF(($H$87*100)<31,E120,F120))) -> 0.3851091142 | I92: LINK | AQ92: Labor | AR92: =AR89*AR91*AR90 -> 163.3968336 | AT92: =IF($AQ$84=1,AR92,0) -> 0 | AU92: =IF($AQ$85=1,AR92,0) -> 0
B93: New percentage | H93: =IF(($H$87*100)<21,C121,IF(($H$87*100)<26,D121,IF(($H$87*100)<31,E121,F121))) -> 0.6148908858 | I93: LINK | AQ93: Consumables | AR93: 0 | AT93: =IF($AQ$84=1,AR93,0) -> 0 | AU93: =IF($AQ$85=1,AR93,0) -> 0
B94: Average dry period length (days/cow) | H94: =H92*H85+H93*H86 -> 51.6957638 | AQ94: Investments | AR94: 0 | AT94: 0 | AU94: 0
B95: Extra labor to move cows from far-off to close-up group (hrs/cow) | H95: =5/60 -> 0.08333333333 | AL95: Total | AR95: =SUM(AR92:AR94) -> 163.3968336
B96: Additional labor to feed extra ration to second group of dry cows (hrs/cow/day) | H96: =10/60/60 -> 0.002777777778
B97: Start up labour to mix extra batch of feed for second dry cow group (hrs/day) | H97: =15/60 -> 0.25
B98: Opportunity costs labor (€/hour) | H98: =ASSUMPTIONS!F67 -> 20 | I98: LINK
B99: Investment in fence to separate two cows (€) | H99: 2000
B100: Expected lifetime fence (yrs) | H100: 10
B101: Depreciation fence (€/year) | H101: =H99/H100 -> 200 | I101: LINK
G102: Labor | H102: =((H95*H82)+(H96*H91*H81)+(H97*H81))*H98 -> 2235.109713 | J102: =IF($G$74=1,H102,0) -> 0 | K102: =IF($G$75=1,H102,0) -> 0
G103: Consumables | H103: 0 | J103: =IF($G$74=1,H103,0) -> 0 | K103: =IF($G$75=1,H103,0) -> 0
G104: Investments | H104: =H101 -> 200 | J104: 0 | K104: =IF($G$75=1,H104,0) -> 0
B105: Total | H105: =SUM(H102:H104) -> 2435.109713
B107: Verdeling van koeien over de leeftijdsklassen (%) bij verschillende vervaningspercentages
B108: Leefdtijdsklasse (lactatienummer) | C108: vervangingspercentage
C109: 20 | D109: 25 | E109: 30 | F109: 35
B110: 1 | C110: 0.2 | D110: 0.25 | E110: 0.3 | F110: 0.35
B111: 2 | C111: 0.175 | D111: 0.2 | E111: 0.221 | F111: 0.236
B112: 3 | C112: 0.156 | D112: 0.164 | E112: 0.167 | F112: 0.164
B113: 4+ | C113: =SUM(C114:C116) -> 0.469 | D113: =SUM(D114:D116) -> 0.386 | E113: 0.312 | F113: 0.25
B114: 4 | C114: 0.135 | D114: 0.13 | E114: 0.121 | F114: 0.109
B115: 5 | C115: 0.112 | D115: 0.099 | E115: 0.084 | F115: 0.069
B116: ≥6 | C116: 0.222 | D116: 0.157 | E116: 0.107 | F116: 0.072
C117: =SUM(C110:C113) -> 1 | D117: =SUM(D110:D113) -> 1 | E117: 1 | F117: 1
C118: 0.2 | D118: 0.25 | E118: 0.3 | F118: 0.35
C119: 0.175 | D119: 0.2 | E119: 0.221 | F119: 0.236
C120: =C118/(1-C119) -> 0.2424242424 | D120: =D118/(1-D119) -> 0.3125 | E120: 0.3851091142 | F120: =F118/(1-F119) -> 0.4581151832
C121: =1-C120 -> 0.7575757576 | D121: =1-D120 -> 0.6875 | E121: =1-E120 -> 0.6148908858 | F121: 0.5418848168
A123: ='PC 3'!#REF! ->  | B123: ='PC 3'!#REF! -> 
B132: Currently applied | F132: FALSE | G132: =IF(F132,1,0) -> 0 | H132: 0= 'no', 1='yes'
B133: Part of new ketosis management | F133: FALSE | G133: =IF(F133,1,0) -> 0 | H133: 0= 'no', 1='yes'
B135: Costs

Sheet MM Metritis - costs (hidden)
B1: ='PC 4'!A3 -> Housing | N1: ='PC 4'!A9 -> Feeding | Z1: ='PC 4'!A14 -> Others | AL1: Custom designed management measures | AW1: Failure costs Metritis
J2: Current | K2: Intervent | V2: Current | W2: Intervent | AH2: Current | AI2: Intervent | AT2: Current | AU2: Intervent
A3: ='PC 4'!A5 -> 2 | B3: ='PC 4'!C5 -> Provide clean and new straw bedding in the calving pen before every calving | M3: ='PC 4'!A11 -> 8 | N3: ='PC 4'!C11 -> Prevent reduced feeding time and DMI both post-calving and pre-calving (during transition period) / push feed manually two times per day (next to normal feeding) | Y3: ='PC 4'!A16 -> 22 | Z3: ='PC 4'!C16 -> Control BCS during the dry period / Precalving BCS check and registration | AL3: =IF('PC 4'!C23>0,'PC 4'!C23,"") -> 
B4: The clean calving pen is embedded with clean and new straw before every calving. Costs include the costs of straw, the costs of labor to provide the straw en the costs of labor to clean all straw after the calving pen is cleared. | Z4: When all dairy cows are dried off and a week before calving BCS are checked and registered electronically to monitor BCS development during the dry period | AY4: Current | AZ4: Intervent
N5: All feed is pushed towards the feeding fence twice a day manually to ensure all dry and lactatingcows have access to feed during the day | AW5: Labor | AX5: Housing | AY5: =J35+J72+J116 -> 0 | AZ5: =K35+K72+K116 -> 1797.36517
AX6: Feeding | AY6: =V24+V52 -> 0 | AZ6: =W24+W52 -> 2274.490657
AX7: Others | AY7: =AH21+AH64+AH90+AH117+AH139 -> 0 | AZ7: =AI21+AI64+AI90+AI117+AI139 -> 163.3968336
AX8: Custom | AZ8: =AU20+AU42+AU64 -> 0
AW9: Consumables | AX9: Housing | AY9: =J36+J73+J117 -> 0 | AZ9: =K36+K73+K117 -> 882.3429015
AX10: Feeding | AY10: =V25+V53 -> 0 | AZ10: =W25+W53 -> 0
AX11: Others | AY11: =AH22+AH65+AH91+AH118+AH140 -> 0 | AZ11: =AI22+AI65+AI91+AI118+AI140 -> 0
AL12: Currently applied | AP12: FALSE | AQ12: =IF(AP12,1,0) -> 0 | AR12: 0= 'no', 1='yes' | AX12: Custom | AZ12: =AU21+AU43+AU65 -> 0
B13: Currently applied | F13: FALSE | G13: =IF(F13,1,0) -> 0 | H13: 0= 'no', 1='yes' | N13: Currently applied | R13: FALSE | S13: =IF(R13,1,0) -> 0 | T13: 0= 'no', 1='yes' | Z13: Currently applied | AD13: FALSE | AE13: =IF(AD13,1,0) -> 0 | AF13: 0= 'no', 1='yes' | AL13: Part of new mastitis management | AP13: FALSE | AQ13: =IF(AP13,1,0) -> 0 | AR13: 0= 'no', 1='yes' | AW13: Investments | AX13: Housing | AY13: =J37+J74+J118 -> 0 | AZ13: =K37+K74+K118 -> 0
B14: Part of new metritis management | F14: TRUE | G14: =IF(F14,1,0) -> 1 | H14: 0= 'no', 1='yes' | N14: Part of new metritis management | R14: TRUE | S14: =IF(R14,1,0) -> 1 | T14: 0= 'no', 1='yes' | Z14: Part of new ketosis management | AD14: TRUE | AE14: =IF(AD14,1,0) -> 1 | AF14: 0= 'no', 1='yes' | AX14: Feeding | AY14: =V26+V54 -> 0 | AZ14: =W26+W54 -> 0
AL15: Costs | AX15: Others | AY15: =AH23+AH66+AH92+AH119+AH141 -> 0 | AZ15: =AI23+AI66+AI92+AI119+AI141 -> 0
B16: Costs | N16: Costs | Z16: Costs | AL16: Labour to perfom the measures | AR16: ='PC 4 Custom'!K8/60*'PC 4 Custom'!K12 -> 0 | AX16: Custom | AZ16: =AU22+AU44+AU66 -> 0
B17: Costs of straw (€ / bale 18-20 kg) | H17: 3 | N17: Number of lactating dairy cows | T17: =ASSUMPTIONS!F6 -> 100 | Z17: Number of dairy cows | AF17: =ASSUMPTIONS!F6 -> 100 | AG17: LINK | AL17: Opportunity costs of labour | AR17: =ASSUMPTIONS!F67 -> 20 | AW17: Total | AY17: =SUM(AY5:AY15) -> 0 | AZ17: =SUM(AZ5:AZ16) -> 5117.595562
B18: Number of straw-bales used for each calving | H18: 3 | N18: Average number of cows dry at any moment | T18: =H105 -> 12.16666253 | U18: LINK > H105 | Z18: Number of cows dried off in a year | AF18: =H26 -> 98.03810016 | AG18: LINK > H26 | AL18: Consumables | AR18: ='PC 4 Custom'!K16+'PC 4 Custom'!K27 -> 0
B19: Opportunity costs of labor | H19: =ASSUMPTIONS!F67 -> 20 | I19: LINK | N19: Number of cows on the farm (dry and lactating) | T19: =T17+T18 -> 112.1666625 | U19: LINK | Z19: Opportunity costs of labor (€/hr) | AF19: =ASSUMPTIONS!F67 -> 20 | AG19: LINK | AL19: Investments | AR19: ='PC 4 Custom'!K21/'PC 4 Custom'!K23 -> 0 | AW19: Labor | AY19: =SUM(AY5:AY7) -> 0 | AZ19: =SUM(AZ5:AZ8) -> 4235.25266
B20: Labor to embed calving pen with straw (hr/calving) | H20: =10/60 -> 0.1666666667 | N20: Number of times feed is pushed towards the feeding fence | T20: =2 -> 2 | Z20: Labor to check and register (hrs/dry cow) | AF20: =5/60 -> 0.08333333333 | AQ20: Labor | AR20: =AR16*AR17 -> 0 | AT20: =IF($AQ$12=1,AR20,0) -> 0 | AU20: =IF($AQ$13=1,AR20,0) -> 0 | AW20: Consumables | AY20: =SUM(AY9:AY11) -> 0 | AZ20: =SUM(AZ9:AZ12) -> 882.3429015
B21: Labor to clean calving pen after calving (hr/calving) | H21: =45/60 -> 0.75 | N21: Number of days in year | T21: 365 | AE21: Labor | AF21: =AF18*AF20*AF19 -> 163.3968336 | AH21: =IF($AD$13=1,AF21,0) -> 0 | AI21: =IF($AE$14=1,AF21,0) -> 163.3968336 | AQ21: Consumables | AR21: =AR18 -> 0 | AT21: =IF($AQ$12=1,AR21,0) -> 0 | AU21: =IF($AQ$13=1,AR21,0) -> 0 | AW21: Investments | AY21: =SUM(AY13:AY15) -> 0 | AZ21: =SUM(AZ13:AZ16) -> 0
B22: Number of dairy cows | H22: =ASSUMPTIONS!F6 -> 100 | I22: LINK | N22: Opportunity costs labor | T22: =ASSUMPTIONS!F67 -> 20 | AE22: Consumables | AF22: 0 | AH22: =IF($AD$13=1,AF22,0) -> 0 | AI22: =IF($AE$14=1,AF22,0) -> 0 | AQ22: Investments | AR22: =AR19 -> 0 | AT22: =IF($AQ$12=1,AR22,0) -> 0 | AU22: =IF($AQ$13=1,AR22,0) -> 0 | AW22: Total | AY22: =AY17 -> 0 | AZ22: =AZ17 -> 5117.595562
B23: Average calving interval | H23: 424 | N23: Labor per cow (hr/cow/cleaning) | T23: =5/60/60 -> 0.001388888889 | AE23: Investments | AF23: 0 | AH23: 0 | AI23: 0 | AL23: Total | AR23: =SUM(AR20:AR22) -> 0
B24: Average days in milk (total days) | H24: =H23-H34 -> 372.3042362 | I24: LINK | S24: Labor | T24: =T19*T23*T20*T21*T22 -> 2274.490657 | V24: =IF($S$13=1,T24,0) -> 0 | W24: =IF($S$14=1,T24,0) -> 2274.490657 | Z24: Total | AF24: =SUM(AF21:AF23) -> 163.3968336
B25: Number of days in year | H25: 365 | S25: Consumables | T25: 0 | V25: =IF($S$13=1,T25,0) -> 0 | W25: =IF($S$14=1,T25,0) -> 0 | AL25: =IF('PC 4'!C24>0,'PC 4'!C24,"") -> 
B26: Number of dry cows in year / Number of calvings | H26: =H22*H25/H24 -> 98.03810016 | I26: LINK | S26: Investments | T26: 0 | V26: 0 | W26: 0 | Y26: ='PC 4'!#REF! ->  | Z26: ='PC 4'!#REF! -> 
B27: Number of weeks in year | H27: 52 | N27: Total | T27: =SUM(T24:T26) -> 2274.490657 | Z27: a program of two injections of PGF2α at approximately 35 and 49 days post-partum without individual examination, followed by either heat detection or timed insemination
B28: Average dry period heifers (days) | H28: =4.5*7 -> 31.5
B29: Average dry period 1st parity cows (days) | H29: =8*7 -> 56 | M29: ='PC 4'!A12 -> 14 | N29: ='PC 4'!C12 -> Supply appropriate minerals and trace elements in the right balance
B30: Average dry period older cows (days) | H30: =7*7 -> 49
B31: Replacement percentage (%) | H31: =ASSUMPTIONS!F83 -> 0.3 | I31: LINK
B32: New percentage | H32: =IF(($H$31*100)<21,C53,IF(($H$31*100)<26,D53,IF(($H$31*100)<31,E53,F53))) -> 0.3851091142 | I32: LINK
B33: New percentage | H33: =IF(($H$31*100)<21,C54,IF(($H$31*100)<26,D54,IF(($H$31*100)<31,E54,F54))) -> 0.6148908858 | I33: LINK
B34: Average dry period length (days/cow) | H34: =H32*H29+H33*H30 -> 51.6957638 | AL34: Currently applied | AP34: FALSE | AQ34: =IF(AP34,1,0) -> 0 | AR34: 0= 'no', 1='yes'
G35: Labor | H35: =(H26*H20+H26*H21)*H19 -> 1797.36517 | J35: =IF($G$13=1,H35,0) -> 0 | K35: =IF($G$14=1,H35,0) -> 1797.36517 | AL35: Part of new mastitis management | AP35: FALSE | AQ35: =IF(AP35,1,0) -> 0 | AR35: 0= 'no', 1='yes'
G36: Consumables | H36: =H17*H18*H26 -> 882.3429015 | J36: =IF($G$13=1,H36,0) -> 0 | K36: =IF($G$14=1,H36,0) -> 882.3429015 | Z36: Currently applied | AD36: FALSE | AE36: =IF(AD36,1,0) -> 0 | AF36: 0= 'no', 1='yes'
G37: Investments | H37: 0 | J37: 0 | K37: 0 | Z37: Part of new ketosis management | AD37: FALSE | AE37: =IF(AD37,1,0) -> 0 | AF37: 0= 'no', 1='yes' | AL37: Costs
B38: Total | H38: =SUM(H35:H37) -> 2679.708071 | N38: Currently applied | R38: FALSE | S38: =IF(R38,1,0) -> 0 | T38: 0= 'no', 1='yes' | AL38: Labour to perfom the measures | AR38: ='PC 4 Custom'!K31/60*'PC 4 Custom'!K35 -> 0
N39: Part of new metritis management | R39: FALSE | S39: =IF(R39,1,0) -> 0 | T39: 0= 'no', 1='yes' | Z39: Costs | AL39: Opportunity costs of labour | AR39: =ASSUMPTIONS!F67 -> 20
B40: Verdeling van koeien over de leeftijdsklassen (%) bij verschillende vervangingspercentages | Z40: NOT POSSIBLE MEASURE IS CURATIVE OF ENDOMETRITIS NOT PREVENTIVE MEASURE | AL40: Consumables | AR40: ='PC 4 Custom'!K39+'PC 4 Custom'!K50 -> 0
B41: Leefdtijdsklasse (lactatienummer) | C41: vervangingspercentage | N41: Costs | AL41: Investments | AR41: ='PC 4 Custom'!K44/'PC 4 Custom'!K46 -> 0
C42: 20 | D42: 25 | E42: 30 | F42: 35 | N42: Price of mineral bolus | T42: 475 | Y42: ='PC 4'!A17 -> 27 | Z42: ='PC 4'!C17 -> Control fresh cows multiple times per day for at leats ten days | AQ42: Labor | AR42: =AR38*AR39 -> 0 | AT42: =IF($AQ$12=1,AR42,0) -> 0 | AU42: =IF($AQ$13=1,AR42,0) -> 0
B43: 1 | C43: 0.2 | D43: 0.25 | E43: 0.3 | F43: 0.35 | N43: Package size (pcs) | T43: 100 | Z43: All fresh cows are monitored three times per day for at least the first ten DIM. In which rumen activity and fill, cow activity, rectal temperature and manure is montired and registered. In which temperature, rumen fill and manure is monitered twice per day while all dairy cows are kept standing after milking and cow activity is monitered once while cows are free to move. It is assumed activity is monitored all days of the year. The management measure fix cows is required for this measure and should be selected if not already currently applied. | AQ43: Consumables | AR43: =AR40 -> 0 | AT43: =IF($AQ$12=1,AR43,0) -> 0 | AU43: =IF($AQ$13=1,AR43,0) -> 0
